Workbook

Sheet Accueil
C2: ANNEE | F2: =IF(Accueil!P2<>"",Accueil!P2,"") -> 2015/2014 | P2: =Renseignements!C2 -> 2015/2014
A3: 2014
A4: 2013
A5: 2014
A6: 2015
A7: 2016
A8: 2017
A9: 2018
A10: 2019
A11: 2020
A12: 2021
A13: 2022
A14: 2023
A15: 2024
A16: 2025 | D16: مُساعد مدير قسم
B77: =DATE(YEAR(TODAY()),9,1) -> 2014-09-01 | C77: =DATE(YEAR(TODAY()),10,1) -> 2014-10-01 | D77: =DATE(YEAR(TODAY()),11,1) -> 2014-11-01
B78: =DATE(YEAR(TODAY()),9,2) -> 2014-09-02 | C78: =DATE(YEAR(TODAY()),10,2) -> 2014-10-02 | D78: =DATE(YEAR(TODAY()),11,2) -> 2014-11-02
B79: =DATE(YEAR(TODAY()),9,3) -> 2014-09-03 | C79: =DATE(YEAR(TODAY()),10,3) -> 2014-10-03 | D79: =DATE(YEAR(TODAY()),11,3) -> 2014-11-03
B80: =DATE(YEAR(TODAY()),9,4) -> 2014-09-04 | C80: =DATE(YEAR(TODAY()),10,4) -> 2014-10-04 | D80: =DATE(YEAR(TODAY()),11,4) -> 2014-11-04
B81: =DATE(YEAR(TODAY()),9,5) -> 2014-09-05 | C81: =DATE(YEAR(TODAY()),10,5) -> 2014-10-05 | D81: =DATE(YEAR(TODAY()),11,5) -> 2014-11-05
B82: =DATE(YEAR(TODAY()),9,6) -> 2014-09-06 | C82: =DATE(YEAR(TODAY()),10,6) -> 2014-10-06 | D82: =DATE(YEAR(TODAY()),11,6) -> 2014-11-06
B83: =DATE(YEAR(TODAY()),9,7) -> 2014-09-07 | C83: =DATE(YEAR(TODAY()),10,7) -> 2014-10-07 | D83: =DATE(YEAR(TODAY()),11,7) -> 2014-11-07
B84: =DATE(YEAR(TODAY()),9,8) -> 2014-09-08 | C84: =DATE(YEAR(TODAY()),10,8) -> 2014-10-08 | D84: =DATE(YEAR(TODAY()),11,8) -> 2014-11-08
B85: =DATE(YEAR(TODAY()),9,9) -> 2014-09-09 | C85: =DATE(YEAR(TODAY()),10,9) -> 2014-10-09 | D85: =DATE(YEAR(TODAY()),11,9) -> 2014-11-09
B86: =DATE(YEAR(TODAY()),9,10) -> 2014-09-10 | C86: =DATE(YEAR(TODAY()),10,10) -> 2014-10-10 | D86: =DATE(YEAR(TODAY()),11,10) -> 2014-11-10
B87: =DATE(YEAR(TODAY()),9,11) -> 2014-09-11 | C87: =DATE(YEAR(TODAY()),10,11) -> 2014-10-11 | D87: =DATE(YEAR(TODAY()),11,11) -> 2014-11-11
B88: =DATE(YEAR(TODAY()),9,12) -> 2014-09-12 | C88: =DATE(YEAR(TODAY()),10,12) -> 2014-10-12 | D88: =DATE(YEAR(TODAY()),11,12) -> 2014-11-12
B89: =DATE(YEAR(TODAY()),9,13) -> 2014-09-13 | C89: =DATE(YEAR(TODAY()),10,13) -> 2014-10-13 | D89: =DATE(YEAR(TODAY()),11,13) -> 2014-11-13
B90: =DATE(YEAR(TODAY()),9,14) -> 2014-09-14 | C90: =DATE(YEAR(TODAY()),10,14) -> 2014-10-14 | D90: =DATE(YEAR(TODAY()),11,14) -> 2014-11-14
B91: =DATE(YEAR(TODAY()),9,15) -> 2014-09-15 | C91: =DATE(YEAR(TODAY()),10,15) -> 2014-10-15 | D91: =DATE(YEAR(TODAY()),11,15) -> 2014-11-15
B92: =DATE(YEAR(TODAY()),9,16) -> 2014-09-16 | C92: =DATE(YEAR(TODAY()),10,16) -> 2014-10-16 | D92: =DATE(YEAR(TODAY()),11,16) -> 2014-11-16
B93: =DATE(YEAR(TODAY()),9,17) -> 2014-09-17 | C93: =DATE(YEAR(TODAY()),10,17) -> 2014-10-17 | D93: =DATE(YEAR(TODAY()),11,17) -> 2014-11-17
B94: =DATE(YEAR(TODAY()),9,18) -> 2014-09-18 | C94: =DATE(YEAR(TODAY()),10,18) -> 2014-10-18 | D94: =DATE(YEAR(TODAY()),11,18) -> 2014-11-18
B95: =DATE(YEAR(TODAY()),9,19) -> 2014-09-19 | C95: =DATE(YEAR(TODAY()),10,19) -> 2014-10-19 | D95: =DATE(YEAR(TODAY()),11,19) -> 2014-11-19
B96: =DATE(YEAR(TODAY()),9,20) -> 2014-09-20 | C96: =DATE(YEAR(TODAY()),10,20) -> 2014-10-20 | D96: =DATE(YEAR(TODAY()),11,20) -> 2014-11-20
B97: =DATE(YEAR(TODAY()),9,21) -> 2014-09-21 | C97: =DATE(YEAR(TODAY()),10,21) -> 2014-10-21 | D97: =DATE(YEAR(TODAY()),11,21) -> 2014-11-21
B98: =DATE(YEAR(TODAY()),9,22) -> 2014-09-22 | C98: =DATE(YEAR(TODAY()),10,22) -> 2014-10-22 | D98: =DATE(YEAR(TODAY()),11,22) -> 2014-11-22
B99: =DATE(YEAR(TODAY()),9,23) -> 2014-09-23 | C99: =DATE(YEAR(TODAY()),10,23) -> 2014-10-23 | D99: =DATE(YEAR(TODAY()),11,23) -> 2014-11-23
B100: =DATE(YEAR(TODAY()),9,24) -> 2014-09-24 | C100: =DATE(YEAR(TODAY()),10,24) -> 2014-10-24 | D100: =DATE(YEAR(TODAY()),11,24) -> 2014-11-24
B101: =DATE(YEAR(TODAY()),9,25) -> 2014-09-25 | C101: =DATE(YEAR(TODAY()),10,25) -> 2014-10-25 | D101: =DATE(YEAR(TODAY()),11,25) -> 2014-11-25
B102: =DATE(YEAR(TODAY()),9,26) -> 2014-09-26 | C102: =DATE(YEAR(TODAY()),10,26) -> 2014-10-26 | D102: =DATE(YEAR(TODAY()),11,26) -> 2014-11-26
B103: =DATE(YEAR(TODAY()),9,27) -> 2014-09-27 | C103: =DATE(YEAR(TODAY()),10,27) -> 2014-10-27 | D103: =DATE(YEAR(TODAY()),11,27) -> 2014-11-27
B104: =DATE(YEAR(TODAY()),9,28) -> 2014-09-28 | C104: =DATE(YEAR(TODAY()),10,28) -> 2014-10-28 | D104: =DATE(YEAR(TODAY()),11,28) -> 2014-11-28
B105: =DATE(YEAR(TODAY()),9,29) -> 2014-09-29 | C105: =DATE(YEAR(TODAY()),10,29) -> 2014-10-29 | D105: =DATE(YEAR(TODAY()),11,29) -> 2014-11-29
B106: =DATE(YEAR(TODAY()),9,30) -> 2014-09-30 | C106: =DATE(YEAR(TODAY()),10,30) -> 2014-10-30 | D106: =DATE(YEAR(TODAY()),11,30) -> 2014-11-30
C107: =DATE(YEAR(TODAY()),10,31) -> 2014-10-31

Sheet Base_D
A1: اللقب | B1: الإسم | C1: القسم | D1: المستوى الدراسي | E1: متفرقات | F1: رقم الهاتف | G1: E Mail | J1: =COUNTIF(A2:A50,"><") -> 4
A2: حقاني | B2: عبدالقادر | C2: س4م1 | D2: 4 | F2: 00 12 54 87 96 | G2: jrjkgkgk@hgdjgds
A3: fgh | B3: hfhfd | C3: س4م3 | D3: 4 | F3: 444444524 | G3: jol65@gcd
A4: khjk | B4: khkhjk | C4: س1م2 | D4: 1 | F4: 4645645634 | G4: hyfhfh@rzrza.fgf
A5: ghnfgnh | B5: bnbxcb | C5: س3م1 | D5: 1 | F5: 535354354 | G5: vgnv@gcg

Sheet Renseignements
A1: المتوسطة | B1: البلدية | C1: السنة الدراسية
A2: متوسطة مكاوي علي؛ اولاد البارودي | B2: سيدي لخضر | C2: 2015/2014
B145: =A2&" - "&B2 -> متوسطة مكاوي علي؛ اولاد البارودي - سيدي لخضر

Sheet 1
D1: =IF(Renseignements!B145<>"",Renseignements!B145,"") -> متوسطة مكاوي علي؛ اولاد البارودي - سيدي لخضر | E1: =IF(Accueil!F5<>"",Accueil!F5,"") ->  | F1: =IF(Accueil!G5<>"",Accueil!G5,"") ->  | G1: =IF(Accueil!#REF!<>"",Accueil!#REF!,"") ->  | H1: =IF(Accueil!J5<>"",Accueil!J5,"") ->  | I1: =IF(Accueil!K5<>"",Accueil!K5,"") ->  | J1: =IF(Accueil!#REF!<>"",Accueil!#REF!,"") ->  | R1: =IF(Accueil!F2<>"",Accueil!F2,"") -> 2015/2014 | Y1: =IF(D1<>"",D1,"") -> متوسطة مكاوي علي؛ اولاد البارودي - سيدي لخضر | AA1: =IF(#REF!<>"",#REF!,"") ->  | AB1: =IF(#REF!<>"",#REF!,"") ->  | AC1: =IF(#REF!<>"",#REF!,"") ->  | AD1: =IF(#REF!<>"",#REF!,"") ->  | AI1: =IF(R1<>"",R1,"") -> 2015/2014 | AJ1: =IF(N1<>"",N1,"") -> 
D2: =IF(Accueil!E6<>"",Accueil!E6,"") ->  | E2: =IF(Accueil!F6<>"",Accueil!F6,"") ->  | F2: =IF(Accueil!G6<>"",Accueil!G6,"") ->  | G2: =IF(Accueil!I5<>"",Accueil!I5,"") ->  | H2: =IF(Accueil!J6<>"",Accueil!J6,"") ->  | I2: =IF(Accueil!K6<>"",Accueil!K6,"") ->  | J2: =IF(Accueil!#REF!<>"",Accueil!#REF!,"") ->  | Y2: =IF(#REF!<>"",#REF!,"") ->  | AA2: =IF(#REF!<>"",#REF!,"") ->  | AB2: =IF(#REF!<>"",#REF!,"") ->  | AC2: =IF(#REF!<>"",#REF!,"") ->  | AD2: =IF(#REF!<>"",#REF!,"") ->  | AI2: =IF(M2<>"",M2,"") ->  | AJ2: =IF(N2<>"",N2,"") -> 
E3: =IF(Base_D!C2<>"",Base_D!C2,"") -> س4م1 | K3: نتائج الفصل الأول | Y3: القسم: | Z3: =E3 -> س4م1
AB4: ترتيب التلاميذ حسب معدلاتهم (الفصـــــــــــــل الأول)
Q5: المستوى | S5: =IF(Base_D!D2<>"",Base_D!D2,"") -> 4 | Y5: الأستاذ (ة): | Z5: =IF(E5<>"",E5,"") ->  | AI5: =IF(S5<>"",S5,"") -> 4
D8: Nom | E8: Prenom | F8: تاريخ الميلاد | L8: المعدل الفصلي على 20 | M8: الإجازات و العقوبات | Y8: اللقب و الإسم | Z8: تاريخ الميلاد | AA8: المعدل الفصلي على 20 | AB8: الإجازات و العقوبات
A15: 1 | C15: ذ | D15: براهامي | E15: سفيان | F15: 1997-06-01 | G15: =COUNTIFS(M15:M52,"تهنئة") -> 1 | L15: 7.866666667 | M15: =IF(AND(L15>=15,L15<20),"تهنئة","")&IF(AND(L15>=14,L15<15),"تشجيع","")&IF(AND(L15>=12,L15<14),"لوحة شرف","")&IF(AND(L15>=10,L15<12),"لا شيء","")&IF(AND(L15>=8,L15<10),"إنذار","")&IF(AND(L15>0,L15<8),"توبيخ","")&IF(AND(L15<>"",L15=0),"","") -> توبيخ | P15: =D15&" "&E15 -> براهامي سفيان | S15: =C15 -> ذ | W15: 1 | X15: =IF($Y15<>"",VLOOKUP($Y15,'1'!$P$15:$S$52,4,0),"") -> ذ | Y15: =IF(ISNA(MATCH(W15,'1'!$AJ$15:$AJ$52,0)),"",INDEX('1'!$AG$15:$AG$52,MATCH(W15,'1'!$AJ$15:$AJ$52,0))) -> خديمي عبد القادر | Z15: =IF($Y15<>"",VLOOKUP($Y15,'1'!$AG$15:$AL$52,6,0),"") -> 1999-01-03 | AA15: =IF($Y15<>"",VLOOKUP($Y15,'1'!$AG$15:$AI$52,3,0),"") -> 18.23333333 | AB15: =IF($Y15<>"",VLOOKUP($Y15,'1'!$AG$15:$AH$52,2,0),"") -> تهنئة | AF15: 1 | AG15: =D15&" "&E15 -> براهامي سفيان | AH15: =IF(M15="",0,M15) -> توبيخ | AI15: =IF(L15="",0,L15) -> 7.866666667 | AJ15: =IF(AG15<>"",COUNTIF($AK$15:$AK$52,">"&AK15)+COUNTIF($AK$15:AK15,AK15),"") -> 18 | AK15: =IF(AI15<>"",AI15*1000,"") -> 7866.666667 | AL15: =IF(F15="",0,F15) -> 1997-06-01
A16: 2 | C16: ذ | D16: برودي | E16: فيصل | F16: 2000-02-04 | G16: =COUNTIFS(M15:M52,"تشجيع") -> 1 | L16: 13.2 | M16: =IF(AND(L16>=15,L16<20),"تهنئة","")&IF(AND(L16>=14,L16<15),"تشجيع","")&IF(AND(L16>=12,L16<14),"لوحة شرف","")&IF(AND(L16>=10,L16<12),"لا شيء","")&IF(AND(L16>=8,L16<10),"إنذار","")&IF(AND(L16>0,L16<8),"توبيخ","")&IF(AND(L16<>"",L16=0),"","") -> لوحة شرف | P16: =D16&" "&E16 -> برودي فيصل | S16: =C16 -> ذ | W16: 2 | X16: =IF($Y16<>"",VLOOKUP($Y16,'1'!$P$15:$S$52,4,0),"") -> ذ | Y16: =IF(ISNA(MATCH(W16,'1'!$AJ$15:$AJ$52,0)),"",INDEX('1'!$AG$15:$AG$52,MATCH(W16,'1'!$AJ$15:$AJ$52,0))) -> مكاوي الميلود | Z16: =IF($Y16<>"",VLOOKUP($Y16,'1'!$AG$15:$AL$52,6,0),"") -> 1997-07-08 | AA16: =IF($Y16<>"",VLOOKUP($Y16,'1'!$AG$15:$AI$52,3,0),"") -> 14.5 | AB16: =IF($Y16<>"",VLOOKUP($Y16,'1'!$AG$15:$AH$52,2,0),"") -> تشجيع | AF16: 2 | AG16: برودي فيصل | AH16: =IF(M16="",0,M16) -> لوحة شرف | AI16: 13.2 | AJ16: =IF(AG16<>"",COUNTIF($AK$15:$AK$52,">"&AK16)+COUNTIF($AK$15:AK16,AK16),"") -> 5 | AK16: =IF(AI16<>"",AI16*1000,"") -> 13200 | AL16: 2000-02-04
A17: 3 | C17: ذ | D17: بلعربي | E17: عبد العزيز | F17: 1999-04-16 | G17: =COUNTIFS(M15:M52,"لوحة شرف") -> 5 | L17: 13.1 | M17: لوحة شرف | P17: بلعربي عبد العزيز | S17: ذ | W17: 3 | X17: =IF($Y17<>"",VLOOKUP($Y17,'1'!$P$15:$S$52,4,0),"") -> أ | Y17: =IF(ISNA(MATCH(W17,'1'!$AJ$15:$AJ$52,0)),"",INDEX('1'!$AG$15:$AG$52,MATCH(W17,'1'!$AJ$15:$AJ$52,0))) -> بوكروش حليمة | Z17: =IF($Y17<>"",VLOOKUP($Y17,'1'!$AG$15:$AL$52,6,0),"") -> 1998-02-15 | AA17: =IF($Y17<>"",VLOOKUP($Y17,'1'!$AG$15:$AI$52,3,0),"") -> 13.73333333 | AB17: =IF($Y17<>"",VLOOKUP($Y17,'1'!$AG$15:$AH$52,2,0),"") -> لوحة شرف | AF17: 3 | AG17: بلعربي عبد العزيز | AH17: لوحة شرف | AI17: 13.1 | AJ17: =IF(AG17<>"",COUNTIF($AK$15:$AK$52,">"&AK17)+COUNTIF($AK$15:AK17,AK17),"") -> 6 | AK17: 13100 | AL17: 1999-04-16
A18: 4 | C18: أ | D18: بوخاتم | E18: فوزية | F18: 1999-01-13 | G18: =COUNTIFS(M15:M52,"لا شيء") -> 4 | L18: 10.7 | M18: لا شيء | P18: بوخاتم فوزية | S18: أ | W18: 4 | X18: =IF($Y18<>"",VLOOKUP($Y18,'1'!$P$15:$S$52,4,0),"") -> ذ | Y18: =IF(ISNA(MATCH(W18,'1'!$AJ$15:$AJ$52,0)),"",INDEX('1'!$AG$15:$AG$52,MATCH(W18,'1'!$AJ$15:$AJ$52,0))) -> شاشو لخضر | Z18: =IF($Y18<>"",VLOOKUP($Y18,'1'!$AG$15:$AL$52,6,0),"") -> 1999-12-22 | AA18: =IF($Y18<>"",VLOOKUP($Y18,'1'!$AG$15:$AI$52,3,0),"") -> 13.7 | AB18: =IF($Y18<>"",VLOOKUP($Y18,'1'!$AG$15:$AH$52,2,0),"") -> لوحة شرف | AF18: 4 | AG18: بوخاتم فوزية | AH18: لا شيء | AI18: 10.7 | AJ18: =IF(AG18<>"",COUNTIF($AK$15:$AK$52,">"&AK18)+COUNTIF($AK$15:AK18,AK18),"") -> 11 | AK18: 10700 | AL18: 1999-01-13
A19: 5 | C19: أ | D19: بوسعادة | E19: سمراء | F19: 1999-12-10 | G19: =COUNTIFS(M15:M52,"إنذار") -> 6 | L19: 12.76666667 | M19: لوحة شرف | P19: بوسعادة سمراء | S19: أ | W19: 5 | X19: =IF($Y19<>"",VLOOKUP($Y19,'1'!$P$15:$S$52,4,0),"") -> ذ | Y19: =IF(ISNA(MATCH(W19,'1'!$AJ$15:$AJ$52,0)),"",INDEX('1'!$AG$15:$AG$52,MATCH(W19,'1'!$AJ$15:$AJ$52,0))) -> برودي فيصل | Z19: =IF($Y19<>"",VLOOKUP($Y19,'1'!$AG$15:$AL$52,6,0),"") -> 2000-02-04 | AA19: =IF($Y19<>"",VLOOKUP($Y19,'1'!$AG$15:$AI$52,3,0),"") -> 13.2 | AB19: =IF($Y19<>"",VLOOKUP($Y19,'1'!$AG$15:$AH$52,2,0),"") -> لوحة شرف | AF19: 5 | AG19: بوسعادة سمراء | AH19: لوحة شرف | AI19: 12.76666667 | AJ19: =IF(AG19<>"",COUNTIF($AK$15:$AK$52,">"&AK19)+COUNTIF($AK$15:AK19,AK19),"") -> 7 | AK19: 12766.66667 | AL19: 1999-12-10
A20: 6 | C20: أ | D20: بوكروش | E20: حليمة | F20: 1998-02-15 | G20: =COUNTIFS(M15:M52,"توبيخ") -> 14 | L20: 13.73333333 | M20: لوحة شرف | P20: بوكروش حليمة | S20: أ | W20: 6 | X20: =IF($Y20<>"",VLOOKUP($Y20,'1'!$P$15:$S$52,4,0),"") -> ذ | Y20: =IF(ISNA(MATCH(W20,'1'!$AJ$15:$AJ$52,0)),"",INDEX('1'!$AG$15:$AG$52,MATCH(W20,'1'!$AJ$15:$AJ$52,0))) -> بلعربي عبد العزيز | Z20: =IF($Y20<>"",VLOOKUP($Y20,'1'!$AG$15:$AL$52,6,0),"") -> 1999-04-16 | AA20: =IF($Y20<>"",VLOOKUP($Y20,'1'!$AG$15:$AI$52,3,0),"") -> 13.1 | AB20: =IF($Y20<>"",VLOOKUP($Y20,'1'!$AG$15:$AH$52,2,0),"") -> لوحة شرف | AF20: 6 | AG20: بوكروش حليمة | AH20: لوحة شرف | AI20: 13.73333333 | AJ20: =IF(AG20<>"",COUNTIF($AK$15:$AK$52,">"&AK20)+COUNTIF($AK$15:AK20,AK20),"") -> 3 | AK20: 13733.33333 | AL20: 1998-02-15
A21: 7 | C21: ذ | D21: بوكروش | E21: عبد القادر | F21: 1995-01-27 | L21: 7.5 | M21: توبيخ | P21: بوكروش عبد القادر | S21: ذ | W21: 7 | X21: =IF($Y21<>"",VLOOKUP($Y21,'1'!$P$15:$S$52,4,0),"") -> أ | Y21: =IF(ISNA(MATCH(W21,'1'!$AJ$15:$AJ$52,0)),"",INDEX('1'!$AG$15:$AG$52,MATCH(W21,'1'!$AJ$15:$AJ$52,0))) -> بوسعادة سمراء | Z21: =IF($Y21<>"",VLOOKUP($Y21,'1'!$AG$15:$AL$52,6,0),"") -> 1999-12-10 | AA21: =IF($Y21<>"",VLOOKUP($Y21,'1'!$AG$15:$AI$52,3,0),"") -> 12.76666667 | AB21: =IF($Y21<>"",VLOOKUP($Y21,'1'!$AG$15:$AH$52,2,0),"") -> لوحة شرف | AF21: 7 | AG21: بوكروش عبد القادر | AH21: توبيخ | AI21: 7.5 | AJ21: =IF(AG21<>"",COUNTIF($AK$15:$AK$52,">"&AK21)+COUNTIF($AK$15:AK21,AK21),"") -> 19 | AK21: 7500 | AL21: 1995-01-27
A22: 8 | C22: أ | D22: بومهدي | E22: شهرزاد خيرة | F22: 1999-02-21 | L22: 11.23333333 | M22: لا شيء | P22: بومهدي شهرزاد خيرة | S22: أ | W22: 8 | X22: =IF($Y22<>"",VLOOKUP($Y22,'1'!$P$15:$S$52,4,0),"") -> أ | Y22: =IF(ISNA(MATCH(W22,'1'!$AJ$15:$AJ$52,0)),"",INDEX('1'!$AG$15:$AG$52,MATCH(W22,'1'!$AJ$15:$AJ$52,0))) -> دونان إكرام | Z22: =IF($Y22<>"",VLOOKUP($Y22,'1'!$AG$15:$AL$52,6,0),"") -> 1996-11-20 | AA22: =IF($Y22<>"",VLOOKUP($Y22,'1'!$AG$15:$AI$52,3,0),"") -> 11.3 | AB22: =IF($Y22<>"",VLOOKUP($Y22,'1'!$AG$15:$AH$52,2,0),"") -> لا شيء | AF22: 8 | AG22: بومهدي شهرزاد خيرة | AH22: لا شيء | AI22: 11.23333333 | AJ22: =IF(AG22<>"",COUNTIF($AK$15:$AK$52,">"&AK22)+COUNTIF($AK$15:AK22,AK22),"") -> 9 | AK22: 11233.33333 | AL22: 1999-02-21
A23: 9 | C23: ذ | D23: بومهدي | E23: لخضر | F23: 1995-11-01 | L23: 9.3 | M23: إنذار | P23: بومهدي لخضر | S23: ذ | W23: 9 | X23: =IF($Y23<>"",VLOOKUP($Y23,'1'!$P$15:$S$52,4,0),"") -> أ | Y23: =IF(ISNA(MATCH(W23,'1'!$AJ$15:$AJ$52,0)),"",INDEX('1'!$AG$15:$AG$52,MATCH(W23,'1'!$AJ$15:$AJ$52,0))) -> بومهدي شهرزاد خيرة | Z23: =IF($Y23<>"",VLOOKUP($Y23,'1'!$AG$15:$AL$52,6,0),"") -> 1999-02-21 | AA23: =IF($Y23<>"",VLOOKUP($Y23,'1'!$AG$15:$AI$52,3,0),"") -> 11.23333333 | AB23: =IF($Y23<>"",VLOOKUP($Y23,'1'!$AG$15:$AH$52,2,0),"") -> لا شيء | AF23: 9 | AG23: بومهدي لخضر | AH23: إنذار | AI23: 9.3 | AJ23: =IF(AG23<>"",COUNTIF($AK$15:$AK$52,">"&AK23)+COUNTIF($AK$15:AK23,AK23),"") -> 13 | AK23: 9300 | AL23: 1995-11-01
A24: 10 | C24: ذ | D24: خديمي | E24: عبد القادر | F24: 1999-01-03 | L24: 18.23333333 | M24: تهنئة | P24: خديمي عبد القادر | S24: ذ | W24: 10 | X24: =IF($Y24<>"",VLOOKUP($Y24,'1'!$P$15:$S$52,4,0),"") -> أ | Y24: =IF(ISNA(MATCH(W24,'1'!$AJ$15:$AJ$52,0)),"",INDEX('1'!$AG$15:$AG$52,MATCH(W24,'1'!$AJ$15:$AJ$52,0))) -> موزاوي منال | Z24: =IF($Y24<>"",VLOOKUP($Y24,'1'!$AG$15:$AL$52,6,0),"") -> 2000-02-13 | AA24: =IF($Y24<>"",VLOOKUP($Y24,'1'!$AG$15:$AI$52,3,0),"") -> 11.2 | AB24: =IF($Y24<>"",VLOOKUP($Y24,'1'!$AG$15:$AH$52,2,0),"") -> لا شيء | AF24: 10 | AG24: خديمي عبد القادر | AH24: تهنئة | AI24: 18.23333333 | AJ24: =IF(AG24<>"",COUNTIF($AK$15:$AK$52,">"&AK24)+COUNTIF($AK$15:AK24,AK24),"") -> 1 | AK24: 18233.33333 | AL24: 1999-01-03
A25: 11 | C25: ذ | D25: درموز | E25: هواري | F25: 1994-08-26 | L25: 8.133333333 | M25: إنذار | P25: درموز هواري | S25: ذ | W25: 11 | X25: =IF($Y25<>"",VLOOKUP($Y25,'1'!$P$15:$S$52,4,0),"") -> أ | Y25: =IF(ISNA(MATCH(W25,'1'!$AJ$15:$AJ$52,0)),"",INDEX('1'!$AG$15:$AG$52,MATCH(W25,'1'!$AJ$15:$AJ$52,0))) -> بوخاتم فوزية | Z25: =IF($Y25<>"",VLOOKUP($Y25,'1'!$AG$15:$AL$52,6,0),"") -> 1999-01-13 | AA25: =IF($Y25<>"",VLOOKUP($Y25,'1'!$AG$15:$AI$52,3,0),"") -> 10.7 | AB25: =IF($Y25<>"",VLOOKUP($Y25,'1'!$AG$15:$AH$52,2,0),"") -> لا شيء | AF25: 11 | AG25: درموز هواري | AH25: إنذار | AI25: 8.133333333 | AJ25: =IF(AG25<>"",COUNTIF($AK$15:$AK$52,">"&AK25)+COUNTIF($AK$15:AK25,AK25),"") -> 16 | AK25: 8133.333333 | AL25: 1994-08-26
A26: 12 | C26: ذ | D26: دوان | E26: سليمان | F26: 1997-04-07 | L26: 7.066666667 | M26: توبيخ | P26: دوان سليمان | S26: ذ | W26: 12 | X26: =IF($Y26<>"",VLOOKUP($Y26,'1'!$P$15:$S$52,4,0),"") -> ذ | Y26: =IF(ISNA(MATCH(W26,'1'!$AJ$15:$AJ$52,0)),"",INDEX('1'!$AG$15:$AG$52,MATCH(W26,'1'!$AJ$15:$AJ$52,0))) -> مصطفاوي محمد | Z26: =IF($Y26<>"",VLOOKUP($Y26,'1'!$AG$15:$AL$52,6,0),"") -> 1997-05-07 | AA26: =IF($Y26<>"",VLOOKUP($Y26,'1'!$AG$15:$AI$52,3,0),"") -> 9.533333333 | AB26: =IF($Y26<>"",VLOOKUP($Y26,'1'!$AG$15:$AH$52,2,0),"") -> إنذار | AF26: 12 | AG26: دوان سليمان | AH26: توبيخ | AI26: 7.066666667 | AJ26: =IF(AG26<>"",COUNTIF($AK$15:$AK$52,">"&AK26)+COUNTIF($AK$15:AK26,AK26),"") -> 23 | AK26: 7066.666667 | AL26: 1997-04-07
A27: 13 | C27: أ | D27: دونان | E27: إكرام | F27: 1996-11-20 | L27: 11.3 | M27: لا شيء | P27: دونان إكرام | S27: أ | W27: 13 | X27: =IF($Y27<>"",VLOOKUP($Y27,'1'!$P$15:$S$52,4,0),"") -> ذ | Y27: =IF(ISNA(MATCH(W27,'1'!$AJ$15:$AJ$52,0)),"",INDEX('1'!$AG$15:$AG$52,MATCH(W27,'1'!$AJ$15:$AJ$52,0))) -> بومهدي لخضر | Z27: =IF($Y27<>"",VLOOKUP($Y27,'1'!$AG$15:$AL$52,6,0),"") -> 1995-11-01 | AA27: =IF($Y27<>"",VLOOKUP($Y27,'1'!$AG$15:$AI$52,3,0),"") -> 9.3 | AB27: =IF($Y27<>"",VLOOKUP($Y27,'1'!$AG$15:$AH$52,2,0),"") -> إنذار | AF27: 13 | AG27: دونان إكرام | AH27: لا شيء | AI27: 11.3 | AJ27: =IF(AG27<>"",COUNTIF($AK$15:$AK$52,">"&AK27)+COUNTIF($AK$15:AK27,AK27),"") -> 8 | AK27: 11300 | AL27: 1996-11-20
A28: 14 | C28: ذ | D28: رحو | E28: حمزة | F28: 1995-10-04 | L28: 4.6 | M28: توبيخ | P28: رحو حمزة | S28: ذ | W28: 14 | X28: =IF($Y28<>"",VLOOKUP($Y28,'1'!$P$15:$S$52,4,0),"") -> أ | Y28: =IF(ISNA(MATCH(W28,'1'!$AJ$15:$AJ$52,0)),"",INDEX('1'!$AG$15:$AG$52,MATCH(W28,'1'!$AJ$15:$AJ$52,0))) -> قندوز كحلة | Z28: =IF($Y28<>"",VLOOKUP($Y28,'1'!$AG$15:$AL$52,6,0),"") -> 1997-08-09 | AA28: =IF($Y28<>"",VLOOKUP($Y28,'1'!$AG$15:$AI$52,3,0),"") -> 9.266666667 | AB28: =IF($Y28<>"",VLOOKUP($Y28,'1'!$AG$15:$AH$52,2,0),"") -> إنذار | AF28: 14 | AG28: رحو حمزة | AH28: توبيخ | AI28: 4.6 | AJ28: =IF(AG28<>"",COUNTIF($AK$15:$AK$52,">"&AK28)+COUNTIF($AK$15:AK28,AK28),"") -> 31 | AK28: 4600 | AL28: 1995-10-04
A29: 15 | C29: أ | D29: رفيف | E29: نجاة | F29: 1997-01-01 | L29: 5.666666667 | M29: توبيخ | P29: رفيف نجاة | S29: أ | W29: 15 | X29: =IF($Y29<>"",VLOOKUP($Y29,'1'!$P$15:$S$52,4,0),"") -> أ | Y29: =IF(ISNA(MATCH(W29,'1'!$AJ$15:$AJ$52,0)),"",INDEX('1'!$AG$15:$AG$52,MATCH(W29,'1'!$AJ$15:$AJ$52,0))) -> فتحي حفصة | Z29: =IF($Y29<>"",VLOOKUP($Y29,'1'!$AG$15:$AL$52,6,0),"") -> 1999-04-18 | AA29: =IF($Y29<>"",VLOOKUP($Y29,'1'!$AG$15:$AI$52,3,0),"") -> 8.8 | AB29: =IF($Y29<>"",VLOOKUP($Y29,'1'!$AG$15:$AH$52,2,0),"") -> إنذار | AF29: 15 | AG29: رفيف نجاة | AH29: توبيخ | AI29: 5.666666667 | AJ29: =IF(AG29<>"",COUNTIF($AK$15:$AK$52,">"&AK29)+COUNTIF($AK$15:AK29,AK29),"") -> 27 | AK29: 5666.666667 | AL29: 1997-01-01
A30: 16 | C30: ذ | D30: سالي | E30: كمال | F30: 1999-09-03 | L30: 4.9 | M30: توبيخ | P30: سالي كمال | S30: ذ | W30: 16 | X30: =IF($Y30<>"",VLOOKUP($Y30,'1'!$P$15:$S$52,4,0),"") -> ذ | Y30: =IF(ISNA(MATCH(W30,'1'!$AJ$15:$AJ$52,0)),"",INDEX('1'!$AG$15:$AG$52,MATCH(W30,'1'!$AJ$15:$AJ$52,0))) -> درموز هواري | Z30: =IF($Y30<>"",VLOOKUP($Y30,'1'!$AG$15:$AL$52,6,0),"") -> 1994-08-26 | AA30: =IF($Y30<>"",VLOOKUP($Y30,'1'!$AG$15:$AI$52,3,0),"") -> 8.133333333 | AB30: =IF($Y30<>"",VLOOKUP($Y30,'1'!$AG$15:$AH$52,2,0),"") -> إنذار | AF30: 16 | AG30: سالي كمال | AH30: توبيخ | AI30: 4.9 | AJ30: =IF(AG30<>"",COUNTIF($AK$15:$AK$52,">"&AK30)+COUNTIF($AK$15:AK30,AK30),"") -> 30 | AK30: 4900 | AL30: 1999-09-03
A31: 17 | C31: أ | D31: سعادي | E31: كميلة | F31: 1998-11-12 | L31: 5.4 | M31: توبيخ | P31: سعادي كميلة | S31: أ | W31: 17 | X31: =IF($Y31<>"",VLOOKUP($Y31,'1'!$P$15:$S$52,4,0),"") -> ذ | Y31: =IF(ISNA(MATCH(W31,'1'!$AJ$15:$AJ$52,0)),"",INDEX('1'!$AG$15:$AG$52,MATCH(W31,'1'!$AJ$15:$AJ$52,0))) -> قندوز العيد | Z31: =IF($Y31<>"",VLOOKUP($Y31,'1'!$AG$15:$AL$52,6,0),"") -> 1995-05-17 | AA31: =IF($Y31<>"",VLOOKUP($Y31,'1'!$AG$15:$AI$52,3,0),"") -> 8.1 | AB31: =IF($Y31<>"",VLOOKUP($Y31,'1'!$AG$15:$AH$52,2,0),"") -> إنذار | AF31: 17 | AG31: سعادي كميلة | AH31: توبيخ | AI31: 5.4 | AJ31: =IF(AG31<>"",COUNTIF($AK$15:$AK$52,">"&AK31)+COUNTIF($AK$15:AK31,AK31),"") -> 28 | AK31: 5400 | AL31: 1998-11-12
A32: 18 | C32: ذ | D32: شاشو | E32: لخضر | F32: 1999-12-22 | L32: 13.7 | M32: لوحة شرف | P32: شاشو لخضر | S32: ذ | W32: 18 | X32: =IF($Y32<>"",VLOOKUP($Y32,'1'!$P$15:$S$52,4,0),"") -> ذ | Y32: =IF(ISNA(MATCH(W32,'1'!$AJ$15:$AJ$52,0)),"",INDEX('1'!$AG$15:$AG$52,MATCH(W32,'1'!$AJ$15:$AJ$52,0))) -> براهامي سفيان | Z32: =IF($Y32<>"",VLOOKUP($Y32,'1'!$AG$15:$AL$52,6,0),"") -> 1997-06-01 | AA32: =IF($Y32<>"",VLOOKUP($Y32,'1'!$AG$15:$AI$52,3,0),"") -> 7.866666667 | AB32: =IF($Y32<>"",VLOOKUP($Y32,'1'!$AG$15:$AH$52,2,0),"") -> توبيخ | AF32: 18 | AG32: شاشو لخضر | AH32: لوحة شرف | AI32: 13.7 | AJ32: =IF(AG32<>"",COUNTIF($AK$15:$AK$52,">"&AK32)+COUNTIF($AK$15:AK32,AK32),"") -> 4 | AK32: 13700 | AL32: 1999-12-22
A33: 19 | C33: ذ | D33: شاشو | E33: ميلود | F33: 1999-02-28 | L33: 7.2 | M33: توبيخ | P33: شاشو ميلود | S33: ذ | W33: 19 | X33: =IF($Y33<>"",VLOOKUP($Y33,'1'!$P$15:$S$52,4,0),"") -> ذ | Y33: =IF(ISNA(MATCH(W33,'1'!$AJ$15:$AJ$52,0)),"",INDEX('1'!$AG$15:$AG$52,MATCH(W33,'1'!$AJ$15:$AJ$52,0))) -> بوكروش عبد القادر | Z33: =IF($Y33<>"",VLOOKUP($Y33,'1'!$AG$15:$AL$52,6,0),"") -> 1995-01-27 | AA33: =IF($Y33<>"",VLOOKUP($Y33,'1'!$AG$15:$AI$52,3,0),"") -> 7.5 | AB33: =IF($Y33<>"",VLOOKUP($Y33,'1'!$AG$15:$AH$52,2,0),"") -> توبيخ | AF33: 19 | AG33: شاشو ميلود | AH33: توبيخ | AI33: 7.2 | AJ33: =IF(AG33<>"",COUNTIF($AK$15:$AK$52,">"&AK33)+COUNTIF($AK$15:AK33,AK33),"") -> 20 | AK33: 7200 | AL33: 1999-02-28
A34: 20 | C34: أ | D34: شواط | E34: سهام | F34: 1998-11-01 | L34: 6.866666667 | M34: توبيخ | P34: شواط سهام | S34: أ | W34: 20 | X34: =IF($Y34<>"",VLOOKUP($Y34,'1'!$P$15:$S$52,4,0),"") -> ذ | Y34: =IF(ISNA(MATCH(W34,'1'!$AJ$15:$AJ$52,0)),"",INDEX('1'!$AG$15:$AG$52,MATCH(W34,'1'!$AJ$15:$AJ$52,0))) -> شاشو ميلود | Z34: =IF($Y34<>"",VLOOKUP($Y34,'1'!$AG$15:$AL$52,6,0),"") -> 1999-02-28 | AA34: =IF($Y34<>"",VLOOKUP($Y34,'1'!$AG$15:$AI$52,3,0),"") -> 7.2 | AB34: =IF($Y34<>"",VLOOKUP($Y34,'1'!$AG$15:$AH$52,2,0),"") -> توبيخ | AF34: 20 | AG34: شواط سهام | AH34: توبيخ | AI34: 6.866666667 | AJ34: =IF(AG34<>"",COUNTIF($AK$15:$AK$52,">"&AK34)+COUNTIF($AK$15:AK34,AK34),"") -> 24 | AK34: 6866.666667 | AL34: 1998-11-01
A35: 21 | C35: أ | D35: فتحي | E35: حفصة | F35: 1999-04-18 | L35: 8.8 | M35: إنذار | P35: فتحي حفصة | S35: أ | W35: 21 | X35: =IF($Y35<>"",VLOOKUP($Y35,'1'!$P$15:$S$52,4,0),"") -> ذ | Y35: =IF(ISNA(MATCH(W35,'1'!$AJ$15:$AJ$52,0)),"",INDEX('1'!$AG$15:$AG$52,MATCH(W35,'1'!$AJ$15:$AJ$52,0))) -> مكاوي فتحي | Z35: =IF($Y35<>"",VLOOKUP($Y35,'1'!$AG$15:$AL$52,6,0),"") -> 1996-09-28 | AA35: =IF($Y35<>"",VLOOKUP($Y35,'1'!$AG$15:$AI$52,3,0),"") -> 7.2 | AB35: =IF($Y35<>"",VLOOKUP($Y35,'1'!$AG$15:$AH$52,2,0),"") -> توبيخ | AF35: 21 | AG35: فتحي حفصة | AH35: إنذار | AI35: 8.8 | AJ35: =IF(AG35<>"",COUNTIF($AK$15:$AK$52,">"&AK35)+COUNTIF($AK$15:AK35,AK35),"") -> 15 | AK35: 8800 | AL35: 1999-04-18
A36: 22 | C36: ذ | D36: فتحي | E36: فيصل | F36: 1996-07-14 | L36: 6.5 | M36: توبيخ | P36: فتحي فيصل | S36: ذ | W36: 22 | X36: =IF($Y36<>"",VLOOKUP($Y36,'1'!$P$15:$S$52,4,0),"") -> أ | Y36: =IF(ISNA(MATCH(W36,'1'!$AJ$15:$AJ$52,0)),"",INDEX('1'!$AG$15:$AG$52,MATCH(W36,'1'!$AJ$15:$AJ$52,0))) -> كوشة إكرام | Z36: =IF($Y36<>"",VLOOKUP($Y36,'1'!$AG$15:$AL$52,6,0),"") -> 1999-12-06 | AA36: =IF($Y36<>"",VLOOKUP($Y36,'1'!$AG$15:$AI$52,3,0),"") -> 7.1 | AB36: =IF($Y36<>"",VLOOKUP($Y36,'1'!$AG$15:$AH$52,2,0),"") -> توبيخ | AF36: 22 | AG36: فتحي فيصل | AH36: توبيخ | AI36: 6.5 | AJ36: =IF(AG36<>"",COUNTIF($AK$15:$AK$52,">"&AK36)+COUNTIF($AK$15:AK36,AK36),"") -> 25 | AK36: 6500 | AL36: 1996-07-14
A37: 23 | C37: أ | D37: قاضي | E37: فاطمة | F37: 1997-03-01 | L37: 5.266666667 | M37: توبيخ | P37: قاضي فاطمة | S37: أ | W37: 23 | X37: =IF($Y37<>"",VLOOKUP($Y37,'1'!$P$15:$S$52,4,0),"") -> ذ | Y37: =IF(ISNA(MATCH(W37,'1'!$AJ$15:$AJ$52,0)),"",INDEX('1'!$AG$15:$AG$52,MATCH(W37,'1'!$AJ$15:$AJ$52,0))) -> دوان سليمان | Z37: =IF($Y37<>"",VLOOKUP($Y37,'1'!$AG$15:$AL$52,6,0),"") -> 1997-04-07 | AA37: =IF($Y37<>"",VLOOKUP($Y37,'1'!$AG$15:$AI$52,3,0),"") -> 7.066666667 | AB37: =IF($Y37<>"",VLOOKUP($Y37,'1'!$AG$15:$AH$52,2,0),"") -> توبيخ | AF37: 23 | AG37: قاضي فاطمة | AH37: توبيخ | AI37: 5.266666667 | AJ37: =IF(AG37<>"",COUNTIF($AK$15:$AK$52,">"&AK37)+COUNTIF($AK$15:AK37,AK37),"") -> 29 | AK37: 5266.666667 | AL37: 1997-03-01
A38: 24 | C38: ذ | D38: قندوز | E38: العيد | F38: 1995-05-17 | L38: 8.1 | M38: إنذار | P38: قندوز العيد | S38: ذ | W38: 24 | X38: =IF($Y38<>"",VLOOKUP($Y38,'1'!$P$15:$S$52,4,0),"") -> أ | Y38: =IF(ISNA(MATCH(W38,'1'!$AJ$15:$AJ$52,0)),"",INDEX('1'!$AG$15:$AG$52,MATCH(W38,'1'!$AJ$15:$AJ$52,0))) -> شواط سهام | Z38: =IF($Y38<>"",VLOOKUP($Y38,'1'!$AG$15:$AL$52,6,0),"") -> 1998-11-01 | AA38: =IF($Y38<>"",VLOOKUP($Y38,'1'!$AG$15:$AI$52,3,0),"") -> 6.866666667 | AB38: =IF($Y38<>"",VLOOKUP($Y38,'1'!$AG$15:$AH$52,2,0),"") -> توبيخ | AF38: 24 | AG38: قندوز العيد | AH38: إنذار | AI38: 8.1 | AJ38: =IF(AG38<>"",COUNTIF($AK$15:$AK$52,">"&AK38)+COUNTIF($AK$15:AK38,AK38),"") -> 17 | AK38: 8100 | AL38: 1995-05-17
A39: 25 | C39: أ | D39: قندوز | E39: كحلة | F39: 1997-08-09 | L39: 9.266666667 | M39: إنذار | P39: قندوز كحلة | S39: أ | W39: 25 | X39: =IF($Y39<>"",VLOOKUP($Y39,'1'!$P$15:$S$52,4,0),"") -> ذ | Y39: =IF(ISNA(MATCH(W39,'1'!$AJ$15:$AJ$52,0)),"",INDEX('1'!$AG$15:$AG$52,MATCH(W39,'1'!$AJ$15:$AJ$52,0))) -> فتحي فيصل | Z39: =IF($Y39<>"",VLOOKUP($Y39,'1'!$AG$15:$AL$52,6,0),"") -> 1996-07-14 | AA39: =IF($Y39<>"",VLOOKUP($Y39,'1'!$AG$15:$AI$52,3,0),"") -> 6.5 | AB39: =IF($Y39<>"",VLOOKUP($Y39,'1'!$AG$15:$AH$52,2,0),"") -> توبيخ | AF39: 25 | AG39: قندوز كحلة | AH39: إنذار | AI39: 9.266666667 | AJ39: =IF(AG39<>"",COUNTIF($AK$15:$AK$52,">"&AK39)+COUNTIF($AK$15:AK39,AK39),"") -> 14 | AK39: 9266.666667 | AL39: 1997-08-09
A40: 26 | C40: أ | D40: كوشة | E40: إكرام | F40: 1999-12-06 | L40: 7.1 | M40: توبيخ | P40: كوشة إكرام | S40: أ | W40: 26 | X40: =IF($Y40<>"",VLOOKUP($Y40,'1'!$P$15:$S$52,4,0),"") -> أ | Y40: =IF(ISNA(MATCH(W40,'1'!$AJ$15:$AJ$52,0)),"",INDEX('1'!$AG$15:$AG$52,MATCH(W40,'1'!$AJ$15:$AJ$52,0))) -> مكاوي نجمة | Z40: =IF($Y40<>"",VLOOKUP($Y40,'1'!$AG$15:$AL$52,6,0),"") -> 1997-06-18 | AA40: =IF($Y40<>"",VLOOKUP($Y40,'1'!$AG$15:$AI$52,3,0),"") -> 6.266666667 | AB40: =IF($Y40<>"",VLOOKUP($Y40,'1'!$AG$15:$AH$52,2,0),"") -> توبيخ | AF40: 26 | AG40: كوشة إكرام | AH40: توبيخ | AI40: 7.1 | AJ40: =IF(AG40<>"",COUNTIF($AK$15:$AK$52,">"&AK40)+COUNTIF($AK$15:AK40,AK40),"") -> 22 | AK40: 7100 | AL40: 1999-12-06
A41: 27 | C41: ذ | D41: مصطفاوي | E41: محمد | F41: 1997-05-07 | L41: 9.533333333 | M41: إنذار | P41: مصطفاوي محمد | S41: ذ | W41: 27 | X41: =IF($Y41<>"",VLOOKUP($Y41,'1'!$P$15:$S$52,4,0),"") -> أ | Y41: =IF(ISNA(MATCH(W41,'1'!$AJ$15:$AJ$52,0)),"",INDEX('1'!$AG$15:$AG$52,MATCH(W41,'1'!$AJ$15:$AJ$52,0))) -> رفيف نجاة | Z41: =IF($Y41<>"",VLOOKUP($Y41,'1'!$AG$15:$AL$52,6,0),"") -> 1997-01-01 | AA41: =IF($Y41<>"",VLOOKUP($Y41,'1'!$AG$15:$AI$52,3,0),"") -> 5.666666667 | AB41: =IF($Y41<>"",VLOOKUP($Y41,'1'!$AG$15:$AH$52,2,0),"") -> توبيخ | AF41: 27 | AG41: مصطفاوي محمد | AH41: إنذار | AI41: 9.533333333 | AJ41: =IF(AG41<>"",COUNTIF($AK$15:$AK$52,">"&AK41)+COUNTIF($AK$15:AK41,AK41),"") -> 12 | AK41: 9533.333333 | AL41: 1997-05-07
A42: 28 | C42: ذ | D42: مكاوي | E42: الميلود | F42: 1997-07-08 | L42: 14.5 | M42: تشجيع | P42: مكاوي الميلود | S42: ذ | W42: 28 | X42: =IF($Y42<>"",VLOOKUP($Y42,'1'!$P$15:$S$52,4,0),"") -> أ | Y42: =IF(ISNA(MATCH(W42,'1'!$AJ$15:$AJ$52,0)),"",INDEX('1'!$AG$15:$AG$52,MATCH(W42,'1'!$AJ$15:$AJ$52,0))) -> سعادي كميلة | Z42: =IF($Y42<>"",VLOOKUP($Y42,'1'!$AG$15:$AL$52,6,0),"") -> 1998-11-12 | AA42: =IF($Y42<>"",VLOOKUP($Y42,'1'!$AG$15:$AI$52,3,0),"") -> 5.4 | AB42: =IF($Y42<>"",VLOOKUP($Y42,'1'!$AG$15:$AH$52,2,0),"") -> توبيخ | AF42: 28 | AG42: مكاوي الميلود | AH42: تشجيع | AI42: 14.5 | AJ42: =IF(AG42<>"",COUNTIF($AK$15:$AK$52,">"&AK42)+COUNTIF($AK$15:AK42,AK42),"") -> 2 | AK42: 14500 | AL42: 1997-07-08
A43: 29 | C43: ذ | D43: مكاوي | E43: فتحي | F43: 1996-09-28 | L43: 7.2 | M43: توبيخ | P43: مكاوي فتحي | S43: ذ | W43: 29 | X43: =IF($Y43<>"",VLOOKUP($Y43,'1'!$P$15:$S$52,4,0),"") -> أ | Y43: =IF(ISNA(MATCH(W43,'1'!$AJ$15:$AJ$52,0)),"",INDEX('1'!$AG$15:$AG$52,MATCH(W43,'1'!$AJ$15:$AJ$52,0))) -> قاضي فاطمة | Z43: =IF($Y43<>"",VLOOKUP($Y43,'1'!$AG$15:$AL$52,6,0),"") -> 1997-03-01 | AA43: =IF($Y43<>"",VLOOKUP($Y43,'1'!$AG$15:$AI$52,3,0),"") -> 5.266666667 | AB43: =IF($Y43<>"",VLOOKUP($Y43,'1'!$AG$15:$AH$52,2,0),"") -> توبيخ | AF43: 29 | AG43: مكاوي فتحي | AH43: توبيخ | AI43: 7.2 | AJ43: =IF(AG43<>"",COUNTIF($AK$15:$AK$52,">"&AK43)+COUNTIF($AK$15:AK43,AK43),"") -> 21 | AK43: 7200 | AL43: 1996-09-28
A44: 30 | C44: أ | D44: مكاوي | E44: نجمة | F44: 1997-06-18 | L44: 6.266666667 | M44: توبيخ | P44: مكاوي نجمة | S44: أ | W44: 30 | X44: =IF($Y44<>"",VLOOKUP($Y44,'1'!$P$15:$S$52,4,0),"") -> ذ | Y44: =IF(ISNA(MATCH(W44,'1'!$AJ$15:$AJ$52,0)),"",INDEX('1'!$AG$15:$AG$52,MATCH(W44,'1'!$AJ$15:$AJ$52,0))) -> سالي كمال | Z44: =IF($Y44<>"",VLOOKUP($Y44,'1'!$AG$15:$AL$52,6,0),"") -> 1999-09-03 | AA44: =IF($Y44<>"",VLOOKUP($Y44,'1'!$AG$15:$AI$52,3,0),"") -> 4.9 | AB44: =IF($Y44<>"",VLOOKUP($Y44,'1'!$AG$15:$AH$52,2,0),"") -> توبيخ | AF44: 30 | AG44: مكاوي نجمة | AH44: توبيخ | AI44: 6.266666667 | AJ44: =IF(AG44<>"",COUNTIF($AK$15:$AK$52,">"&AK44)+COUNTIF($AK$15:AK44,AK44),"") -> 26 | AK44: 6266.666667 | AL44: 1997-06-18
A45: 31 | C45: أ | D45: موزاوي | E45: منال | F45: 2000-02-13 | L45: 11.2 | M45: لا شيء | P45: موزاوي منال | S45: أ | W45: 31 | X45: =IF($Y45<>"",VLOOKUP($Y45,'1'!$P$15:$S$52,4,0),"") -> ذ | Y45: =IF(ISNA(MATCH(W45,'1'!$AJ$15:$AJ$52,0)),"",INDEX('1'!$AG$15:$AG$52,MATCH(W45,'1'!$AJ$15:$AJ$52,0))) -> رحو حمزة | Z45: =IF($Y45<>"",VLOOKUP($Y45,'1'!$AG$15:$AL$52,6,0),"") -> 1995-10-04 | AA45: =IF($Y45<>"",VLOOKUP($Y45,'1'!$AG$15:$AI$52,3,0),"") -> 4.6 | AB45: =IF($Y45<>"",VLOOKUP($Y45,'1'!$AG$15:$AH$52,2,0),"") -> توبيخ | AF45: 31 | AG45: موزاوي منال | AH45: لا شيء | AI45: 11.2 | AJ45: =IF(AG45<>"",COUNTIF($AK$15:$AK$52,">"&AK45)+COUNTIF($AK$15:AK45,AK45),"") -> 10 | AK45: 11200 | AL45: 2000-02-13
A46: 32 | S46: 0 | W46: 32 | X46: =IF($Y46<>"",VLOOKUP($Y46,'1'!$P$15:$S$52,4,0),"") -> 0 | Y46: =IF(ISNA(MATCH(W46,'1'!$AJ$15:$AJ$52,0)),"",INDEX('1'!$AG$15:$AG$52,MATCH(W46,'1'!$AJ$15:$AJ$52,0))) ->  | Z46: =IF($Y46<>"",VLOOKUP($Y46,'1'!$AG$15:$AL$52,6,0),"") -> 00:00:00 | AA46: =IF($Y46<>"",VLOOKUP($Y46,'1'!$AG$15:$AI$52,3,0),"") -> 0 | AB46: =IF($Y46<>"",VLOOKUP($Y46,'1'!$AG$15:$AH$52,2,0),"") -> 0 | AF46: 32 | AH46: 0 | AI46: 0 | AJ46: =IF(AG46<>"",COUNTIF($AK$15:$AK$52,">"&AK46)+COUNTIF($AK$15:AK46,AK46),"") -> 32 | AK46: 0 | AL46: 00:00:00
A47: 33 | S47: 0 | W47: 33 | X47: =IF($Y47<>"",VLOOKUP($Y47,'1'!$P$15:$S$52,4,0),"") -> 0 | Y47: =IF(ISNA(MATCH(W47,'1'!$AJ$15:$AJ$52,0)),"",INDEX('1'!$AG$15:$AG$52,MATCH(W47,'1'!$AJ$15:$AJ$52,0))) ->  | Z47: =IF($Y47<>"",VLOOKUP($Y47,'1'!$AG$15:$AL$52,6,0),"") -> 00:00:00 | AA47: =IF($Y47<>"",VLOOKUP($Y47,'1'!$AG$15:$AI$52,3,0),"") -> 0 | AB47: =IF($Y47<>"",VLOOKUP($Y47,'1'!$AG$15:$AH$52,2,0),"") -> 0 | AF47: 33 | AH47: 0 | AI47: 0 | AJ47: =IF(AG47<>"",COUNTIF($AK$15:$AK$52,">"&AK47)+COUNTIF($AK$15:AK47,AK47),"") -> 33 | AK47: 0 | AL47: 00:00:00
A48: 34 | S48: 0 | W48: 34 | X48: =IF($Y48<>"",VLOOKUP($Y48,'1'!$P$15:$S$52,4,0),"") -> 0 | Y48: =IF(ISNA(MATCH(W48,'1'!$AJ$15:$AJ$52,0)),"",INDEX('1'!$AG$15:$AG$52,MATCH(W48,'1'!$AJ$15:$AJ$52,0))) ->  | Z48: =IF($Y48<>"",VLOOKUP($Y48,'1'!$AG$15:$AL$52,6,0),"") -> 00:00:00 | AA48: =IF($Y48<>"",VLOOKUP($Y48,'1'!$AG$15:$AI$52,3,0),"") -> 0 | AB48: =IF($Y48<>"",VLOOKUP($Y48,'1'!$AG$15:$AH$52,2,0),"") -> 0 | AF48: 34 | AH48: 0 | AI48: 0 | AJ48: =IF(AG48<>"",COUNTIF($AK$15:$AK$52,">"&AK48)+COUNTIF($AK$15:AK48,AK48),"") -> 34 | AK48: 0 | AL48: 00:00:00
A49: 35 | S49: 0 | W49: 35 | X49: =IF($Y49<>"",VLOOKUP($Y49,'1'!$P$15:$S$52,4,0),"") -> 0 | Y49: =IF(ISNA(MATCH(W49,'1'!$AJ$15:$AJ$52,0)),"",INDEX('1'!$AG$15:$AG$52,MATCH(W49,'1'!$AJ$15:$AJ$52,0))) ->  | Z49: =IF($Y49<>"",VLOOKUP($Y49,'1'!$AG$15:$AL$52,6,0),"") -> 00:00:00 | AA49: =IF($Y49<>"",VLOOKUP($Y49,'1'!$AG$15:$AI$52,3,0),"") -> 0 | AB49: =IF($Y49<>"",VLOOKUP($Y49,'1'!$AG$15:$AH$52,2,0),"") -> 0 | AF49: 35 | AH49: 0 | AI49: 0 | AJ49: =IF(AG49<>"",COUNTIF($AK$15:$AK$52,">"&AK49)+COUNTIF($AK$15:AK49,AK49),"") -> 35 | AK49: 0 | AL49: 00:00:00
A50: 36 | S50: 0 | W50: 36 | X50: =IF($Y50<>"",VLOOKUP($Y50,'1'!$P$15:$S$52,4,0),"") -> 0 | Y50: =IF(ISNA(MATCH(W50,'1'!$AJ$15:$AJ$52,0)),"",INDEX('1'!$AG$15:$AG$52,MATCH(W50,'1'!$AJ$15:$AJ$52,0))) ->  | Z50: =IF($Y50<>"",VLOOKUP($Y50,'1'!$AG$15:$AL$52,6,0),"") -> 00:00:00 | AA50: =IF($Y50<>"",VLOOKUP($Y50,'1'!$AG$15:$AI$52,3,0),"") -> 0 | AB50: =IF($Y50<>"",VLOOKUP($Y50,'1'!$AG$15:$AH$52,2,0),"") -> 0 | AF50: 36 | AH50: 0 | AI50: 0 | AJ50: =IF(AG50<>"",COUNTIF($AK$15:$AK$52,">"&AK50)+COUNTIF($AK$15:AK50,AK50),"") -> 36 | AK50: 0 | AL50: 00:00:00
A51: 37 | S51: 0 | W51: 37 | X51: =IF($Y51<>"",VLOOKUP($Y51,'1'!$P$15:$S$52,4,0),"") -> 0 | Y51: =IF(ISNA(MATCH(W51,'1'!$AJ$15:$AJ$52,0)),"",INDEX('1'!$AG$15:$AG$52,MATCH(W51,'1'!$AJ$15:$AJ$52,0))) ->  | Z51: =IF($Y51<>"",VLOOKUP($Y51,'1'!$AG$15:$AL$52,6,0),"") -> 00:00:00 | AA51: =IF($Y51<>"",VLOOKUP($Y51,'1'!$AG$15:$AI$52,3,0),"") -> 0 | AB51: =IF($Y51<>"",VLOOKUP($Y51,'1'!$AG$15:$AH$52,2,0),"") -> 0 | AF51: 37 | AH51: 0 | AI51: 0 | AJ51: =IF(AG51<>"",COUNTIF($AK$15:$AK$52,">"&AK51)+COUNTIF($AK$15:AK51,AK51),"") -> 37 | AK51: 0 | AL51: 00:00:00
A52: 38 | S52: 0 | W52: 38 | X52: =IF($Y52<>"",VLOOKUP($Y52,'1'!$P$15:$S$52,4,0),"") -> 0 | Y52: =IF(ISNA(MATCH(W52,'1'!$AJ$15:$AJ$52,0)),"",INDEX('1'!$AG$15:$AG$52,MATCH(W52,'1'!$AJ$15:$AJ$52,0))) ->  | Z52: =IF($Y52<>"",VLOOKUP($Y52,'1'!$AG$15:$AL$52,6,0),"") -> 00:00:00 | AA52: =IF($Y52<>"",VLOOKUP($Y52,'1'!$AG$15:$AI$52,3,0),"") -> 0 | AB52: =IF($Y52<>"",VLOOKUP($Y52,'1'!$AG$15:$AH$52,2,0),"") -> 0 | AF52: 38 | AH52: 0 | AI52: 0 | AJ52: =IF(AG52<>"",COUNTIF($AK$15:$AK$52,">"&AK52)+COUNTIF($AK$15:AK52,AK52),"") -> 38 | AK52: 0 | AL52: 00:00:00
L54: =COUNTIFS(L15:L52,">=10") -> 11
D55: ="المجموع : " &F55 -> المجموع : 31 | F55: =SUM(F57:F58) -> 31 | M55: ="التهنئة : "&G15 -> التهنئة : 1 | Q55: ="لا شيء : "&G18 -> لا شيء : 4 | Y55: ="المجموع : " &AA57 -> المجموع : 31 | AB55: =F55 -> 31
D57: ="البنات : "&F57 -> البنات : 14 | F57: =COUNTIFS(C15:C52,"أ") -> 14 | M57: ="التشجيع : "&G16 -> التشجيع : 1 | Q57: ="الإنذار : "&G19 -> الإنذار : 6 | Y57: =D57 -> البنات : 14 | AA57: =F55 -> 31 | AB57: =AB55 -> 31 | AD57: المعدل الفصلي أكبرمن أو يساوي 10 | AH57: =COUNTIFS(AA15:AA45,">=10") -> 11 | AI57: =AH57/AB55 -> 0.3548387097
D58: ="البنين : "&F58 -> البنين : 17 | F58: =COUNTIFS(C15:C52,"ذ") -> 17 | M58: ="لوحة شرف : "&G17 -> لوحة شرف : 5 | Q58: ="التوبيخ : "&G20 -> التوبيخ : 14 | Y58: =D58 -> البنين : 17 | AB58: =AB57 -> 31
D63: =IF(D1<>"",D1,"") -> متوسطة مكاوي علي؛ اولاد البارودي - سيدي لخضر | R63: =IF(R1<>"",R1,"") -> 2015/2014 | Y63: =D63 -> متوسطة مكاوي علي؛ اولاد البارودي - سيدي لخضر | AI63: =IF(R63<>"",R63,"") -> 2015/2014 | AJ63: =IF(N63<>"",N63,"") -> 
AI64: =IF(M64<>"",M64,"") ->  | AJ64: =IF(N64<>"",N64,"") -> 
D65: القسم: | E65: =E3 -> س4م1 | K65: نتائج الفصل الثاني | Y65: القسم: | Z65: =E65 -> س4م1
AB66: ترتيب التلاميذ حسب معدلاتهم (الفصـــــــــــــل الثاني)
D67: الأستاذ (ة): | E67: =IF(E5<>"",E5,"") ->  | Y67: الأستاذ (ة): | Z67: =IF(E67<>"",E67,"") ->  | AI67: =AI5 -> 4
D70: =D8 -> Nom | E70: =E8 -> Prenom | F70: تاريخ الميلاد | L70: المعدل الفصلي على 20 | M70: الإجازات و العقوبات | Y70: اللقب و الإسم | Z70: تاريخ الميلاد | AA70: المعدل الفصلي على 20 | AB70: الإجازات و العقوبات
A77: 1 | C77: =C15 -> ذ | D77: =D15 -> براهامي | E77: =E15 -> سفيان | F77: =IF(F15<>"",F15,"") -> 1997-06-01 | G77: =COUNTIFS(M77:M114,"تهنئة") -> 5 | L77: 8.5 | M77: =IF(AND(L77>=15,L77<20),"تهنئة","")&IF(AND(L77>=14,L77<15),"تشجيع","")&IF(AND(L77>=12,L77<14),"لوحة شرف","")&IF(AND(L77>=10,L77<12),"لا شيء","")&IF(AND(L77>=8,L77<10),"إنذار","")&IF(AND(L77>0,L77<8),"توبيخ","")&IF(AND(L77<>"",L77=0),"","") -> إنذار | W77: 1 | Y77: =IF(ISNA(MATCH(W77,'1'!$AJ$77:$AJ$114,0)),"",INDEX('1'!$AG$77:$AG$114,MATCH(W77,'1'!$AJ$77:$AJ$114,0))) -> خديمي عبد القادر | Z77: =IF($Y77<>"",VLOOKUP($Y77,'1'!$AG$77:$AL$114,6,0),"") -> 1999-01-03 | AA77: =IF($Y77<>"",VLOOKUP($Y77,'1'!$AG$77:$AI$114,3,0),"") -> 18.06666667 | AB77: =IF($Y77<>"",VLOOKUP($Y77,'1'!$AG$77:$AH$114,2,0),"") -> تهنئة | AF77: 1 | AG77: =D77&" "&E77 -> براهامي سفيان | AH77: =IF(M77="",0,M77) -> إنذار | AI77: =IF(L77="",0,L77) -> 8.5 | AJ77: =IF(AG77<>"",COUNTIF($AK$77:$AK$114,">"&AK77)+COUNTIF($AK$77:AK77,AK77),"") -> 21 | AK77: =IF(AI77<>"",AI77*1000,"") -> 8500 | AL77: =IF(F77="",0,F77) -> 1997-06-01
A78: 2 | C78: =C16 -> ذ | D78: برودي | E78: فيصل | F78: =IF(F16<>"",F16,"") -> 2000-02-04 | G78: =COUNTIFS(M77:M114,"تشجيع") -> 2 | L78: 15.76666667 | M78: تهنئة | W78: 2 | Y78: =IF(ISNA(MATCH(W78,'1'!$AJ$77:$AJ$114,0)),"",INDEX('1'!$AG$77:$AG$114,MATCH(W78,'1'!$AJ$77:$AJ$114,0))) -> بوسعادة سمراء | Z78: =IF($Y78<>"",VLOOKUP($Y78,'1'!$AG$77:$AL$114,6,0),"") -> 1999-12-10 | AA78: =IF($Y78<>"",VLOOKUP($Y78,'1'!$AG$77:$AI$114,3,0),"") -> 17.76666667 | AB78: =IF($Y78<>"",VLOOKUP($Y78,'1'!$AG$77:$AH$114,2,0),"") -> تهنئة | AF78: 2 | AG78: برودي فيصل | AH78: =IF(M78="",0,M78) -> تهنئة | AI78: 15.76666667 | AJ78: =IF(AG78<>"",COUNTIF($AK$77:$AK$114,">"&AK78)+COUNTIF($AK$77:AK78,AK78),"") -> 4 | AK78: 15766.66667 | AL78: 2000-02-04
A79: 3 | C79: ذ | D79: بلعربي | E79: عبد العزيز | F79: 1999-04-16 | G79: =COUNTIFS(M77:M114,"لوحة شرف") -> 1 | L79: 9.466666667 | M79: إنذار | W79: 3 | Y79: =IF(ISNA(MATCH(W79,'1'!$AJ$77:$AJ$114,0)),"",INDEX('1'!$AG$77:$AG$114,MATCH(W79,'1'!$AJ$77:$AJ$114,0))) -> مكاوي الميلود | Z79: =IF($Y79<>"",VLOOKUP($Y79,'1'!$AG$77:$AL$114,6,0),"") -> 1997-07-08 | AA79: =IF($Y79<>"",VLOOKUP($Y79,'1'!$AG$77:$AI$114,3,0),"") -> 17.1 | AB79: =IF($Y79<>"",VLOOKUP($Y79,'1'!$AG$77:$AH$114,2,0),"") -> تهنئة | AF79: 3 | AG79: بلعربي عبد العزيز | AH79: إنذار | AI79: 9.466666667 | AJ79: =IF(AG79<>"",COUNTIF($AK$77:$AK$114,">"&AK79)+COUNTIF($AK$77:AK79,AK79),"") -> 18 | AK79: 9466.666667 | AL79: 1999-04-16
A80: 4 | C80: أ | D80: بوخاتم | E80: فوزية | F80: 1999-01-13 | G80: =COUNTIFS(M77:M114,"لا شيء") -> 7 | L80: 14.13333333 | M80: تشجيع | W80: 4 | Y80: =IF(ISNA(MATCH(W80,'1'!$AJ$77:$AJ$114,0)),"",INDEX('1'!$AG$77:$AG$114,MATCH(W80,'1'!$AJ$77:$AJ$114,0))) -> برودي فيصل | Z80: =IF($Y80<>"",VLOOKUP($Y80,'1'!$AG$77:$AL$114,6,0),"") -> 2000-02-04 | AA80: =IF($Y80<>"",VLOOKUP($Y80,'1'!$AG$77:$AI$114,3,0),"") -> 15.76666667 | AB80: =IF($Y80<>"",VLOOKUP($Y80,'1'!$AG$77:$AH$114,2,0),"") -> تهنئة | AF80: 4 | AG80: بوخاتم فوزية | AH80: تشجيع | AI80: 14.13333333 | AJ80: =IF(AG80<>"",COUNTIF($AK$77:$AK$114,">"&AK80)+COUNTIF($AK$77:AK80,AK80),"") -> 6 | AK80: 14133.33333 | AL80: 1999-01-13
A81: 5 | C81: أ | D81: بوسعادة | E81: سمراء | F81: 1999-12-10 | G81: =COUNTIFS(M77:M114,"إنذار") -> 8 | L81: 17.76666667 | M81: تهنئة | W81: 5 | Y81: =IF(ISNA(MATCH(W81,'1'!$AJ$77:$AJ$114,0)),"",INDEX('1'!$AG$77:$AG$114,MATCH(W81,'1'!$AJ$77:$AJ$114,0))) -> موزاوي منال | Z81: =IF($Y81<>"",VLOOKUP($Y81,'1'!$AG$77:$AL$114,6,0),"") -> 2000-02-13 | AA81: =IF($Y81<>"",VLOOKUP($Y81,'1'!$AG$77:$AI$114,3,0),"") -> 15.3 | AB81: =IF($Y81<>"",VLOOKUP($Y81,'1'!$AG$77:$AH$114,2,0),"") -> تهنئة | AF81: 5 | AG81: بوسعادة سمراء | AH81: تهنئة | AI81: 17.76666667 | AJ81: =IF(AG81<>"",COUNTIF($AK$77:$AK$114,">"&AK81)+COUNTIF($AK$77:AK81,AK81),"") -> 2 | AK81: 17766.66667 | AL81: 1999-12-10
A82: 6 | C82: أ | D82: بوكروش | E82: حليمة | F82: 1998-02-15 | G82: =COUNTIFS(M77:M114,"توبيخ") -> 8 | L82: 13.73333333 | M82: لوحة شرف | W82: 6 | Y82: =IF(ISNA(MATCH(W82,'1'!$AJ$77:$AJ$114,0)),"",INDEX('1'!$AG$77:$AG$114,MATCH(W82,'1'!$AJ$77:$AJ$114,0))) -> بوخاتم فوزية | Z82: =IF($Y82<>"",VLOOKUP($Y82,'1'!$AG$77:$AL$114,6,0),"") -> 1999-01-13 | AA82: =IF($Y82<>"",VLOOKUP($Y82,'1'!$AG$77:$AI$114,3,0),"") -> 14.13333333 | AB82: =IF($Y82<>"",VLOOKUP($Y82,'1'!$AG$77:$AH$114,2,0),"") -> تشجيع | AF82: 6 | AG82: بوكروش حليمة | AH82: لوحة شرف | AI82: 13.73333333 | AJ82: =IF(AG82<>"",COUNTIF($AK$77:$AK$114,">"&AK82)+COUNTIF($AK$77:AK82,AK82),"") -> 8 | AK82: 13733.33333 | AL82: 1998-02-15
A83: 7 | C83: ذ | D83: بوكروش | E83: عبد القادر | F83: 1995-01-27 | L83: 8.033333333 | M83: إنذار | W83: 7 | Y83: =IF(ISNA(MATCH(W83,'1'!$AJ$77:$AJ$114,0)),"",INDEX('1'!$AG$77:$AG$114,MATCH(W83,'1'!$AJ$77:$AJ$114,0))) -> دونان إكرام | Z83: =IF($Y83<>"",VLOOKUP($Y83,'1'!$AG$77:$AL$114,6,0),"") -> 1996-11-20 | AA83: =IF($Y83<>"",VLOOKUP($Y83,'1'!$AG$77:$AI$114,3,0),"") -> 14 | AB83: =IF($Y83<>"",VLOOKUP($Y83,'1'!$AG$77:$AH$114,2,0),"") -> تشجيع | AF83: 7 | AG83: بوكروش عبد القادر | AH83: إنذار | AI83: 8.033333333 | AJ83: =IF(AG83<>"",COUNTIF($AK$77:$AK$114,">"&AK83)+COUNTIF($AK$77:AK83,AK83),"") -> 23 | AK83: 8033.333333 | AL83: 1995-01-27
A84: 8 | C84: أ | D84: بومهدي | E84: شهرزاد خيرة | F84: 1999-02-21 | L84: 9.833333333 | M84: إنذار | W84: 8 | Y84: =IF(ISNA(MATCH(W84,'1'!$AJ$77:$AJ$114,0)),"",INDEX('1'!$AG$77:$AG$114,MATCH(W84,'1'!$AJ$77:$AJ$114,0))) -> بوكروش حليمة | Z84: =IF($Y84<>"",VLOOKUP($Y84,'1'!$AG$77:$AL$114,6,0),"") -> 1998-02-15 | AA84: =IF($Y84<>"",VLOOKUP($Y84,'1'!$AG$77:$AI$114,3,0),"") -> 13.73333333 | AB84: =IF($Y84<>"",VLOOKUP($Y84,'1'!$AG$77:$AH$114,2,0),"") -> لوحة شرف | AF84: 8 | AG84: بومهدي شهرزاد خيرة | AH84: إنذار | AI84: 9.833333333 | AJ84: =IF(AG84<>"",COUNTIF($AK$77:$AK$114,">"&AK84)+COUNTIF($AK$77:AK84,AK84),"") -> 17 | AK84: 9833.333333 | AL84: 1999-02-21
A85: 9 | C85: ذ | D85: بومهدي | E85: لخضر | F85: 1995-11-01 | L85: 10.63333333 | M85: لا شيء | W85: 9 | Y85: =IF(ISNA(MATCH(W85,'1'!$AJ$77:$AJ$114,0)),"",INDEX('1'!$AG$77:$AG$114,MATCH(W85,'1'!$AJ$77:$AJ$114,0))) -> شاشو لخضر | Z85: =IF($Y85<>"",VLOOKUP($Y85,'1'!$AG$77:$AL$114,6,0),"") -> 1999-12-22 | AA85: =IF($Y85<>"",VLOOKUP($Y85,'1'!$AG$77:$AI$114,3,0),"") -> 10.83333333 | AB85: =IF($Y85<>"",VLOOKUP($Y85,'1'!$AG$77:$AH$114,2,0),"") -> لا شيء | AF85: 9 | AG85: بومهدي لخضر | AH85: لا شيء | AI85: 10.63333333 | AJ85: =IF(AG85<>"",COUNTIF($AK$77:$AK$114,">"&AK85)+COUNTIF($AK$77:AK85,AK85),"") -> 10 | AK85: 10633.33333 | AL85: 1995-11-01
A86: 10 | C86: ذ | D86: خديمي | E86: عبد القادر | F86: 1999-01-03 | L86: 18.06666667 | M86: تهنئة | W86: 10 | Y86: =IF(ISNA(MATCH(W86,'1'!$AJ$77:$AJ$114,0)),"",INDEX('1'!$AG$77:$AG$114,MATCH(W86,'1'!$AJ$77:$AJ$114,0))) -> بومهدي لخضر | Z86: =IF($Y86<>"",VLOOKUP($Y86,'1'!$AG$77:$AL$114,6,0),"") -> 1995-11-01 | AA86: =IF($Y86<>"",VLOOKUP($Y86,'1'!$AG$77:$AI$114,3,0),"") -> 10.63333333 | AB86: =IF($Y86<>"",VLOOKUP($Y86,'1'!$AG$77:$AH$114,2,0),"") -> لا شيء | AF86: 10 | AG86: خديمي عبد القادر | AH86: تهنئة | AI86: 18.06666667 | AJ86: =IF(AG86<>"",COUNTIF($AK$77:$AK$114,">"&AK86)+COUNTIF($AK$77:AK86,AK86),"") -> 1 | AK86: 18066.66667 | AL86: 1999-01-03
A87: 11 | C87: ذ | D87: درموز | E87: هواري | F87: 1994-08-26 | L87: 9.9 | M87: إنذار | W87: 11 | Y87: =IF(ISNA(MATCH(W87,'1'!$AJ$77:$AJ$114,0)),"",INDEX('1'!$AG$77:$AG$114,MATCH(W87,'1'!$AJ$77:$AJ$114,0))) -> قندوز العيد | Z87: =IF($Y87<>"",VLOOKUP($Y87,'1'!$AG$77:$AL$114,6,0),"") -> 1995-05-17 | AA87: =IF($Y87<>"",VLOOKUP($Y87,'1'!$AG$77:$AI$114,3,0),"") -> 10.2 | AB87: =IF($Y87<>"",VLOOKUP($Y87,'1'!$AG$77:$AH$114,2,0),"") -> لا شيء | AF87: 11 | AG87: درموز هواري | AH87: إنذار | AI87: 9.9 | AJ87: =IF(AG87<>"",COUNTIF($AK$77:$AK$114,">"&AK87)+COUNTIF($AK$77:AK87,AK87),"") -> 16 | AK87: 9900 | AL87: 1994-08-26
A88: 12 | C88: ذ | D88: دوان | E88: سليمان | F88: 1997-04-07 | L88: 8.666666667 | M88: إنذار | W88: 12 | Y88: =IF(ISNA(MATCH(W88,'1'!$AJ$77:$AJ$114,0)),"",INDEX('1'!$AG$77:$AG$114,MATCH(W88,'1'!$AJ$77:$AJ$114,0))) -> مصطفاوي محمد | Z88: =IF($Y88<>"",VLOOKUP($Y88,'1'!$AG$77:$AL$114,6,0),"") -> 1997-05-07 | AA88: =IF($Y88<>"",VLOOKUP($Y88,'1'!$AG$77:$AI$114,3,0),"") -> 10.2 | AB88: =IF($Y88<>"",VLOOKUP($Y88,'1'!$AG$77:$AH$114,2,0),"") -> لا شيء | AF88: 12 | AG88: دوان سليمان | AH88: إنذار | AI88: 8.666666667 | AJ88: =IF(AG88<>"",COUNTIF($AK$77:$AK$114,">"&AK88)+COUNTIF($AK$77:AK88,AK88),"") -> 20 | AK88: 8666.666667 | AL88: 1997-04-07
A89: 13 | C89: أ | D89: دونان | E89: إكرام | F89: 1996-11-20 | L89: 14 | M89: تشجيع | W89: 13 | Y89: =IF(ISNA(MATCH(W89,'1'!$AJ$77:$AJ$114,0)),"",INDEX('1'!$AG$77:$AG$114,MATCH(W89,'1'!$AJ$77:$AJ$114,0))) -> سالي كمال | Z89: =IF($Y89<>"",VLOOKUP($Y89,'1'!$AG$77:$AL$114,6,0),"") -> 1999-09-03 | AA89: =IF($Y89<>"",VLOOKUP($Y89,'1'!$AG$77:$AI$114,3,0),"") -> 10.16666667 | AB89: =IF($Y89<>"",VLOOKUP($Y89,'1'!$AG$77:$AH$114,2,0),"") -> لا شيء | AF89: 13 | AG89: دونان إكرام | AH89: تشجيع | AI89: 14 | AJ89: =IF(AG89<>"",COUNTIF($AK$77:$AK$114,">"&AK89)+COUNTIF($AK$77:AK89,AK89),"") -> 7 | AK89: 14000 | AL89: 1996-11-20
A90: 14 | C90: ذ | D90: رحو | E90: حمزة | F90: 1995-10-04 | L90: 6.766666667 | M90: توبيخ | W90: 14 | Y90: =IF(ISNA(MATCH(W90,'1'!$AJ$77:$AJ$114,0)),"",INDEX('1'!$AG$77:$AG$114,MATCH(W90,'1'!$AJ$77:$AJ$114,0))) -> شواط سهام | Z90: =IF($Y90<>"",VLOOKUP($Y90,'1'!$AG$77:$AL$114,6,0),"") -> 1998-11-01 | AA90: =IF($Y90<>"",VLOOKUP($Y90,'1'!$AG$77:$AI$114,3,0),"") -> 10.1 | AB90: =IF($Y90<>"",VLOOKUP($Y90,'1'!$AG$77:$AH$114,2,0),"") -> لا شيء | AF90: 14 | AG90: رحو حمزة | AH90: توبيخ | AI90: 6.766666667 | AJ90: =IF(AG90<>"",COUNTIF($AK$77:$AK$114,">"&AK90)+COUNTIF($AK$77:AK90,AK90),"") -> 27 | AK90: 6766.666667 | AL90: 1995-10-04
A91: 15 | C91: أ | D91: رفيف | E91: نجاة | F91: 1997-01-01 | L91: 7.733333333 | M91: توبيخ | W91: 15 | Y91: =IF(ISNA(MATCH(W91,'1'!$AJ$77:$AJ$114,0)),"",INDEX('1'!$AG$77:$AG$114,MATCH(W91,'1'!$AJ$77:$AJ$114,0))) -> شاشو ميلود | Z91: =IF($Y91<>"",VLOOKUP($Y91,'1'!$AG$77:$AL$114,6,0),"") -> 1999-02-28 | AA91: =IF($Y91<>"",VLOOKUP($Y91,'1'!$AG$77:$AI$114,3,0),"") -> 10 | AB91: =IF($Y91<>"",VLOOKUP($Y91,'1'!$AG$77:$AH$114,2,0),"") -> لا شيء | AF91: 15 | AG91: رفيف نجاة | AH91: توبيخ | AI91: 7.733333333 | AJ91: =IF(AG91<>"",COUNTIF($AK$77:$AK$114,">"&AK91)+COUNTIF($AK$77:AK91,AK91),"") -> 25 | AK91: 7733.333333 | AL91: 1997-01-01
A92: 16 | C92: ذ | D92: سالي | E92: كمال | F92: 1999-09-03 | L92: 10.16666667 | M92: لا شيء | W92: 16 | Y92: =IF(ISNA(MATCH(W92,'1'!$AJ$77:$AJ$114,0)),"",INDEX('1'!$AG$77:$AG$114,MATCH(W92,'1'!$AJ$77:$AJ$114,0))) -> درموز هواري | Z92: =IF($Y92<>"",VLOOKUP($Y92,'1'!$AG$77:$AL$114,6,0),"") -> 1994-08-26 | AA92: =IF($Y92<>"",VLOOKUP($Y92,'1'!$AG$77:$AI$114,3,0),"") -> 9.9 | AB92: =IF($Y92<>"",VLOOKUP($Y92,'1'!$AG$77:$AH$114,2,0),"") -> إنذار | AF92: 16 | AG92: سالي كمال | AH92: لا شيء | AI92: 10.16666667 | AJ92: =IF(AG92<>"",COUNTIF($AK$77:$AK$114,">"&AK92)+COUNTIF($AK$77:AK92,AK92),"") -> 13 | AK92: 10166.66667 | AL92: 1999-09-03
A93: 17 | C93: أ | D93: سعادي | E93: كميلة | F93: 1998-11-12 | L93: 6.666666667 | M93: توبيخ | W93: 17 | Y93: =IF(ISNA(MATCH(W93,'1'!$AJ$77:$AJ$114,0)),"",INDEX('1'!$AG$77:$AG$114,MATCH(W93,'1'!$AJ$77:$AJ$114,0))) -> بومهدي شهرزاد خيرة | Z93: =IF($Y93<>"",VLOOKUP($Y93,'1'!$AG$77:$AL$114,6,0),"") -> 1999-02-21 | AA93: =IF($Y93<>"",VLOOKUP($Y93,'1'!$AG$77:$AI$114,3,0),"") -> 9.833333333 | AB93: =IF($Y93<>"",VLOOKUP($Y93,'1'!$AG$77:$AH$114,2,0),"") -> إنذار | AF93: 17 | AG93: سعادي كميلة | AH93: توبيخ | AI93: 6.666666667 | AJ93: =IF(AG93<>"",COUNTIF($AK$77:$AK$114,">"&AK93)+COUNTIF($AK$77:AK93,AK93),"") -> 28 | AK93: 6666.666667 | AL93: 1998-11-12
A94: 18 | C94: =C32 -> ذ | D94: شاشو | E94: لخضر | F94: 1999-12-22 | L94: 10.83333333 | M94: لا شيء | W94: 18 | Y94: =IF(ISNA(MATCH(W94,'1'!$AJ$77:$AJ$114,0)),"",INDEX('1'!$AG$77:$AG$114,MATCH(W94,'1'!$AJ$77:$AJ$114,0))) -> بلعربي عبد العزيز | Z94: =IF($Y94<>"",VLOOKUP($Y94,'1'!$AG$77:$AL$114,6,0),"") -> 1999-04-16 | AA94: =IF($Y94<>"",VLOOKUP($Y94,'1'!$AG$77:$AI$114,3,0),"") -> 9.466666667 | AB94: =IF($Y94<>"",VLOOKUP($Y94,'1'!$AG$77:$AH$114,2,0),"") -> إنذار | AF94: 18 | AG94: شاشو لخضر | AH94: لا شيء | AI94: 10.83333333 | AJ94: =IF(AG94<>"",COUNTIF($AK$77:$AK$114,">"&AK94)+COUNTIF($AK$77:AK94,AK94),"") -> 9 | AK94: 10833.33333 | AL94: 1999-12-22
A95: 19 | C95: ذ | D95: شاشو | E95: ميلود | F95: 1999-02-28 | L95: 10 | M95: لا شيء | W95: 19 | Y95: =IF(ISNA(MATCH(W95,'1'!$AJ$77:$AJ$114,0)),"",INDEX('1'!$AG$77:$AG$114,MATCH(W95,'1'!$AJ$77:$AJ$114,0))) -> مكاوي فتحي | Z95: =IF($Y95<>"",VLOOKUP($Y95,'1'!$AG$77:$AL$114,6,0),"") -> 1996-09-28 | AA95: =IF($Y95<>"",VLOOKUP($Y95,'1'!$AG$77:$AI$114,3,0),"") -> 8.9 | AB95: =IF($Y95<>"",VLOOKUP($Y95,'1'!$AG$77:$AH$114,2,0),"") -> إنذار | AF95: 19 | AG95: شاشو ميلود | AH95: لا شيء | AI95: 10 | AJ95: =IF(AG95<>"",COUNTIF($AK$77:$AK$114,">"&AK95)+COUNTIF($AK$77:AK95,AK95),"") -> 15 | AK95: 10000 | AL95: 1999-02-28
A96: 20 | C96: أ | D96: شواط | E96: سهام | F96: 1998-11-01 | L96: 10.1 | M96: لا شيء | W96: 20 | Y96: =IF(ISNA(MATCH(W96,'1'!$AJ$77:$AJ$114,0)),"",INDEX('1'!$AG$77:$AG$114,MATCH(W96,'1'!$AJ$77:$AJ$114,0))) -> دوان سليمان | Z96: =IF($Y96<>"",VLOOKUP($Y96,'1'!$AG$77:$AL$114,6,0),"") -> 1997-04-07 | AA96: =IF($Y96<>"",VLOOKUP($Y96,'1'!$AG$77:$AI$114,3,0),"") -> 8.666666667 | AB96: =IF($Y96<>"",VLOOKUP($Y96,'1'!$AG$77:$AH$114,2,0),"") -> إنذار | AF96: 20 | AG96: شواط سهام | AH96: لا شيء | AI96: 10.1 | AJ96: =IF(AG96<>"",COUNTIF($AK$77:$AK$114,">"&AK96)+COUNTIF($AK$77:AK96,AK96),"") -> 14 | AK96: 10100 | AL96: 1998-11-01
A97: 21 | C97: أ | D97: فتحي | E97: حفصة | F97: 1999-04-18 | L97: 8.266666667 | M97: إنذار | W97: 21 | Y97: =IF(ISNA(MATCH(W97,'1'!$AJ$77:$AJ$114,0)),"",INDEX('1'!$AG$77:$AG$114,MATCH(W97,'1'!$AJ$77:$AJ$114,0))) -> براهامي سفيان | Z97: =IF($Y97<>"",VLOOKUP($Y97,'1'!$AG$77:$AL$114,6,0),"") -> 1997-06-01 | AA97: =IF($Y97<>"",VLOOKUP($Y97,'1'!$AG$77:$AI$114,3,0),"") -> 8.5 | AB97: =IF($Y97<>"",VLOOKUP($Y97,'1'!$AG$77:$AH$114,2,0),"") -> إنذار | AF97: 21 | AG97: فتحي حفصة | AH97: إنذار | AI97: 8.266666667 | AJ97: =IF(AG97<>"",COUNTIF($AK$77:$AK$114,">"&AK97)+COUNTIF($AK$77:AK97,AK97),"") -> 22 | AK97: 8266.666667 | AL97: 1999-04-18
A98: 22 | C98: ذ | D98: فتحي | E98: فيصل | F98: 1996-07-14 | L98: 6.133333333 | M98: توبيخ | W98: 22 | Y98: =IF(ISNA(MATCH(W98,'1'!$AJ$77:$AJ$114,0)),"",INDEX('1'!$AG$77:$AG$114,MATCH(W98,'1'!$AJ$77:$AJ$114,0))) -> فتحي حفصة | Z98: =IF($Y98<>"",VLOOKUP($Y98,'1'!$AG$77:$AL$114,6,0),"") -> 1999-04-18 | AA98: =IF($Y98<>"",VLOOKUP($Y98,'1'!$AG$77:$AI$114,3,0),"") -> 8.266666667 | AB98: =IF($Y98<>"",VLOOKUP($Y98,'1'!$AG$77:$AH$114,2,0),"") -> إنذار | AF98: 22 | AG98: فتحي فيصل | AH98: توبيخ | AI98: 6.133333333 | AJ98: =IF(AG98<>"",COUNTIF($AK$77:$AK$114,">"&AK98)+COUNTIF($AK$77:AK98,AK98),"") -> 31 | AK98: 6133.333333 | AL98: 1996-07-14
A99: 23 | C99: أ | D99: قاضي | E99: فاطمة | F99: 1997-03-01 | L99: 6.6 | M99: توبيخ | W99: 23 | Y99: =IF(ISNA(MATCH(W99,'1'!$AJ$77:$AJ$114,0)),"",INDEX('1'!$AG$77:$AG$114,MATCH(W99,'1'!$AJ$77:$AJ$114,0))) -> بوكروش عبد القادر | Z99: =IF($Y99<>"",VLOOKUP($Y99,'1'!$AG$77:$AL$114,6,0),"") -> 1995-01-27 | AA99: =IF($Y99<>"",VLOOKUP($Y99,'1'!$AG$77:$AI$114,3,0),"") -> 8.033333333 | AB99: =IF($Y99<>"",VLOOKUP($Y99,'1'!$AG$77:$AH$114,2,0),"") -> إنذار | AF99: 23 | AG99: قاضي فاطمة | AH99: توبيخ | AI99: 6.6 | AJ99: =IF(AG99<>"",COUNTIF($AK$77:$AK$114,">"&AK99)+COUNTIF($AK$77:AK99,AK99),"") -> 29 | AK99: 6600 | AL99: 1997-03-01
A100: 24 | C100: ذ | D100: قندوز | E100: العيد | F100: 1995-05-17 | L100: 10.2 | M100: لا شيء | W100: 24 | Y100: =IF(ISNA(MATCH(W100,'1'!$AJ$77:$AJ$114,0)),"",INDEX('1'!$AG$77:$AG$114,MATCH(W100,'1'!$AJ$77:$AJ$114,0))) -> مكاوي نجمة | Z100: =IF($Y100<>"",VLOOKUP($Y100,'1'!$AG$77:$AL$114,6,0),"") -> 1997-06-18 | AA100: =IF($Y100<>"",VLOOKUP($Y100,'1'!$AG$77:$AI$114,3,0),"") -> 7.933333333 | AB100: =IF($Y100<>"",VLOOKUP($Y100,'1'!$AG$77:$AH$114,2,0),"") -> توبيخ | AF100: 24 | AG100: قندوز العيد | AH100: لا شيء | AI100: 10.2 | AJ100: =IF(AG100<>"",COUNTIF($AK$77:$AK$114,">"&AK100)+COUNTIF($AK$77:AK100,AK100),"") -> 11 | AK100: 10200 | AL100: 1995-05-17
A101: 25 | C101: أ | D101: قندوز | E101: كحلة | F101: 1997-08-09 | L101: 7.233333333 | M101: توبيخ | W101: 25 | Y101: =IF(ISNA(MATCH(W101,'1'!$AJ$77:$AJ$114,0)),"",INDEX('1'!$AG$77:$AG$114,MATCH(W101,'1'!$AJ$77:$AJ$114,0))) -> رفيف نجاة | Z101: =IF($Y101<>"",VLOOKUP($Y101,'1'!$AG$77:$AL$114,6,0),"") -> 1997-01-01 | AA101: =IF($Y101<>"",VLOOKUP($Y101,'1'!$AG$77:$AI$114,3,0),"") -> 7.733333333 | AB101: =IF($Y101<>"",VLOOKUP($Y101,'1'!$AG$77:$AH$114,2,0),"") -> توبيخ | AF101: 25 | AG101: قندوز كحلة | AH101: توبيخ | AI101: 7.233333333 | AJ101: =IF(AG101<>"",COUNTIF($AK$77:$AK$114,">"&AK101)+COUNTIF($AK$77:AK101,AK101),"") -> 26 | AK101: 7233.333333 | AL101: 1997-08-09
A102: 26 | C102: أ | D102: كوشة | E102: إكرام | F102: 1999-12-06 | L102: 6.266666667 | M102: توبيخ | W102: 26 | Y102: =IF(ISNA(MATCH(W102,'1'!$AJ$77:$AJ$114,0)),"",INDEX('1'!$AG$77:$AG$114,MATCH(W102,'1'!$AJ$77:$AJ$114,0))) -> قندوز كحلة | Z102: =IF($Y102<>"",VLOOKUP($Y102,'1'!$AG$77:$AL$114,6,0),"") -> 1997-08-09 | AA102: =IF($Y102<>"",VLOOKUP($Y102,'1'!$AG$77:$AI$114,3,0),"") -> 7.233333333 | AB102: =IF($Y102<>"",VLOOKUP($Y102,'1'!$AG$77:$AH$114,2,0),"") -> توبيخ | AF102: 26 | AG102: كوشة إكرام | AH102: توبيخ | AI102: 6.266666667 | AJ102: =IF(AG102<>"",COUNTIF($AK$77:$AK$114,">"&AK102)+COUNTIF($AK$77:AK102,AK102),"") -> 30 | AK102: 6266.666667 | AL102: 1999-12-06
A103: 27 | C103: ذ | D103: مصطفاوي | E103: محمد | F103: 1997-05-07 | L103: 10.2 | M103: لا شيء | W103: 27 | Y103: =IF(ISNA(MATCH(W103,'1'!$AJ$77:$AJ$114,0)),"",INDEX('1'!$AG$77:$AG$114,MATCH(W103,'1'!$AJ$77:$AJ$114,0))) -> رحو حمزة | Z103: =IF($Y103<>"",VLOOKUP($Y103,'1'!$AG$77:$AL$114,6,0),"") -> 1995-10-04 | AA103: =IF($Y103<>"",VLOOKUP($Y103,'1'!$AG$77:$AI$114,3,0),"") -> 6.766666667 | AB103: =IF($Y103<>"",VLOOKUP($Y103,'1'!$AG$77:$AH$114,2,0),"") -> توبيخ | AF103: 27 | AG103: مصطفاوي محمد | AH103: لا شيء | AI103: 10.2 | AJ103: =IF(AG103<>"",COUNTIF($AK$77:$AK$114,">"&AK103)+COUNTIF($AK$77:AK103,AK103),"") -> 12 | AK103: 10200 | AL103: 1997-05-07
A104: 28 | C104: ذ | D104: مكاوي | E104: الميلود | F104: 1997-07-08 | L104: 17.1 | M104: تهنئة | W104: 28 | Y104: =IF(ISNA(MATCH(W104,'1'!$AJ$77:$AJ$114,0)),"",INDEX('1'!$AG$77:$AG$114,MATCH(W104,'1'!$AJ$77:$AJ$114,0))) -> سعادي كميلة | Z104: =IF($Y104<>"",VLOOKUP($Y104,'1'!$AG$77:$AL$114,6,0),"") -> 1998-11-12 | AA104: =IF($Y104<>"",VLOOKUP($Y104,'1'!$AG$77:$AI$114,3,0),"") -> 6.666666667 | AB104: =IF($Y104<>"",VLOOKUP($Y104,'1'!$AG$77:$AH$114,2,0),"") -> توبيخ | AF104: 28 | AG104: مكاوي الميلود | AH104: تهنئة | AI104: 17.1 | AJ104: =IF(AG104<>"",COUNTIF($AK$77:$AK$114,">"&AK104)+COUNTIF($AK$77:AK104,AK104),"") -> 3 | AK104: 17100 | AL104: 1997-07-08
A105: 29 | C105: ذ | D105: مكاوي | E105: فتحي | F105: =IF(F43<>"",F43,"") -> 1996-09-28 | L105: 8.9 | M105: إنذار | W105: 29 | Y105: =IF(ISNA(MATCH(W105,'1'!$AJ$77:$AJ$114,0)),"",INDEX('1'!$AG$77:$AG$114,MATCH(W105,'1'!$AJ$77:$AJ$114,0))) -> قاضي فاطمة | Z105: =IF($Y105<>"",VLOOKUP($Y105,'1'!$AG$77:$AL$114,6,0),"") -> 1997-03-01 | AA105: =IF($Y105<>"",VLOOKUP($Y105,'1'!$AG$77:$AI$114,3,0),"") -> 6.6 | AB105: =IF($Y105<>"",VLOOKUP($Y105,'1'!$AG$77:$AH$114,2,0),"") -> توبيخ | AF105: 29 | AG105: مكاوي فتحي | AH105: إنذار | AI105: 8.9 | AJ105: =IF(AG105<>"",COUNTIF($AK$77:$AK$114,">"&AK105)+COUNTIF($AK$77:AK105,AK105),"") -> 19 | AK105: 8900 | AL105: 1996-09-28
A106: 30 | C106: أ | D106: مكاوي | E106: نجمة | F106: 1997-06-18 | L106: 7.933333333 | M106: توبيخ | W106: 30 | Y106: =IF(ISNA(MATCH(W106,'1'!$AJ$77:$AJ$114,0)),"",INDEX('1'!$AG$77:$AG$114,MATCH(W106,'1'!$AJ$77:$AJ$114,0))) -> كوشة إكرام | Z106: =IF($Y106<>"",VLOOKUP($Y106,'1'!$AG$77:$AL$114,6,0),"") -> 1999-12-06 | AA106: =IF($Y106<>"",VLOOKUP($Y106,'1'!$AG$77:$AI$114,3,0),"") -> 6.266666667 | AB106: =IF($Y106<>"",VLOOKUP($Y106,'1'!$AG$77:$AH$114,2,0),"") -> توبيخ | AF106: 30 | AG106: مكاوي نجمة | AH106: توبيخ | AI106: 7.933333333 | AJ106: =IF(AG106<>"",COUNTIF($AK$77:$AK$114,">"&AK106)+COUNTIF($AK$77:AK106,AK106),"") -> 24 | AK106: 7933.333333 | AL106: 1997-06-18
A107: 31 | C107: أ | D107: موزاوي | E107: منال | F107: 2000-02-13 | L107: 15.3 | M107: تهنئة | W107: 31 | Y107: =IF(ISNA(MATCH(W107,'1'!$AJ$77:$AJ$114,0)),"",INDEX('1'!$AG$77:$AG$114,MATCH(W107,'1'!$AJ$77:$AJ$114,0))) -> فتحي فيصل | Z107: =IF($Y107<>"",VLOOKUP($Y107,'1'!$AG$77:$AL$114,6,0),"") -> 1996-07-14 | AA107: =IF($Y107<>"",VLOOKUP($Y107,'1'!$AG$77:$AI$114,3,0),"") -> 6.133333333 | AB107: =IF($Y107<>"",VLOOKUP($Y107,'1'!$AG$77:$AH$114,2,0),"") -> توبيخ | AF107: 31 | AG107: موزاوي منال | AH107: تهنئة | AI107: 15.3 | AJ107: =IF(AG107<>"",COUNTIF($AK$77:$AK$114,">"&AK107)+COUNTIF($AK$77:AK107,AK107),"") -> 5 | AK107: 15300 | AL107: 2000-02-13
A108: 32 | C108: 0 | D108: 0 | E108: 0 | W108: 32 | Y108: =IF(ISNA(MATCH(W108,'1'!$AJ$77:$AJ$114,0)),"",INDEX('1'!$AG$77:$AG$114,MATCH(W108,'1'!$AJ$77:$AJ$114,0))) -> 0 0 | Z108: =IF($Y108<>"",VLOOKUP($Y108,'1'!$AG$77:$AL$114,6,0),"") -> 00:00:00 | AA108: =IF($Y108<>"",VLOOKUP($Y108,'1'!$AG$77:$AI$114,3,0),"") -> 0 | AB108: =IF($Y108<>"",VLOOKUP($Y108,'1'!$AG$77:$AH$114,2,0),"") -> 0 | AF108: 32 | AG108: 0 0 | AH108: 0 | AI108: 0 | AJ108: =IF(AG108<>"",COUNTIF($AK$77:$AK$114,">"&AK108)+COUNTIF($AK$77:AK108,AK108),"") -> 32 | AK108: 0 | AL108: 00:00:00
A109: 33 | C109: 0 | D109: 0 | E109: 0 | W109: 33 | Y109: =IF(ISNA(MATCH(W109,'1'!$AJ$77:$AJ$114,0)),"",INDEX('1'!$AG$77:$AG$114,MATCH(W109,'1'!$AJ$77:$AJ$114,0))) -> 0 0 | Z109: =IF($Y109<>"",VLOOKUP($Y109,'1'!$AG$77:$AL$114,6,0),"") -> 00:00:00 | AA109: =IF($Y109<>"",VLOOKUP($Y109,'1'!$AG$77:$AI$114,3,0),"") -> 0 | AB109: =IF($Y109<>"",VLOOKUP($Y109,'1'!$AG$77:$AH$114,2,0),"") -> 0 | AF109: 33 | AG109: 0 0 | AH109: 0 | AI109: 0 | AJ109: =IF(AG109<>"",COUNTIF($AK$77:$AK$114,">"&AK109)+COUNTIF($AK$77:AK109,AK109),"") -> 33 | AK109: 0 | AL109: 00:00:00
A110: 34 | C110: =C48 -> 0 | D110: 0 | E110: 0 | W110: 34 | Y110: =IF(ISNA(MATCH(W110,'1'!$AJ$77:$AJ$114,0)),"",INDEX('1'!$AG$77:$AG$114,MATCH(W110,'1'!$AJ$77:$AJ$114,0))) -> 0 0 | Z110: =IF($Y110<>"",VLOOKUP($Y110,'1'!$AG$77:$AL$114,6,0),"") -> 00:00:00 | AA110: =IF($Y110<>"",VLOOKUP($Y110,'1'!$AG$77:$AI$114,3,0),"") -> 0 | AB110: =IF($Y110<>"",VLOOKUP($Y110,'1'!$AG$77:$AH$114,2,0),"") -> 0 | AF110: 34 | AG110: 0 0 | AH110: 0 | AI110: 0 | AJ110: =IF(AG110<>"",COUNTIF($AK$77:$AK$114,">"&AK110)+COUNTIF($AK$77:AK110,AK110),"") -> 34 | AK110: 0 | AL110: 00:00:00
A111: 35 | C111: 0 | D111: 0 | E111: 0 | W111: 35 | Y111: =IF(ISNA(MATCH(W111,'1'!$AJ$77:$AJ$114,0)),"",INDEX('1'!$AG$77:$AG$114,MATCH(W111,'1'!$AJ$77:$AJ$114,0))) -> 0 0 | Z111: =IF($Y111<>"",VLOOKUP($Y111,'1'!$AG$77:$AL$114,6,0),"") -> 00:00:00 | AA111: =IF($Y111<>"",VLOOKUP($Y111,'1'!$AG$77:$AI$114,3,0),"") -> 0 | AB111: =IF($Y111<>"",VLOOKUP($Y111,'1'!$AG$77:$AH$114,2,0),"") -> 0 | AF111: 35 | AG111: 0 0 | AH111: 0 | AI111: 0 | AJ111: =IF(AG111<>"",COUNTIF($AK$77:$AK$114,">"&AK111)+COUNTIF($AK$77:AK111,AK111),"") -> 35 | AK111: 0 | AL111: 00:00:00
A112: 36 | C112: 0 | D112: 0 | E112: 0 | W112: 36 | Y112: =IF(ISNA(MATCH(W112,'1'!$AJ$77:$AJ$114,0)),"",INDEX('1'!$AG$77:$AG$114,MATCH(W112,'1'!$AJ$77:$AJ$114,0))) -> 0 0 | Z112: =IF($Y112<>"",VLOOKUP($Y112,'1'!$AG$77:$AL$114,6,0),"") -> 00:00:00 | AA112: =IF($Y112<>"",VLOOKUP($Y112,'1'!$AG$77:$AI$114,3,0),"") -> 0 | AB112: =IF($Y112<>"",VLOOKUP($Y112,'1'!$AG$77:$AH$114,2,0),"") -> 0 | AF112: 36 | AG112: 0 0 | AH112: 0 | AI112: 0 | AJ112: =IF(AG112<>"",COUNTIF($AK$77:$AK$114,">"&AK112)+COUNTIF($AK$77:AK112,AK112),"") -> 36 | AK112: 0 | AL112: 00:00:00
A113: 37 | C113: 0 | D113: 0 | E113: 0 | W113: 37 | Y113: =IF(ISNA(MATCH(W113,'1'!$AJ$77:$AJ$114,0)),"",INDEX('1'!$AG$77:$AG$114,MATCH(W113,'1'!$AJ$77:$AJ$114,0))) -> 0 0 | Z113: =IF($Y113<>"",VLOOKUP($Y113,'1'!$AG$77:$AL$114,6,0),"") -> 00:00:00 | AA113: =IF($Y113<>"",VLOOKUP($Y113,'1'!$AG$77:$AI$114,3,0),"") -> 0 | AB113: =IF($Y113<>"",VLOOKUP($Y113,'1'!$AG$77:$AH$114,2,0),"") -> 0 | AF113: 37 | AG113: 0 0 | AH113: 0 | AI113: 0 | AJ113: =IF(AG113<>"",COUNTIF($AK$77:$AK$114,">"&AK113)+COUNTIF($AK$77:AK113,AK113),"") -> 37 | AK113: 0 | AL113: 00:00:00
A114: 38 | C114: 0 | D114: 0 | E114: 0 | W114: 38 | Y114: =IF(ISNA(MATCH(W114,'1'!$AJ$77:$AJ$114,0)),"",INDEX('1'!$AG$77:$AG$114,MATCH(W114,'1'!$AJ$77:$AJ$114,0))) -> 0 0 | Z114: =IF($Y114<>"",VLOOKUP($Y114,'1'!$AG$77:$AL$114,6,0),"") -> 00:00:00 | AA114: =IF($Y114<>"",VLOOKUP($Y114,'1'!$AG$77:$AI$114,3,0),"") -> 0 | AB114: =IF($Y114<>"",VLOOKUP($Y114,'1'!$AG$77:$AH$114,2,0),"") -> 0 | AF114: 38 | AG114: 0 0 | AH114: 0 | AI114: 0 | AJ114: =IF(AG114<>"",COUNTIF($AK$77:$AK$114,">"&AK114)+COUNTIF($AK$77:AK114,AK114),"") -> 38 | AK114: 0 | AL114: 00:00:00
L116: =COUNTIFS(L77:L114,">=10") -> 15
D117: ="المجموع : " &F117 -> المجموع : 31 | F117: =SUM(F119:F120) -> 31 | M117: ="التهنئة : "&G77 -> التهنئة : 5 | Q117: ="لا شيء : "&G80 -> لا شيء : 7 | Y117: ="المجموع : " &AA119 -> المجموع : 31 | AB117: =F117 -> 31
D119: ="البنات : "&F119 -> البنات : 14 | F119: =COUNTIFS(C77:C114,"أ") -> 14 | M119: ="التشجيع : "&G78 -> التشجيع : 2 | Q119: ="الإنذار : "&G81 -> الإنذار : 8 | Y119: =D119 -> البنات : 14 | AA119: =F117 -> 31 | AB119: =AB117 -> 31 | AD119: المعدل الفصلي أكبرمن أو يساوي 10 | AH119: =COUNTIFS(AA77:AA114,">=10") -> 15 | AI119: =AH119/AB117 -> 0.4838709677
D120: ="البنين : "&F120 -> البنين : 17 | F120: =COUNTIFS(C77:C114,"ذ") -> 17 | M120: ="لوحة شرف : "&G79 -> لوحة شرف : 1 | Q120: ="التوبيخ : "&G82 -> التوبيخ : 8 | Y120: =D120 -> البنين : 17 | AB120: =AB119 -> 31
D125: =D63 -> متوسطة مكاوي علي؛ اولاد البارودي - سيدي لخضر | R125: =IF(R63<>"",R63,"") -> 2015/2014 | Y125: =D125 -> متوسطة مكاوي علي؛ اولاد البارودي - سيدي لخضر | AI125: =IF(R125<>"",R125,"") -> 2015/2014 | AJ125: =IF(N125<>"",N125,"") -> 
AI126: =IF(M126<>"",M126,"") ->  | AJ126: =IF(N126<>"",N126,"") -> 
D127: القسم: | E127: =E65 -> س4م1 | K127: نتائج الفصل الثالث | Y127: القسم: | Z127: =E127 -> س4م1
AB128: ترتيب التلاميذ حسب معدلاتهم (الفصـــــــــــــل الثالث)
D129: الأستاذ (ة): | E129: =IF(E67<>"",E67,"") ->  | Y129: الأستاذ (ة): | Z129: =IF(E129<>"",E129,"") ->  | AI129: =AI67 -> 4
D132: =D70 -> Nom | E132: =E70 -> Prenom | F132: تاريخ الميلاد | L132: المعدل الفصلي على 20 | M132: الإجازات و العقوبات | Y132: اللقب و الإسم | Z132: تاريخ الميلاد | AA132: المعدل الفصلي على 20 | AB132: الإجازات و العقوبات
A139: 1 | C139: =C77 -> ذ | D139: =D77 -> براهامي | E139: سفيان | F139: 1997-06-01 | G139: =COUNTIFS(M139:M176,"تهنئة") -> 5 | L139: 8.5 | M139: =IF(AND(L139>=15,L139<20),"تهنئة","")&IF(AND(L139>=14,L139<15),"تشجيع","")&IF(AND(L139>=12,L139<14),"لوحة شرف","")&IF(AND(L139>=10,L139<12),"لا شيء","")&IF(AND(L139>=8,L139<10),"إنذار","")&IF(AND(L139>0,L139<8),"توبيخ","")&IF(AND(L139<>"",L139=0),"","") -> إنذار | W139: 1 | Y139: =IF(ISNA(MATCH(W139,'1'!$AJ$139:$AJ$176,0)),"",INDEX('1'!$AG$139:$AG$176,MATCH(W139,'1'!$AJ$139:$AJ$176,0))) -> خديمي عبد القادر | Z139: =IF($Y139<>"",VLOOKUP($Y139,'1'!$AG$139:$AL$176,6,0),"") -> 1999-01-03 | AA139: =IF($Y139<>"",VLOOKUP($Y139,'1'!$AG$139:$AI$176,3,0),"") -> 18.06666667 | AB139: =IF($Y139<>"",VLOOKUP($Y139,'1'!$AG$139:$AH$176,2,0),"") -> تهنئة | AF139: 1 | AG139: =D139&" "&E139 -> براهامي سفيان | AH139: =IF(M139="",0,M139) -> إنذار | AI139: =IF(L139="",0,L139) -> 8.5 | AJ139: =IF(AG139<>"",COUNTIF($AK$139:$AK$176,">"&AK139)+COUNTIF($AK$139:AK139,AK139),"") -> 21 | AK139: =IF(AI139<>"",AI139*1000,"") -> 8500 | AL139: =IF(F139="",0,F139) -> 1997-06-01
A140: 2 | C140: ذ | D140: برودي | E140: فيصل | F140: 2000-02-04 | G140: =COUNTIFS(M139:M176,"تشجيع") -> 2 | L140: 15.76666667 | M140: =IF(AND(L140>=15,L140<20),"تهنئة","")&IF(AND(L140>=14,L140<15),"تشجيع","")&IF(AND(L140>=12,L140<14),"لوحة شرف","")&IF(AND(L140>=10,L140<12),"لا شيء","")&IF(AND(L140>=8,L140<10),"إنذار","")&IF(AND(L140>0,L140<8),"توبيخ","")&IF(AND(L140<>"",L140=0),"","") -> تهنئة | W140: 2 | Y140: =IF(ISNA(MATCH(W140,'1'!$AJ$139:$AJ$176,0)),"",INDEX('1'!$AG$139:$AG$176,MATCH(W140,'1'!$AJ$139:$AJ$176,0))) -> بوسعادة سمراء | Z140: =IF($Y140<>"",VLOOKUP($Y140,'1'!$AG$139:$AL$176,6,0),"") -> 1999-12-10 | AA140: =IF($Y140<>"",VLOOKUP($Y140,'1'!$AG$139:$AI$176,3,0),"") -> 17.76666667 | AB140: =IF($Y140<>"",VLOOKUP($Y140,'1'!$AG$77:$AH$114,2,0),"") -> تهنئة | AF140: 2 | AG140: برودي فيصل | AH140: =IF(M140="",0,M140) -> تهنئة | AI140: 15.76666667 | AJ140: =IF(AG140<>"",COUNTIF($AK$139:$AK$176,">"&AK140)+COUNTIF($AK$139:AK140,AK140),"") -> 4 | AK140: =IF(AI140<>"",AI140*1000,"") -> 15766.66667 | AL140: 2000-02-04
A141: 3 | C141: ذ | D141: بلعربي | E141: عبد العزيز | F141: 1999-04-16 | G141: =COUNTIFS(M139:M176,"لوحة شرف") -> 1 | L141: 9.466666667 | M141: إنذار | W141: 3 | Y141: =IF(ISNA(MATCH(W141,'1'!$AJ$139:$AJ$176,0)),"",INDEX('1'!$AG$139:$AG$176,MATCH(W141,'1'!$AJ$139:$AJ$176,0))) -> مكاوي الميلود | Z141: =IF($Y141<>"",VLOOKUP($Y141,'1'!$AG$139:$AL$176,6,0),"") -> 1997-07-08 | AA141: =IF($Y141<>"",VLOOKUP($Y141,'1'!$AG$139:$AI$176,3,0),"") -> 17.1 | AB141: =IF($Y141<>"",VLOOKUP($Y141,'1'!$AG$77:$AH$114,2,0),"") -> تهنئة | AF141: 3 | AG141: بلعربي عبد العزيز | AH141: إنذار | AI141: 9.466666667 | AJ141: =IF(AG141<>"",COUNTIF($AK$139:$AK$176,">"&AK141)+COUNTIF($AK$139:AK141,AK141),"") -> 18 | AK141: 9466.666667 | AL141: 1999-04-16
A142: 4 | C142: أ | D142: بوخاتم | E142: فوزية | F142: 1999-01-13 | G142: =COUNTIFS(M139:M176,"لا شيء") -> 7 | L142: 14.13333333 | M142: تشجيع | W142: 4 | Y142: =IF(ISNA(MATCH(W142,'1'!$AJ$139:$AJ$176,0)),"",INDEX('1'!$AG$139:$AG$176,MATCH(W142,'1'!$AJ$139:$AJ$176,0))) -> برودي فيصل | Z142: =IF($Y142<>"",VLOOKUP($Y142,'1'!$AG$139:$AL$176,6,0),"") -> 2000-02-04 | AA142: =IF($Y142<>"",VLOOKUP($Y142,'1'!$AG$139:$AI$176,3,0),"") -> 15.76666667 | AB142: =IF($Y142<>"",VLOOKUP($Y142,'1'!$AG$77:$AH$114,2,0),"") -> تهنئة | AF142: 4 | AG142: بوخاتم فوزية | AH142: تشجيع | AI142: 14.13333333 | AJ142: =IF(AG142<>"",COUNTIF($AK$139:$AK$176,">"&AK142)+COUNTIF($AK$139:AK142,AK142),"") -> 6 | AK142: 14133.33333 | AL142: 1999-01-13
A143: 5 | C143: أ | D143: بوسعادة | E143: سمراء | F143: 1999-12-10 | G143: =COUNTIFS(M139:M176,"إنذار") -> 8 | L143: 17.76666667 | M143: تهنئة | W143: 5 | Y143: =IF(ISNA(MATCH(W143,'1'!$AJ$139:$AJ$176,0)),"",INDEX('1'!$AG$139:$AG$176,MATCH(W143,'1'!$AJ$139:$AJ$176,0))) -> موزاوي منال | Z143: =IF($Y143<>"",VLOOKUP($Y143,'1'!$AG$139:$AL$176,6,0),"") -> 2000-02-13 | AA143: =IF($Y143<>"",VLOOKUP($Y143,'1'!$AG$139:$AI$176,3,0),"") -> 15.3 | AB143: =IF($Y143<>"",VLOOKUP($Y143,'1'!$AG$77:$AH$114,2,0),"") -> تهنئة | AF143: 5 | AG143: بوسعادة سمراء | AH143: تهنئة | AI143: 17.76666667 | AJ143: =IF(AG143<>"",COUNTIF($AK$139:$AK$176,">"&AK143)+COUNTIF($AK$139:AK143,AK143),"") -> 2 | AK143: 17766.66667 | AL143: 1999-12-10
A144: 6 | C144: أ | D144: بوكروش | E144: حليمة | F144: 1998-02-15 | G144: =COUNTIFS(M139:M176,"توبيخ") -> 8 | L144: 13.73333333 | M144: لوحة شرف | W144: 6 | Y144: =IF(ISNA(MATCH(W144,'1'!$AJ$139:$AJ$176,0)),"",INDEX('1'!$AG$139:$AG$176,MATCH(W144,'1'!$AJ$139:$AJ$176,0))) -> بوخاتم فوزية | Z144: =IF($Y144<>"",VLOOKUP($Y144,'1'!$AG$139:$AL$176,6,0),"") -> 1999-01-13 | AA144: =IF($Y144<>"",VLOOKUP($Y144,'1'!$AG$139:$AI$176,3,0),"") -> 14.13333333 | AB144: =IF($Y144<>"",VLOOKUP($Y144,'1'!$AG$77:$AH$114,2,0),"") -> تشجيع | AF144: 6 | AG144: بوكروش حليمة | AH144: لوحة شرف | AI144: 13.73333333 | AJ144: =IF(AG144<>"",COUNTIF($AK$139:$AK$176,">"&AK144)+COUNTIF($AK$139:AK144,AK144),"") -> 8 | AK144: 13733.33333 | AL144: 1998-02-15
A145: 7 | C145: ذ | D145: بوكروش | E145: عبد القادر | F145: 1995-01-27 | L145: 8.033333333 | M145: إنذار | W145: 7 | Y145: =IF(ISNA(MATCH(W145,'1'!$AJ$139:$AJ$176,0)),"",INDEX('1'!$AG$139:$AG$176,MATCH(W145,'1'!$AJ$139:$AJ$176,0))) -> دونان إكرام | Z145: =IF($Y145<>"",VLOOKUP($Y145,'1'!$AG$139:$AL$176,6,0),"") -> 1996-11-20 | AA145: =IF($Y145<>"",VLOOKUP($Y145,'1'!$AG$139:$AI$176,3,0),"") -> 14 | AB145: =IF($Y145<>"",VLOOKUP($Y145,'1'!$AG$77:$AH$114,2,0),"") -> تشجيع | AF145: 7 | AG145: بوكروش عبد القادر | AH145: إنذار | AI145: 8.033333333 | AJ145: =IF(AG145<>"",COUNTIF($AK$139:$AK$176,">"&AK145)+COUNTIF($AK$139:AK145,AK145),"") -> 23 | AK145: 8033.333333 | AL145: 1995-01-27
A146: 8 | C146: أ | D146: بومهدي | E146: شهرزاد خيرة | F146: 1999-02-21 | L146: 9.833333333 | M146: إنذار | W146: 8 | Y146: =IF(ISNA(MATCH(W146,'1'!$AJ$139:$AJ$176,0)),"",INDEX('1'!$AG$139:$AG$176,MATCH(W146,'1'!$AJ$139:$AJ$176,0))) -> بوكروش حليمة | Z146: =IF($Y146<>"",VLOOKUP($Y146,'1'!$AG$139:$AL$176,6,0),"") -> 1998-02-15 | AA146: =IF($Y146<>"",VLOOKUP($Y146,'1'!$AG$139:$AI$176,3,0),"") -> 13.73333333 | AB146: =IF($Y146<>"",VLOOKUP($Y146,'1'!$AG$77:$AH$114,2,0),"") -> لوحة شرف | AF146: 8 | AG146: بومهدي شهرزاد خيرة | AH146: إنذار | AI146: 9.833333333 | AJ146: =IF(AG146<>"",COUNTIF($AK$139:$AK$176,">"&AK146)+COUNTIF($AK$139:AK146,AK146),"") -> 17 | AK146: 9833.333333 | AL146: 1999-02-21
A147: 9 | C147: ذ | D147: بومهدي | E147: لخضر | F147: 1995-11-01 | L147: 10.63333333 | M147: لا شيء | W147: 9 | Y147: =IF(ISNA(MATCH(W147,'1'!$AJ$139:$AJ$176,0)),"",INDEX('1'!$AG$139:$AG$176,MATCH(W147,'1'!$AJ$139:$AJ$176,0))) -> شاشو لخضر | Z147: =IF($Y147<>"",VLOOKUP($Y147,'1'!$AG$139:$AL$176,6,0),"") -> 1999-12-22 | AA147: =IF($Y147<>"",VLOOKUP($Y147,'1'!$AG$139:$AI$176,3,0),"") -> 10.83333333 | AB147: =IF($Y147<>"",VLOOKUP($Y147,'1'!$AG$77:$AH$114,2,0),"") -> لا شيء | AF147: 9 | AG147: بومهدي لخضر | AH147: لا شيء | AI147: 10.63333333 | AJ147: =IF(AG147<>"",COUNTIF($AK$139:$AK$176,">"&AK147)+COUNTIF($AK$139:AK147,AK147),"") -> 10 | AK147: 10633.33333 | AL147: 1995-11-01
A148: 10 | C148: ذ | D148: خديمي | E148: عبد القادر | F148: 1999-01-03 | L148: 18.06666667 | M148: تهنئة | W148: 10 | Y148: =IF(ISNA(MATCH(W148,'1'!$AJ$139:$AJ$176,0)),"",INDEX('1'!$AG$139:$AG$176,MATCH(W148,'1'!$AJ$139:$AJ$176,0))) -> بومهدي لخضر | Z148: =IF($Y148<>"",VLOOKUP($Y148,'1'!$AG$139:$AL$176,6,0),"") -> 1995-11-01 | AA148: =IF($Y148<>"",VLOOKUP($Y148,'1'!$AG$139:$AI$176,3,0),"") -> 10.63333333 | AB148: =IF($Y148<>"",VLOOKUP($Y148,'1'!$AG$77:$AH$114,2,0),"") -> لا شيء | AF148: 10 | AG148: خديمي عبد القادر | AH148: تهنئة | AI148: 18.06666667 | AJ148: =IF(AG148<>"",COUNTIF($AK$139:$AK$176,">"&AK148)+COUNTIF($AK$139:AK148,AK148),"") -> 1 | AK148: 18066.66667 | AL148: 1999-01-03
A149: 11 | C149: ذ | D149: درموز | E149: هواري | F149: 1994-08-26 | L149: 9.9 | M149: إنذار | W149: 11 | Y149: =IF(ISNA(MATCH(W149,'1'!$AJ$139:$AJ$176,0)),"",INDEX('1'!$AG$139:$AG$176,MATCH(W149,'1'!$AJ$139:$AJ$176,0))) -> قندوز العيد | Z149: =IF($Y149<>"",VLOOKUP($Y149,'1'!$AG$139:$AL$176,6,0),"") -> 1995-05-17 | AA149: =IF($Y149<>"",VLOOKUP($Y149,'1'!$AG$139:$AI$176,3,0),"") -> 10.2 | AB149: =IF($Y149<>"",VLOOKUP($Y149,'1'!$AG$77:$AH$114,2,0),"") -> لا شيء | AF149: 11 | AG149: درموز هواري | AH149: إنذار | AI149: 9.9 | AJ149: =IF(AG149<>"",COUNTIF($AK$139:$AK$176,">"&AK149)+COUNTIF($AK$139:AK149,AK149),"") -> 16 | AK149: 9900 | AL149: 1994-08-26
A150: 12 | C150: ذ | D150: دوان | E150: سليمان | F150: 1997-04-07 | L150: 8.666666667 | M150: إنذار | W150: 12 | Y150: =IF(ISNA(MATCH(W150,'1'!$AJ$139:$AJ$176,0)),"",INDEX('1'!$AG$139:$AG$176,MATCH(W150,'1'!$AJ$139:$AJ$176,0))) -> مصطفاوي محمد | Z150: =IF($Y150<>"",VLOOKUP($Y150,'1'!$AG$139:$AL$176,6,0),"") -> 1997-05-07 | AA150: =IF($Y150<>"",VLOOKUP($Y150,'1'!$AG$139:$AI$176,3,0),"") -> 10.2 | AB150: =IF($Y150<>"",VLOOKUP($Y150,'1'!$AG$77:$AH$114,2,0),"") -> لا شيء | AF150: 12 | AG150: دوان سليمان | AH150: إنذار | AI150: 8.666666667 | AJ150: =IF(AG150<>"",COUNTIF($AK$139:$AK$176,">"&AK150)+COUNTIF($AK$139:AK150,AK150),"") -> 20 | AK150: 8666.666667 | AL150: 1997-04-07
A151: 13 | C151: أ | D151: دونان | E151: إكرام | F151: 1996-11-20 | L151: 14 | M151: تشجيع | W151: 13 | Y151: =IF(ISNA(MATCH(W151,'1'!$AJ$139:$AJ$176,0)),"",INDEX('1'!$AG$139:$AG$176,MATCH(W151,'1'!$AJ$139:$AJ$176,0))) -> سالي كمال | Z151: =IF($Y151<>"",VLOOKUP($Y151,'1'!$AG$139:$AL$176,6,0),"") -> 1999-09-03 | AA151: =IF($Y151<>"",VLOOKUP($Y151,'1'!$AG$139:$AI$176,3,0),"") -> 10.16666667 | AB151: =IF($Y151<>"",VLOOKUP($Y151,'1'!$AG$77:$AH$114,2,0),"") -> لا شيء | AF151: 13 | AG151: دونان إكرام | AH151: تشجيع | AI151: 14 | AJ151: =IF(AG151<>"",COUNTIF($AK$139:$AK$176,">"&AK151)+COUNTIF($AK$139:AK151,AK151),"") -> 7 | AK151: 14000 | AL151: 1996-11-20
A152: 14 | C152: ذ | D152: رحو | E152: حمزة | F152: 1995-10-04 | L152: 6.766666667 | M152: توبيخ | W152: 14 | Y152: =IF(ISNA(MATCH(W152,'1'!$AJ$139:$AJ$176,0)),"",INDEX('1'!$AG$139:$AG$176,MATCH(W152,'1'!$AJ$139:$AJ$176,0))) -> شواط سهام | Z152: =IF($Y152<>"",VLOOKUP($Y152,'1'!$AG$139:$AL$176,6,0),"") -> 1998-11-01 | AA152: =IF($Y152<>"",VLOOKUP($Y152,'1'!$AG$139:$AI$176,3,0),"") -> 10.1 | AB152: =IF($Y152<>"",VLOOKUP($Y152,'1'!$AG$77:$AH$114,2,0),"") -> لا شيء | AF152: 14 | AG152: رحو حمزة | AH152: توبيخ | AI152: 6.766666667 | AJ152: =IF(AG152<>"",COUNTIF($AK$139:$AK$176,">"&AK152)+COUNTIF($AK$139:AK152,AK152),"") -> 27 | AK152: 6766.666667 | AL152: 1995-10-04
A153: 15 | C153: أ | D153: رفيف | E153: نجاة | F153: 1997-01-01 | L153: 7.733333333 | M153: توبيخ | W153: 15 | Y153: =IF(ISNA(MATCH(W153,'1'!$AJ$139:$AJ$176,0)),"",INDEX('1'!$AG$139:$AG$176,MATCH(W153,'1'!$AJ$139:$AJ$176,0))) -> شاشو ميلود | Z153: =IF($Y153<>"",VLOOKUP($Y153,'1'!$AG$139:$AL$176,6,0),"") -> 1999-02-28 | AA153: =IF($Y153<>"",VLOOKUP($Y153,'1'!$AG$139:$AI$176,3,0),"") -> 10 | AB153: =IF($Y153<>"",VLOOKUP($Y153,'1'!$AG$77:$AH$114,2,0),"") -> لا شيء | AF153: 15 | AG153: رفيف نجاة | AH153: توبيخ | AI153: 7.733333333 | AJ153: =IF(AG153<>"",COUNTIF($AK$139:$AK$176,">"&AK153)+COUNTIF($AK$139:AK153,AK153),"") -> 25 | AK153: 7733.333333 | AL153: 1997-01-01
A154: 16 | C154: ذ | D154: سالي | E154: كمال | F154: 1999-09-03 | L154: 10.16666667 | M154: لا شيء | W154: 16 | Y154: =IF(ISNA(MATCH(W154,'1'!$AJ$139:$AJ$176,0)),"",INDEX('1'!$AG$139:$AG$176,MATCH(W154,'1'!$AJ$139:$AJ$176,0))) -> درموز هواري | Z154: =IF($Y154<>"",VLOOKUP($Y154,'1'!$AG$139:$AL$176,6,0),"") -> 1994-08-26 | AA154: =IF($Y154<>"",VLOOKUP($Y154,'1'!$AG$139:$AI$176,3,0),"") -> 9.9 | AB154: =IF($Y154<>"",VLOOKUP($Y154,'1'!$AG$77:$AH$114,2,0),"") -> إنذار | AF154: 16 | AG154: سالي كمال | AH154: لا شيء | AI154: 10.16666667 | AJ154: =IF(AG154<>"",COUNTIF($AK$139:$AK$176,">"&AK154)+COUNTIF($AK$139:AK154,AK154),"") -> 13 | AK154: 10166.66667 | AL154: 1999-09-03
A155: 17 | C155: =C93 -> أ | D155: سعادي | E155: كميلة | F155: 1998-11-12 | L155: 6.666666667 | M155: توبيخ | W155: 17 | Y155: =IF(ISNA(MATCH(W155,'1'!$AJ$139:$AJ$176,0)),"",INDEX('1'!$AG$139:$AG$176,MATCH(W155,'1'!$AJ$139:$AJ$176,0))) -> بومهدي شهرزاد خيرة | Z155: =IF($Y155<>"",VLOOKUP($Y155,'1'!$AG$139:$AL$176,6,0),"") -> 1999-02-21 | AA155: =IF($Y155<>"",VLOOKUP($Y155,'1'!$AG$139:$AI$176,3,0),"") -> 9.833333333 | AB155: =IF($Y155<>"",VLOOKUP($Y155,'1'!$AG$77:$AH$114,2,0),"") -> إنذار | AF155: 17 | AG155: سعادي كميلة | AH155: توبيخ | AI155: 6.666666667 | AJ155: =IF(AG155<>"",COUNTIF($AK$139:$AK$176,">"&AK155)+COUNTIF($AK$139:AK155,AK155),"") -> 28 | AK155: 6666.666667 | AL155: 1998-11-12
A156: 18 | C156: ذ | D156: شاشو | E156: لخضر | F156: 1999-12-22 | L156: 10.83333333 | M156: لا شيء | W156: 18 | Y156: =IF(ISNA(MATCH(W156,'1'!$AJ$139:$AJ$176,0)),"",INDEX('1'!$AG$139:$AG$176,MATCH(W156,'1'!$AJ$139:$AJ$176,0))) -> بلعربي عبد العزيز | Z156: =IF($Y156<>"",VLOOKUP($Y156,'1'!$AG$139:$AL$176,6,0),"") -> 1999-04-16 | AA156: =IF($Y156<>"",VLOOKUP($Y156,'1'!$AG$139:$AI$176,3,0),"") -> 9.466666667 | AB156: =IF($Y156<>"",VLOOKUP($Y156,'1'!$AG$77:$AH$114,2,0),"") -> إنذار | AF156: 18 | AG156: شاشو لخضر | AH156: لا شيء | AI156: 10.83333333 | AJ156: =IF(AG156<>"",COUNTIF($AK$139:$AK$176,">"&AK156)+COUNTIF($AK$139:AK156,AK156),"") -> 9 | AK156: 10833.33333 | AL156: 1999-12-22
A157: 19 | C157: ذ | D157: شاشو | E157: ميلود | F157: 1999-02-28 | L157: 10 | M157: لا شيء | W157: 19 | Y157: =IF(ISNA(MATCH(W157,'1'!$AJ$139:$AJ$176,0)),"",INDEX('1'!$AG$139:$AG$176,MATCH(W157,'1'!$AJ$139:$AJ$176,0))) -> مكاوي فتحي | Z157: =IF($Y157<>"",VLOOKUP($Y157,'1'!$AG$139:$AL$176,6,0),"") -> 1996-09-28 | AA157: =IF($Y157<>"",VLOOKUP($Y157,'1'!$AG$139:$AI$176,3,0),"") -> 8.9 | AB157: =IF($Y157<>"",VLOOKUP($Y157,'1'!$AG$77:$AH$114,2,0),"") -> إنذار | AF157: 19 | AG157: شاشو ميلود | AH157: لا شيء | AI157: 10 | AJ157: =IF(AG157<>"",COUNTIF($AK$139:$AK$176,">"&AK157)+COUNTIF($AK$139:AK157,AK157),"") -> 15 | AK157: 10000 | AL157: 1999-02-28
A158: 20 | C158: أ | D158: شواط | E158: سهام | F158: 1998-11-01 | L158: 10.1 | M158: لا شيء | W158: 20 | Y158: =IF(ISNA(MATCH(W158,'1'!$AJ$139:$AJ$176,0)),"",INDEX('1'!$AG$139:$AG$176,MATCH(W158,'1'!$AJ$139:$AJ$176,0))) -> دوان سليمان | Z158: =IF($Y158<>"",VLOOKUP($Y158,'1'!$AG$139:$AL$176,6,0),"") -> 1997-04-07 | AA158: =IF($Y158<>"",VLOOKUP($Y158,'1'!$AG$139:$AI$176,3,0),"") -> 8.666666667 | AB158: =IF($Y158<>"",VLOOKUP($Y158,'1'!$AG$77:$AH$114,2,0),"") -> إنذار | AF158: 20 | AG158: شواط سهام | AH158: لا شيء | AI158: 10.1 | AJ158: =IF(AG158<>"",COUNTIF($AK$139:$AK$176,">"&AK158)+COUNTIF($AK$139:AK158,AK158),"") -> 14 | AK158: 10100 | AL158: 1998-11-01
A159: 21 | C159: أ | D159: فتحي | E159: حفصة | F159: 1999-04-18 | L159: 8.266666667 | M159: إنذار | W159: 21 | Y159: =IF(ISNA(MATCH(W159,'1'!$AJ$139:$AJ$176,0)),"",INDEX('1'!$AG$139:$AG$176,MATCH(W159,'1'!$AJ$139:$AJ$176,0))) -> براهامي سفيان | Z159: =IF($Y159<>"",VLOOKUP($Y159,'1'!$AG$139:$AL$176,6,0),"") -> 1997-06-01 | AA159: =IF($Y159<>"",VLOOKUP($Y159,'1'!$AG$139:$AI$176,3,0),"") -> 8.5 | AB159: =IF($Y159<>"",VLOOKUP($Y159,'1'!$AG$77:$AH$114,2,0),"") -> إنذار | AF159: 21 | AG159: فتحي حفصة | AH159: إنذار | AI159: 8.266666667 | AJ159: =IF(AG159<>"",COUNTIF($AK$139:$AK$176,">"&AK159)+COUNTIF($AK$139:AK159,AK159),"") -> 22 | AK159: 8266.666667 | AL159: 1999-04-18
A160: 22 | C160: ذ | D160: فتحي | E160: فيصل | F160: 1996-07-14 | L160: 6.133333333 | M160: توبيخ | W160: 22 | Y160: =IF(ISNA(MATCH(W160,'1'!$AJ$139:$AJ$176,0)),"",INDEX('1'!$AG$139:$AG$176,MATCH(W160,'1'!$AJ$139:$AJ$176,0))) -> فتحي حفصة | Z160: =IF($Y160<>"",VLOOKUP($Y160,'1'!$AG$139:$AL$176,6,0),"") -> 1999-04-18 | AA160: =IF($Y160<>"",VLOOKUP($Y160,'1'!$AG$139:$AI$176,3,0),"") -> 8.266666667 | AB160: =IF($Y160<>"",VLOOKUP($Y160,'1'!$AG$77:$AH$114,2,0),"") -> إنذار | AF160: 22 | AG160: فتحي فيصل | AH160: توبيخ | AI160: 6.133333333 | AJ160: =IF(AG160<>"",COUNTIF($AK$139:$AK$176,">"&AK160)+COUNTIF($AK$139:AK160,AK160),"") -> 31 | AK160: 6133.333333 | AL160: 1996-07-14
A161: 23 | C161: أ | D161: قاضي | E161: فاطمة | F161: 1997-03-01 | L161: 6.6 | M161: توبيخ | W161: 23 | Y161: =IF(ISNA(MATCH(W161,'1'!$AJ$139:$AJ$176,0)),"",INDEX('1'!$AG$139:$AG$176,MATCH(W161,'1'!$AJ$139:$AJ$176,0))) -> بوكروش عبد القادر | Z161: =IF($Y161<>"",VLOOKUP($Y161,'1'!$AG$139:$AL$176,6,0),"") -> 1995-01-27 | AA161: =IF($Y161<>"",VLOOKUP($Y161,'1'!$AG$139:$AI$176,3,0),"") -> 8.033333333 | AB161: =IF($Y161<>"",VLOOKUP($Y161,'1'!$AG$77:$AH$114,2,0),"") -> إنذار | AF161: 23 | AG161: قاضي فاطمة | AH161: توبيخ | AI161: 6.6 | AJ161: =IF(AG161<>"",COUNTIF($AK$139:$AK$176,">"&AK161)+COUNTIF($AK$139:AK161,AK161),"") -> 29 | AK161: 6600 | AL161: 1997-03-01
A162: 24 | C162: ذ | D162: قندوز | E162: العيد | F162: 1995-05-17 | L162: 10.2 | M162: لا شيء | W162: 24 | Y162: =IF(ISNA(MATCH(W162,'1'!$AJ$139:$AJ$176,0)),"",INDEX('1'!$AG$139:$AG$176,MATCH(W162,'1'!$AJ$139:$AJ$176,0))) -> مكاوي نجمة | Z162: =IF($Y162<>"",VLOOKUP($Y162,'1'!$AG$139:$AL$176,6,0),"") -> 1997-06-18 | AA162: =IF($Y162<>"",VLOOKUP($Y162,'1'!$AG$139:$AI$176,3,0),"") -> 7.933333333 | AB162: =IF($Y162<>"",VLOOKUP($Y162,'1'!$AG$77:$AH$114,2,0),"") -> توبيخ | AF162: 24 | AG162: قندوز العيد | AH162: لا شيء | AI162: 10.2 | AJ162: =IF(AG162<>"",COUNTIF($AK$139:$AK$176,">"&AK162)+COUNTIF($AK$139:AK162,AK162),"") -> 11 | AK162: 10200 | AL162: 1995-05-17
A163: 25 | C163: أ | D163: قندوز | E163: كحلة | F163: 1997-08-09 | L163: 7.233333333 | M163: توبيخ | W163: 25 | Y163: =IF(ISNA(MATCH(W163,'1'!$AJ$139:$AJ$176,0)),"",INDEX('1'!$AG$139:$AG$176,MATCH(W163,'1'!$AJ$139:$AJ$176,0))) -> رفيف نجاة | Z163: =IF($Y163<>"",VLOOKUP($Y163,'1'!$AG$139:$AL$176,6,0),"") -> 1997-01-01 | AA163: =IF($Y163<>"",VLOOKUP($Y163,'1'!$AG$139:$AI$176,3,0),"") -> 7.733333333 | AB163: =IF($Y163<>"",VLOOKUP($Y163,'1'!$AG$77:$AH$114,2,0),"") -> توبيخ | AF163: 25 | AG163: قندوز كحلة | AH163: توبيخ | AI163: 7.233333333 | AJ163: =IF(AG163<>"",COUNTIF($AK$139:$AK$176,">"&AK163)+COUNTIF($AK$139:AK163,AK163),"") -> 26 | AK163: 7233.333333 | AL163: 1997-08-09
A164: 26 | C164: أ | D164: كوشة | E164: إكرام | F164: 1999-12-06 | L164: 6.266666667 | M164: توبيخ | W164: 26 | Y164: =IF(ISNA(MATCH(W164,'1'!$AJ$139:$AJ$176,0)),"",INDEX('1'!$AG$139:$AG$176,MATCH(W164,'1'!$AJ$139:$AJ$176,0))) -> قندوز كحلة | Z164: =IF($Y164<>"",VLOOKUP($Y164,'1'!$AG$139:$AL$176,6,0),"") -> 1997-08-09 | AA164: =IF($Y164<>"",VLOOKUP($Y164,'1'!$AG$139:$AI$176,3,0),"") -> 7.233333333 | AB164: =IF($Y164<>"",VLOOKUP($Y164,'1'!$AG$77:$AH$114,2,0),"") -> توبيخ | AF164: 26 | AG164: كوشة إكرام | AH164: توبيخ | AI164: 6.266666667 | AJ164: =IF(AG164<>"",COUNTIF($AK$139:$AK$176,">"&AK164)+COUNTIF($AK$139:AK164,AK164),"") -> 30 | AK164: 6266.666667 | AL164: 1999-12-06
A165: 27 | C165: ذ | D165: مصطفاوي | E165: محمد | F165: 1997-05-07 | L165: 10.2 | M165: لا شيء | W165: 27 | Y165: =IF(ISNA(MATCH(W165,'1'!$AJ$139:$AJ$176,0)),"",INDEX('1'!$AG$139:$AG$176,MATCH(W165,'1'!$AJ$139:$AJ$176,0))) -> رحو حمزة | Z165: =IF($Y165<>"",VLOOKUP($Y165,'1'!$AG$139:$AL$176,6,0),"") -> 1995-10-04 | AA165: =IF($Y165<>"",VLOOKUP($Y165,'1'!$AG$139:$AI$176,3,0),"") -> 6.766666667 | AB165: =IF($Y165<>"",VLOOKUP($Y165,'1'!$AG$77:$AH$114,2,0),"") -> توبيخ | AF165: 27 | AG165: مصطفاوي محمد | AH165: لا شيء | AI165: 10.2 | AJ165: =IF(AG165<>"",COUNTIF($AK$139:$AK$176,">"&AK165)+COUNTIF($AK$139:AK165,AK165),"") -> 12 | AK165: 10200 | AL165: 1997-05-07
A166: 28 | C166: ذ | D166: مكاوي | E166: الميلود | F166: 1997-07-08 | L166: 17.1 | M166: تهنئة | W166: 28 | Y166: =IF(ISNA(MATCH(W166,'1'!$AJ$139:$AJ$176,0)),"",INDEX('1'!$AG$139:$AG$176,MATCH(W166,'1'!$AJ$139:$AJ$176,0))) -> سعادي كميلة | Z166: =IF($Y166<>"",VLOOKUP($Y166,'1'!$AG$139:$AL$176,6,0),"") -> 1998-11-12 | AA166: =IF($Y166<>"",VLOOKUP($Y166,'1'!$AG$139:$AI$176,3,0),"") -> 6.666666667 | AB166: =IF($Y166<>"",VLOOKUP($Y166,'1'!$AG$77:$AH$114,2,0),"") -> توبيخ | AF166: 28 | AG166: مكاوي الميلود | AH166: تهنئة | AI166: 17.1 | AJ166: =IF(AG166<>"",COUNTIF($AK$139:$AK$176,">"&AK166)+COUNTIF($AK$139:AK166,AK166),"") -> 3 | AK166: 17100 | AL166: 1997-07-08
A167: 29 | C167: ذ | D167: مكاوي | E167: فتحي | F167: 1996-09-28 | L167: 8.9 | M167: إنذار | W167: 29 | Y167: =IF(ISNA(MATCH(W167,'1'!$AJ$139:$AJ$176,0)),"",INDEX('1'!$AG$139:$AG$176,MATCH(W167,'1'!$AJ$139:$AJ$176,0))) -> قاضي فاطمة | Z167: =IF($Y167<>"",VLOOKUP($Y167,'1'!$AG$139:$AL$176,6,0),"") -> 1997-03-01 | AA167: =IF($Y167<>"",VLOOKUP($Y167,'1'!$AG$139:$AI$176,3,0),"") -> 6.6 | AB167: =IF($Y167<>"",VLOOKUP($Y167,'1'!$AG$77:$AH$114,2,0),"") -> توبيخ | AF167: 29 | AG167: مكاوي فتحي | AH167: إنذار | AI167: 8.9 | AJ167: =IF(AG167<>"",COUNTIF($AK$139:$AK$176,">"&AK167)+COUNTIF($AK$139:AK167,AK167),"") -> 19 | AK167: 8900 | AL167: 1996-09-28
A168: 30 | C168: أ | D168: مكاوي | E168: نجمة | F168: 1997-06-18 | L168: 7.933333333 | M168: توبيخ | W168: 30 | Y168: =IF(ISNA(MATCH(W168,'1'!$AJ$139:$AJ$176,0)),"",INDEX('1'!$AG$139:$AG$176,MATCH(W168,'1'!$AJ$139:$AJ$176,0))) -> كوشة إكرام | Z168: =IF($Y168<>"",VLOOKUP($Y168,'1'!$AG$139:$AL$176,6,0),"") -> 1999-12-06 | AA168: =IF($Y168<>"",VLOOKUP($Y168,'1'!$AG$139:$AI$176,3,0),"") -> 6.266666667 | AB168: =IF($Y168<>"",VLOOKUP($Y168,'1'!$AG$77:$AH$114,2,0),"") -> توبيخ | AF168: 30 | AG168: مكاوي نجمة | AH168: توبيخ | AI168: 7.933333333 | AJ168: =IF(AG168<>"",COUNTIF($AK$139:$AK$176,">"&AK168)+COUNTIF($AK$139:AK168,AK168),"") -> 24 | AK168: 7933.333333 | AL168: 1997-06-18
A169: 31 | C169: أ | D169: موزاوي | E169: منال | F169: 2000-02-13 | L169: 15.3 | M169: تهنئة | W169: 31 | Y169: =IF(ISNA(MATCH(W169,'1'!$AJ$139:$AJ$176,0)),"",INDEX('1'!$AG$139:$AG$176,MATCH(W169,'1'!$AJ$139:$AJ$176,0))) -> فتحي فيصل | Z169: =IF($Y169<>"",VLOOKUP($Y169,'1'!$AG$139:$AL$176,6,0),"") -> 1996-07-14 | AA169: =IF($Y169<>"",VLOOKUP($Y169,'1'!$AG$139:$AI$176,3,0),"") -> 6.133333333 | AB169: =IF($Y169<>"",VLOOKUP($Y169,'1'!$AG$77:$AH$114,2,0),"") -> توبيخ | AF169: 31 | AG169: موزاوي منال | AH169: تهنئة | AI169: 15.3 | AJ169: =IF(AG169<>"",COUNTIF($AK$139:$AK$176,">"&AK169)+COUNTIF($AK$139:AK169,AK169),"") -> 5 | AK169: 15300 | AL169: 2000-02-13
A170: 32 | C170: 0 | D170: 0 | E170: 0 | W170: 32 | Y170: =IF(ISNA(MATCH(W170,'1'!$AJ$139:$AJ$176,0)),"",INDEX('1'!$AG$139:$AG$176,MATCH(W170,'1'!$AJ$139:$AJ$176,0))) -> 0 0 | Z170: =IF($Y170<>"",VLOOKUP($Y170,'1'!$AG$139:$AL$176,6,0),"") -> 00:00:00 | AA170: =IF($Y170<>"",VLOOKUP($Y170,'1'!$AG$139:$AI$176,3,0),"") -> 0 | AB170: =IF($Y170<>"",VLOOKUP($Y170,'1'!$AG$77:$AH$114,2,0),"") -> 0 | AF170: 32 | AG170: 0 0 | AH170: 0 | AI170: 0 | AJ170: =IF(AG170<>"",COUNTIF($AK$139:$AK$176,">"&AK170)+COUNTIF($AK$139:AK170,AK170),"") -> 32 | AK170: 0 | AL170: 00:00:00
A171: 33 | C171: =C109 -> 0 | D171: 0 | E171: 0 | W171: 33 | Y171: =IF(ISNA(MATCH(W171,'1'!$AJ$139:$AJ$176,0)),"",INDEX('1'!$AG$139:$AG$176,MATCH(W171,'1'!$AJ$139:$AJ$176,0))) -> 0 0 | Z171: =IF($Y171<>"",VLOOKUP($Y171,'1'!$AG$139:$AL$176,6,0),"") -> 00:00:00 | AA171: =IF($Y171<>"",VLOOKUP($Y171,'1'!$AG$139:$AI$176,3,0),"") -> 0 | AB171: =IF($Y171<>"",VLOOKUP($Y171,'1'!$AG$77:$AH$114,2,0),"") -> 0 | AF171: 33 | AG171: 0 0 | AH171: 0 | AI171: 0 | AJ171: =IF(AG171<>"",COUNTIF($AK$139:$AK$176,">"&AK171)+COUNTIF($AK$139:AK171,AK171),"") -> 33 | AK171: 0 | AL171: 00:00:00
A172: 34 | C172: 0 | D172: 0 | E172: 0 | W172: 34 | Y172: =IF(ISNA(MATCH(W172,'1'!$AJ$139:$AJ$176,0)),"",INDEX('1'!$AG$139:$AG$176,MATCH(W172,'1'!$AJ$139:$AJ$176,0))) -> 0 0 | Z172: =IF($Y172<>"",VLOOKUP($Y172,'1'!$AG$139:$AL$176,6,0),"") -> 00:00:00 | AA172: =IF($Y172<>"",VLOOKUP($Y172,'1'!$AG$139:$AI$176,3,0),"") -> 0 | AB172: =IF($Y172<>"",VLOOKUP($Y172,'1'!$AG$77:$AH$114,2,0),"") -> 0 | AF172: 34 | AG172: 0 0 | AH172: 0 | AI172: 0 | AJ172: =IF(AG172<>"",COUNTIF($AK$139:$AK$176,">"&AK172)+COUNTIF($AK$139:AK172,AK172),"") -> 34 | AK172: 0 | AL172: 00:00:00
A173: 35 | C173: 0 | D173: 0 | E173: 0 | W173: 35 | Y173: =IF(ISNA(MATCH(W173,'1'!$AJ$139:$AJ$176,0)),"",INDEX('1'!$AG$139:$AG$176,MATCH(W173,'1'!$AJ$139:$AJ$176,0))) -> 0 0 | Z173: =IF($Y173<>"",VLOOKUP($Y173,'1'!$AG$139:$AL$176,6,0),"") -> 00:00:00 | AA173: =IF($Y173<>"",VLOOKUP($Y173,'1'!$AG$139:$AI$176,3,0),"") -> 0 | AB173: =IF($Y173<>"",VLOOKUP($Y173,'1'!$AG$77:$AH$114,2,0),"") -> 0 | AF173: 35 | AG173: 0 0 | AH173: 0 | AI173: 0 | AJ173: =IF(AG173<>"",COUNTIF($AK$139:$AK$176,">"&AK173)+COUNTIF($AK$139:AK173,AK173),"") -> 35 | AK173: 0 | AL173: 00:00:00
A174: 36 | C174: 0 | D174: 0 | E174: 0 | W174: 36 | Y174: =IF(ISNA(MATCH(W174,'1'!$AJ$139:$AJ$176,0)),"",INDEX('1'!$AG$139:$AG$176,MATCH(W174,'1'!$AJ$139:$AJ$176,0))) -> 0 0 | Z174: =IF($Y174<>"",VLOOKUP($Y174,'1'!$AG$139:$AL$176,6,0),"") -> 00:00:00 | AA174: =IF($Y174<>"",VLOOKUP($Y174,'1'!$AG$139:$AI$176,3,0),"") -> 0 | AB174: =IF($Y174<>"",VLOOKUP($Y174,'1'!$AG$77:$AH$114,2,0),"") -> 0 | AF174: 36 | AG174: 0 0 | AH174: 0 | AI174: 0 | AJ174: =IF(AG174<>"",COUNTIF($AK$139:$AK$176,">"&AK174)+COUNTIF($AK$139:AK174,AK174),"") -> 36 | AK174: 0 | AL174: 00:00:00
A175: 37 | C175: 0 | D175: 0 | E175: 0 | W175: 37 | Y175: =IF(ISNA(MATCH(W175,'1'!$AJ$139:$AJ$176,0)),"",INDEX('1'!$AG$139:$AG$176,MATCH(W175,'1'!$AJ$139:$AJ$176,0))) -> 0 0 | Z175: =IF($Y175<>"",VLOOKUP($Y175,'1'!$AG$139:$AL$176,6,0),"") -> 00:00:00 | AA175: =IF($Y175<>"",VLOOKUP($Y175,'1'!$AG$139:$AI$176,3,0),"") -> 0 | AB175: =IF($Y175<>"",VLOOKUP($Y175,'1'!$AG$77:$AH$114,2,0),"") -> 0 | AF175: 37 | AG175: 0 0 | AH175: 0 | AI175: 0 | AJ175: =IF(AG175<>"",COUNTIF($AK$139:$AK$176,">"&AK175)+COUNTIF($AK$139:AK175,AK175),"") -> 37 | AK175: 0 | AL175: 00:00:00
A176: 38 | C176: 0 | D176: 0 | E176: 0 | W176: 38 | Y176: =IF(ISNA(MATCH(W176,'1'!$AJ$139:$AJ$176,0)),"",INDEX('1'!$AG$139:$AG$176,MATCH(W176,'1'!$AJ$139:$AJ$176,0))) -> 0 0 | Z176: =IF($Y176<>"",VLOOKUP($Y176,'1'!$AG$139:$AL$176,6,0),"") -> 00:00:00 | AA176: =IF($Y176<>"",VLOOKUP($Y176,'1'!$AG$139:$AI$176,3,0),"") -> 0 | AB176: =IF($Y176<>"",VLOOKUP($Y176,'1'!$AG$77:$AH$114,2,0),"") -> 0 | AF176: 38 | AG176: 0 0 | AH176: 0 | AI176: 0 | AJ176: =IF(AG176<>"",COUNTIF($AK$139:$AK$176,">"&AK176)+COUNTIF($AK$139:AK176,AK176),"") -> 38 | AK176: 0 | AL176: 00:00:00
L178: =COUNTIFS(L139:L176,">=10") -> 15
D179: ="المجموع : " &F179 -> المجموع : 31 | F179: =SUM(F181:F182) -> 31 | M179: ="التهنئة : "&G139 -> التهنئة : 5 | Q179: ="لا شيء : "&G142 -> لا شيء : 7 | Y179: ="المجموع : " &AA181 -> المجموع : 31 | AB179: =F179 -> 31
D181: ="البنات : "&F181 -> البنات : 14 | F181: =COUNTIFS(C139:C176,"أ") -> 14 | M181: ="التشجيع : "&G140 -> التشجيع : 2 | Q181: ="الإنذار : "&G143 -> الإنذار : 8 | Y181: =D181 -> البنات : 14 | AA181: =F179 -> 31 | AB181: =AB179 -> 31 | AD181: المعدل الفصلي أكبرمن أو يساوي 10 | AH181: =COUNTIFS(AA139:AA176,">=10") -> 15 | AI181: =AH181/AB179 -> 0.4838709677
D182: ="البنين : "&F182 -> البنين : 17 | F182: =COUNTIFS(C139:C176,"ذ") -> 17 | M182: ="لوحة شرف : "&G141 -> لوحة شرف : 1 | Q182: ="التوبيخ : "&G144 -> التوبيخ : 8 | Y182: =D182 -> البنين : 17 | AB182: =AB181 -> 31
D187: =D125 -> متوسطة مكاوي علي؛ اولاد البارودي - سيدي لخضر | R187: =IF(R125<>"",R125,"") -> 2015/2014 | Y187: =D187 -> متوسطة مكاوي علي؛ اولاد البارودي - سيدي لخضر | AI187: =IF(R187<>"",R187,"") -> 2015/2014 | AJ187: =IF(N187<>"",N187,"") -> 
AI188: =IF(M188<>"",M188,"") ->  | AJ188: =IF(N188<>"",N188,"") -> 
D189: القسم: | E189: =E127 -> س4م1 | K189: نتائج الفصول الثلاث | Y189: القسم: | Z189: =E189 -> س4م1 | AC189: ترتيب التلاميذ حسب معدلاتهم (الفصول الثلاث)
D191: الأستاذ (ة): | E191: =IF(E129<>"",E129,"") ->  | T191: =S5 -> 4 | Y191: الأستاذ (ة): | Z191: =IF(E191<>"",E191,"") -> 
D194: Nom et Prenom | F194: Date de naiss | G194: Age | H194: moy1 | I194: moy2 | J194: moy3 | K194: Moy G | L194: Moy BEM | M194: La moyenne d’acceptation | O194: Age | Y194: Nom et Prenom | Z194: Date de naiss | AA194: Moy G | AE194: Moy BEM | AF194: La moyenne d’acceptation | AG194: L'age jusqu'au
AR197: 1AM
AH198: 2014-09-30 | AR198: 3AM | AU198: 4AM | AV198: 2AM
A201: 1 | C201: =C139 -> ذ | D201: =D15&" "&E15 -> براهامي سفيان | F201: =F139 -> 1997-06-01 | G201: =IF(S201="","",S201) -> 17 | H201: =IF(L15="","",L15) -> 7.866666667 | I201: =IF(L77="","",L77) -> 8.5 | J201: =IF(L139="","",L139) -> 8.5 | K201: =IF(SUM(H201:J201)=0,0,AVERAGE(H201:J201)) -> 8.288888889 | L201: 12 | M201: =IF(T201=0,"",T201) -> 10.76296296 | N201: =IF($T$191=1,AR201,IF($T$191=2,AV201,IF($T$191=3,AR201,IF($T$191=4,AU201)))) -> ينتقل | R201: =DATEDIF(F201,TODAY(),"y")&" ans "&DATEDIF(F201,TODAY(),"ym")&" mois "&DATEDIF(F201,TODAY(),"md")&" jours" -> 17 ans 2 mois 0 jours | S201: =DATEDIF(F201,$AH$198,"y") -> 17 | T201: =IF(L201="",K201,((L201*2)+K201)/3) -> 10.76296296 | V201: =C201 -> ذ | W201: 1 | X201: =IF($Y201<>"",VLOOKUP($Y201,'1'!$D$201:$V$238,19,0),"") -> ذ | Y201: =IF(ISNA(MATCH(W201,'1'!$AC$201:$AC$238,0)),"",INDEX('1'!$D$201:$D$238,MATCH(W201,'1'!$AC$201:$AC$238,0))) -> مكاوي الميلود | Z201: =IF($Y201<>"",VLOOKUP($Y201,'1'!$D$201:$F$238,3,0),"") -> 1997-07-08 | AA201: =IF($Y201<>"",VLOOKUP($Y201,'1'!$D$201:$K$238,8,0),"") -> 16.23333333 | AC201: =IF(D201<>"",COUNTIF($AD$201:$AD$238,">"&AD201)+COUNTIF($AD$201:AD201,AD201),"") -> 12 | AD201: =IF(M201<>"",M201*10000,"") -> 107629.6296 | AE201: =IF($Y201<>"",VLOOKUP($Y201,'1'!$D$201:$L$238,9,0),"") -> 15 | AF201: =IF($Y201<>"",VLOOKUP($Y201,'1'!$D$201:$M$238,10,0),"") -> 15.41111111 | AI201: =IF($Y201<>"",VLOOKUP($Y201,'1'!$D$201:$R$238,15,0),"") -> 17 ans 0 mois 24 jours | AJ201: =IF($Y201<>"",VLOOKUP($Y201,'1'!$D$201:$N$238,11,0),"") -> ينتقل | AR201: =IF(AND(M201>=10,M201<20),"ينتقل","")&IF(AND(M201<9,S201<=16),"يعيد","")&IF(AND(M201<10,S201>16),"يفصل","")&IF(AND(M201>=9,M201<10,S201<16),"يستدرك","") -> ينتقل | AU201: =IF(AND(M201>=10,M201<20),"ينتقل","")&IF(AND(M201<10,S201<=16),"يعيد","")&IF(AND(M201<10,S201>16),"يفصل","") -> ينتقل | AV201: =IF(AND(M201>=10,M201<20),"ينتقل","")&IF(AND(M201<9,S201<=16),"يعيد","")&IF(AND(M201<10,S201>16),"يفصل","")&IF(AND(M201>=9,M201<10,S201<16),"قرار المجلس","") -> ينتقل
A202: 2 | C202: =C140 -> ذ | D202: =D16&" "&E16 -> برودي فيصل | F202: =F140 -> 2000-02-04 | G202: =IF(S202="","",S202) -> 14 | H202: 13.2 | I202: 15.76666667 | J202: =IF(L140="","",L140) -> 15.76666667 | K202: =IF(SUM(H202:J202)=0,0,AVERAGE(H202:J202)) -> 14.91111111 | L202: 14 | M202: =IF(T202=0,"",T202) -> 14.3037037 | N202: =IF($T$191=1,AR202,IF($T$191=2,AV202,IF($T$191=3,AR202,IF($T$191=4,AU202)))) -> ينتقل | R202: 14 ans 5 mois 28 jours | S202: =DATEDIF(F202,$AH$198,"y") -> 14 | T202: =IF(L202="",K202,((L202*2)+K202)/3) -> 14.3037037 | V202: =C202 -> ذ | W202: 2 | X202: =IF($Y202<>"",VLOOKUP($Y202,'1'!$D$201:$V$238,19,0),"") -> ذ | Y202: =IF(ISNA(MATCH(W202,'1'!$AC$201:$AC$238,0)),"",INDEX('1'!$D$201:$D$238,MATCH(W202,'1'!$AC$201:$AC$238,0))) -> خديمي عبد القادر | Z202: =IF($Y202<>"",VLOOKUP($Y202,'1'!$D$201:$F$238,3,0),"") -> 1999-01-03 | AA202: =IF($Y202<>"",VLOOKUP($Y202,'1'!$D$201:$K$238,8,0),"") -> 18.12222222 | AC202: =IF(D202<>"",COUNTIF($AD$201:$AD$238,">"&AD202)+COUNTIF($AD$201:AD202,AD202),"") -> 3 | AD202: =IF(M202<>"",M202*10000,"") -> 143037.037 | AE202: =IF($Y202<>"",VLOOKUP($Y202,'1'!$D$201:$L$238,9,0),"") -> 14 | AF202: =IF($Y202<>"",VLOOKUP($Y202,'1'!$D$201:$M$238,10,0),"") -> 15.37407407 | AI202: =IF($Y202<>"",VLOOKUP($Y202,'1'!$D$201:$R$238,15,0),"") -> 15 ans 6 mois 29 jours | AJ202: =IF($Y202<>"",VLOOKUP($Y202,'1'!$D$201:$N$238,11,0),"") -> ينتقل | AR202: =IF(AND(M202>=10,M202<20),"ينتقل","")&IF(AND(M202<9,S202<=16),"يعيد","")&IF(AND(M202<10,S202>16),"يفصل","")&IF(AND(M202>=9,M202<10,S202<16),"يستدرك","") -> ينتقل | AU202: =IF(AND(M202>=10,M202<20),"ينتقل","")&IF(AND(M202<10,S202<=16),"يعيد","")&IF(AND(M202<10,S202>16),"يفصل","") -> ينتقل | AV202: =IF(AND(M202>=10,M202<20),"ينتقل","")&IF(AND(M202<9,S202<=16),"يعيد","")&IF(AND(M202<10,S202>16),"يفصل","")&IF(AND(M202>=9,M202<10,S202<16),"قرار المجلس","") -> ينتقل
A203: 3 | C203: ذ | D203: بلعربي عبد العزيز | F203: 1999-04-16 | G203: 15 | H203: 13.1 | I203: 9.466666667 | J203: 9.466666667 | K203: 10.67777778 | L203: 11.5 | M203: 11.22592593 | N203: =IF($T$191=1,AR203,IF($T$191=2,AV203,IF($T$191=3,AR203,IF($T$191=4,AU203)))) -> ينتقل | R203: 15 ans 3 mois 16 jours | S203: 15 | T203: 11.22592593 | V203: ذ | W203: 3 | X203: =IF($Y203<>"",VLOOKUP($Y203,'1'!$D$201:$V$238,19,0),"") -> ذ | Y203: =IF(ISNA(MATCH(W203,'1'!$AC$201:$AC$238,0)),"",INDEX('1'!$D$201:$D$238,MATCH(W203,'1'!$AC$201:$AC$238,0))) -> برودي فيصل | Z203: =IF($Y203<>"",VLOOKUP($Y203,'1'!$D$201:$F$238,3,0),"") -> 2000-02-04 | AA203: =IF($Y203<>"",VLOOKUP($Y203,'1'!$D$201:$K$238,8,0),"") -> 14.91111111 | AC203: =IF(D203<>"",COUNTIF($AD$201:$AD$238,">"&AD203)+COUNTIF($AD$201:AD203,AD203),"") -> 11 | AD203: 112259.2593 | AE203: =IF($Y203<>"",VLOOKUP($Y203,'1'!$D$201:$L$238,9,0),"") -> 14 | AF203: =IF($Y203<>"",VLOOKUP($Y203,'1'!$D$201:$M$238,10,0),"") -> 14.3037037 | AI203: =IF($Y203<>"",VLOOKUP($Y203,'1'!$D$201:$R$238,15,0),"") -> 14 ans 5 mois 28 jours | AJ203: =IF($Y203<>"",VLOOKUP($Y203,'1'!$D$201:$N$238,11,0),"") -> ينتقل | AR203: ينتقل | AU203: ينتقل | AV203: ينتقل
A204: 4 | C204: أ | D204: بوخاتم فوزية | F204: 1999-01-13 | G204: 15 | H204: 10.7 | I204: 14.13333333 | J204: 14.13333333 | K204: 12.98888889 | L204: 9 | M204: 10.32962963 | N204: ينتقل | R204: 15 ans 6 mois 19 jours | S204: 15 | T204: 10.32962963 | V204: أ | W204: 4 | X204: =IF($Y204<>"",VLOOKUP($Y204,'1'!$D$201:$V$238,19,0),"") -> ذ | Y204: =IF(ISNA(MATCH(W204,'1'!$AC$201:$AC$238,0)),"",INDEX('1'!$D$201:$D$238,MATCH(W204,'1'!$AC$201:$AC$238,0))) -> درموز هواري | Z204: =IF($Y204<>"",VLOOKUP($Y204,'1'!$D$201:$F$238,3,0),"") -> 1994-08-26 | AA204: =IF($Y204<>"",VLOOKUP($Y204,'1'!$D$201:$K$238,8,0),"") -> 9.311111111 | AC204: =IF(D204<>"",COUNTIF($AD$201:$AD$238,">"&AD204)+COUNTIF($AD$201:AD204,AD204),"") -> 14 | AD204: 103296.2963 | AE204: =IF($Y204<>"",VLOOKUP($Y204,'1'!$D$201:$L$238,9,0),"") -> 16 | AF204: =IF($Y204<>"",VLOOKUP($Y204,'1'!$D$201:$M$238,10,0),"") -> 13.77037037 | AI204: =IF($Y204<>"",VLOOKUP($Y204,'1'!$D$201:$R$238,15,0),"") -> 19 ans 11 mois 6 jours | AJ204: =IF($Y204<>"",VLOOKUP($Y204,'1'!$D$201:$N$238,11,0),"") -> ينتقل | AR204: ينتقل | AU204: ينتقل | AV204: ينتقل
A205: 5 | C205: أ | D205: بوسعادة سمراء | F205: 1999-12-10 | G205: 14 | H205: 12.76666667 | I205: 17.76666667 | J205: 17.76666667 | K205: 16.1 | L205: 5.5 | M205: 9.033333333 | N205: يعيد | R205: 14 ans 7 mois 22 jours | S205: 14 | T205: 9.033333333 | V205: أ | W205: 5 | X205: =IF($Y205<>"",VLOOKUP($Y205,'1'!$D$201:$V$238,19,0),"") -> أ | Y205: =IF(ISNA(MATCH(W205,'1'!$AC$201:$AC$238,0)),"",INDEX('1'!$D$201:$D$238,MATCH(W205,'1'!$AC$201:$AC$238,0))) -> بومهدي شهرزاد خيرة | Z205: =IF($Y205<>"",VLOOKUP($Y205,'1'!$D$201:$F$238,3,0),"") -> 1999-02-21 | AA205: =IF($Y205<>"",VLOOKUP($Y205,'1'!$D$201:$K$238,8,0),"") -> 10.3 | AC205: =IF(D205<>"",COUNTIF($AD$201:$AD$238,">"&AD205)+COUNTIF($AD$201:AD205,AD205),"") -> 23 | AD205: 90333.33333 | AE205: =IF($Y205<>"",VLOOKUP($Y205,'1'!$D$201:$L$238,9,0),"") -> 14 | AF205: =IF($Y205<>"",VLOOKUP($Y205,'1'!$D$201:$M$238,10,0),"") -> 12.76666667 | AI205: =IF($Y205<>"",VLOOKUP($Y205,'1'!$D$201:$R$238,15,0),"") -> 15 ans 5 mois 11 jours | AJ205: =IF($Y205<>"",VLOOKUP($Y205,'1'!$D$201:$N$238,11,0),"") -> ينتقل | AR205: يستدرك | AU205: يعيد | AV205: قرار المجلس
A206: 6 | C206: أ | D206: بوكروش حليمة | F206: 1998-02-15 | G206: 16 | H206: 13.73333333 | I206: 13.73333333 | J206: 13.73333333 | K206: 13.73333333 | L206: 7 | M206: 9.244444444 | N206: يعيد | R206: 16 ans 5 mois 17 jours | S206: 16 | T206: 9.244444444 | V206: أ | W206: 6 | X206: =IF($Y206<>"",VLOOKUP($Y206,'1'!$D$201:$V$238,19,0),"") -> ذ | Y206: =IF(ISNA(MATCH(W206,'1'!$AC$201:$AC$238,0)),"",INDEX('1'!$D$201:$D$238,MATCH(W206,'1'!$AC$201:$AC$238,0))) -> مصطفاوي محمد | Z206: =IF($Y206<>"",VLOOKUP($Y206,'1'!$D$201:$F$238,3,0),"") -> 1997-05-07 | AA206: =IF($Y206<>"",VLOOKUP($Y206,'1'!$D$201:$K$238,8,0),"") -> 9.977777778 | AC206: =IF(D206<>"",COUNTIF($AD$201:$AD$238,">"&AD206)+COUNTIF($AD$201:AD206,AD206),"") -> 21 | AD206: 92444.44444 | AE206: =IF($Y206<>"",VLOOKUP($Y206,'1'!$D$201:$L$238,9,0),"") -> 14 | AF206: =IF($Y206<>"",VLOOKUP($Y206,'1'!$D$201:$M$238,10,0),"") -> 12.65925926 | AI206: =IF($Y206<>"",VLOOKUP($Y206,'1'!$D$201:$R$238,15,0),"") -> 17 ans 2 mois 25 jours | AJ206: =IF($Y206<>"",VLOOKUP($Y206,'1'!$D$201:$N$238,11,0),"") -> ينتقل | AU206: يعيد
A207: 7 | C207: ذ | D207: بوكروش عبد القادر | F207: 1995-01-27 | G207: 19 | H207: 7.5 | I207: 8.033333333 | J207: 8.033333333 | K207: 7.855555556 | L207: 11 | M207: 9.951851852 | N207: يفصل | R207: 19 ans 6 mois 5 jours | S207: 19 | T207: 9.951851852 | V207: ذ | W207: 7 | X207: =IF($Y207<>"",VLOOKUP($Y207,'1'!$D$201:$V$238,19,0),"") -> أ | Y207: =IF(ISNA(MATCH(W207,'1'!$AC$201:$AC$238,0)),"",INDEX('1'!$D$201:$D$238,MATCH(W207,'1'!$AC$201:$AC$238,0))) -> شواط سهام | Z207: =IF($Y207<>"",VLOOKUP($Y207,'1'!$D$201:$F$238,3,0),"") -> 1998-11-01 | AA207: =IF($Y207<>"",VLOOKUP($Y207,'1'!$D$201:$K$238,8,0),"") -> 9.022222222 | AC207: =IF(D207<>"",COUNTIF($AD$201:$AD$238,">"&AD207)+COUNTIF($AD$201:AD207,AD207),"") -> 18 | AD207: 99518.51852 | AE207: =IF($Y207<>"",VLOOKUP($Y207,'1'!$D$201:$L$238,9,0),"") -> 14 | AF207: =IF($Y207<>"",VLOOKUP($Y207,'1'!$D$201:$M$238,10,0),"") -> 12.34074074 | AI207: =IF($Y207<>"",VLOOKUP($Y207,'1'!$D$201:$R$238,15,0),"") -> 15 ans 9 mois 0 jours | AJ207: =IF($Y207<>"",VLOOKUP($Y207,'1'!$D$201:$N$238,11,0),"") -> ينتقل | AR207: يفصل | AU207: يفصل | AV207: يفصل
A208: 8 | C208: أ | D208: بومهدي شهرزاد خيرة | F208: 1999-02-21 | G208: 15 | H208: 11.23333333 | I208: 9.833333333 | J208: 9.833333333 | K208: 10.3 | L208: 14 | M208: 12.76666667 | N208: ينتقل | R208: 15 ans 5 mois 11 jours | S208: 15 | T208: 12.76666667 | V208: أ | W208: 8 | X208: =IF($Y208<>"",VLOOKUP($Y208,'1'!$D$201:$V$238,19,0),"") -> ذ | Y208: =IF(ISNA(MATCH(W208,'1'!$AC$201:$AC$238,0)),"",INDEX('1'!$D$201:$D$238,MATCH(W208,'1'!$AC$201:$AC$238,0))) -> شاشو لخضر | Z208: =IF($Y208<>"",VLOOKUP($Y208,'1'!$D$201:$F$238,3,0),"") -> 1999-12-22 | AA208: =IF($Y208<>"",VLOOKUP($Y208,'1'!$D$201:$K$238,8,0),"") -> 11.78888889 | AC208: =IF(D208<>"",COUNTIF($AD$201:$AD$238,">"&AD208)+COUNTIF($AD$201:AD208,AD208),"") -> 5 | AD208: 127666.6667 | AE208: =IF($Y208<>"",VLOOKUP($Y208,'1'!$D$201:$L$238,9,0),"") -> 12 | AF208: =IF($Y208<>"",VLOOKUP($Y208,'1'!$D$201:$M$238,10,0),"") -> 11.92962963 | AI208: =IF($Y208<>"",VLOOKUP($Y208,'1'!$D$201:$R$238,15,0),"") -> 14 ans 7 mois 10 jours | AJ208: =IF($Y208<>"",VLOOKUP($Y208,'1'!$D$201:$N$238,11,0),"") -> ينتقل | AR208: ينتقل | AU208: ينتقل | AV208: ينتقل
A209: 9 | C209: ذ | D209: بومهدي لخضر | F209: 1995-11-01 | G209: 18 | H209: 9.3 | I209: 10.63333333 | J209: 10.63333333 | K209: 10.18888889 | L209: 3.5 | M209: 5.72962963 | N209: يفصل | R209: 18 ans 9 mois 0 jours | S209: 18 | T209: 5.72962963 | V209: ذ | W209: 9 | X209: =IF($Y209<>"",VLOOKUP($Y209,'1'!$D$201:$V$238,19,0),"") -> أ | Y209: =IF(ISNA(MATCH(W209,'1'!$AC$201:$AC$238,0)),"",INDEX('1'!$D$201:$D$238,MATCH(W209,'1'!$AC$201:$AC$238,0))) -> كوشة إكرام | Z209: =IF($Y209<>"",VLOOKUP($Y209,'1'!$D$201:$F$238,3,0),"") -> 1999-12-06 | AA209: =IF($Y209<>"",VLOOKUP($Y209,'1'!$D$201:$K$238,8,0),"") -> 6.544444444 | AC209: =IF(D209<>"",COUNTIF($AD$201:$AD$238,">"&AD209)+COUNTIF($AD$201:AD209,AD209),"") -> 28 | AD209: 57296.2963 | AE209: =IF($Y209<>"",VLOOKUP($Y209,'1'!$D$201:$L$238,9,0),"") -> 14.5 | AF209: =IF($Y209<>"",VLOOKUP($Y209,'1'!$D$201:$M$238,10,0),"") -> 11.84814815 | AI209: =IF($Y209<>"",VLOOKUP($Y209,'1'!$D$201:$R$238,15,0),"") -> 14 ans 7 mois 26 jours | AJ209: =IF($Y209<>"",VLOOKUP($Y209,'1'!$D$201:$N$238,11,0),"") -> ينتقل | AR209: يفصل | AU209: يفصل | AV209: يفصل
A210: 10 | C210: ذ | D210: خديمي عبد القادر | F210: 1999-01-03 | G210: 15 | H210: 18.23333333 | I210: 18.06666667 | J210: 18.06666667 | K210: 18.12222222 | L210: 14 | M210: 15.37407407 | N210: ينتقل | R210: 15 ans 6 mois 29 jours | S210: 15 | T210: 15.37407407 | V210: ذ | W210: 10 | X210: =IF($Y210<>"",VLOOKUP($Y210,'1'!$D$201:$V$238,19,0),"") -> ذ | Y210: =IF(ISNA(MATCH(W210,'1'!$AC$201:$AC$238,0)),"",INDEX('1'!$D$201:$D$238,MATCH(W210,'1'!$AC$201:$AC$238,0))) -> شاشو ميلود | Z210: =IF($Y210<>"",VLOOKUP($Y210,'1'!$D$201:$F$238,3,0),"") -> 1999-02-28 | AA210: =IF($Y210<>"",VLOOKUP($Y210,'1'!$D$201:$K$238,8,0),"") -> 9.066666667 | AC210: =IF(D210<>"",COUNTIF($AD$201:$AD$238,">"&AD210)+COUNTIF($AD$201:AD210,AD210),"") -> 2 | AD210: 153740.7407 | AE210: =IF($Y210<>"",VLOOKUP($Y210,'1'!$D$201:$L$238,9,0),"") -> 13 | AF210: =IF($Y210<>"",VLOOKUP($Y210,'1'!$D$201:$M$238,10,0),"") -> 11.68888889 | AI210: =IF($Y210<>"",VLOOKUP($Y210,'1'!$D$201:$R$238,15,0),"") -> 15 ans 5 mois 4 jours | AJ210: =IF($Y210<>"",VLOOKUP($Y210,'1'!$D$201:$N$238,11,0),"") -> ينتقل | AR210: ينتقل | AU210: ينتقل | AV210: ينتقل
A211: 11 | C211: ذ | D211: درموز هواري | F211: 1994-08-26 | G211: 20 | H211: 8.133333333 | I211: 9.9 | J211: 9.9 | K211: 9.311111111 | L211: 16 | M211: 13.77037037 | N211: ينتقل | R211: 19 ans 11 mois 6 jours | S211: 20 | T211: 13.77037037 | V211: ذ | W211: 11 | X211: =IF($Y211<>"",VLOOKUP($Y211,'1'!$D$201:$V$238,19,0),"") -> ذ | Y211: =IF(ISNA(MATCH(W211,'1'!$AC$201:$AC$238,0)),"",INDEX('1'!$D$201:$D$238,MATCH(W211,'1'!$AC$201:$AC$238,0))) -> بلعربي عبد العزيز | Z211: =IF($Y211<>"",VLOOKUP($Y211,'1'!$D$201:$F$238,3,0),"") -> 1999-04-16 | AA211: =IF($Y211<>"",VLOOKUP($Y211,'1'!$D$201:$K$238,8,0),"") -> 10.67777778 | AC211: =IF(D211<>"",COUNTIF($AD$201:$AD$238,">"&AD211)+COUNTIF($AD$201:AD211,AD211),"") -> 4 | AD211: 137703.7037 | AE211: =IF($Y211<>"",VLOOKUP($Y211,'1'!$D$201:$L$238,9,0),"") -> 11.5 | AF211: =IF($Y211<>"",VLOOKUP($Y211,'1'!$D$201:$M$238,10,0),"") -> 11.22592593 | AI211: =IF($Y211<>"",VLOOKUP($Y211,'1'!$D$201:$R$238,15,0),"") -> 15 ans 3 mois 16 jours | AJ211: =IF($Y211<>"",VLOOKUP($Y211,'1'!$D$201:$N$238,11,0),"") -> ينتقل | AR211: ينتقل | AU211: ينتقل | AV211: ينتقل
A212: 12 | C212: ذ | D212: دوان سليمان | F212: 1997-04-07 | G212: 17 | H212: 7.066666667 | I212: 8.666666667 | J212: 8.666666667 | K212: 8.133333333 | L212: 3.5 | M212: 5.044444444 | N212: يفصل | R212: 17 ans 3 mois 25 jours | S212: 17 | T212: 5.044444444 | V212: ذ | W212: 12 | X212: =IF($Y212<>"",VLOOKUP($Y212,'1'!$D$201:$V$238,19,0),"") -> ذ | Y212: =IF(ISNA(MATCH(W212,'1'!$AC$201:$AC$238,0)),"",INDEX('1'!$D$201:$D$238,MATCH(W212,'1'!$AC$201:$AC$238,0))) -> براهامي سفيان | Z212: =IF($Y212<>"",VLOOKUP($Y212,'1'!$D$201:$F$238,3,0),"") -> 1997-06-01 | AA212: =IF($Y212<>"",VLOOKUP($Y212,'1'!$D$201:$K$238,8,0),"") -> 8.288888889 | AC212: =IF(D212<>"",COUNTIF($AD$201:$AD$238,">"&AD212)+COUNTIF($AD$201:AD212,AD212),"") -> 30 | AD212: 50444.44444 | AE212: =IF($Y212<>"",VLOOKUP($Y212,'1'!$D$201:$L$238,9,0),"") -> 12 | AF212: =IF($Y212<>"",VLOOKUP($Y212,'1'!$D$201:$M$238,10,0),"") -> 10.76296296 | AI212: =IF($Y212<>"",VLOOKUP($Y212,'1'!$D$201:$R$238,15,0),"") -> 17 ans 2 mois 0 jours | AJ212: =IF($Y212<>"",VLOOKUP($Y212,'1'!$D$201:$N$238,11,0),"") -> ينتقل | AR212: يفصل | AU212: يفصل | AV212: يفصل
A213: 13 | C213: أ | D213: دونان إكرام | F213: 1996-11-20 | G213: 17 | H213: 11.3 | I213: 14 | J213: 14 | K213: 13.1 | L213: 8.5 | M213: 10.03333333 | N213: ينتقل | R213: 17 ans 8 mois 12 jours | S213: 17 | T213: 10.03333333 | V213: أ | W213: 13 | X213: =IF($Y213<>"",VLOOKUP($Y213,'1'!$D$201:$V$238,19,0),"") -> أ | Y213: =IF(ISNA(MATCH(W213,'1'!$AC$201:$AC$238,0)),"",INDEX('1'!$D$201:$D$238,MATCH(W213,'1'!$AC$201:$AC$238,0))) -> موزاوي منال | Z213: =IF($Y213<>"",VLOOKUP($Y213,'1'!$D$201:$F$238,3,0),"") -> 2000-02-13 | AA213: =IF($Y213<>"",VLOOKUP($Y213,'1'!$D$201:$K$238,8,0),"") -> 13.93333333 | AC213: =IF(D213<>"",COUNTIF($AD$201:$AD$238,">"&AD213)+COUNTIF($AD$201:AD213,AD213),"") -> 17 | AD213: 100333.3333 | AE213: =IF($Y213<>"",VLOOKUP($Y213,'1'!$D$201:$L$238,9,0),"") -> 9 | AF213: =IF($Y213<>"",VLOOKUP($Y213,'1'!$D$201:$M$238,10,0),"") -> 10.64444444 | AI213: =IF($Y213<>"",VLOOKUP($Y213,'1'!$D$201:$R$238,15,0),"") -> 14 ans 5 mois 19 jours | AJ213: =IF($Y213<>"",VLOOKUP($Y213,'1'!$D$201:$N$238,11,0),"") -> ينتقل | AR213: ينتقل | AU213: ينتقل | AV213: ينتقل
A214: 14 | C214: ذ | D214: رحو حمزة | F214: 1995-10-04 | G214: 18 | H214: 4.6 | I214: 6.766666667 | J214: 6.766666667 | K214: 6.044444444 | L214: 9 | M214: 8.014814815 | N214: يفصل | R214: 18 ans 9 mois 28 jours | S214: 18 | T214: 8.014814815 | V214: ذ | W214: 14 | X214: =IF($Y214<>"",VLOOKUP($Y214,'1'!$D$201:$V$238,19,0),"") -> أ | Y214: =IF(ISNA(MATCH(W214,'1'!$AC$201:$AC$238,0)),"",INDEX('1'!$D$201:$D$238,MATCH(W214,'1'!$AC$201:$AC$238,0))) -> بوخاتم فوزية | Z214: =IF($Y214<>"",VLOOKUP($Y214,'1'!$D$201:$F$238,3,0),"") -> 1999-01-13 | AA214: =IF($Y214<>"",VLOOKUP($Y214,'1'!$D$201:$K$238,8,0),"") -> 12.98888889 | AC214: =IF(D214<>"",COUNTIF($AD$201:$AD$238,">"&AD214)+COUNTIF($AD$201:AD214,AD214),"") -> 27 | AD214: 80148.14815 | AE214: =IF($Y214<>"",VLOOKUP($Y214,'1'!$D$201:$L$238,9,0),"") -> 9 | AF214: =IF($Y214<>"",VLOOKUP($Y214,'1'!$D$201:$M$238,10,0),"") -> 10.32962963 | AI214: =IF($Y214<>"",VLOOKUP($Y214,'1'!$D$201:$R$238,15,0),"") -> 15 ans 6 mois 19 jours | AJ214: =IF($Y214<>"",VLOOKUP($Y214,'1'!$D$201:$N$238,11,0),"") -> ينتقل | AR214: يفصل | AU214: يفصل | AV214: يفصل
A215: 15 | C215: أ | D215: رفيف نجاة | F215: 1997-01-01 | G215: 17 | H215: 5.666666667 | I215: 7.733333333 | J215: 7.733333333 | K215: 7.044444444 | L215: 10.5 | M215: 9.348148148 | N215: يفصل | R215: 17 ans 7 mois 0 jours | S215: 17 | T215: 9.348148148 | V215: أ | W215: 15 | X215: =IF($Y215<>"",VLOOKUP($Y215,'1'!$D$201:$V$238,19,0),"") -> أ | Y215: =IF(ISNA(MATCH(W215,'1'!$AC$201:$AC$238,0)),"",INDEX('1'!$D$201:$D$238,MATCH(W215,'1'!$AC$201:$AC$238,0))) -> فتحي حفصة | Z215: =IF($Y215<>"",VLOOKUP($Y215,'1'!$D$201:$F$238,3,0),"") -> 1999-04-18 | AA215: =IF($Y215<>"",VLOOKUP($Y215,'1'!$D$201:$K$238,8,0),"") -> 8.444444444 | AC215: =IF(D215<>"",COUNTIF($AD$201:$AD$238,">"&AD215)+COUNTIF($AD$201:AD215,AD215),"") -> 20 | AD215: 93481.48148 | AE215: =IF($Y215<>"",VLOOKUP($Y215,'1'!$D$201:$L$238,9,0),"") -> 11 | AF215: =IF($Y215<>"",VLOOKUP($Y215,'1'!$D$201:$M$238,10,0),"") -> 10.14814815 | AI215: =IF($Y215<>"",VLOOKUP($Y215,'1'!$D$201:$R$238,15,0),"") -> 15 ans 3 mois 14 jours | AJ215: =IF($Y215<>"",VLOOKUP($Y215,'1'!$D$201:$N$238,11,0),"") -> ينتقل | AR215: يفصل | AU215: يفصل | AV215: يفصل
A216: 16 | C216: ذ | D216: سالي كمال | F216: 1999-09-03 | G216: 15 | H216: 4.9 | I216: 10.16666667 | J216: 10.16666667 | K216: 8.411111111 | L216: 3.5 | M216: 5.137037037 | N216: يعيد | R216: 14 ans 10 mois 29 jours | S216: 15 | T216: 5.137037037 | V216: ذ | W216: 16 | X216: =IF($Y216<>"",VLOOKUP($Y216,'1'!$D$201:$V$238,19,0),"") -> ذ | Y216: =IF(ISNA(MATCH(W216,'1'!$AC$201:$AC$238,0)),"",INDEX('1'!$D$201:$D$238,MATCH(W216,'1'!$AC$201:$AC$238,0))) -> مكاوي فتحي | Z216: =IF($Y216<>"",VLOOKUP($Y216,'1'!$D$201:$F$238,3,0),"") -> 1996-09-28 | AA216: =IF($Y216<>"",VLOOKUP($Y216,'1'!$D$201:$K$238,8,0),"") -> 8.333333333 | AC216: =IF(D216<>"",COUNTIF($AD$201:$AD$238,">"&AD216)+COUNTIF($AD$201:AD216,AD216),"") -> 29 | AD216: 51370.37037 | AE216: =IF($Y216<>"",VLOOKUP($Y216,'1'!$D$201:$L$238,9,0),"") -> 11 | AF216: =IF($Y216<>"",VLOOKUP($Y216,'1'!$D$201:$M$238,10,0),"") -> 10.11111111 | AI216: =IF($Y216<>"",VLOOKUP($Y216,'1'!$D$201:$R$238,15,0),"") -> 17 ans 10 mois 4 jours | AJ216: =IF($Y216<>"",VLOOKUP($Y216,'1'!$D$201:$N$238,11,0),"") -> ينتقل | AR216: يعيد | AU216: يعيد | AV216: يعيد
A217: 17 | C217: أ | D217: سعادي كميلة | F217: 1998-11-12 | G217: 15 | H217: 5.4 | I217: 6.666666667 | J217: 6.666666667 | K217: 6.244444444 | L217: 11.5 | M217: 9.748148148 | N217: يعيد | R217: 15 ans 8 mois 20 jours | S217: 15 | T217: 9.748148148 | V217: أ | W217: 17 | X217: =IF($Y217<>"",VLOOKUP($Y217,'1'!$D$201:$V$238,19,0),"") -> أ | Y217: =IF(ISNA(MATCH(W217,'1'!$AC$201:$AC$238,0)),"",INDEX('1'!$D$201:$D$238,MATCH(W217,'1'!$AC$201:$AC$238,0))) -> دونان إكرام | Z217: =IF($Y217<>"",VLOOKUP($Y217,'1'!$D$201:$F$238,3,0),"") -> 1996-11-20 | AA217: =IF($Y217<>"",VLOOKUP($Y217,'1'!$D$201:$K$238,8,0),"") -> 13.1 | AC217: =IF(D217<>"",COUNTIF($AD$201:$AD$238,">"&AD217)+COUNTIF($AD$201:AD217,AD217),"") -> 19 | AD217: 97481.48148 | AE217: =IF($Y217<>"",VLOOKUP($Y217,'1'!$D$201:$L$238,9,0),"") -> 8.5 | AF217: =IF($Y217<>"",VLOOKUP($Y217,'1'!$D$201:$M$238,10,0),"") -> 10.03333333 | AI217: =IF($Y217<>"",VLOOKUP($Y217,'1'!$D$201:$R$238,15,0),"") -> 17 ans 8 mois 12 jours | AJ217: =IF($Y217<>"",VLOOKUP($Y217,'1'!$D$201:$N$238,11,0),"") -> ينتقل | AR217: يستدرك | AU217: يعيد | AV217: قرار المجلس
A218: 18 | C218: ذ | D218: شاشو لخضر | F218: 1999-12-22 | G218: 14 | H218: 13.7 | I218: 10.83333333 | J218: 10.83333333 | K218: 11.78888889 | L218: 12 | M218: 11.92962963 | N218: ينتقل | R218: 14 ans 7 mois 10 jours | S218: 14 | T218: 11.92962963 | V218: ذ | W218: 18 | X218: =IF($Y218<>"",VLOOKUP($Y218,'1'!$D$201:$V$238,19,0),"") -> ذ | Y218: =IF(ISNA(MATCH(W218,'1'!$AC$201:$AC$238,0)),"",INDEX('1'!$D$201:$D$238,MATCH(W218,'1'!$AC$201:$AC$238,0))) -> بوكروش عبد القادر | Z218: =IF($Y218<>"",VLOOKUP($Y218,'1'!$D$201:$F$238,3,0),"") -> 1995-01-27 | AA218: =IF($Y218<>"",VLOOKUP($Y218,'1'!$D$201:$K$238,8,0),"") -> 7.855555556 | AC218: =IF(D218<>"",COUNTIF($AD$201:$AD$238,">"&AD218)+COUNTIF($AD$201:AD218,AD218),"") -> 8 | AD218: 119296.2963 | AE218: =IF($Y218<>"",VLOOKUP($Y218,'1'!$D$201:$L$238,9,0),"") -> 11 | AF218: =IF($Y218<>"",VLOOKUP($Y218,'1'!$D$201:$M$238,10,0),"") -> 9.951851852 | AI218: =IF($Y218<>"",VLOOKUP($Y218,'1'!$D$201:$R$238,15,0),"") -> 19 ans 6 mois 5 jours | AJ218: =IF($Y218<>"",VLOOKUP($Y218,'1'!$D$201:$N$238,11,0),"") -> يفصل | AR218: ينتقل | AU218: ينتقل | AV218: ينتقل
A219: 19 | C219: ذ | D219: شاشو ميلود | F219: 1999-02-28 | G219: 15 | H219: 7.2 | I219: 10 | J219: 10 | K219: 9.066666667 | L219: 13 | M219: 11.68888889 | N219: ينتقل | R219: 15 ans 5 mois 4 jours | S219: 15 | T219: 11.68888889 | V219: ذ | W219: 19 | X219: =IF($Y219<>"",VLOOKUP($Y219,'1'!$D$201:$V$238,19,0),"") -> أ | Y219: =IF(ISNA(MATCH(W219,'1'!$AC$201:$AC$238,0)),"",INDEX('1'!$D$201:$D$238,MATCH(W219,'1'!$AC$201:$AC$238,0))) -> سعادي كميلة | Z219: =IF($Y219<>"",VLOOKUP($Y219,'1'!$D$201:$F$238,3,0),"") -> 1998-11-12 | AA219: =IF($Y219<>"",VLOOKUP($Y219,'1'!$D$201:$K$238,8,0),"") -> 6.244444444 | AC219: =IF(D219<>"",COUNTIF($AD$201:$AD$238,">"&AD219)+COUNTIF($AD$201:AD219,AD219),"") -> 10 | AD219: 116888.8889 | AE219: =IF($Y219<>"",VLOOKUP($Y219,'1'!$D$201:$L$238,9,0),"") -> 11.5 | AF219: =IF($Y219<>"",VLOOKUP($Y219,'1'!$D$201:$M$238,10,0),"") -> 9.748148148 | AI219: =IF($Y219<>"",VLOOKUP($Y219,'1'!$D$201:$R$238,15,0),"") -> 15 ans 8 mois 20 jours | AJ219: =IF($Y219<>"",VLOOKUP($Y219,'1'!$D$201:$N$238,11,0),"") -> يعيد | AR219: ينتقل | AU219: ينتقل | AV219: ينتقل
A220: 20 | C220: أ | D220: شواط سهام | F220: 1998-11-01 | G220: 15 | H220: 6.866666667 | I220: 10.1 | J220: 10.1 | K220: 9.022222222 | L220: 14 | M220: 12.34074074 | N220: ينتقل | R220: 15 ans 9 mois 0 jours | S220: 15 | T220: 12.34074074 | V220: أ | W220: 20 | X220: =IF($Y220<>"",VLOOKUP($Y220,'1'!$D$201:$V$238,19,0),"") -> أ | Y220: =IF(ISNA(MATCH(W220,'1'!$AC$201:$AC$238,0)),"",INDEX('1'!$D$201:$D$238,MATCH(W220,'1'!$AC$201:$AC$238,0))) -> رفيف نجاة | Z220: =IF($Y220<>"",VLOOKUP($Y220,'1'!$D$201:$F$238,3,0),"") -> 1997-01-01 | AA220: =IF($Y220<>"",VLOOKUP($Y220,'1'!$D$201:$K$238,8,0),"") -> 7.044444444 | AC220: =IF(D220<>"",COUNTIF($AD$201:$AD$238,">"&AD220)+COUNTIF($AD$201:AD220,AD220),"") -> 7 | AD220: 123407.4074 | AE220: =IF($Y220<>"",VLOOKUP($Y220,'1'!$D$201:$L$238,9,0),"") -> 10.5 | AF220: =IF($Y220<>"",VLOOKUP($Y220,'1'!$D$201:$M$238,10,0),"") -> 9.348148148 | AI220: =IF($Y220<>"",VLOOKUP($Y220,'1'!$D$201:$R$238,15,0),"") -> 17 ans 7 mois 0 jours | AJ220: =IF($Y220<>"",VLOOKUP($Y220,'1'!$D$201:$N$238,11,0),"") -> يفصل | AR220: ينتقل | AU220: ينتقل | AV220: ينتقل
A221: 21 | C221: أ | D221: فتحي حفصة | F221: 1999-04-18 | G221: 15 | H221: 8.8 | I221: 8.266666667 | J221: 8.266666667 | K221: 8.444444444 | L221: 11 | M221: 10.14814815 | N221: ينتقل | R221: 15 ans 3 mois 14 jours | S221: 15 | T221: 10.14814815 | V221: أ | W221: 21 | X221: =IF($Y221<>"",VLOOKUP($Y221,'1'!$D$201:$V$238,19,0),"") -> أ | Y221: =IF(ISNA(MATCH(W221,'1'!$AC$201:$AC$238,0)),"",INDEX('1'!$D$201:$D$238,MATCH(W221,'1'!$AC$201:$AC$238,0))) -> بوكروش حليمة | Z221: =IF($Y221<>"",VLOOKUP($Y221,'1'!$D$201:$F$238,3,0),"") -> 1998-02-15 | AA221: =IF($Y221<>"",VLOOKUP($Y221,'1'!$D$201:$K$238,8,0),"") -> 13.73333333 | AC221: =IF(D221<>"",COUNTIF($AD$201:$AD$238,">"&AD221)+COUNTIF($AD$201:AD221,AD221),"") -> 15 | AD221: 101481.4815 | AE221: =IF($Y221<>"",VLOOKUP($Y221,'1'!$D$201:$L$238,9,0),"") -> 7 | AF221: =IF($Y221<>"",VLOOKUP($Y221,'1'!$D$201:$M$238,10,0),"") -> 9.244444444 | AI221: =IF($Y221<>"",VLOOKUP($Y221,'1'!$D$201:$R$238,15,0),"") -> 16 ans 5 mois 17 jours | AJ221: =IF($Y221<>"",VLOOKUP($Y221,'1'!$D$201:$N$238,11,0),"") -> يعيد | AR221: ينتقل | AU221: ينتقل | AV221: ينتقل
A222: 22 | C222: ذ | D222: فتحي فيصل | F222: 1996-07-14 | G222: 18 | H222: 6.5 | I222: 6.133333333 | J222: 6.133333333 | K222: 6.255555556 | L222: 10 | M222: 8.751851852 | N222: يفصل | R222: 18 ans 0 mois 18 jours | S222: 18 | T222: 8.751851852 | V222: ذ | W222: 22 | X222: =IF($Y222<>"",VLOOKUP($Y222,'1'!$D$201:$V$238,19,0),"") -> أ | Y222: =IF(ISNA(MATCH(W222,'1'!$AC$201:$AC$238,0)),"",INDEX('1'!$D$201:$D$238,MATCH(W222,'1'!$AC$201:$AC$238,0))) -> مكاوي نجمة | Z222: =IF($Y222<>"",VLOOKUP($Y222,'1'!$D$201:$F$238,3,0),"") -> 1997-06-18 | AA222: =IF($Y222<>"",VLOOKUP($Y222,'1'!$D$201:$K$238,8,0),"") -> 7.377777778 | AC222: =IF(D222<>"",COUNTIF($AD$201:$AD$238,">"&AD222)+COUNTIF($AD$201:AD222,AD222),"") -> 24 | AD222: 87518.51852 | AE222: =IF($Y222<>"",VLOOKUP($Y222,'1'!$D$201:$L$238,9,0),"") -> 10 | AF222: =IF($Y222<>"",VLOOKUP($Y222,'1'!$D$201:$M$238,10,0),"") -> 9.125925926 | AI222: =IF($Y222<>"",VLOOKUP($Y222,'1'!$D$201:$R$238,15,0),"") -> 17 ans 1 mois 14 jours | AJ222: =IF($Y222<>"",VLOOKUP($Y222,'1'!$D$201:$N$238,11,0),"") -> يفصل | AR222: يفصل | AU222: يفصل | AV222: يفصل
A223: 23 | C223: أ | D223: قاضي فاطمة | F223: 1997-03-01 | G223: 17 | H223: 5.266666667 | I223: 6.6 | J223: 6.6 | K223: 6.155555556 | L223: 10 | M223: 8.718518519 | N223: يفصل | R223: 17 ans 5 mois 0 jours | S223: 17 | T223: 8.718518519 | V223: أ | W223: 23 | X223: =IF($Y223<>"",VLOOKUP($Y223,'1'!$D$201:$V$238,19,0),"") -> أ | Y223: =IF(ISNA(MATCH(W223,'1'!$AC$201:$AC$238,0)),"",INDEX('1'!$D$201:$D$238,MATCH(W223,'1'!$AC$201:$AC$238,0))) -> بوسعادة سمراء | Z223: =IF($Y223<>"",VLOOKUP($Y223,'1'!$D$201:$F$238,3,0),"") -> 1999-12-10 | AA223: =IF($Y223<>"",VLOOKUP($Y223,'1'!$D$201:$K$238,8,0),"") -> 16.1 | AC223: =IF(D223<>"",COUNTIF($AD$201:$AD$238,">"&AD223)+COUNTIF($AD$201:AD223,AD223),"") -> 25 | AD223: 87185.18519 | AE223: =IF($Y223<>"",VLOOKUP($Y223,'1'!$D$201:$L$238,9,0),"") -> 5.5 | AF223: =IF($Y223<>"",VLOOKUP($Y223,'1'!$D$201:$M$238,10,0),"") -> 9.033333333 | AI223: =IF($Y223<>"",VLOOKUP($Y223,'1'!$D$201:$R$238,15,0),"") -> 14 ans 7 mois 22 jours | AJ223: =IF($Y223<>"",VLOOKUP($Y223,'1'!$D$201:$N$238,11,0),"") -> يعيد | AR223: يفصل | AU223: يفصل | AV223: يفصل
A224: 24 | C224: ذ | D224: قندوز العيد | F224: 1995-05-17 | G224: 19 | H224: 8.1 | I224: 10.2 | J224: 10.2 | K224: 9.5 | L224: 2 | M224: 4.5 | N224: يفصل | R224: 19 ans 2 mois 15 jours | S224: 19 | T224: 4.5 | V224: ذ | W224: 24 | X224: =IF($Y224<>"",VLOOKUP($Y224,'1'!$D$201:$V$238,19,0),"") -> ذ | Y224: =IF(ISNA(MATCH(W224,'1'!$AC$201:$AC$238,0)),"",INDEX('1'!$D$201:$D$238,MATCH(W224,'1'!$AC$201:$AC$238,0))) -> فتحي فيصل | Z224: =IF($Y224<>"",VLOOKUP($Y224,'1'!$D$201:$F$238,3,0),"") -> 1996-07-14 | AA224: =IF($Y224<>"",VLOOKUP($Y224,'1'!$D$201:$K$238,8,0),"") -> 6.255555556 | AC224: =IF(D224<>"",COUNTIF($AD$201:$AD$238,">"&AD224)+COUNTIF($AD$201:AD224,AD224),"") -> 31 | AD224: 45000 | AE224: =IF($Y224<>"",VLOOKUP($Y224,'1'!$D$201:$L$238,9,0),"") -> 10 | AF224: =IF($Y224<>"",VLOOKUP($Y224,'1'!$D$201:$M$238,10,0),"") -> 8.751851852 | AI224: =IF($Y224<>"",VLOOKUP($Y224,'1'!$D$201:$R$238,15,0),"") -> 18 ans 0 mois 18 jours | AJ224: =IF($Y224<>"",VLOOKUP($Y224,'1'!$D$201:$N$238,11,0),"") -> يفصل | AR224: يفصل | AU224: يفصل | AV224: يفصل
A225: 25 | C225: أ | D225: قندوز كحلة | F225: 1997-08-09 | G225: 17 | H225: 9.266666667 | I225: 7.233333333 | J225: 7.233333333 | K225: 7.911111111 | L225: 8.5 | M225: 8.303703704 | N225: يفصل | R225: 16 ans 11 mois 23 jours | S225: 17 | T225: 8.303703704 | V225: أ | W225: 25 | X225: =IF($Y225<>"",VLOOKUP($Y225,'1'!$D$201:$V$238,19,0),"") -> أ | Y225: =IF(ISNA(MATCH(W225,'1'!$AC$201:$AC$238,0)),"",INDEX('1'!$D$201:$D$238,MATCH(W225,'1'!$AC$201:$AC$238,0))) -> قاضي فاطمة | Z225: =IF($Y225<>"",VLOOKUP($Y225,'1'!$D$201:$F$238,3,0),"") -> 1997-03-01 | AA225: =IF($Y225<>"",VLOOKUP($Y225,'1'!$D$201:$K$238,8,0),"") -> 6.155555556 | AC225: =IF(D225<>"",COUNTIF($AD$201:$AD$238,">"&AD225)+COUNTIF($AD$201:AD225,AD225),"") -> 26 | AD225: 83037.03704 | AE225: =IF($Y225<>"",VLOOKUP($Y225,'1'!$D$201:$L$238,9,0),"") -> 10 | AF225: =IF($Y225<>"",VLOOKUP($Y225,'1'!$D$201:$M$238,10,0),"") -> 8.718518519 | AI225: =IF($Y225<>"",VLOOKUP($Y225,'1'!$D$201:$R$238,15,0),"") -> 17 ans 5 mois 0 jours | AJ225: =IF($Y225<>"",VLOOKUP($Y225,'1'!$D$201:$N$238,11,0),"") -> يفصل | AR225: يفصل | AU225: يفصل | AV225: يفصل
A226: 26 | C226: أ | D226: كوشة إكرام | F226: 1999-12-06 | G226: 14 | H226: 7.1 | I226: 6.266666667 | J226: 6.266666667 | K226: 6.544444444 | L226: 14.5 | M226: 11.84814815 | N226: ينتقل | R226: 14 ans 7 mois 26 jours | S226: 14 | T226: 11.84814815 | V226: أ | W226: 26 | X226: =IF($Y226<>"",VLOOKUP($Y226,'1'!$D$201:$V$238,19,0),"") -> أ | Y226: =IF(ISNA(MATCH(W226,'1'!$AC$201:$AC$238,0)),"",INDEX('1'!$D$201:$D$238,MATCH(W226,'1'!$AC$201:$AC$238,0))) -> قندوز كحلة | Z226: =IF($Y226<>"",VLOOKUP($Y226,'1'!$D$201:$F$238,3,0),"") -> 1997-08-09 | AA226: =IF($Y226<>"",VLOOKUP($Y226,'1'!$D$201:$K$238,8,0),"") -> 7.911111111 | AC226: =IF(D226<>"",COUNTIF($AD$201:$AD$238,">"&AD226)+COUNTIF($AD$201:AD226,AD226),"") -> 9 | AD226: 118481.4815 | AE226: =IF($Y226<>"",VLOOKUP($Y226,'1'!$D$201:$L$238,9,0),"") -> 8.5 | AF226: =IF($Y226<>"",VLOOKUP($Y226,'1'!$D$201:$M$238,10,0),"") -> 8.303703704 | AI226: =IF($Y226<>"",VLOOKUP($Y226,'1'!$D$201:$R$238,15,0),"") -> 16 ans 11 mois 23 jours | AJ226: =IF($Y226<>"",VLOOKUP($Y226,'1'!$D$201:$N$238,11,0),"") -> يفصل | AR226: ينتقل | AU226: ينتقل | AV226: ينتقل
A227: 27 | C227: ذ | D227: مصطفاوي محمد | F227: 1997-05-07 | G227: 17 | H227: 9.533333333 | I227: 10.2 | J227: 10.2 | K227: 9.977777778 | L227: 14 | M227: 12.65925926 | N227: ينتقل | R227: 17 ans 2 mois 25 jours | S227: 17 | T227: 12.65925926 | V227: ذ | W227: 27 | X227: =IF($Y227<>"",VLOOKUP($Y227,'1'!$D$201:$V$238,19,0),"") -> ذ | Y227: =IF(ISNA(MATCH(W227,'1'!$AC$201:$AC$238,0)),"",INDEX('1'!$D$201:$D$238,MATCH(W227,'1'!$AC$201:$AC$238,0))) -> رحو حمزة | Z227: =IF($Y227<>"",VLOOKUP($Y227,'1'!$D$201:$F$238,3,0),"") -> 1995-10-04 | AA227: =IF($Y227<>"",VLOOKUP($Y227,'1'!$D$201:$K$238,8,0),"") -> 6.044444444 | AC227: =IF(D227<>"",COUNTIF($AD$201:$AD$238,">"&AD227)+COUNTIF($AD$201:AD227,AD227),"") -> 6 | AD227: 126592.5926 | AE227: =IF($Y227<>"",VLOOKUP($Y227,'1'!$D$201:$L$238,9,0),"") -> 9 | AF227: =IF($Y227<>"",VLOOKUP($Y227,'1'!$D$201:$M$238,10,0),"") -> 8.014814815 | AI227: =IF($Y227<>"",VLOOKUP($Y227,'1'!$D$201:$R$238,15,0),"") -> 18 ans 9 mois 28 jours | AJ227: =IF($Y227<>"",VLOOKUP($Y227,'1'!$D$201:$N$238,11,0),"") -> يفصل | AR227: ينتقل | AU227: ينتقل | AV227: ينتقل
A228: 28 | C228: ذ | D228: مكاوي الميلود | F228: 1997-07-08 | G228: 17 | H228: 14.5 | I228: 17.1 | J228: 17.1 | K228: 16.23333333 | L228: 15 | M228: 15.41111111 | N228: ينتقل | R228: 17 ans 0 mois 24 jours | S228: 17 | T228: 15.41111111 | V228: ذ | W228: 28 | X228: =IF($Y228<>"",VLOOKUP($Y228,'1'!$D$201:$V$238,19,0),"") -> ذ | Y228: =IF(ISNA(MATCH(W228,'1'!$AC$201:$AC$238,0)),"",INDEX('1'!$D$201:$D$238,MATCH(W228,'1'!$AC$201:$AC$238,0))) -> بومهدي لخضر | Z228: =IF($Y228<>"",VLOOKUP($Y228,'1'!$D$201:$F$238,3,0),"") -> 1995-11-01 | AA228: =IF($Y228<>"",VLOOKUP($Y228,'1'!$D$201:$K$238,8,0),"") -> 10.18888889 | AC228: =IF(D228<>"",COUNTIF($AD$201:$AD$238,">"&AD228)+COUNTIF($AD$201:AD228,AD228),"") -> 1 | AD228: 154111.1111 | AE228: =IF($Y228<>"",VLOOKUP($Y228,'1'!$D$201:$L$238,9,0),"") -> 3.5 | AF228: =IF($Y228<>"",VLOOKUP($Y228,'1'!$D$201:$M$238,10,0),"") -> 5.72962963 | AI228: =IF($Y228<>"",VLOOKUP($Y228,'1'!$D$201:$R$238,15,0),"") -> 18 ans 9 mois 0 jours | AJ228: =IF($Y228<>"",VLOOKUP($Y228,'1'!$D$201:$N$238,11,0),"") -> يفصل | AR228: ينتقل | AU228: ينتقل | AV228: ينتقل
A229: 29 | C229: ذ | D229: مكاوي فتحي | F229: 1996-09-28 | G229: 18 | H229: 7.2 | I229: 8.9 | J229: 8.9 | K229: 8.333333333 | L229: 11 | M229: 10.11111111 | N229: ينتقل | R229: 17 ans 10 mois 4 jours | S229: 18 | T229: 10.11111111 | V229: ذ | W229: 29 | X229: =IF($Y229<>"",VLOOKUP($Y229,'1'!$D$201:$V$238,19,0),"") -> ذ | Y229: =IF(ISNA(MATCH(W229,'1'!$AC$201:$AC$238,0)),"",INDEX('1'!$D$201:$D$238,MATCH(W229,'1'!$AC$201:$AC$238,0))) -> سالي كمال | Z229: =IF($Y229<>"",VLOOKUP($Y229,'1'!$D$201:$F$238,3,0),"") -> 1999-09-03 | AA229: =IF($Y229<>"",VLOOKUP($Y229,'1'!$D$201:$K$238,8,0),"") -> 8.411111111 | AC229: =IF(D229<>"",COUNTIF($AD$201:$AD$238,">"&AD229)+COUNTIF($AD$201:AD229,AD229),"") -> 16 | AD229: 101111.1111 | AE229: =IF($Y229<>"",VLOOKUP($Y229,'1'!$D$201:$L$238,9,0),"") -> 3.5 | AF229: =IF($Y229<>"",VLOOKUP($Y229,'1'!$D$201:$M$238,10,0),"") -> 5.137037037 | AI229: =IF($Y229<>"",VLOOKUP($Y229,'1'!$D$201:$R$238,15,0),"") -> 14 ans 10 mois 29 jours | AJ229: =IF($Y229<>"",VLOOKUP($Y229,'1'!$D$201:$N$238,11,0),"") -> يعيد | AR229: ينتقل | AU229: ينتقل | AV229: ينتقل
A230: 30 | C230: أ | D230: مكاوي نجمة | F230: 1997-06-18 | G230: 17 | H230: 6.266666667 | I230: 7.933333333 | J230: 7.933333333 | K230: 7.377777778 | L230: 10 | M230: 9.125925926 | N230: يفصل | R230: 17 ans 1 mois 14 jours | S230: 17 | T230: 9.125925926 | V230: أ | W230: 30 | X230: =IF($Y230<>"",VLOOKUP($Y230,'1'!$D$201:$V$238,19,0),"") -> ذ | Y230: =IF(ISNA(MATCH(W230,'1'!$AC$201:$AC$238,0)),"",INDEX('1'!$D$201:$D$238,MATCH(W230,'1'!$AC$201:$AC$238,0))) -> دوان سليمان | Z230: =IF($Y230<>"",VLOOKUP($Y230,'1'!$D$201:$F$238,3,0),"") -> 1997-04-07 | AA230: =IF($Y230<>"",VLOOKUP($Y230,'1'!$D$201:$K$238,8,0),"") -> 8.133333333 | AC230: =IF(D230<>"",COUNTIF($AD$201:$AD$238,">"&AD230)+COUNTIF($AD$201:AD230,AD230),"") -> 22 | AD230: 91259.25926 | AE230: =IF($Y230<>"",VLOOKUP($Y230,'1'!$D$201:$L$238,9,0),"") -> 3.5 | AF230: =IF($Y230<>"",VLOOKUP($Y230,'1'!$D$201:$M$238,10,0),"") -> 5.044444444 | AI230: =IF($Y230<>"",VLOOKUP($Y230,'1'!$D$201:$R$238,15,0),"") -> 17 ans 3 mois 25 jours | AJ230: =IF($Y230<>"",VLOOKUP($Y230,'1'!$D$201:$N$238,11,0),"") -> يفصل | AR230: يفصل | AU230: يفصل | AV230: يفصل
A231: 31 | C231: أ | D231: موزاوي منال | F231: 2000-02-13 | G231: 14 | H231: 11.2 | I231: 15.3 | J231: 15.3 | K231: 13.93333333 | L231: 9 | M231: 10.64444444 | N231: ينتقل | R231: 14 ans 5 mois 19 jours | S231: 14 | T231: 10.64444444 | V231: أ | W231: 31 | X231: =IF($Y231<>"",VLOOKUP($Y231,'1'!$D$201:$V$238,19,0),"") -> ذ | Y231: =IF(ISNA(MATCH(W231,'1'!$AC$201:$AC$238,0)),"",INDEX('1'!$D$201:$D$238,MATCH(W231,'1'!$AC$201:$AC$238,0))) -> قندوز العيد | Z231: =IF($Y231<>"",VLOOKUP($Y231,'1'!$D$201:$F$238,3,0),"") -> 1995-05-17 | AA231: =IF($Y231<>"",VLOOKUP($Y231,'1'!$D$201:$K$238,8,0),"") -> 9.5 | AC231: =IF(D231<>"",COUNTIF($AD$201:$AD$238,">"&AD231)+COUNTIF($AD$201:AD231,AD231),"") -> 13 | AD231: 106444.4444 | AE231: =IF($Y231<>"",VLOOKUP($Y231,'1'!$D$201:$L$238,9,0),"") -> 2 | AF231: =IF($Y231<>"",VLOOKUP($Y231,'1'!$D$201:$M$238,10,0),"") -> 4.5 | AI231: =IF($Y231<>"",VLOOKUP($Y231,'1'!$D$201:$R$238,15,0),"") -> 19 ans 2 mois 15 jours | AJ231: =IF($Y231<>"",VLOOKUP($Y231,'1'!$D$201:$N$238,11,0),"") -> يفصل | AR231: ينتقل | AU231: ينتقل | AV231: ينتقل
A232: 32 | C232: 0 | K232: 0 | T232: 0 | V232: 0 | W232: 32 | X232: =IF($Y232<>"",VLOOKUP($Y232,'1'!$D$201:$V$238,19,0),"") ->  | Y232: =IF(ISNA(MATCH(W232,'1'!$AC$201:$AC$238,0)),"",INDEX('1'!$D$201:$D$238,MATCH(W232,'1'!$AC$201:$AC$238,0))) ->  | Z232: =IF($Y232<>"",VLOOKUP($Y232,'1'!$D$201:$F$238,3,0),"") ->  | AA232: =IF($Y232<>"",VLOOKUP($Y232,'1'!$D$201:$K$238,8,0),"") ->  | AC232: =IF(D232<>"",COUNTIF($AD$201:$AD$238,">"&AD232)+COUNTIF($AD$201:AD232,AD232),"") -> 1 | AE232: =IF($Y232<>"",VLOOKUP($Y232,'1'!$D$201:$L$238,9,0),"") ->  | AF232: =IF($Y232<>"",VLOOKUP($Y232,'1'!$D$201:$M$238,10,0),"") ->  | AI232: =IF($Y232<>"",VLOOKUP($Y232,'1'!$D$201:$R$238,15,0),"") ->  | AJ232: =IF($Y232<>"",VLOOKUP($Y232,'1'!$D$201:$N$238,11,0),"") -> 
A233: 33 | C233: 0 | K233: 0 | T233: 0 | V233: 0 | W233: 33 | X233: =IF($Y233<>"",VLOOKUP($Y233,'1'!$D$201:$V$238,19,0),"") ->  | Y233: =IF(ISNA(MATCH(W233,'1'!$AC$201:$AC$238,0)),"",INDEX('1'!$D$201:$D$238,MATCH(W233,'1'!$AC$201:$AC$238,0))) ->  | Z233: =IF($Y233<>"",VLOOKUP($Y233,'1'!$D$201:$F$238,3,0),"") ->  | AA233: =IF($Y233<>"",VLOOKUP($Y233,'1'!$D$201:$K$238,8,0),"") ->  | AC233: =IF(D233<>"",COUNTIF($AD$201:$AD$238,">"&AD233)+COUNTIF($AD$201:AD233,AD233),"") -> 2 | AE233: =IF($Y233<>"",VLOOKUP($Y233,'1'!$D$201:$L$238,9,0),"") ->  | AF233: =IF($Y233<>"",VLOOKUP($Y233,'1'!$D$201:$M$238,10,0),"") ->  | AI233: =IF($Y233<>"",VLOOKUP($Y233,'1'!$D$201:$R$238,15,0),"") ->  | AJ233: =IF($Y233<>"",VLOOKUP($Y233,'1'!$D$201:$N$238,11,0),"") -> 
A234: 34 | C234: 0 | K234: 0 | T234: 0 | V234: 0 | W234: 34 | X234: =IF($Y234<>"",VLOOKUP($Y234,'1'!$D$201:$V$238,19,0),"") ->  | Y234: =IF(ISNA(MATCH(W234,'1'!$AC$201:$AC$238,0)),"",INDEX('1'!$D$201:$D$238,MATCH(W234,'1'!$AC$201:$AC$238,0))) ->  | Z234: =IF($Y234<>"",VLOOKUP($Y234,'1'!$D$201:$F$238,3,0),"") ->  | AA234: =IF($Y234<>"",VLOOKUP($Y234,'1'!$D$201:$K$238,8,0),"") ->  | AC234: =IF(D234<>"",COUNTIF($AD$201:$AD$238,">"&AD234)+COUNTIF($AD$201:AD234,AD234),"") -> 3 | AE234: =IF($Y234<>"",VLOOKUP($Y234,'1'!$D$201:$L$238,9,0),"") ->  | AF234: =IF($Y234<>"",VLOOKUP($Y234,'1'!$D$201:$M$238,10,0),"") ->  | AI234: =IF($Y234<>"",VLOOKUP($Y234,'1'!$D$201:$R$238,15,0),"") ->  | AJ234: =IF($Y234<>"",VLOOKUP($Y234,'1'!$D$201:$N$238,11,0),"") -> 
A235: 35 | C235: 0 | K235: 0 | T235: 0 | V235: 0 | W235: 35 | X235: =IF($Y235<>"",VLOOKUP($Y235,'1'!$D$201:$V$238,19,0),"") ->  | Y235: =IF(ISNA(MATCH(W235,'1'!$AC$201:$AC$238,0)),"",INDEX('1'!$D$201:$D$238,MATCH(W235,'1'!$AC$201:$AC$238,0))) ->  | Z235: =IF($Y235<>"",VLOOKUP($Y235,'1'!$D$201:$F$238,3,0),"") ->  | AA235: =IF($Y235<>"",VLOOKUP($Y235,'1'!$D$201:$K$238,8,0),"") ->  | AC235: =IF(D235<>"",COUNTIF($AD$201:$AD$238,">"&AD235)+COUNTIF($AD$201:AD235,AD235),"") -> 4 | AE235: =IF($Y235<>"",VLOOKUP($Y235,'1'!$D$201:$L$238,9,0),"") ->  | AF235: =IF($Y235<>"",VLOOKUP($Y235,'1'!$D$201:$M$238,10,0),"") ->  | AI235: =IF($Y235<>"",VLOOKUP($Y235,'1'!$D$201:$R$238,15,0),"") ->  | AJ235: =IF($Y235<>"",VLOOKUP($Y235,'1'!$D$201:$N$238,11,0),"") -> 
A236: 36 | C236: 0 | K236: 0 | T236: 0 | V236: 0 | W236: 36 | X236: =IF($Y236<>"",VLOOKUP($Y236,'1'!$D$201:$V$238,19,0),"") ->  | Y236: =IF(ISNA(MATCH(W236,'1'!$AC$201:$AC$238,0)),"",INDEX('1'!$D$201:$D$238,MATCH(W236,'1'!$AC$201:$AC$238,0))) ->  | Z236: =IF($Y236<>"",VLOOKUP($Y236,'1'!$D$201:$F$238,3,0),"") ->  | AA236: =IF($Y236<>"",VLOOKUP($Y236,'1'!$D$201:$K$238,8,0),"") ->  | AC236: =IF(D236<>"",COUNTIF($AD$201:$AD$238,">"&AD236)+COUNTIF($AD$201:AD236,AD236),"") -> 5 | AE236: =IF($Y236<>"",VLOOKUP($Y236,'1'!$D$201:$L$238,9,0),"") ->  | AF236: =IF($Y236<>"",VLOOKUP($Y236,'1'!$D$201:$M$238,10,0),"") ->  | AI236: =IF($Y236<>"",VLOOKUP($Y236,'1'!$D$201:$R$238,15,0),"") ->  | AJ236: =IF($Y236<>"",VLOOKUP($Y236,'1'!$D$201:$N$238,11,0),"") -> 
A237: 37 | C237: 0 | K237: 0 | T237: 0 | V237: 0 | W237: 37 | X237: =IF($Y237<>"",VLOOKUP($Y237,'1'!$D$201:$V$238,19,0),"") ->  | Y237: =IF(ISNA(MATCH(W237,'1'!$AC$201:$AC$238,0)),"",INDEX('1'!$D$201:$D$238,MATCH(W237,'1'!$AC$201:$AC$238,0))) ->  | Z237: =IF($Y237<>"",VLOOKUP($Y237,'1'!$D$201:$F$238,3,0),"") ->  | AA237: =IF($Y237<>"",VLOOKUP($Y237,'1'!$D$201:$K$238,8,0),"") ->  | AC237: =IF(D237<>"",COUNTIF($AD$201:$AD$238,">"&AD237)+COUNTIF($AD$201:AD237,AD237),"") -> 6 | AE237: =IF($Y237<>"",VLOOKUP($Y237,'1'!$D$201:$L$238,9,0),"") ->  | AF237: =IF($Y237<>"",VLOOKUP($Y237,'1'!$D$201:$M$238,10,0),"") ->  | AI237: =IF($Y237<>"",VLOOKUP($Y237,'1'!$D$201:$R$238,15,0),"") ->  | AJ237: =IF($Y237<>"",VLOOKUP($Y237,'1'!$D$201:$N$238,11,0),"") ->  | AV237: =IF(AND(M237>=10,M237<20),"ينتقل","")&IF(AND(M237<9,S237<=16),"يعيد","")&IF(AND(M237<10,S237>16),"يفصل","")&IF(AND(M237>=9,M237<10,S237<16),"قرار المجلس","") -> 
A238: 38 | C238: 0 | K238: 0 | M238: =IF(T238=0,"",T238) ->  | T238: 0 | V238: 0 | W238: 38 | X238: =IF($Y238<>"",VLOOKUP($Y238,'1'!$D$201:$V$238,19,0),"") ->  | Y238: =IF(ISNA(MATCH(W238,'1'!$AC$201:$AC$238,0)),"",INDEX('1'!$D$201:$D$238,MATCH(W238,'1'!$AC$201:$AC$238,0))) ->  | Z238: =IF($Y238<>"",VLOOKUP($Y238,'1'!$D$201:$F$238,3,0),"") ->  | AA238: =IF($Y238<>"",VLOOKUP($Y238,'1'!$D$201:$K$238,8,0),"") ->  | AC238: =IF(D238<>"",COUNTIF($AD$201:$AD$238,">"&AD238)+COUNTIF($AD$201:AD238,AD238),"") -> 7 | AE238: =IF($Y238<>"",VLOOKUP($Y238,'1'!$D$201:$L$238,9,0),"") ->  | AF238: =IF($Y238<>"",VLOOKUP($Y238,'1'!$D$201:$M$238,10,0),"") ->  | AI238: =IF($Y238<>"",VLOOKUP($Y238,'1'!$D$201:$R$238,15,0),"") ->  | AJ238: =IF($Y238<>"",VLOOKUP($Y238,'1'!$D$201:$N$238,11,0),"") -> 
D241: ="المجموع : " &F241 -> المجموع : 31 | F241: =SUM(F243:F244) -> 31 | Y241: ="المجموع : " &AA243 -> المجموع : 31 | AB241: =F241 -> 31 | AE241: ="عدد الناجحين : "&L243 -> عدد الناجحين : 17
D243: ="البنات : "&F243 -> البنات : 14 | F243: =COUNTIFS(C201:C238,"أ") -> 14 | G243: المعدل العـام أكبرمن أو يساوي 10 | L243: =COUNTIFS(M201:M238,">=10") -> 17 | M243: =L243/F241 -> 0.5483870968 | Y243: =D243 -> البنات : 14 | AA243: =F241 -> 31 | AB243: =AB241 -> 31 | AE243: ="عدد المعيدين : "&AI244 -> عدد المعيدين : 4 | AH243: ="عدد المستدركين : "&AA244 -> عدد المستدركين : 0
D244: ="البنين : "&F244 -> البنين : 17 | F244: =COUNTIFS(C201:C238,"ذ") -> 17 | Y244: =D244 -> البنين : 17 | Z244: =COUNTIFS(AF201:AF238,">=9",AF201:AF238,"<10") -> 6 | AA244: =COUNTIFS(AJ201:AJ238,"يستدرك") -> 0 | AB244: =AB243 -> 31 | AE244: ="عدد المفصولين : "&AJ244 -> عدد المفصولين : 10 | AI244: =COUNTIFS(AJ201:AJ238,"يعيد") -> 4 | AJ244: =COUNTIFS(AJ201:AJ238,"يفصل") -> 10

Sheet 2
D1: =IF(Renseignements!B145<>"",Renseignements!B145,"") -> متوسطة مكاوي علي؛ اولاد البارودي - سيدي لخضر | E1: =IF(Accueil!F5<>"",Accueil!F5,"") ->  | F1: =IF(Accueil!G5<>"",Accueil!G5,"") ->  | G1: =IF(Accueil!#REF!<>"",Accueil!#REF!,"") ->  | H1: =IF(Accueil!J5<>"",Accueil!J5,"") ->  | I1: =IF(Accueil!K5<>"",Accueil!K5,"") ->  | J1: =IF(Accueil!#REF!<>"",Accueil!#REF!,"") ->  | R1: =IF(Accueil!F2<>"",Accueil!F2,"") -> 2015/2014 | Y1: =IF(D1<>"",D1,"") -> متوسطة مكاوي علي؛ اولاد البارودي - سيدي لخضر | AA1: =IF(#REF!<>"",#REF!,"") ->  | AB1: =IF(#REF!<>"",#REF!,"") ->  | AC1: =IF(#REF!<>"",#REF!,"") ->  | AD1: =IF(#REF!<>"",#REF!,"") ->  | AI1: =IF(R1<>"",R1,"") -> 2015/2014 | AJ1: =IF(N1<>"",N1,"") -> 
D2: =IF(Accueil!E6<>"",Accueil!E6,"") ->  | E2: =IF(Accueil!F6<>"",Accueil!F6,"") ->  | F2: =IF(Accueil!G6<>"",Accueil!G6,"") ->  | G2: =IF(Accueil!I5<>"",Accueil!I5,"") ->  | H2: =IF(Accueil!J6<>"",Accueil!J6,"") ->  | I2: =IF(Accueil!K6<>"",Accueil!K6,"") ->  | J2: =IF(Accueil!#REF!<>"",Accueil!#REF!,"") ->  | Y2: =IF(#REF!<>"",#REF!,"") ->  | AA2: =IF(#REF!<>"",#REF!,"") ->  | AB2: =IF(#REF!<>"",#REF!,"") ->  | AC2: =IF(#REF!<>"",#REF!,"") ->  | AD2: =IF(#REF!<>"",#REF!,"") ->  | AI2: =IF(M2<>"",M2,"") ->  | AJ2: =IF(N2<>"",N2,"") -> 
D3: القسم: | E3: =IF(Base_D!C3<>"",Base_D!C3,"") -> س4م3 | K3: نتائج الفصل الأول | Y3: القسم: | Z3: =E3 -> س4م3
AB4: ترتيب التلاميذ حسب معدلاتهم (الفصـــــــــــــل الأول)
D5: الأستاذ (ة): | E5: =Base_D!A3&" "&Base_D!B3 -> fgh hfhfd | Q5: المستوى | S5: =IF(Base_D!D3<>"",Base_D!D3,"") -> 4 | Y5: الأستاذ (ة): | Z5: =IF(D7<>"",D7,"") ->  | AI5: =IF(S5<>"",S5,"") -> 4
D8: اللقب | E8: الإسم | F8: تاريخ الميلاد | L8: المعدل الفصلي على 20 | M8: الإجازات و العقوبات | Y8: اللقب و الإسم | Z8: تاريخ الميلاد | AA8: المعدل الفصلي على 20 | AB8: الإجازات و العقوبات
A15: 1 | C15: أ | D15: باي | E15: شيماء | F15: 2001-12-21 | G15: =COUNTIFS(M15:M52,"تهنئة") -> 1 | L15: 8.166666667 | M15: =IF(AND(L15>=15,L15<20),"تهنئة","")&IF(AND(L15>=14,L15<15),"تشجيع","")&IF(AND(L15>=12,L15<14),"لوحة شرف","")&IF(AND(L15>=10,L15<12),"لا شيء","")&IF(AND(L15>=8,L15<10),"إنذار","")&IF(AND(L15>0,L15<8),"توبيخ","")&IF(AND(L15<>"",L15=0),"","") -> إنذار | P15: =D15&" "&E15 -> باي شيماء | S15: =C15 -> أ | W15: 1 | X15: =IF($Y15<>"",VLOOKUP($Y15,'2'!$P$15:$S$52,4,0),"") -> ذ | Y15: =IF(ISNA(MATCH(W15,'2'!$AJ$15:$AJ$52,0)),"",INDEX('2'!$AG$15:$AG$52,MATCH(W15,'2'!$AJ$15:$AJ$52,0))) -> هاشمي لخضر | Z15: =IF($Y15<>"",VLOOKUP($Y15,'2'!$AG$15:$AL$52,6,0),"") -> 2001-09-25 | AA15: =IF($Y15<>"",VLOOKUP($Y15,'2'!$AG$15:$AI$52,3,0),"") -> 16.8 | AB15: =IF($Y15<>"",VLOOKUP($Y15,'2'!$AG$15:$AH$52,2,0),"") -> تهنئة | AF15: 1 | AG15: =D15&" "&E15 -> باي شيماء | AH15: =IF(M15="",0,M15) -> إنذار | AI15: =IF(L15="",0,L15) -> 8.166666667 | AJ15: =IF(AG15<>"",COUNTIF($AK$15:$AK$52,">"&AK15)+COUNTIF($AK$15:AK15,AK15),"") -> 24 | AK15: =IF(AI15<>"",AI15*1000,"") -> 8166.666667 | AL15: =IF(F15="",0,F15) -> 2001-12-21
A16: 2 | C16: ذ | D16: بلعباس | E16: الحاج | F16: 2002-10-09 | G16: =COUNTIFS(M15:M52,"تشجيع") -> 2 | L16: 4 | M16: =IF(AND(L16>=15,L16<20),"تهنئة","")&IF(AND(L16>=14,L16<15),"تشجيع","")&IF(AND(L16>=12,L16<14),"لوحة شرف","")&IF(AND(L16>=10,L16<12),"لا شيء","")&IF(AND(L16>=8,L16<10),"إنذار","")&IF(AND(L16>0,L16<8),"توبيخ","")&IF(AND(L16<>"",L16=0),"","") -> توبيخ | P16: =D16&" "&E16 -> بلعباس الحاج | S16: =C16 -> ذ | W16: 2 | X16: =IF($Y16<>"",VLOOKUP($Y16,'2'!$P$15:$S$52,4,0),"") -> ذ | Y16: =IF(ISNA(MATCH(W16,'2'!$AJ$15:$AJ$52,0)),"",INDEX('2'!$AG$15:$AG$52,MATCH(W16,'2'!$AJ$15:$AJ$52,0))) -> خديمي إسماعيل | Z16: =IF($Y16<>"",VLOOKUP($Y16,'2'!$AG$15:$AL$52,6,0),"") -> 2002-05-30 | AA16: =IF($Y16<>"",VLOOKUP($Y16,'2'!$AG$15:$AI$52,3,0),"") -> 14.73333333 | AB16: =IF($Y16<>"",VLOOKUP($Y16,'2'!$AG$15:$AH$52,2,0),"") -> تشجيع | AF16: 2 | AG16: بلعباس الحاج | AH16: =IF(M16="",0,M16) -> توبيخ | AI16: 4 | AJ16: =IF(AG16<>"",COUNTIF($AK$15:$AK$52,">"&AK16)+COUNTIF($AK$15:AK16,AK16),"") -> 35 | AK16: =IF(AI16<>"",AI16*1000,"") -> 4000 | AL16: 2002-10-09
A17: 3 | C17: ذ | D17: بلعربي | E17: بوعبد الله | F17: 2000-10-16 | G17: =COUNTIFS(M15:M52,"لوحة شرف") -> 9 | L17: 8.8 | M17: إنذار | P17: بلعربي بوعبد الله | S17: ذ | W17: 3 | X17: =IF($Y17<>"",VLOOKUP($Y17,'2'!$P$15:$S$52,4,0),"") -> ذ | Y17: =IF(ISNA(MATCH(W17,'2'!$AJ$15:$AJ$52,0)),"",INDEX('2'!$AG$15:$AG$52,MATCH(W17,'2'!$AJ$15:$AJ$52,0))) -> معمري عمر | Z17: =IF($Y17<>"",VLOOKUP($Y17,'2'!$AG$15:$AL$52,6,0),"") -> 2002-03-17 | AA17: =IF($Y17<>"",VLOOKUP($Y17,'2'!$AG$15:$AI$52,3,0),"") -> 14.13333333 | AB17: =IF($Y17<>"",VLOOKUP($Y17,'2'!$AG$15:$AH$52,2,0),"") -> تشجيع | AF17: 3 | AG17: بلعربي بوعبد الله | AH17: إنذار | AI17: 8.8 | AJ17: =IF(AG17<>"",COUNTIF($AK$15:$AK$52,">"&AK17)+COUNTIF($AK$15:AK17,AK17),"") -> 23 | AK17: 8800 | AL17: 2000-10-16
A18: 4 | C18: أ | D18: بلعربي | E18: خديجة | F18: 1999-08-12 | G18: =COUNTIFS(M15:M52,"لا شيء") -> 6 | L18: 12.5 | M18: لوحة شرف | P18: بلعربي خديجة | S18: أ | W18: 4 | X18: =IF($Y18<>"",VLOOKUP($Y18,'2'!$P$15:$S$52,4,0),"") -> أ | Y18: =IF(ISNA(MATCH(W18,'2'!$AJ$15:$AJ$52,0)),"",INDEX('2'!$AG$15:$AG$52,MATCH(W18,'2'!$AJ$15:$AJ$52,0))) -> مكاوي خيرة | Z18: =IF($Y18<>"",VLOOKUP($Y18,'2'!$AG$15:$AL$52,6,0),"") -> 2002-09-11 | AA18: =IF($Y18<>"",VLOOKUP($Y18,'2'!$AG$15:$AI$52,3,0),"") -> 13.7 | AB18: =IF($Y18<>"",VLOOKUP($Y18,'2'!$AG$15:$AH$52,2,0),"") -> لوحة شرف | AF18: 4 | AG18: بلعربي خديجة | AH18: لوحة شرف | AI18: 12.5 | AJ18: =IF(AG18<>"",COUNTIF($AK$15:$AK$52,">"&AK18)+COUNTIF($AK$15:AK18,AK18),"") -> 11 | AK18: 12500 | AL18: 1999-08-12
A19: 5 | C19: أ | D19: بلعربي | E19: سارة | F19: 2002-01-16 | G19: =COUNTIFS(M15:M52,"إنذار") -> 7 | L19: 7.766666667 | M19: توبيخ | P19: بلعربي سارة | S19: أ | W19: 5 | X19: =IF($Y19<>"",VLOOKUP($Y19,'2'!$P$15:$S$52,4,0),"") -> ذ | Y19: =IF(ISNA(MATCH(W19,'2'!$AJ$15:$AJ$52,0)),"",INDEX('2'!$AG$15:$AG$52,MATCH(W19,'2'!$AJ$15:$AJ$52,0))) -> لعيدي أسامة | Z19: =IF($Y19<>"",VLOOKUP($Y19,'2'!$AG$15:$AL$52,6,0),"") -> 2001-01-11 | AA19: =IF($Y19<>"",VLOOKUP($Y19,'2'!$AG$15:$AI$52,3,0),"") -> 13.6 | AB19: =IF($Y19<>"",VLOOKUP($Y19,'2'!$AG$15:$AH$52,2,0),"") -> لوحة شرف | AF19: 5 | AG19: بلعربي سارة | AH19: توبيخ | AI19: 7.766666667 | AJ19: =IF(AG19<>"",COUNTIF($AK$15:$AK$52,">"&AK19)+COUNTIF($AK$15:AK19,AK19),"") -> 26 | AK19: 7766.666667 | AL19: 2002-01-16
A20: 6 | C20: ذ | D20: بلعربي | E20: سمير | F20: 2000-02-16 | G20: =COUNTIFS(M15:M52,"توبيخ") -> 11 | L20: 8.166666667 | M20: إنذار | P20: بلعربي سمير | S20: ذ | W20: 6 | X20: =IF($Y20<>"",VLOOKUP($Y20,'2'!$P$15:$S$52,4,0),"") -> أ | Y20: =IF(ISNA(MATCH(W20,'2'!$AJ$15:$AJ$52,0)),"",INDEX('2'!$AG$15:$AG$52,MATCH(W20,'2'!$AJ$15:$AJ$52,0))) -> شاشو ويزة | Z20: =IF($Y20<>"",VLOOKUP($Y20,'2'!$AG$15:$AL$52,6,0),"") -> 2002-03-17 | AA20: =IF($Y20<>"",VLOOKUP($Y20,'2'!$AG$15:$AI$52,3,0),"") -> 13.5 | AB20: =IF($Y20<>"",VLOOKUP($Y20,'2'!$AG$15:$AH$52,2,0),"") -> لوحة شرف | AF20: 6 | AG20: بلعربي سمير | AH20: إنذار | AI20: 8.166666667 | AJ20: =IF(AG20<>"",COUNTIF($AK$15:$AK$52,">"&AK20)+COUNTIF($AK$15:AK20,AK20),"") -> 25 | AK20: 8166.666667 | AL20: 2000-02-16
A21: 7 | C21: ذ | D21: بورعدة | E21: إلياس | F21: 2001-07-31 | L21: 11.86666667 | M21: لا شيء | P21: بورعدة إلياس | S21: ذ | W21: 7 | X21: =IF($Y21<>"",VLOOKUP($Y21,'2'!$P$15:$S$52,4,0),"") -> ذ | Y21: =IF(ISNA(MATCH(W21,'2'!$AJ$15:$AJ$52,0)),"",INDEX('2'!$AG$15:$AG$52,MATCH(W21,'2'!$AJ$15:$AJ$52,0))) -> بوغرس أمحمد | Z21: =IF($Y21<>"",VLOOKUP($Y21,'2'!$AG$15:$AL$52,6,0),"") -> 1999-08-30 | AA21: =IF($Y21<>"",VLOOKUP($Y21,'2'!$AG$15:$AI$52,3,0),"") -> 13.36666667 | AB21: =IF($Y21<>"",VLOOKUP($Y21,'2'!$AG$15:$AH$52,2,0),"") -> لوحة شرف | AF21: 7 | AG21: بورعدة إلياس | AH21: لا شيء | AI21: 11.86666667 | AJ21: =IF(AG21<>"",COUNTIF($AK$15:$AK$52,">"&AK21)+COUNTIF($AK$15:AK21,AK21),"") -> 14 | AK21: 11866.66667 | AL21: 2001-07-31
A22: 8 | C22: ذ | D22: بوغرس | E22: أمحمد | F22: 1999-08-30 | L22: 13.36666667 | M22: لوحة شرف | P22: بوغرس أمحمد | S22: ذ | W22: 8 | X22: =IF($Y22<>"",VLOOKUP($Y22,'2'!$P$15:$S$52,4,0),"") -> ذ | Y22: =IF(ISNA(MATCH(W22,'2'!$AJ$15:$AJ$52,0)),"",INDEX('2'!$AG$15:$AG$52,MATCH(W22,'2'!$AJ$15:$AJ$52,0))) -> فرحات محمد الأمين | Z22: =IF($Y22<>"",VLOOKUP($Y22,'2'!$AG$15:$AL$52,6,0),"") -> 1998-06-19 | AA22: =IF($Y22<>"",VLOOKUP($Y22,'2'!$AG$15:$AI$52,3,0),"") -> 13.3 | AB22: =IF($Y22<>"",VLOOKUP($Y22,'2'!$AG$15:$AH$52,2,0),"") -> لوحة شرف | AF22: 8 | AG22: بوغرس أمحمد | AH22: لوحة شرف | AI22: 13.36666667 | AJ22: =IF(AG22<>"",COUNTIF($AK$15:$AK$52,">"&AK22)+COUNTIF($AK$15:AK22,AK22),"") -> 7 | AK22: 13366.66667 | AL22: 1999-08-30
A23: 9 | C23: أ | D23: بوكروش | E23: منال | F23: 2002-08-13 | L23: 11.36666667 | M23: لا شيء | P23: بوكروش منال | S23: أ | W23: 9 | X23: =IF($Y23<>"",VLOOKUP($Y23,'2'!$P$15:$S$52,4,0),"") -> ذ | Y23: =IF(ISNA(MATCH(W23,'2'!$AJ$15:$AJ$52,0)),"",INDEX('2'!$AG$15:$AG$52,MATCH(W23,'2'!$AJ$15:$AJ$52,0))) -> فرحات عبد القادر | Z23: =IF($Y23<>"",VLOOKUP($Y23,'2'!$AG$15:$AL$52,6,0),"") -> 2002-02-22 | AA23: =IF($Y23<>"",VLOOKUP($Y23,'2'!$AG$15:$AI$52,3,0),"") -> 13.16666667 | AB23: =IF($Y23<>"",VLOOKUP($Y23,'2'!$AG$15:$AH$52,2,0),"") -> لوحة شرف | AF23: 9 | AG23: بوكروش منال | AH23: لا شيء | AI23: 11.36666667 | AJ23: =IF(AG23<>"",COUNTIF($AK$15:$AK$52,">"&AK23)+COUNTIF($AK$15:AK23,AK23),"") -> 16 | AK23: 11366.66667 | AL23: 2002-08-13
A24: 10 | C24: ذ | D24: بومهدي | E24: رفيق | F24: 2000-06-29 | L24: 3.1 | M24: توبيخ | P24: بومهدي رفيق | S24: ذ | W24: 10 | X24: =IF($Y24<>"",VLOOKUP($Y24,'2'!$P$15:$S$52,4,0),"") -> أ | Y24: =IF(ISNA(MATCH(W24,'2'!$AJ$15:$AJ$52,0)),"",INDEX('2'!$AG$15:$AG$52,MATCH(W24,'2'!$AJ$15:$AJ$52,0))) -> شاشو إكرام | Z24: =IF($Y24<>"",VLOOKUP($Y24,'2'!$AG$15:$AL$52,6,0),"") -> 2002-03-29 | AA24: =IF($Y24<>"",VLOOKUP($Y24,'2'!$AG$15:$AI$52,3,0),"") -> 12.93333333 | AB24: =IF($Y24<>"",VLOOKUP($Y24,'2'!$AG$15:$AH$52,2,0),"") -> لوحة شرف | AF24: 10 | AG24: بومهدي رفيق | AH24: توبيخ | AI24: 3.1 | AJ24: =IF(AG24<>"",COUNTIF($AK$15:$AK$52,">"&AK24)+COUNTIF($AK$15:AK24,AK24),"") -> 36 | AK24: 3100 | AL24: 2000-06-29
A25: 11 | C25: أ | D25: بومهدي | E25: فاطمة | F25: 2001-01-17 | L25: 5.566666667 | M25: توبيخ | P25: بومهدي فاطمة | S25: أ | W25: 11 | X25: =IF($Y25<>"",VLOOKUP($Y25,'2'!$P$15:$S$52,4,0),"") -> أ | Y25: =IF(ISNA(MATCH(W25,'2'!$AJ$15:$AJ$52,0)),"",INDEX('2'!$AG$15:$AG$52,MATCH(W25,'2'!$AJ$15:$AJ$52,0))) -> بلعربي خديجة | Z25: =IF($Y25<>"",VLOOKUP($Y25,'2'!$AG$15:$AL$52,6,0),"") -> 1999-08-12 | AA25: =IF($Y25<>"",VLOOKUP($Y25,'2'!$AG$15:$AI$52,3,0),"") -> 12.5 | AB25: =IF($Y25<>"",VLOOKUP($Y25,'2'!$AG$15:$AH$52,2,0),"") -> لوحة شرف | AF25: 11 | AG25: بومهدي فاطمة | AH25: توبيخ | AI25: 5.566666667 | AJ25: =IF(AG25<>"",COUNTIF($AK$15:$AK$52,">"&AK25)+COUNTIF($AK$15:AK25,AK25),"") -> 33 | AK25: 5566.666667 | AL25: 2001-01-17
A26: 12 | C26: أ | D26: تومي | E26: كحلة | F26: 2002-01-29 | L26: 5.833333333 | M26: توبيخ | P26: تومي كحلة | S26: أ | W26: 12 | X26: =IF($Y26<>"",VLOOKUP($Y26,'2'!$P$15:$S$52,4,0),"") -> ذ | Y26: =IF(ISNA(MATCH(W26,'2'!$AJ$15:$AJ$52,0)),"",INDEX('2'!$AG$15:$AG$52,MATCH(W26,'2'!$AJ$15:$AJ$52,0))) -> دونان عبد الرحمان | Z26: =IF($Y26<>"",VLOOKUP($Y26,'2'!$AG$15:$AL$52,6,0),"") -> 2001-01-10 | AA26: =IF($Y26<>"",VLOOKUP($Y26,'2'!$AG$15:$AI$52,3,0),"") -> 12.36666667 | AB26: =IF($Y26<>"",VLOOKUP($Y26,'2'!$AG$15:$AH$52,2,0),"") -> لوحة شرف | AF26: 12 | AG26: تومي كحلة | AH26: توبيخ | AI26: 5.833333333 | AJ26: =IF(AG26<>"",COUNTIF($AK$15:$AK$52,">"&AK26)+COUNTIF($AK$15:AK26,AK26),"") -> 32 | AK26: 5833.333333 | AL26: 2002-01-29
A27: 13 | C27: ذ | D27: خديمي | E27: إسماعيل | F27: 2002-05-30 | L27: 14.73333333 | M27: تشجيع | P27: خديمي إسماعيل | S27: ذ | W27: 13 | X27: =IF($Y27<>"",VLOOKUP($Y27,'2'!$P$15:$S$52,4,0),"") -> أ | Y27: =IF(ISNA(MATCH(W27,'2'!$AJ$15:$AJ$52,0)),"",INDEX('2'!$AG$15:$AG$52,MATCH(W27,'2'!$AJ$15:$AJ$52,0))) -> مهدادي ميسم ريهام | Z27: =IF($Y27<>"",VLOOKUP($Y27,'2'!$AG$15:$AL$52,6,0),"") -> 2002-12-04 | AA27: =IF($Y27<>"",VLOOKUP($Y27,'2'!$AG$15:$AI$52,3,0),"") -> 11.96666667 | AB27: =IF($Y27<>"",VLOOKUP($Y27,'2'!$AG$15:$AH$52,2,0),"") -> لا شيء | AF27: 13 | AG27: خديمي إسماعيل | AH27: تشجيع | AI27: 14.73333333 | AJ27: =IF(AG27<>"",COUNTIF($AK$15:$AK$52,">"&AK27)+COUNTIF($AK$15:AK27,AK27),"") -> 2 | AK27: 14733.33333 | AL27: 2002-05-30
A28: 14 | C28: ذ | D28: درموز | E28: فوضيل | F28: 1999-05-23 | L28: 9.333333333 | M28: إنذار | P28: درموز فوضيل | S28: ذ | W28: 14 | X28: =IF($Y28<>"",VLOOKUP($Y28,'2'!$P$15:$S$52,4,0),"") -> ذ | Y28: =IF(ISNA(MATCH(W28,'2'!$AJ$15:$AJ$52,0)),"",INDEX('2'!$AG$15:$AG$52,MATCH(W28,'2'!$AJ$15:$AJ$52,0))) -> بورعدة إلياس | Z28: =IF($Y28<>"",VLOOKUP($Y28,'2'!$AG$15:$AL$52,6,0),"") -> 2001-07-31 | AA28: =IF($Y28<>"",VLOOKUP($Y28,'2'!$AG$15:$AI$52,3,0),"") -> 11.86666667 | AB28: =IF($Y28<>"",VLOOKUP($Y28,'2'!$AG$15:$AH$52,2,0),"") -> لا شيء | AF28: 14 | AG28: درموز فوضيل | AH28: إنذار | AI28: 9.333333333 | AJ28: =IF(AG28<>"",COUNTIF($AK$15:$AK$52,">"&AK28)+COUNTIF($AK$15:AK28,AK28),"") -> 20 | AK28: 9333.333333 | AL28: 1999-05-23
A29: 15 | C29: ذ | D29: دونان | E29: عبد الرحمان | F29: 2001-01-10 | L29: 12.36666667 | M29: لوحة شرف | P29: دونان عبد الرحمان | S29: ذ | W29: 15 | X29: =IF($Y29<>"",VLOOKUP($Y29,'2'!$P$15:$S$52,4,0),"") -> ذ | Y29: =IF(ISNA(MATCH(W29,'2'!$AJ$15:$AJ$52,0)),"",INDEX('2'!$AG$15:$AG$52,MATCH(W29,'2'!$AJ$15:$AJ$52,0))) -> عمارة ميلود | Z29: =IF($Y29<>"",VLOOKUP($Y29,'2'!$AG$15:$AL$52,6,0),"") -> 2000-07-15 | AA29: =IF($Y29<>"",VLOOKUP($Y29,'2'!$AG$15:$AI$52,3,0),"") -> 11.66666667 | AB29: =IF($Y29<>"",VLOOKUP($Y29,'2'!$AG$15:$AH$52,2,0),"") -> لا شيء | AF29: 15 | AG29: دونان عبد الرحمان | AH29: لوحة شرف | AI29: 12.36666667 | AJ29: =IF(AG29<>"",COUNTIF($AK$15:$AK$52,">"&AK29)+COUNTIF($AK$15:AK29,AK29),"") -> 12 | AK29: 12366.66667 | AL29: 2001-01-10
A30: 16 | C30: ذ | D30: سالم | E30: أبو بكر | F30: 2000-09-16 | L30: 7.6 | M30: توبيخ | P30: سالم أبو بكر | S30: ذ | W30: 16 | X30: =IF($Y30<>"",VLOOKUP($Y30,'2'!$P$15:$S$52,4,0),"") -> أ | Y30: =IF(ISNA(MATCH(W30,'2'!$AJ$15:$AJ$52,0)),"",INDEX('2'!$AG$15:$AG$52,MATCH(W30,'2'!$AJ$15:$AJ$52,0))) -> بوكروش منال | Z30: =IF($Y30<>"",VLOOKUP($Y30,'2'!$AG$15:$AL$52,6,0),"") -> 2002-08-13 | AA30: =IF($Y30<>"",VLOOKUP($Y30,'2'!$AG$15:$AI$52,3,0),"") -> 11.36666667 | AB30: =IF($Y30<>"",VLOOKUP($Y30,'2'!$AG$15:$AH$52,2,0),"") -> لا شيء | AF30: 16 | AG30: سالم أبو بكر | AH30: توبيخ | AI30: 7.6 | AJ30: =IF(AG30<>"",COUNTIF($AK$15:$AK$52,">"&AK30)+COUNTIF($AK$15:AK30,AK30),"") -> 27 | AK30: 7600 | AL30: 2000-09-16
A31: 17 | C31: أ | D31: شاشو | E31: إكرام | F31: 2002-03-29 | L31: 12.93333333 | M31: لوحة شرف | P31: شاشو إكرام | S31: أ | W31: 17 | X31: =IF($Y31<>"",VLOOKUP($Y31,'2'!$P$15:$S$52,4,0),"") -> أ | Y31: =IF(ISNA(MATCH(W31,'2'!$AJ$15:$AJ$52,0)),"",INDEX('2'!$AG$15:$AG$52,MATCH(W31,'2'!$AJ$15:$AJ$52,0))) -> فرحات إكرام | Z31: =IF($Y31<>"",VLOOKUP($Y31,'2'!$AG$15:$AL$52,6,0),"") -> 2002-03-30 | AA31: =IF($Y31<>"",VLOOKUP($Y31,'2'!$AG$15:$AI$52,3,0),"") -> 11.2 | AB31: =IF($Y31<>"",VLOOKUP($Y31,'2'!$AG$15:$AH$52,2,0),"") -> لا شيء | AF31: 17 | AG31: شاشو إكرام | AH31: لوحة شرف | AI31: 12.93333333 | AJ31: =IF(AG31<>"",COUNTIF($AK$15:$AK$52,">"&AK31)+COUNTIF($AK$15:AK31,AK31),"") -> 10 | AK31: 12933.33333 | AL31: 2002-03-29
A32: 18 | C32: ذ | D32: شاشو | E32: منصور | F32: 2002-12-08 | L32: 6.533333333 | M32: توبيخ | P32: شاشو منصور | S32: ذ | W32: 18 | X32: =IF($Y32<>"",VLOOKUP($Y32,'2'!$P$15:$S$52,4,0),"") -> ذ | Y32: =IF(ISNA(MATCH(W32,'2'!$AJ$15:$AJ$52,0)),"",INDEX('2'!$AG$15:$AG$52,MATCH(W32,'2'!$AJ$15:$AJ$52,0))) -> مرحول بوزيان | Z32: =IF($Y32<>"",VLOOKUP($Y32,'2'!$AG$15:$AL$52,6,0),"") -> 1999-08-09 | AA32: =IF($Y32<>"",VLOOKUP($Y32,'2'!$AG$15:$AI$52,3,0),"") -> 10.03333333 | AB32: =IF($Y32<>"",VLOOKUP($Y32,'2'!$AG$15:$AH$52,2,0),"") -> لا شيء | AF32: 18 | AG32: شاشو منصور | AH32: توبيخ | AI32: 6.533333333 | AJ32: =IF(AG32<>"",COUNTIF($AK$15:$AK$52,">"&AK32)+COUNTIF($AK$15:AK32,AK32),"") -> 30 | AK32: 6533.333333 | AL32: 2002-12-08
A33: 19 | C33: أ | D33: شاشو | E33: ويزة | F33: 2002-03-17 | L33: 13.5 | M33: لوحة شرف | P33: شاشو ويزة | S33: أ | W33: 19 | X33: =IF($Y33<>"",VLOOKUP($Y33,'2'!$P$15:$S$52,4,0),"") -> أ | Y33: =IF(ISNA(MATCH(W33,'2'!$AJ$15:$AJ$52,0)),"",INDEX('2'!$AG$15:$AG$52,MATCH(W33,'2'!$AJ$15:$AJ$52,0))) -> عيسات العالية | Z33: =IF($Y33<>"",VLOOKUP($Y33,'2'!$AG$15:$AL$52,6,0),"") -> 2001-12-29 | AA33: =IF($Y33<>"",VLOOKUP($Y33,'2'!$AG$15:$AI$52,3,0),"") -> 9.933333333 | AB33: =IF($Y33<>"",VLOOKUP($Y33,'2'!$AG$15:$AH$52,2,0),"") -> إنذار | AF33: 19 | AG33: شاشو ويزة | AH33: لوحة شرف | AI33: 13.5 | AJ33: =IF(AG33<>"",COUNTIF($AK$15:$AK$52,">"&AK33)+COUNTIF($AK$15:AK33,AK33),"") -> 6 | AK33: 13500 | AL33: 2002-03-17
A34: 20 | C34: ذ | D34: طرمول | E34: محمد | F34: 1999-01-27 | L34: 6.266666667 | M34: توبيخ | P34: طرمول محمد | S34: ذ | W34: 20 | X34: =IF($Y34<>"",VLOOKUP($Y34,'2'!$P$15:$S$52,4,0),"") -> ذ | Y34: =IF(ISNA(MATCH(W34,'2'!$AJ$15:$AJ$52,0)),"",INDEX('2'!$AG$15:$AG$52,MATCH(W34,'2'!$AJ$15:$AJ$52,0))) -> درموز فوضيل | Z34: =IF($Y34<>"",VLOOKUP($Y34,'2'!$AG$15:$AL$52,6,0),"") -> 1999-05-23 | AA34: =IF($Y34<>"",VLOOKUP($Y34,'2'!$AG$15:$AI$52,3,0),"") -> 9.333333333 | AB34: =IF($Y34<>"",VLOOKUP($Y34,'2'!$AG$15:$AH$52,2,0),"") -> إنذار | AF34: 20 | AG34: طرمول محمد | AH34: توبيخ | AI34: 6.266666667 | AJ34: =IF(AG34<>"",COUNTIF($AK$15:$AK$52,">"&AK34)+COUNTIF($AK$15:AK34,AK34),"") -> 31 | AK34: 6266.666667 | AL34: 1999-01-27
A35: 21 | C35: ذ | D35: عامر | E35: رضوان | F35: 2000-10-31 | L35: 6.766666667 | M35: توبيخ | P35: عامر رضوان | S35: ذ | W35: 21 | X35: =IF($Y35<>"",VLOOKUP($Y35,'2'!$P$15:$S$52,4,0),"") -> ذ | Y35: =IF(ISNA(MATCH(W35,'2'!$AJ$15:$AJ$52,0)),"",INDEX('2'!$AG$15:$AG$52,MATCH(W35,'2'!$AJ$15:$AJ$52,0))) -> لعبادلي العجال | Z35: =IF($Y35<>"",VLOOKUP($Y35,'2'!$AG$15:$AL$52,6,0),"") -> 2000-07-16 | AA35: =IF($Y35<>"",VLOOKUP($Y35,'2'!$AG$15:$AI$52,3,0),"") -> 8.93 | AB35: =IF($Y35<>"",VLOOKUP($Y35,'2'!$AG$15:$AH$52,2,0),"") -> إنذار | AF35: 21 | AG35: عامر رضوان | AH35: توبيخ | AI35: 6.766666667 | AJ35: =IF(AG35<>"",COUNTIF($AK$15:$AK$52,">"&AK35)+COUNTIF($AK$15:AK35,AK35),"") -> 29 | AK35: 6766.666667 | AL35: 2000-10-31
A36: 22 | C36: ذ | D36: عمارة | E36: ميلود | F36: 2000-07-15 | L36: 11.66666667 | M36: لا شيء | P36: عمارة ميلود | S36: ذ | W36: 22 | X36: =IF($Y36<>"",VLOOKUP($Y36,'2'!$P$15:$S$52,4,0),"") -> أ | Y36: =IF(ISNA(MATCH(W36,'2'!$AJ$15:$AJ$52,0)),"",INDEX('2'!$AG$15:$AG$52,MATCH(W36,'2'!$AJ$15:$AJ$52,0))) -> هاشمي خضرة | Z36: =IF($Y36<>"",VLOOKUP($Y36,'2'!$AG$15:$AL$52,6,0),"") -> 2001-09-25 | AA36: =IF($Y36<>"",VLOOKUP($Y36,'2'!$AG$15:$AI$52,3,0),"") -> 8.9 | AB36: =IF($Y36<>"",VLOOKUP($Y36,'2'!$AG$15:$AH$52,2,0),"") -> إنذار | AF36: 22 | AG36: عمارة ميلود | AH36: لا شيء | AI36: 11.66666667 | AJ36: =IF(AG36<>"",COUNTIF($AK$15:$AK$52,">"&AK36)+COUNTIF($AK$15:AK36,AK36),"") -> 15 | AK36: 11666.66667 | AL36: 2000-07-15
A37: 23 | C37: أ | D37: عيسات | E37: العالية | F37: 2001-12-29 | L37: 9.933333333 | M37: إنذار | P37: عيسات العالية | S37: أ | W37: 23 | X37: =IF($Y37<>"",VLOOKUP($Y37,'2'!$P$15:$S$52,4,0),"") -> ذ | Y37: =IF(ISNA(MATCH(W37,'2'!$AJ$15:$AJ$52,0)),"",INDEX('2'!$AG$15:$AG$52,MATCH(W37,'2'!$AJ$15:$AJ$52,0))) -> بلعربي بوعبد الله | Z37: =IF($Y37<>"",VLOOKUP($Y37,'2'!$AG$15:$AL$52,6,0),"") -> 2000-10-16 | AA37: =IF($Y37<>"",VLOOKUP($Y37,'2'!$AG$15:$AI$52,3,0),"") -> 8.8 | AB37: =IF($Y37<>"",VLOOKUP($Y37,'2'!$AG$15:$AH$52,2,0),"") -> إنذار | AF37: 23 | AG37: عيسات العالية | AH37: إنذار | AI37: 9.933333333 | AJ37: =IF(AG37<>"",COUNTIF($AK$15:$AK$52,">"&AK37)+COUNTIF($AK$15:AK37,AK37),"") -> 19 | AK37: 9933.333333 | AL37: 2001-12-29
A38: 24 | C38: أ | D38: فرحات | E38: إكرام | F38: 2002-03-30 | L38: 11.2 | M38: لا شيء | P38: فرحات إكرام | S38: أ | W38: 24 | X38: =IF($Y38<>"",VLOOKUP($Y38,'2'!$P$15:$S$52,4,0),"") -> أ | Y38: =IF(ISNA(MATCH(W38,'2'!$AJ$15:$AJ$52,0)),"",INDEX('2'!$AG$15:$AG$52,MATCH(W38,'2'!$AJ$15:$AJ$52,0))) -> باي شيماء | Z38: =IF($Y38<>"",VLOOKUP($Y38,'2'!$AG$15:$AL$52,6,0),"") -> 2001-12-21 | AA38: =IF($Y38<>"",VLOOKUP($Y38,'2'!$AG$15:$AI$52,3,0),"") -> 8.166666667 | AB38: =IF($Y38<>"",VLOOKUP($Y38,'2'!$AG$15:$AH$52,2,0),"") -> إنذار | AF38: 24 | AG38: فرحات إكرام | AH38: لا شيء | AI38: 11.2 | AJ38: =IF(AG38<>"",COUNTIF($AK$15:$AK$52,">"&AK38)+COUNTIF($AK$15:AK38,AK38),"") -> 17 | AK38: 11200 | AL38: 2002-03-30
A39: 25 | C39: ذ | D39: فرحات | E39: عبد القادر | F39: 2002-02-22 | L39: 13.16666667 | M39: لوحة شرف | P39: فرحات عبد القادر | S39: ذ | W39: 25 | X39: =IF($Y39<>"",VLOOKUP($Y39,'2'!$P$15:$S$52,4,0),"") -> ذ | Y39: =IF(ISNA(MATCH(W39,'2'!$AJ$15:$AJ$52,0)),"",INDEX('2'!$AG$15:$AG$52,MATCH(W39,'2'!$AJ$15:$AJ$52,0))) -> بلعربي سمير | Z39: =IF($Y39<>"",VLOOKUP($Y39,'2'!$AG$15:$AL$52,6,0),"") -> 2000-02-16 | AA39: =IF($Y39<>"",VLOOKUP($Y39,'2'!$AG$15:$AI$52,3,0),"") -> 8.166666667 | AB39: =IF($Y39<>"",VLOOKUP($Y39,'2'!$AG$15:$AH$52,2,0),"") -> إنذار | AF39: 25 | AG39: فرحات عبد القادر | AH39: لوحة شرف | AI39: 13.16666667 | AJ39: =IF(AG39<>"",COUNTIF($AK$15:$AK$52,">"&AK39)+COUNTIF($AK$15:AK39,AK39),"") -> 9 | AK39: 13166.66667 | AL39: 2002-02-22
A40: 26 | C40: ذ | D40: فرحات | E40: محمد الأمين | F40: 1998-06-19 | L40: 13.3 | M40: لوحة شرف | P40: فرحات محمد الأمين | S40: ذ | W40: 26 | X40: =IF($Y40<>"",VLOOKUP($Y40,'2'!$P$15:$S$52,4,0),"") -> أ | Y40: =IF(ISNA(MATCH(W40,'2'!$AJ$15:$AJ$52,0)),"",INDEX('2'!$AG$15:$AG$52,MATCH(W40,'2'!$AJ$15:$AJ$52,0))) -> بلعربي سارة | Z40: =IF($Y40<>"",VLOOKUP($Y40,'2'!$AG$15:$AL$52,6,0),"") -> 2002-01-16 | AA40: =IF($Y40<>"",VLOOKUP($Y40,'2'!$AG$15:$AI$52,3,0),"") -> 7.766666667 | AB40: =IF($Y40<>"",VLOOKUP($Y40,'2'!$AG$15:$AH$52,2,0),"") -> توبيخ | AF40: 26 | AG40: فرحات محمد الأمين | AH40: لوحة شرف | AI40: 13.3 | AJ40: =IF(AG40<>"",COUNTIF($AK$15:$AK$52,">"&AK40)+COUNTIF($AK$15:AK40,AK40),"") -> 8 | AK40: 13300 | AL40: 1998-06-19
A41: 27 | C41: أ | D41: قاضي | E41: إكرام | F41: 2002-08-19 | L41: 4.366666667 | M41: توبيخ | P41: قاضي إكرام | S41: أ | W41: 27 | X41: =IF($Y41<>"",VLOOKUP($Y41,'2'!$P$15:$S$52,4,0),"") -> ذ | Y41: =IF(ISNA(MATCH(W41,'2'!$AJ$15:$AJ$52,0)),"",INDEX('2'!$AG$15:$AG$52,MATCH(W41,'2'!$AJ$15:$AJ$52,0))) -> سالم أبو بكر | Z41: =IF($Y41<>"",VLOOKUP($Y41,'2'!$AG$15:$AL$52,6,0),"") -> 2000-09-16 | AA41: =IF($Y41<>"",VLOOKUP($Y41,'2'!$AG$15:$AI$52,3,0),"") -> 7.6 | AB41: =IF($Y41<>"",VLOOKUP($Y41,'2'!$AG$15:$AH$52,2,0),"") -> توبيخ | AF41: 27 | AG41: قاضي إكرام | AH41: توبيخ | AI41: 4.366666667 | AJ41: =IF(AG41<>"",COUNTIF($AK$15:$AK$52,">"&AK41)+COUNTIF($AK$15:AK41,AK41),"") -> 34 | AK41: 4366.666667 | AL41: 2002-08-19
A42: 28 | C42: أ | D42: قوميش | E42: حنان | F42: 2002-09-29 | L42: 7.4 | M42: توبيخ | P42: قوميش حنان | S42: أ | W42: 28 | X42: =IF($Y42<>"",VLOOKUP($Y42,'2'!$P$15:$S$52,4,0),"") -> أ | Y42: =IF(ISNA(MATCH(W42,'2'!$AJ$15:$AJ$52,0)),"",INDEX('2'!$AG$15:$AG$52,MATCH(W42,'2'!$AJ$15:$AJ$52,0))) -> قوميش حنان | Z42: =IF($Y42<>"",VLOOKUP($Y42,'2'!$AG$15:$AL$52,6,0),"") -> 2002-09-29 | AA42: =IF($Y42<>"",VLOOKUP($Y42,'2'!$AG$15:$AI$52,3,0),"") -> 7.4 | AB42: =IF($Y42<>"",VLOOKUP($Y42,'2'!$AG$15:$AH$52,2,0),"") -> توبيخ | AF42: 28 | AG42: قوميش حنان | AH42: توبيخ | AI42: 7.4 | AJ42: =IF(AG42<>"",COUNTIF($AK$15:$AK$52,">"&AK42)+COUNTIF($AK$15:AK42,AK42),"") -> 28 | AK42: 7400 | AL42: 2002-09-29
A43: 29 | C43: ذ | D43: لعبادلي | E43: العجال | F43: 2000-07-16 | L43: 8.93 | M43: إنذار | P43: لعبادلي العجال | S43: ذ | W43: 29 | X43: =IF($Y43<>"",VLOOKUP($Y43,'2'!$P$15:$S$52,4,0),"") -> ذ | Y43: =IF(ISNA(MATCH(W43,'2'!$AJ$15:$AJ$52,0)),"",INDEX('2'!$AG$15:$AG$52,MATCH(W43,'2'!$AJ$15:$AJ$52,0))) -> عامر رضوان | Z43: =IF($Y43<>"",VLOOKUP($Y43,'2'!$AG$15:$AL$52,6,0),"") -> 2000-10-31 | AA43: =IF($Y43<>"",VLOOKUP($Y43,'2'!$AG$15:$AI$52,3,0),"") -> 6.766666667 | AB43: =IF($Y43<>"",VLOOKUP($Y43,'2'!$AG$15:$AH$52,2,0),"") -> توبيخ | AF43: 29 | AG43: لعبادلي العجال | AH43: إنذار | AI43: 8.93 | AJ43: =IF(AG43<>"",COUNTIF($AK$15:$AK$52,">"&AK43)+COUNTIF($AK$15:AK43,AK43),"") -> 21 | AK43: 8930 | AL43: 2000-07-16
A44: 30 | C44: ذ | D44: لعيدي | E44: أسامة | F44: 2001-01-11 | L44: 13.6 | M44: لوحة شرف | P44: لعيدي أسامة | S44: ذ | W44: 30 | X44: =IF($Y44<>"",VLOOKUP($Y44,'2'!$P$15:$S$52,4,0),"") -> ذ | Y44: =IF(ISNA(MATCH(W44,'2'!$AJ$15:$AJ$52,0)),"",INDEX('2'!$AG$15:$AG$52,MATCH(W44,'2'!$AJ$15:$AJ$52,0))) -> شاشو منصور | Z44: =IF($Y44<>"",VLOOKUP($Y44,'2'!$AG$15:$AL$52,6,0),"") -> 2002-12-08 | AA44: =IF($Y44<>"",VLOOKUP($Y44,'2'!$AG$15:$AI$52,3,0),"") -> 6.533333333 | AB44: =IF($Y44<>"",VLOOKUP($Y44,'2'!$AG$15:$AH$52,2,0),"") -> توبيخ | AF44: 30 | AG44: لعيدي أسامة | AH44: لوحة شرف | AI44: 13.6 | AJ44: =IF(AG44<>"",COUNTIF($AK$15:$AK$52,">"&AK44)+COUNTIF($AK$15:AK44,AK44),"") -> 5 | AK44: 13600 | AL44: 2001-01-11
A45: 31 | C45: ذ | D45: مرحول | E45: بوزيان | F45: 1999-08-09 | L45: 10.03333333 | M45: لا شيء | P45: مرحول بوزيان | S45: ذ | W45: 31 | X45: =IF($Y45<>"",VLOOKUP($Y45,'2'!$P$15:$S$52,4,0),"") -> ذ | Y45: =IF(ISNA(MATCH(W45,'2'!$AJ$15:$AJ$52,0)),"",INDEX('2'!$AG$15:$AG$52,MATCH(W45,'2'!$AJ$15:$AJ$52,0))) -> طرمول محمد | Z45: =IF($Y45<>"",VLOOKUP($Y45,'2'!$AG$15:$AL$52,6,0),"") -> 1999-01-27 | AA45: =IF($Y45<>"",VLOOKUP($Y45,'2'!$AG$15:$AI$52,3,0),"") -> 6.266666667 | AB45: =IF($Y45<>"",VLOOKUP($Y45,'2'!$AG$15:$AH$52,2,0),"") -> توبيخ | AF45: 31 | AG45: مرحول بوزيان | AH45: لا شيء | AI45: 10.03333333 | AJ45: =IF(AG45<>"",COUNTIF($AK$15:$AK$52,">"&AK45)+COUNTIF($AK$15:AK45,AK45),"") -> 18 | AK45: 10033.33333 | AL45: 1999-08-09
A46: 32 | C46: ذ | D46: معمري | E46: عمر | F46: 2002-03-17 | L46: 14.13333333 | M46: تشجيع | P46: معمري عمر | S46: ذ | W46: 32 | X46: =IF($Y46<>"",VLOOKUP($Y46,'2'!$P$15:$S$52,4,0),"") -> أ | Y46: =IF(ISNA(MATCH(W46,'2'!$AJ$15:$AJ$52,0)),"",INDEX('2'!$AG$15:$AG$52,MATCH(W46,'2'!$AJ$15:$AJ$52,0))) -> تومي كحلة | Z46: =IF($Y46<>"",VLOOKUP($Y46,'2'!$AG$15:$AL$52,6,0),"") -> 2002-01-29 | AA46: =IF($Y46<>"",VLOOKUP($Y46,'2'!$AG$15:$AI$52,3,0),"") -> 5.833333333 | AB46: =IF($Y46<>"",VLOOKUP($Y46,'2'!$AG$15:$AH$52,2,0),"") -> توبيخ | AF46: 32 | AG46: معمري عمر | AH46: تشجيع | AI46: 14.13333333 | AJ46: =IF(AG46<>"",COUNTIF($AK$15:$AK$52,">"&AK46)+COUNTIF($AK$15:AK46,AK46),"") -> 3 | AK46: 14133.33333 | AL46: 2002-03-17
A47: 33 | C47: أ | D47: مكاوي | E47: خيرة | F47: 2002-09-11 | L47: 13.7 | M47: لوحة شرف | P47: مكاوي خيرة | S47: أ | W47: 33 | X47: =IF($Y47<>"",VLOOKUP($Y47,'2'!$P$15:$S$52,4,0),"") -> أ | Y47: =IF(ISNA(MATCH(W47,'2'!$AJ$15:$AJ$52,0)),"",INDEX('2'!$AG$15:$AG$52,MATCH(W47,'2'!$AJ$15:$AJ$52,0))) -> بومهدي فاطمة | Z47: =IF($Y47<>"",VLOOKUP($Y47,'2'!$AG$15:$AL$52,6,0),"") -> 2001-01-17 | AA47: =IF($Y47<>"",VLOOKUP($Y47,'2'!$AG$15:$AI$52,3,0),"") -> 5.566666667 | AB47: =IF($Y47<>"",VLOOKUP($Y47,'2'!$AG$15:$AH$52,2,0),"") -> توبيخ | AF47: 33 | AG47: مكاوي خيرة | AH47: لوحة شرف | AI47: 13.7 | AJ47: =IF(AG47<>"",COUNTIF($AK$15:$AK$52,">"&AK47)+COUNTIF($AK$15:AK47,AK47),"") -> 4 | AK47: 13700 | AL47: 2002-09-11
A48: 34 | C48: أ | D48: مهدادي | E48: ميسم ريهام | F48: 2002-12-04 | L48: 11.96666667 | M48: لا شيء | P48: مهدادي ميسم ريهام | S48: أ | W48: 34 | X48: =IF($Y48<>"",VLOOKUP($Y48,'2'!$P$15:$S$52,4,0),"") -> أ | Y48: =IF(ISNA(MATCH(W48,'2'!$AJ$15:$AJ$52,0)),"",INDEX('2'!$AG$15:$AG$52,MATCH(W48,'2'!$AJ$15:$AJ$52,0))) -> قاضي إكرام | Z48: =IF($Y48<>"",VLOOKUP($Y48,'2'!$AG$15:$AL$52,6,0),"") -> 2002-08-19 | AA48: =IF($Y48<>"",VLOOKUP($Y48,'2'!$AG$15:$AI$52,3,0),"") -> 4.366666667 | AB48: =IF($Y48<>"",VLOOKUP($Y48,'2'!$AG$15:$AH$52,2,0),"") -> توبيخ | AF48: 34 | AG48: مهدادي ميسم ريهام | AH48: لا شيء | AI48: 11.96666667 | AJ48: =IF(AG48<>"",COUNTIF($AK$15:$AK$52,">"&AK48)+COUNTIF($AK$15:AK48,AK48),"") -> 13 | AK48: 11966.66667 | AL48: 2002-12-04
A49: 35 | C49: أ | D49: هاشمي | E49: خضرة | F49: 2001-09-25 | L49: 8.9 | M49: إنذار | P49: هاشمي خضرة | S49: أ | W49: 35 | X49: =IF($Y49<>"",VLOOKUP($Y49,'2'!$P$15:$S$52,4,0),"") -> ذ | Y49: =IF(ISNA(MATCH(W49,'2'!$AJ$15:$AJ$52,0)),"",INDEX('2'!$AG$15:$AG$52,MATCH(W49,'2'!$AJ$15:$AJ$52,0))) -> بلعباس الحاج | Z49: =IF($Y49<>"",VLOOKUP($Y49,'2'!$AG$15:$AL$52,6,0),"") -> 2002-10-09 | AA49: =IF($Y49<>"",VLOOKUP($Y49,'2'!$AG$15:$AI$52,3,0),"") -> 4 | AB49: =IF($Y49<>"",VLOOKUP($Y49,'2'!$AG$15:$AH$52,2,0),"") -> توبيخ | AF49: 35 | AG49: هاشمي خضرة | AH49: إنذار | AI49: 8.9 | AJ49: =IF(AG49<>"",COUNTIF($AK$15:$AK$52,">"&AK49)+COUNTIF($AK$15:AK49,AK49),"") -> 22 | AK49: 8900 | AL49: 2001-09-25
A50: 36 | C50: ذ | D50: هاشمي | E50: لخضر | F50: 2001-09-25 | L50: 16.8 | M50: تهنئة | P50: هاشمي لخضر | S50: ذ | W50: 36 | X50: =IF($Y50<>"",VLOOKUP($Y50,'2'!$P$15:$S$52,4,0),"") -> ذ | Y50: =IF(ISNA(MATCH(W50,'2'!$AJ$15:$AJ$52,0)),"",INDEX('2'!$AG$15:$AG$52,MATCH(W50,'2'!$AJ$15:$AJ$52,0))) -> بومهدي رفيق | Z50: =IF($Y50<>"",VLOOKUP($Y50,'2'!$AG$15:$AL$52,6,0),"") -> 2000-06-29 | AA50: =IF($Y50<>"",VLOOKUP($Y50,'2'!$AG$15:$AI$52,3,0),"") -> 3.1 | AB50: =IF($Y50<>"",VLOOKUP($Y50,'2'!$AG$15:$AH$52,2,0),"") -> توبيخ | AF50: 36 | AG50: هاشمي لخضر | AH50: تهنئة | AI50: 16.8 | AJ50: =IF(AG50<>"",COUNTIF($AK$15:$AK$52,">"&AK50)+COUNTIF($AK$15:AK50,AK50),"") -> 1 | AK50: 16800 | AL50: 2001-09-25
A51: 37 | S51: 0 | W51: 37 | X51: =IF($Y51<>"",VLOOKUP($Y51,'2'!$P$15:$S$52,4,0),"") -> 0 | Y51: =IF(ISNA(MATCH(W51,'2'!$AJ$15:$AJ$52,0)),"",INDEX('2'!$AG$15:$AG$52,MATCH(W51,'2'!$AJ$15:$AJ$52,0))) ->  | Z51: =IF($Y51<>"",VLOOKUP($Y51,'2'!$AG$15:$AL$52,6,0),"") -> 00:00:00 | AA51: =IF($Y51<>"",VLOOKUP($Y51,'2'!$AG$15:$AI$52,3,0),"") -> 0 | AB51: =IF($Y51<>"",VLOOKUP($Y51,'2'!$AG$15:$AH$52,2,0),"") -> 0 | AF51: 37 | AH51: 0 | AI51: 0 | AJ51: =IF(AG51<>"",COUNTIF($AK$15:$AK$52,">"&AK51)+COUNTIF($AK$15:AK51,AK51),"") -> 37 | AK51: 0 | AL51: 00:00:00
A52: 38 | S52: 0 | W52: 38 | X52: =IF($Y52<>"",VLOOKUP($Y52,'2'!$P$15:$S$52,4,0),"") -> 0 | Y52: =IF(ISNA(MATCH(W52,'2'!$AJ$15:$AJ$52,0)),"",INDEX('2'!$AG$15:$AG$52,MATCH(W52,'2'!$AJ$15:$AJ$52,0))) ->  | Z52: =IF($Y52<>"",VLOOKUP($Y52,'2'!$AG$15:$AL$52,6,0),"") -> 00:00:00 | AA52: =IF($Y52<>"",VLOOKUP($Y52,'2'!$AG$15:$AI$52,3,0),"") -> 0 | AB52: =IF($Y52<>"",VLOOKUP($Y52,'2'!$AG$15:$AH$52,2,0),"") -> 0 | AF52: 38 | AH52: 0 | AI52: 0 | AJ52: =IF(AG52<>"",COUNTIF($AK$15:$AK$52,">"&AK52)+COUNTIF($AK$15:AK52,AK52),"") -> 38 | AK52: 0 | AL52: 00:00:00
L54: =COUNTIFS(L15:L52,">=10") -> 18
D55: ="المجموع : " &F55 -> المجموع : 36 | F55: =SUM(F57:F58) -> 36 | M55: ="التهنئة : "&G15 -> التهنئة : 1 | Q55: ="لا شيء : "&G18 -> لا شيء : 6 | Y55: ="المجموع : " &AA57 -> المجموع : 36 | AB55: =F55 -> 36
D57: ="البنات : "&F57 -> البنات : 15 | F57: =COUNTIFS(C15:C52,"أ") -> 15 | M57: ="التشجيع : "&G16 -> التشجيع : 2 | Q57: ="الإنذار : "&G19 -> الإنذار : 7 | Y57: =D57 -> البنات : 15 | AA57: =F55 -> 36 | AB57: =AB55 -> 36 | AD57: المعدل الفصلي أكبرمن أو يساوي 10 | AH57: =COUNTIFS(AA15:AA45,">=10") -> 18 | AI57: =AH57/AB55 -> 0.5
D58: ="البنين : "&F58 -> البنين : 21 | F58: =COUNTIFS(C15:C52,"ذ") -> 21 | M58: ="لوحة شرف : "&G17 -> لوحة شرف : 9 | Q58: ="التوبيخ : "&G20 -> التوبيخ : 11 | Y58: =D58 -> البنين : 21 | AB58: =AB57 -> 36
D63: =IF(D1<>"",D1,"") -> متوسطة مكاوي علي؛ اولاد البارودي - سيدي لخضر | R63: =IF(R1<>"",R1,"") -> 2015/2014 | Y63: =D63 -> متوسطة مكاوي علي؛ اولاد البارودي - سيدي لخضر | AI63: =IF(R63<>"",R63,"") -> 2015/2014 | AJ63: =IF(N63<>"",N63,"") -> 
AI64: =IF(M64<>"",M64,"") ->  | AJ64: =IF(N64<>"",N64,"") -> 
D65: القسم: | E65: =E3 -> س4م3 | K65: نتائج الفصل الثاني | Y65: القسم: | Z65: =E65 -> س4م3
AB66: ترتيب التلاميذ حسب معدلاتهم (الفصـــــــــــــل الثاني)
AI67: =AI5 -> 4
D70: اللقب | E70: الإسم | F70: تاريخ الميلاد | L70: المعدل الفصلي على 20 | M70: الإجازات و العقوبات | Y70: اللقب و الإسم | Z70: تاريخ الميلاد | AA70: المعدل الفصلي على 20 | AB70: الإجازات و العقوبات
A77: 1 | C77: =C15 -> أ | D77: =D15 -> باي | E77: =E15 -> شيماء | F77: =IF(F15<>"",F15,"") -> 2001-12-21 | G77: =COUNTIFS(M77:M114,"تهنئة") -> 0 | L77: 6.966666667 | M77: =IF(AND(L77>=15,L77<20),"تهنئة","")&IF(AND(L77>=14,L77<15),"تشجيع","")&IF(AND(L77>=12,L77<14),"لوحة شرف","")&IF(AND(L77>=10,L77<12),"لا شيء","")&IF(AND(L77>=8,L77<10),"إنذار","")&IF(AND(L77>0,L77<8),"توبيخ","")&IF(AND(L77<>"",L77=0),"","") -> توبيخ | W77: 1 | Y77: =IF(ISNA(MATCH(W77,'2'!$AJ$77:$AJ$114,0)),"",INDEX('2'!$AG$77:$AG$114,MATCH(W77,'2'!$AJ$77:$AJ$114,0))) -> شاشو ويزة | Z77: =IF($Y77<>"",VLOOKUP($Y77,'2'!$AG$77:$AL$114,6,0),"") -> 2002-03-17 | AA77: =IF($Y77<>"",VLOOKUP($Y77,'2'!$AG$77:$AI$114,3,0),"") -> 14.53333333 | AB77: =IF($Y77<>"",VLOOKUP($Y77,'2'!$AG$77:$AH$114,2,0),"") -> تشجيع | AF77: 1 | AG77: =D77&" "&E77 -> باي شيماء | AH77: =IF(M77="",0,M77) -> توبيخ | AI77: =IF(L77="",0,L77) -> 6.966666667 | AJ77: =IF(AG77<>"",COUNTIF($AK$77:$AK$114,">"&AK77)+COUNTIF($AK$77:AK77,AK77),"") -> 20 | AK77: =IF(AI77<>"",AI77*1000,"") -> 6966.666667 | AL77: =IF(F77="",0,F77) -> 2001-12-21
A78: 2 | C78: =C16 -> ذ | D78: بلعباس | E78: الحاج | F78: =IF(F16<>"",F16,"") -> 2002-10-09 | G78: =COUNTIFS(M77:M114,"تشجيع") -> 1 | L78: 5.6 | M78: توبيخ | W78: 2 | Y78: =IF(ISNA(MATCH(W78,'2'!$AJ$77:$AJ$114,0)),"",INDEX('2'!$AG$77:$AG$114,MATCH(W78,'2'!$AJ$77:$AJ$114,0))) -> مكاوي خيرة | Z78: =IF($Y78<>"",VLOOKUP($Y78,'2'!$AG$77:$AL$114,6,0),"") -> 2002-09-11 | AA78: =IF($Y78<>"",VLOOKUP($Y78,'2'!$AG$77:$AI$114,3,0),"") -> 13.4 | AB78: =IF($Y78<>"",VLOOKUP($Y78,'2'!$AG$77:$AH$114,2,0),"") -> لوحة شرف | AF78: 2 | AG78: بلعباس الحاج | AH78: =IF(M78="",0,M78) -> توبيخ | AI78: 5.6 | AJ78: =IF(AG78<>"",COUNTIF($AK$77:$AK$114,">"&AK78)+COUNTIF($AK$77:AK78,AK78),"") -> 29 | AK78: 5600 | AL78: 2002-10-09
A79: 3 | C79: ذ | D79: بلعربي | E79: بوعبد الله | F79: 2000-10-16 | G79: =COUNTIFS(M77:M114,"لوحة شرف") -> 4 | L79: 7.9 | M79: توبيخ | W79: 3 | Y79: =IF(ISNA(MATCH(W79,'2'!$AJ$77:$AJ$114,0)),"",INDEX('2'!$AG$77:$AG$114,MATCH(W79,'2'!$AJ$77:$AJ$114,0))) -> بوغرس أمحمد | Z79: =IF($Y79<>"",VLOOKUP($Y79,'2'!$AG$77:$AL$114,6,0),"") -> 1999-08-30 | AA79: =IF($Y79<>"",VLOOKUP($Y79,'2'!$AG$77:$AI$114,3,0),"") -> 13.33333333 | AB79: =IF($Y79<>"",VLOOKUP($Y79,'2'!$AG$77:$AH$114,2,0),"") -> لوحة شرف | AF79: 3 | AG79: بلعربي بوعبد الله | AH79: توبيخ | AI79: 7.9 | AJ79: =IF(AG79<>"",COUNTIF($AK$77:$AK$114,">"&AK79)+COUNTIF($AK$77:AK79,AK79),"") -> 14 | AK79: 7900 | AL79: 2000-10-16
A80: 4 | C80: أ | D80: بلعربي | E80: خديجة | F80: 1999-08-12 | G80: =COUNTIFS(M77:M114,"لا شيء") -> 2 | L80: 7.7 | M80: توبيخ | W80: 4 | Y80: =IF(ISNA(MATCH(W80,'2'!$AJ$77:$AJ$114,0)),"",INDEX('2'!$AG$77:$AG$114,MATCH(W80,'2'!$AJ$77:$AJ$114,0))) -> لعيدي أسامة | Z80: =IF($Y80<>"",VLOOKUP($Y80,'2'!$AG$77:$AL$114,6,0),"") -> 2001-01-11 | AA80: =IF($Y80<>"",VLOOKUP($Y80,'2'!$AG$77:$AI$114,3,0),"") -> 12.63333333 | AB80: =IF($Y80<>"",VLOOKUP($Y80,'2'!$AG$77:$AH$114,2,0),"") -> لوحة شرف | AF80: 4 | AG80: بلعربي خديجة | AH80: توبيخ | AI80: 7.7 | AJ80: =IF(AG80<>"",COUNTIF($AK$77:$AK$114,">"&AK80)+COUNTIF($AK$77:AK80,AK80),"") -> 16 | AK80: 7700 | AL80: 1999-08-12
A81: 5 | C81: أ | D81: بلعربي | E81: سارة | F81: 2002-01-16 | G81: =COUNTIFS(M77:M114,"إنذار") -> 6 | L81: 5.233333333 | M81: توبيخ | W81: 5 | Y81: =IF(ISNA(MATCH(W81,'2'!$AJ$77:$AJ$114,0)),"",INDEX('2'!$AG$77:$AG$114,MATCH(W81,'2'!$AJ$77:$AJ$114,0))) -> خديمي إسماعيل | Z81: =IF($Y81<>"",VLOOKUP($Y81,'2'!$AG$77:$AL$114,6,0),"") -> 2002-05-30 | AA81: =IF($Y81<>"",VLOOKUP($Y81,'2'!$AG$77:$AI$114,3,0),"") -> 12.6 | AB81: =IF($Y81<>"",VLOOKUP($Y81,'2'!$AG$77:$AH$114,2,0),"") -> لوحة شرف | AF81: 5 | AG81: بلعربي سارة | AH81: توبيخ | AI81: 5.233333333 | AJ81: =IF(AG81<>"",COUNTIF($AK$77:$AK$114,">"&AK81)+COUNTIF($AK$77:AK81,AK81),"") -> 30 | AK81: 5233.333333 | AL81: 2002-01-16
A82: 6 | C82: ذ | D82: بلعربي | E82: سمير | F82: 2000-02-16 | G82: =COUNTIFS(M77:M114,"توبيخ") -> 23 | L82: 7.233333333 | M82: توبيخ | W82: 6 | Y82: =IF(ISNA(MATCH(W82,'2'!$AJ$77:$AJ$114,0)),"",INDEX('2'!$AG$77:$AG$114,MATCH(W82,'2'!$AJ$77:$AJ$114,0))) -> هاشمي لخضر | Z82: =IF($Y82<>"",VLOOKUP($Y82,'2'!$AG$77:$AL$114,6,0),"") -> 2001-09-25 | AA82: =IF($Y82<>"",VLOOKUP($Y82,'2'!$AG$77:$AI$114,3,0),"") -> 11.46666667 | AB82: =IF($Y82<>"",VLOOKUP($Y82,'2'!$AG$77:$AH$114,2,0),"") -> لا شيء | AF82: 6 | AG82: بلعربي سمير | AH82: توبيخ | AI82: 7.233333333 | AJ82: =IF(AG82<>"",COUNTIF($AK$77:$AK$114,">"&AK82)+COUNTIF($AK$77:AK82,AK82),"") -> 19 | AK82: 7233.333333 | AL82: 2000-02-16
A83: 7 | C83: ذ | D83: بورعدة | E83: إلياس | F83: 2001-07-31 | L83: 6.866666667 | M83: توبيخ | W83: 7 | Y83: =IF(ISNA(MATCH(W83,'2'!$AJ$77:$AJ$114,0)),"",INDEX('2'!$AG$77:$AG$114,MATCH(W83,'2'!$AJ$77:$AJ$114,0))) -> هاشمي خضرة | Z83: =IF($Y83<>"",VLOOKUP($Y83,'2'!$AG$77:$AL$114,6,0),"") -> 2001-09-25 | AA83: =IF($Y83<>"",VLOOKUP($Y83,'2'!$AG$77:$AI$114,3,0),"") -> 10.46666667 | AB83: =IF($Y83<>"",VLOOKUP($Y83,'2'!$AG$77:$AH$114,2,0),"") -> لا شيء | AF83: 7 | AG83: بورعدة إلياس | AH83: توبيخ | AI83: 6.866666667 | AJ83: =IF(AG83<>"",COUNTIF($AK$77:$AK$114,">"&AK83)+COUNTIF($AK$77:AK83,AK83),"") -> 22 | AK83: 6866.666667 | AL83: 2001-07-31
A84: 8 | C84: ذ | D84: بوغرس | E84: أمحمد | F84: 1999-08-30 | L84: 13.33333333 | M84: لوحة شرف | W84: 8 | Y84: =IF(ISNA(MATCH(W84,'2'!$AJ$77:$AJ$114,0)),"",INDEX('2'!$AG$77:$AG$114,MATCH(W84,'2'!$AJ$77:$AJ$114,0))) -> مهدادي ميسم ريهام | Z84: =IF($Y84<>"",VLOOKUP($Y84,'2'!$AG$77:$AL$114,6,0),"") -> 2002-12-04 | AA84: =IF($Y84<>"",VLOOKUP($Y84,'2'!$AG$77:$AI$114,3,0),"") -> 9.8 | AB84: =IF($Y84<>"",VLOOKUP($Y84,'2'!$AG$77:$AH$114,2,0),"") -> إنذار | AF84: 8 | AG84: بوغرس أمحمد | AH84: لوحة شرف | AI84: 13.33333333 | AJ84: =IF(AG84<>"",COUNTIF($AK$77:$AK$114,">"&AK84)+COUNTIF($AK$77:AK84,AK84),"") -> 3 | AK84: 13333.33333 | AL84: 1999-08-30
A85: 9 | C85: أ | D85: بوكروش | E85: منال | F85: 2002-08-13 | L85: 9 | M85: إنذار | W85: 9 | Y85: =IF(ISNA(MATCH(W85,'2'!$AJ$77:$AJ$114,0)),"",INDEX('2'!$AG$77:$AG$114,MATCH(W85,'2'!$AJ$77:$AJ$114,0))) -> فرحات عبد القادر | Z85: =IF($Y85<>"",VLOOKUP($Y85,'2'!$AG$77:$AL$114,6,0),"") -> 2002-02-22 | AA85: =IF($Y85<>"",VLOOKUP($Y85,'2'!$AG$77:$AI$114,3,0),"") -> 9.4 | AB85: =IF($Y85<>"",VLOOKUP($Y85,'2'!$AG$77:$AH$114,2,0),"") -> إنذار | AF85: 9 | AG85: بوكروش منال | AH85: إنذار | AI85: 9 | AJ85: =IF(AG85<>"",COUNTIF($AK$77:$AK$114,">"&AK85)+COUNTIF($AK$77:AK85,AK85),"") -> 12 | AK85: 9000 | AL85: 2002-08-13
A86: 10 | C86: ذ | D86: بومهدي | E86: رفيق | F86: 2000-06-29 | L86: 6.766666667 | M86: توبيخ | W86: 10 | Y86: =IF(ISNA(MATCH(W86,'2'!$AJ$77:$AJ$114,0)),"",INDEX('2'!$AG$77:$AG$114,MATCH(W86,'2'!$AJ$77:$AJ$114,0))) -> معمري عمر | Z86: =IF($Y86<>"",VLOOKUP($Y86,'2'!$AG$77:$AL$114,6,0),"") -> 2002-03-17 | AA86: =IF($Y86<>"",VLOOKUP($Y86,'2'!$AG$77:$AI$114,3,0),"") -> 9.4 | AB86: =IF($Y86<>"",VLOOKUP($Y86,'2'!$AG$77:$AH$114,2,0),"") -> إنذار | AF86: 10 | AG86: بومهدي رفيق | AH86: توبيخ | AI86: 6.766666667 | AJ86: =IF(AG86<>"",COUNTIF($AK$77:$AK$114,">"&AK86)+COUNTIF($AK$77:AK86,AK86),"") -> 24 | AK86: 6766.666667 | AL86: 2000-06-29
A87: 11 | C87: أ | D87: بومهدي | E87: فاطمة | F87: 2001-01-17 | L87: 4.6 | M87: توبيخ | W87: 11 | Y87: =IF(ISNA(MATCH(W87,'2'!$AJ$77:$AJ$114,0)),"",INDEX('2'!$AG$77:$AG$114,MATCH(W87,'2'!$AJ$77:$AJ$114,0))) -> عمارة ميلود | Z87: =IF($Y87<>"",VLOOKUP($Y87,'2'!$AG$77:$AL$114,6,0),"") -> 2000-07-15 | AA87: =IF($Y87<>"",VLOOKUP($Y87,'2'!$AG$77:$AI$114,3,0),"") -> 9.1 | AB87: =IF($Y87<>"",VLOOKUP($Y87,'2'!$AG$77:$AH$114,2,0),"") -> إنذار | AF87: 11 | AG87: بومهدي فاطمة | AH87: توبيخ | AI87: 4.6 | AJ87: =IF(AG87<>"",COUNTIF($AK$77:$AK$114,">"&AK87)+COUNTIF($AK$77:AK87,AK87),"") -> 36 | AK87: 4600 | AL87: 2001-01-17
A88: 12 | C88: أ | D88: تومي | E88: كحلة | F88: 2002-01-29 | L88: 6.333333333 | M88: توبيخ | W88: 12 | Y88: =IF(ISNA(MATCH(W88,'2'!$AJ$77:$AJ$114,0)),"",INDEX('2'!$AG$77:$AG$114,MATCH(W88,'2'!$AJ$77:$AJ$114,0))) -> بوكروش منال | Z88: =IF($Y88<>"",VLOOKUP($Y88,'2'!$AG$77:$AL$114,6,0),"") -> 2002-08-13 | AA88: =IF($Y88<>"",VLOOKUP($Y88,'2'!$AG$77:$AI$114,3,0),"") -> 9 | AB88: =IF($Y88<>"",VLOOKUP($Y88,'2'!$AG$77:$AH$114,2,0),"") -> إنذار | AF88: 12 | AG88: تومي كحلة | AH88: توبيخ | AI88: 6.333333333 | AJ88: =IF(AG88<>"",COUNTIF($AK$77:$AK$114,">"&AK88)+COUNTIF($AK$77:AK88,AK88),"") -> 26 | AK88: 6333.333333 | AL88: 2002-01-29
A89: 13 | C89: ذ | D89: خديمي | E89: إسماعيل | F89: 2002-05-30 | L89: 12.6 | M89: لوحة شرف | W89: 13 | Y89: =IF(ISNA(MATCH(W89,'2'!$AJ$77:$AJ$114,0)),"",INDEX('2'!$AG$77:$AG$114,MATCH(W89,'2'!$AJ$77:$AJ$114,0))) -> فرحات محمد الأمين | Z89: =IF($Y89<>"",VLOOKUP($Y89,'2'!$AG$77:$AL$114,6,0),"") -> 1998-06-19 | AA89: =IF($Y89<>"",VLOOKUP($Y89,'2'!$AG$77:$AI$114,3,0),"") -> 8.833333333 | AB89: =IF($Y89<>"",VLOOKUP($Y89,'2'!$AG$77:$AH$114,2,0),"") -> إنذار | AF89: 13 | AG89: خديمي إسماعيل | AH89: لوحة شرف | AI89: 12.6 | AJ89: =IF(AG89<>"",COUNTIF($AK$77:$AK$114,">"&AK89)+COUNTIF($AK$77:AK89,AK89),"") -> 5 | AK89: 12600 | AL89: 2002-05-30
A90: 14 | C90: ذ | D90: درموز | E90: فوضيل | F90: 1999-05-23 | L90: 7.866666667 | M90: توبيخ | W90: 14 | Y90: =IF(ISNA(MATCH(W90,'2'!$AJ$77:$AJ$114,0)),"",INDEX('2'!$AG$77:$AG$114,MATCH(W90,'2'!$AJ$77:$AJ$114,0))) -> بلعربي بوعبد الله | Z90: =IF($Y90<>"",VLOOKUP($Y90,'2'!$AG$77:$AL$114,6,0),"") -> 2000-10-16 | AA90: =IF($Y90<>"",VLOOKUP($Y90,'2'!$AG$77:$AI$114,3,0),"") -> 7.9 | AB90: =IF($Y90<>"",VLOOKUP($Y90,'2'!$AG$77:$AH$114,2,0),"") -> توبيخ | AF90: 14 | AG90: درموز فوضيل | AH90: توبيخ | AI90: 7.866666667 | AJ90: =IF(AG90<>"",COUNTIF($AK$77:$AK$114,">"&AK90)+COUNTIF($AK$77:AK90,AK90),"") -> 15 | AK90: 7866.666667 | AL90: 1999-05-23
A91: 15 | C91: ذ | D91: دونان | E91: عبد الرحمان | F91: 2001-01-10 | L91: 7.366666667 | M91: توبيخ | W91: 15 | Y91: =IF(ISNA(MATCH(W91,'2'!$AJ$77:$AJ$114,0)),"",INDEX('2'!$AG$77:$AG$114,MATCH(W91,'2'!$AJ$77:$AJ$114,0))) -> درموز فوضيل | Z91: =IF($Y91<>"",VLOOKUP($Y91,'2'!$AG$77:$AL$114,6,0),"") -> 1999-05-23 | AA91: =IF($Y91<>"",VLOOKUP($Y91,'2'!$AG$77:$AI$114,3,0),"") -> 7.866666667 | AB91: =IF($Y91<>"",VLOOKUP($Y91,'2'!$AG$77:$AH$114,2,0),"") -> توبيخ | AF91: 15 | AG91: دونان عبد الرحمان | AH91: توبيخ | AI91: 7.366666667 | AJ91: =IF(AG91<>"",COUNTIF($AK$77:$AK$114,">"&AK91)+COUNTIF($AK$77:AK91,AK91),"") -> 18 | AK91: 7366.666667 | AL91: 2001-01-10
A92: 16 | C92: ذ | D92: سالم | E92: أبو بكر | F92: 2000-09-16 | L92: 6.2 | M92: توبيخ | W92: 16 | Y92: =IF(ISNA(MATCH(W92,'2'!$AJ$77:$AJ$114,0)),"",INDEX('2'!$AG$77:$AG$114,MATCH(W92,'2'!$AJ$77:$AJ$114,0))) -> بلعربي خديجة | Z92: =IF($Y92<>"",VLOOKUP($Y92,'2'!$AG$77:$AL$114,6,0),"") -> 1999-08-12 | AA92: =IF($Y92<>"",VLOOKUP($Y92,'2'!$AG$77:$AI$114,3,0),"") -> 7.7 | AB92: =IF($Y92<>"",VLOOKUP($Y92,'2'!$AG$77:$AH$114,2,0),"") -> توبيخ | AF92: 16 | AG92: سالم أبو بكر | AH92: توبيخ | AI92: 6.2 | AJ92: =IF(AG92<>"",COUNTIF($AK$77:$AK$114,">"&AK92)+COUNTIF($AK$77:AK92,AK92),"") -> 28 | AK92: 6200 | AL92: 2000-09-16
A93: 17 | C93: أ | D93: شاشو | E93: إكرام | F93: 2002-03-29 | L93: 6.8 | M93: توبيخ | W93: 17 | Y93: =IF(ISNA(MATCH(W93,'2'!$AJ$77:$AJ$114,0)),"",INDEX('2'!$AG$77:$AG$114,MATCH(W93,'2'!$AJ$77:$AJ$114,0))) -> فرحات إكرام | Z93: =IF($Y93<>"",VLOOKUP($Y93,'2'!$AG$77:$AL$114,6,0),"") -> 2002-03-30 | AA93: =IF($Y93<>"",VLOOKUP($Y93,'2'!$AG$77:$AI$114,3,0),"") -> 7.666666667 | AB93: =IF($Y93<>"",VLOOKUP($Y93,'2'!$AG$77:$AH$114,2,0),"") -> توبيخ | AF93: 17 | AG93: شاشو إكرام | AH93: توبيخ | AI93: 6.8 | AJ93: =IF(AG93<>"",COUNTIF($AK$77:$AK$114,">"&AK93)+COUNTIF($AK$77:AK93,AK93),"") -> 23 | AK93: 6800 | AL93: 2002-03-29
A94: 18 | C94: =C32 -> ذ | D94: شاشو | E94: منصور | F94: 2002-12-08 | L94: 4.866666667 | M94: توبيخ | W94: 18 | Y94: =IF(ISNA(MATCH(W94,'2'!$AJ$77:$AJ$114,0)),"",INDEX('2'!$AG$77:$AG$114,MATCH(W94,'2'!$AJ$77:$AJ$114,0))) -> دونان عبد الرحمان | Z94: =IF($Y94<>"",VLOOKUP($Y94,'2'!$AG$77:$AL$114,6,0),"") -> 2001-01-10 | AA94: =IF($Y94<>"",VLOOKUP($Y94,'2'!$AG$77:$AI$114,3,0),"") -> 7.366666667 | AB94: =IF($Y94<>"",VLOOKUP($Y94,'2'!$AG$77:$AH$114,2,0),"") -> توبيخ | AF94: 18 | AG94: شاشو منصور | AH94: توبيخ | AI94: 4.866666667 | AJ94: =IF(AG94<>"",COUNTIF($AK$77:$AK$114,">"&AK94)+COUNTIF($AK$77:AK94,AK94),"") -> 35 | AK94: 4866.666667 | AL94: 2002-12-08
A95: 19 | C95: أ | D95: شاشو | E95: ويزة | F95: 2002-03-17 | L95: 14.53333333 | M95: تشجيع | W95: 19 | Y95: =IF(ISNA(MATCH(W95,'2'!$AJ$77:$AJ$114,0)),"",INDEX('2'!$AG$77:$AG$114,MATCH(W95,'2'!$AJ$77:$AJ$114,0))) -> بلعربي سمير | Z95: =IF($Y95<>"",VLOOKUP($Y95,'2'!$AG$77:$AL$114,6,0),"") -> 2000-02-16 | AA95: =IF($Y95<>"",VLOOKUP($Y95,'2'!$AG$77:$AI$114,3,0),"") -> 7.233333333 | AB95: =IF($Y95<>"",VLOOKUP($Y95,'2'!$AG$77:$AH$114,2,0),"") -> توبيخ | AF95: 19 | AG95: شاشو ويزة | AH95: تشجيع | AI95: 14.53333333 | AJ95: =IF(AG95<>"",COUNTIF($AK$77:$AK$114,">"&AK95)+COUNTIF($AK$77:AK95,AK95),"") -> 1 | AK95: 14533.33333 | AL95: 2002-03-17
A96: 20 | C96: ذ | D96: طرمول | E96: محمد | F96: 1999-01-27 | L96: 6.266666667 | M96: توبيخ | W96: 20 | Y96: =IF(ISNA(MATCH(W96,'2'!$AJ$77:$AJ$114,0)),"",INDEX('2'!$AG$77:$AG$114,MATCH(W96,'2'!$AJ$77:$AJ$114,0))) -> باي شيماء | Z96: =IF($Y96<>"",VLOOKUP($Y96,'2'!$AG$77:$AL$114,6,0),"") -> 2001-12-21 | AA96: =IF($Y96<>"",VLOOKUP($Y96,'2'!$AG$77:$AI$114,3,0),"") -> 6.966666667 | AB96: =IF($Y96<>"",VLOOKUP($Y96,'2'!$AG$77:$AH$114,2,0),"") -> توبيخ | AF96: 20 | AG96: طرمول محمد | AH96: توبيخ | AI96: 6.266666667 | AJ96: =IF(AG96<>"",COUNTIF($AK$77:$AK$114,">"&AK96)+COUNTIF($AK$77:AK96,AK96),"") -> 27 | AK96: 6266.666667 | AL96: 1999-01-27
A97: 21 | C97: ذ | D97: عامر | E97: رضوان | F97: 2000-10-31 | L97: 5.066666667 | M97: توبيخ | W97: 21 | Y97: =IF(ISNA(MATCH(W97,'2'!$AJ$77:$AJ$114,0)),"",INDEX('2'!$AG$77:$AG$114,MATCH(W97,'2'!$AJ$77:$AJ$114,0))) -> قاضي إكرام | Z97: =IF($Y97<>"",VLOOKUP($Y97,'2'!$AG$77:$AL$114,6,0),"") -> 2002-08-19 | AA97: =IF($Y97<>"",VLOOKUP($Y97,'2'!$AG$77:$AI$114,3,0),"") -> 6.966666667 | AB97: =IF($Y97<>"",VLOOKUP($Y97,'2'!$AG$77:$AH$114,2,0),"") -> توبيخ | AF97: 21 | AG97: عامر رضوان | AH97: توبيخ | AI97: 5.066666667 | AJ97: =IF(AG97<>"",COUNTIF($AK$77:$AK$114,">"&AK97)+COUNTIF($AK$77:AK97,AK97),"") -> 33 | AK97: 5066.666667 | AL97: 2000-10-31
A98: 22 | C98: ذ | D98: عمارة | E98: ميلود | F98: 2000-07-15 | L98: 9.1 | M98: إنذار | W98: 22 | Y98: =IF(ISNA(MATCH(W98,'2'!$AJ$77:$AJ$114,0)),"",INDEX('2'!$AG$77:$AG$114,MATCH(W98,'2'!$AJ$77:$AJ$114,0))) -> بورعدة إلياس | Z98: =IF($Y98<>"",VLOOKUP($Y98,'2'!$AG$77:$AL$114,6,0),"") -> 2001-07-31 | AA98: =IF($Y98<>"",VLOOKUP($Y98,'2'!$AG$77:$AI$114,3,0),"") -> 6.866666667 | AB98: =IF($Y98<>"",VLOOKUP($Y98,'2'!$AG$77:$AH$114,2,0),"") -> توبيخ | AF98: 22 | AG98: عمارة ميلود | AH98: إنذار | AI98: 9.1 | AJ98: =IF(AG98<>"",COUNTIF($AK$77:$AK$114,">"&AK98)+COUNTIF($AK$77:AK98,AK98),"") -> 11 | AK98: 9100 | AL98: 2000-07-15
A99: 23 | C99: أ | D99: عيسات | E99: العالية | F99: 2001-12-29 | L99: 5.233333333 | M99: توبيخ | W99: 23 | Y99: =IF(ISNA(MATCH(W99,'2'!$AJ$77:$AJ$114,0)),"",INDEX('2'!$AG$77:$AG$114,MATCH(W99,'2'!$AJ$77:$AJ$114,0))) -> شاشو إكرام | Z99: =IF($Y99<>"",VLOOKUP($Y99,'2'!$AG$77:$AL$114,6,0),"") -> 2002-03-29 | AA99: =IF($Y99<>"",VLOOKUP($Y99,'2'!$AG$77:$AI$114,3,0),"") -> 6.8 | AB99: =IF($Y99<>"",VLOOKUP($Y99,'2'!$AG$77:$AH$114,2,0),"") -> توبيخ | AF99: 23 | AG99: عيسات العالية | AH99: توبيخ | AI99: 5.233333333 | AJ99: =IF(AG99<>"",COUNTIF($AK$77:$AK$114,">"&AK99)+COUNTIF($AK$77:AK99,AK99),"") -> 31 | AK99: 5233.333333 | AL99: 2001-12-29
A100: 24 | C100: أ | D100: فرحات | E100: إكرام | F100: 2002-03-30 | L100: 7.666666667 | M100: توبيخ | W100: 24 | Y100: =IF(ISNA(MATCH(W100,'2'!$AJ$77:$AJ$114,0)),"",INDEX('2'!$AG$77:$AG$114,MATCH(W100,'2'!$AJ$77:$AJ$114,0))) -> بومهدي رفيق | Z100: =IF($Y100<>"",VLOOKUP($Y100,'2'!$AG$77:$AL$114,6,0),"") -> 2000-06-29 | AA100: =IF($Y100<>"",VLOOKUP($Y100,'2'!$AG$77:$AI$114,3,0),"") -> 6.766666667 | AB100: =IF($Y100<>"",VLOOKUP($Y100,'2'!$AG$77:$AH$114,2,0),"") -> توبيخ | AF100: 24 | AG100: فرحات إكرام | AH100: توبيخ | AI100: 7.666666667 | AJ100: =IF(AG100<>"",COUNTIF($AK$77:$AK$114,">"&AK100)+COUNTIF($AK$77:AK100,AK100),"") -> 17 | AK100: 7666.666667 | AL100: 2002-03-30
A101: 25 | C101: ذ | D101: فرحات | E101: عبد القادر | F101: 2002-02-22 | L101: 9.4 | M101: إنذار | W101: 25 | Y101: =IF(ISNA(MATCH(W101,'2'!$AJ$77:$AJ$114,0)),"",INDEX('2'!$AG$77:$AG$114,MATCH(W101,'2'!$AJ$77:$AJ$114,0))) -> قوميش حنان | Z101: =IF($Y101<>"",VLOOKUP($Y101,'2'!$AG$77:$AL$114,6,0),"") -> 2002-09-29 | AA101: =IF($Y101<>"",VLOOKUP($Y101,'2'!$AG$77:$AI$114,3,0),"") -> 6.666666667 | AB101: =IF($Y101<>"",VLOOKUP($Y101,'2'!$AG$77:$AH$114,2,0),"") -> توبيخ | AF101: 25 | AG101: فرحات عبد القادر | AH101: إنذار | AI101: 9.4 | AJ101: =IF(AG101<>"",COUNTIF($AK$77:$AK$114,">"&AK101)+COUNTIF($AK$77:AK101,AK101),"") -> 9 | AK101: 9400 | AL101: 2002-02-22
A102: 26 | C102: ذ | D102: فرحات | E102: محمد الأمين | F102: 1998-06-19 | L102: 8.833333333 | M102: إنذار | W102: 26 | Y102: =IF(ISNA(MATCH(W102,'2'!$AJ$77:$AJ$114,0)),"",INDEX('2'!$AG$77:$AG$114,MATCH(W102,'2'!$AJ$77:$AJ$114,0))) -> تومي كحلة | Z102: =IF($Y102<>"",VLOOKUP($Y102,'2'!$AG$77:$AL$114,6,0),"") -> 2002-01-29 | AA102: =IF($Y102<>"",VLOOKUP($Y102,'2'!$AG$77:$AI$114,3,0),"") -> 6.333333333 | AB102: =IF($Y102<>"",VLOOKUP($Y102,'2'!$AG$77:$AH$114,2,0),"") -> توبيخ | AF102: 26 | AG102: فرحات محمد الأمين | AH102: إنذار | AI102: 8.833333333 | AJ102: =IF(AG102<>"",COUNTIF($AK$77:$AK$114,">"&AK102)+COUNTIF($AK$77:AK102,AK102),"") -> 13 | AK102: 8833.333333 | AL102: 1998-06-19
A103: 27 | C103: أ | D103: قاضي | E103: إكرام | F103: 2002-08-19 | L103: 6.966666667 | M103: توبيخ | W103: 27 | Y103: =IF(ISNA(MATCH(W103,'2'!$AJ$77:$AJ$114,0)),"",INDEX('2'!$AG$77:$AG$114,MATCH(W103,'2'!$AJ$77:$AJ$114,0))) -> طرمول محمد | Z103: =IF($Y103<>"",VLOOKUP($Y103,'2'!$AG$77:$AL$114,6,0),"") -> 1999-01-27 | AA103: =IF($Y103<>"",VLOOKUP($Y103,'2'!$AG$77:$AI$114,3,0),"") -> 6.266666667 | AB103: =IF($Y103<>"",VLOOKUP($Y103,'2'!$AG$77:$AH$114,2,0),"") -> توبيخ | AF103: 27 | AG103: قاضي إكرام | AH103: توبيخ | AI103: 6.966666667 | AJ103: =IF(AG103<>"",COUNTIF($AK$77:$AK$114,">"&AK103)+COUNTIF($AK$77:AK103,AK103),"") -> 21 | AK103: 6966.666667 | AL103: 2002-08-19
A104: 28 | C104: أ | D104: قوميش | E104: حنان | F104: 2002-09-29 | L104: 6.666666667 | M104: توبيخ | W104: 28 | Y104: =IF(ISNA(MATCH(W104,'2'!$AJ$77:$AJ$114,0)),"",INDEX('2'!$AG$77:$AG$114,MATCH(W104,'2'!$AJ$77:$AJ$114,0))) -> سالم أبو بكر | Z104: =IF($Y104<>"",VLOOKUP($Y104,'2'!$AG$77:$AL$114,6,0),"") -> 2000-09-16 | AA104: =IF($Y104<>"",VLOOKUP($Y104,'2'!$AG$77:$AI$114,3,0),"") -> 6.2 | AB104: =IF($Y104<>"",VLOOKUP($Y104,'2'!$AG$77:$AH$114,2,0),"") -> توبيخ | AF104: 28 | AG104: قوميش حنان | AH104: توبيخ | AI104: 6.666666667 | AJ104: =IF(AG104<>"",COUNTIF($AK$77:$AK$114,">"&AK104)+COUNTIF($AK$77:AK104,AK104),"") -> 25 | AK104: 6666.666667 | AL104: 2002-09-29
A105: 29 | C105: ذ | D105: لعبادلي | E105: العجال | F105: =IF(F43<>"",F43,"") -> 2000-07-16 | L105: 5.16 | M105: توبيخ | W105: 29 | Y105: =IF(ISNA(MATCH(W105,'2'!$AJ$77:$AJ$114,0)),"",INDEX('2'!$AG$77:$AG$114,MATCH(W105,'2'!$AJ$77:$AJ$114,0))) -> بلعباس الحاج | Z105: =IF($Y105<>"",VLOOKUP($Y105,'2'!$AG$77:$AL$114,6,0),"") -> 2002-10-09 | AA105: =IF($Y105<>"",VLOOKUP($Y105,'2'!$AG$77:$AI$114,3,0),"") -> 5.6 | AB105: =IF($Y105<>"",VLOOKUP($Y105,'2'!$AG$77:$AH$114,2,0),"") -> توبيخ | AF105: 29 | AG105: لعبادلي العجال | AH105: توبيخ | AI105: 5.16 | AJ105: =IF(AG105<>"",COUNTIF($AK$77:$AK$114,">"&AK105)+COUNTIF($AK$77:AK105,AK105),"") -> 32 | AK105: 5160 | AL105: 2000-07-16
A106: 30 | C106: ذ | D106: لعيدي | E106: أسامة | F106: 2001-01-11 | L106: 12.63333333 | M106: لوحة شرف | W106: 30 | Y106: =IF(ISNA(MATCH(W106,'2'!$AJ$77:$AJ$114,0)),"",INDEX('2'!$AG$77:$AG$114,MATCH(W106,'2'!$AJ$77:$AJ$114,0))) -> بلعربي سارة | Z106: =IF($Y106<>"",VLOOKUP($Y106,'2'!$AG$77:$AL$114,6,0),"") -> 2002-01-16 | AA106: =IF($Y106<>"",VLOOKUP($Y106,'2'!$AG$77:$AI$114,3,0),"") -> 5.233333333 | AB106: =IF($Y106<>"",VLOOKUP($Y106,'2'!$AG$77:$AH$114,2,0),"") -> توبيخ | AF106: 30 | AG106: لعيدي أسامة | AH106: لوحة شرف | AI106: 12.63333333 | AJ106: =IF(AG106<>"",COUNTIF($AK$77:$AK$114,">"&AK106)+COUNTIF($AK$77:AK106,AK106),"") -> 4 | AK106: 12633.33333 | AL106: 2001-01-11
A107: 31 | C107: ذ | D107: مرحول | E107: بوزيان | F107: 1999-08-09 | L107: 5.066666667 | M107: توبيخ | W107: 31 | Y107: =IF(ISNA(MATCH(W107,'2'!$AJ$77:$AJ$114,0)),"",INDEX('2'!$AG$77:$AG$114,MATCH(W107,'2'!$AJ$77:$AJ$114,0))) -> عيسات العالية | Z107: =IF($Y107<>"",VLOOKUP($Y107,'2'!$AG$77:$AL$114,6,0),"") -> 2001-12-29 | AA107: =IF($Y107<>"",VLOOKUP($Y107,'2'!$AG$77:$AI$114,3,0),"") -> 5.233333333 | AB107: =IF($Y107<>"",VLOOKUP($Y107,'2'!$AG$77:$AH$114,2,0),"") -> توبيخ | AF107: 31 | AG107: مرحول بوزيان | AH107: توبيخ | AI107: 5.066666667 | AJ107: =IF(AG107<>"",COUNTIF($AK$77:$AK$114,">"&AK107)+COUNTIF($AK$77:AK107,AK107),"") -> 34 | AK107: 5066.666667 | AL107: 1999-08-09
A108: 32 | C108: ذ | D108: معمري | E108: عمر | F108: 2002-03-17 | L108: 9.4 | M108: إنذار | W108: 32 | Y108: =IF(ISNA(MATCH(W108,'2'!$AJ$77:$AJ$114,0)),"",INDEX('2'!$AG$77:$AG$114,MATCH(W108,'2'!$AJ$77:$AJ$114,0))) -> لعبادلي العجال | Z108: =IF($Y108<>"",VLOOKUP($Y108,'2'!$AG$77:$AL$114,6,0),"") -> 2000-07-16 | AA108: =IF($Y108<>"",VLOOKUP($Y108,'2'!$AG$77:$AI$114,3,0),"") -> 5.16 | AB108: =IF($Y108<>"",VLOOKUP($Y108,'2'!$AG$77:$AH$114,2,0),"") -> توبيخ | AF108: 32 | AG108: معمري عمر | AH108: إنذار | AI108: 9.4 | AJ108: =IF(AG108<>"",COUNTIF($AK$77:$AK$114,">"&AK108)+COUNTIF($AK$77:AK108,AK108),"") -> 10 | AK108: 9400 | AL108: 2002-03-17
A109: 33 | C109: أ | D109: مكاوي | E109: خيرة | F109: 2002-09-11 | L109: 13.4 | M109: لوحة شرف | W109: 33 | Y109: =IF(ISNA(MATCH(W109,'2'!$AJ$77:$AJ$114,0)),"",INDEX('2'!$AG$77:$AG$114,MATCH(W109,'2'!$AJ$77:$AJ$114,0))) -> عامر رضوان | Z109: =IF($Y109<>"",VLOOKUP($Y109,'2'!$AG$77:$AL$114,6,0),"") -> 2000-10-31 | AA109: =IF($Y109<>"",VLOOKUP($Y109,'2'!$AG$77:$AI$114,3,0),"") -> 5.066666667 | AB109: =IF($Y109<>"",VLOOKUP($Y109,'2'!$AG$77:$AH$114,2,0),"") -> توبيخ | AF109: 33 | AG109: مكاوي خيرة | AH109: لوحة شرف | AI109: 13.4 | AJ109: =IF(AG109<>"",COUNTIF($AK$77:$AK$114,">"&AK109)+COUNTIF($AK$77:AK109,AK109),"") -> 2 | AK109: 13400 | AL109: 2002-09-11
A110: 34 | C110: =C48 -> أ | D110: مهدادي | E110: ميسم ريهام | F110: 2002-12-04 | L110: 9.8 | M110: إنذار | W110: 34 | Y110: =IF(ISNA(MATCH(W110,'2'!$AJ$77:$AJ$114,0)),"",INDEX('2'!$AG$77:$AG$114,MATCH(W110,'2'!$AJ$77:$AJ$114,0))) -> مرحول بوزيان | Z110: =IF($Y110<>"",VLOOKUP($Y110,'2'!$AG$77:$AL$114,6,0),"") -> 1999-08-09 | AA110: =IF($Y110<>"",VLOOKUP($Y110,'2'!$AG$77:$AI$114,3,0),"") -> 5.066666667 | AB110: =IF($Y110<>"",VLOOKUP($Y110,'2'!$AG$77:$AH$114,2,0),"") -> توبيخ | AF110: 34 | AG110: مهدادي ميسم ريهام | AH110: إنذار | AI110: 9.8 | AJ110: =IF(AG110<>"",COUNTIF($AK$77:$AK$114,">"&AK110)+COUNTIF($AK$77:AK110,AK110),"") -> 8 | AK110: 9800 | AL110: 2002-12-04
A111: 35 | C111: أ | D111: هاشمي | E111: خضرة | F111: 2001-09-25 | L111: 10.46666667 | M111: لا شيء | W111: 35 | Y111: =IF(ISNA(MATCH(W111,'2'!$AJ$77:$AJ$114,0)),"",INDEX('2'!$AG$77:$AG$114,MATCH(W111,'2'!$AJ$77:$AJ$114,0))) -> شاشو منصور | Z111: =IF($Y111<>"",VLOOKUP($Y111,'2'!$AG$77:$AL$114,6,0),"") -> 2002-12-08 | AA111: =IF($Y111<>"",VLOOKUP($Y111,'2'!$AG$77:$AI$114,3,0),"") -> 4.866666667 | AB111: =IF($Y111<>"",VLOOKUP($Y111,'2'!$AG$77:$AH$114,2,0),"") -> توبيخ | AF111: 35 | AG111: هاشمي خضرة | AH111: لا شيء | AI111: 10.46666667 | AJ111: =IF(AG111<>"",COUNTIF($AK$77:$AK$114,">"&AK111)+COUNTIF($AK$77:AK111,AK111),"") -> 7 | AK111: 10466.66667 | AL111: 2001-09-25
A112: 36 | C112: ذ | D112: هاشمي | E112: لخضر | F112: 2001-09-25 | L112: 11.46666667 | M112: لا شيء | W112: 36 | Y112: =IF(ISNA(MATCH(W112,'2'!$AJ$77:$AJ$114,0)),"",INDEX('2'!$AG$77:$AG$114,MATCH(W112,'2'!$AJ$77:$AJ$114,0))) -> بومهدي فاطمة | Z112: =IF($Y112<>"",VLOOKUP($Y112,'2'!$AG$77:$AL$114,6,0),"") -> 2001-01-17 | AA112: =IF($Y112<>"",VLOOKUP($Y112,'2'!$AG$77:$AI$114,3,0),"") -> 4.6 | AB112: =IF($Y112<>"",VLOOKUP($Y112,'2'!$AG$77:$AH$114,2,0),"") -> توبيخ | AF112: 36 | AG112: هاشمي لخضر | AH112: لا شيء | AI112: 11.46666667 | AJ112: =IF(AG112<>"",COUNTIF($AK$77:$AK$114,">"&AK112)+COUNTIF($AK$77:AK112,AK112),"") -> 6 | AK112: 11466.66667 | AL112: 2001-09-25
A113: 37 | C113: 0 | D113: 0 | E113: 0 | W113: 37 | Y113: =IF(ISNA(MATCH(W113,'2'!$AJ$77:$AJ$114,0)),"",INDEX('2'!$AG$77:$AG$114,MATCH(W113,'2'!$AJ$77:$AJ$114,0))) -> 0 0 | Z113: =IF($Y113<>"",VLOOKUP($Y113,'2'!$AG$77:$AL$114,6,0),"") -> 00:00:00 | AA113: =IF($Y113<>"",VLOOKUP($Y113,'2'!$AG$77:$AI$114,3,0),"") -> 0 | AB113: =IF($Y113<>"",VLOOKUP($Y113,'2'!$AG$77:$AH$114,2,0),"") -> 0 | AF113: 37 | AG113: 0 0 | AH113: 0 | AI113: 0 | AJ113: =IF(AG113<>"",COUNTIF($AK$77:$AK$114,">"&AK113)+COUNTIF($AK$77:AK113,AK113),"") -> 37 | AK113: 0 | AL113: 00:00:00
A114: 38 | C114: 0 | D114: 0 | E114: 0 | W114: 38 | Y114: =IF(ISNA(MATCH(W114,'2'!$AJ$77:$AJ$114,0)),"",INDEX('2'!$AG$77:$AG$114,MATCH(W114,'2'!$AJ$77:$AJ$114,0))) -> 0 0 | Z114: =IF($Y114<>"",VLOOKUP($Y114,'2'!$AG$77:$AL$114,6,0),"") -> 00:00:00 | AA114: =IF($Y114<>"",VLOOKUP($Y114,'2'!$AG$77:$AI$114,3,0),"") -> 0 | AB114: =IF($Y114<>"",VLOOKUP($Y114,'2'!$AG$77:$AH$114,2,0),"") -> 0 | AF114: 38 | AG114: 0 0 | AH114: 0 | AI114: 0 | AJ114: =IF(AG114<>"",COUNTIF($AK$77:$AK$114,">"&AK114)+COUNTIF($AK$77:AK114,AK114),"") -> 38 | AK114: 0 | AL114: 00:00:00
L116: =COUNTIFS(L77:L114,">=10") -> 7
D117: ="المجموع : " &F117 -> المجموع : 36 | F117: =SUM(F119:F120) -> 36 | M117: ="التهنئة : "&G77 -> التهنئة : 0 | Q117: ="لا شيء : "&G80 -> لا شيء : 2 | Y117: ="المجموع : " &AA119 -> المجموع : 36 | AB117: =F117 -> 36
D119: ="البنات : "&F119 -> البنات : 15 | F119: =COUNTIFS(C77:C114,"أ") -> 15 | M119: ="التشجيع : "&G78 -> التشجيع : 1 | Q119: ="الإنذار : "&G81 -> الإنذار : 6 | Y119: =D119 -> البنات : 15 | AA119: =F117 -> 36 | AB119: =AB117 -> 36 | AD119: المعدل الفصلي أكبرمن أو يساوي 10 | AH119: =COUNTIFS(AA77:AA114,">=10") -> 7 | AI119: =AH119/AB117 -> 0.1944444444
D120: ="البنين : "&F120 -> البنين : 21 | F120: =COUNTIFS(C77:C114,"ذ") -> 21 | M120: ="لوحة شرف : "&G79 -> لوحة شرف : 4 | Q120: ="التوبيخ : "&G82 -> التوبيخ : 23 | Y120: =D120 -> البنين : 21 | AB120: =AB119 -> 36
D125: =D63 -> متوسطة مكاوي علي؛ اولاد البارودي - سيدي لخضر | R125: =IF(R63<>"",R63,"") -> 2015/2014 | Y125: =D125 -> متوسطة مكاوي علي؛ اولاد البارودي - سيدي لخضر | AI125: =IF(R125<>"",R125,"") -> 2015/2014 | AJ125: =IF(N125<>"",N125,"") -> 
AI126: =IF(M126<>"",M126,"") ->  | AJ126: =IF(N126<>"",N126,"") -> 
D127: القسم: | E127: =E65 -> س4م3 | K127: نتائج الفصل الثالث | Y127: القسم: | Z127: =E127 -> س4م3
AB128: ترتيب التلاميذ حسب معدلاتهم (الفصـــــــــــــل الثالث)
AI129: =AI67 -> 4
D132: اللقب | E132: الإسم | F132: تاريخ الميلاد | L132: المعدل الفصلي على 20 | M132: الإجازات و العقوبات | Y132: اللقب و الإسم | Z132: تاريخ الميلاد | AA132: المعدل الفصلي على 20 | AB132: الإجازات و العقوبات
A139: 1 | C139: =C77 -> أ | D139: =D77 -> باي | E139: شيماء | F139: 2001-12-21 | G139: =COUNTIFS(M139:M176,"تهنئة") -> 0 | L139: 7.566666667 | M139: =IF(AND(L139>=15,L139<20),"تهنئة","")&IF(AND(L139>=14,L139<15),"تشجيع","")&IF(AND(L139>=12,L139<14),"لوحة شرف","")&IF(AND(L139>=10,L139<12),"لا شيء","")&IF(AND(L139>=8,L139<10),"إنذار","")&IF(AND(L139>0,L139<8),"توبيخ","")&IF(AND(L139<>"",L139=0),"","") -> توبيخ | W139: 1 | Y139: =IF(ISNA(MATCH(W139,'2'!$AJ$139:$AJ$176,0)),"",INDEX('2'!$AG$139:$AG$176,MATCH(W139,'2'!$AJ$139:$AJ$176,0))) -> هاشمي لخضر | Z139: =IF($Y139<>"",VLOOKUP($Y139,'2'!$AG$139:$AL$176,6,0),"") -> 2001-09-25 | AA139: =IF($Y139<>"",VLOOKUP($Y139,'2'!$AG$139:$AI$176,3,0),"") -> 14.13333333 | AB139: =IF($Y139<>"",VLOOKUP($Y139,'2'!$AG$139:$AH$176,2,0),"") -> تشجيع | AF139: 1 | AG139: =D139&" "&E139 -> باي شيماء | AH139: =IF(M139="",0,M139) -> توبيخ | AI139: =IF(L139="",0,L139) -> 7.566666667 | AJ139: =IF(AG139<>"",COUNTIF($AK$139:$AK$176,">"&AK139)+COUNTIF($AK$139:AK139,AK139),"") -> 23 | AK139: =IF(AI139<>"",AI139*1000,"") -> 7566.666667 | AL139: =IF(F139="",0,F139) -> 2001-12-21
A140: 2 | C140: ذ | D140: بلعباس | E140: الحاج | F140: 2002-10-09 | G140: =COUNTIFS(M139:M176,"تشجيع") -> 2 | L140: 4.8 | M140: توبيخ | W140: 2 | Y140: =IF(ISNA(MATCH(W140,'2'!$AJ$139:$AJ$176,0)),"",INDEX('2'!$AG$139:$AG$176,MATCH(W140,'2'!$AJ$139:$AJ$176,0))) -> شاشو ويزة | Z140: =IF($Y140<>"",VLOOKUP($Y140,'2'!$AG$139:$AL$176,6,0),"") -> 2002-03-17 | AA140: =IF($Y140<>"",VLOOKUP($Y140,'2'!$AG$139:$AI$176,3,0),"") -> 14.01666667 | AB140: =IF($Y140<>"",VLOOKUP($Y140,'2'!$AG$77:$AH$114,2,0),"") -> تشجيع | AF140: 2 | AG140: بلعباس الحاج | AH140: =IF(M140="",0,M140) -> توبيخ | AI140: 4.8 | AJ140: =IF(AG140<>"",COUNTIF($AK$139:$AK$176,">"&AK140)+COUNTIF($AK$139:AK140,AK140),"") -> 36 | AK140: =IF(AI140<>"",AI140*1000,"") -> 4800 | AL140: 2002-10-09
A141: 3 | C141: ذ | D141: بلعربي | E141: بوعبد الله | F141: 2000-10-16 | G141: =COUNTIFS(M139:M176,"لوحة شرف") -> 4 | L141: 8.35 | M141: إنذار | W141: 3 | Y141: =IF(ISNA(MATCH(W141,'2'!$AJ$139:$AJ$176,0)),"",INDEX('2'!$AG$139:$AG$176,MATCH(W141,'2'!$AJ$139:$AJ$176,0))) -> خديمي إسماعيل | Z141: =IF($Y141<>"",VLOOKUP($Y141,'2'!$AG$139:$AL$176,6,0),"") -> 2002-05-30 | AA141: =IF($Y141<>"",VLOOKUP($Y141,'2'!$AG$139:$AI$176,3,0),"") -> 13.66666667 | AB141: =IF($Y141<>"",VLOOKUP($Y141,'2'!$AG$77:$AH$114,2,0),"") -> لوحة شرف | AF141: 3 | AG141: بلعربي بوعبد الله | AH141: إنذار | AI141: 8.35 | AJ141: =IF(AG141<>"",COUNTIF($AK$139:$AK$176,">"&AK141)+COUNTIF($AK$139:AK141,AK141),"") -> 20 | AK141: 8350 | AL141: 2000-10-16
A142: 4 | C142: أ | D142: بلعربي | E142: خديجة | F142: 1999-08-12 | G142: =COUNTIFS(M139:M176,"لا شيء") -> 7 | L142: 10.1 | M142: لا شيء | W142: 4 | Y142: =IF(ISNA(MATCH(W142,'2'!$AJ$139:$AJ$176,0)),"",INDEX('2'!$AG$139:$AG$176,MATCH(W142,'2'!$AJ$139:$AJ$176,0))) -> مكاوي خيرة | Z142: =IF($Y142<>"",VLOOKUP($Y142,'2'!$AG$139:$AL$176,6,0),"") -> 2002-09-11 | AA142: =IF($Y142<>"",VLOOKUP($Y142,'2'!$AG$139:$AI$176,3,0),"") -> 13.55 | AB142: =IF($Y142<>"",VLOOKUP($Y142,'2'!$AG$77:$AH$114,2,0),"") -> لوحة شرف | AF142: 4 | AG142: بلعربي خديجة | AH142: لا شيء | AI142: 10.1 | AJ142: =IF(AG142<>"",COUNTIF($AK$139:$AK$176,">"&AK142)+COUNTIF($AK$139:AK142,AK142),"") -> 13 | AK142: 10100 | AL142: 1999-08-12
A143: 5 | C143: أ | D143: بلعربي | E143: سارة | F143: 2002-01-16 | G143: =COUNTIFS(M139:M176,"إنذار") -> 7 | L143: 6.5 | M143: توبيخ | W143: 5 | Y143: =IF(ISNA(MATCH(W143,'2'!$AJ$139:$AJ$176,0)),"",INDEX('2'!$AG$139:$AG$176,MATCH(W143,'2'!$AJ$139:$AJ$176,0))) -> بوغرس أمحمد | Z143: =IF($Y143<>"",VLOOKUP($Y143,'2'!$AG$139:$AL$176,6,0),"") -> 1999-08-30 | AA143: =IF($Y143<>"",VLOOKUP($Y143,'2'!$AG$139:$AI$176,3,0),"") -> 13.35 | AB143: =IF($Y143<>"",VLOOKUP($Y143,'2'!$AG$77:$AH$114,2,0),"") -> لوحة شرف | AF143: 5 | AG143: بلعربي سارة | AH143: توبيخ | AI143: 6.5 | AJ143: =IF(AG143<>"",COUNTIF($AK$139:$AK$176,">"&AK143)+COUNTIF($AK$139:AK143,AK143),"") -> 27 | AK143: 6500 | AL143: 2002-01-16
A144: 6 | C144: ذ | D144: بلعربي | E144: سمير | F144: 2000-02-16 | G144: =COUNTIFS(M139:M176,"توبيخ") -> 16 | L144: 7.7 | M144: توبيخ | W144: 6 | Y144: =IF(ISNA(MATCH(W144,'2'!$AJ$139:$AJ$176,0)),"",INDEX('2'!$AG$139:$AG$176,MATCH(W144,'2'!$AJ$139:$AJ$176,0))) -> لعيدي أسامة | Z144: =IF($Y144<>"",VLOOKUP($Y144,'2'!$AG$139:$AL$176,6,0),"") -> 2001-01-11 | AA144: =IF($Y144<>"",VLOOKUP($Y144,'2'!$AG$139:$AI$176,3,0),"") -> 13.11666667 | AB144: =IF($Y144<>"",VLOOKUP($Y144,'2'!$AG$77:$AH$114,2,0),"") -> لوحة شرف | AF144: 6 | AG144: بلعربي سمير | AH144: توبيخ | AI144: 7.7 | AJ144: =IF(AG144<>"",COUNTIF($AK$139:$AK$176,">"&AK144)+COUNTIF($AK$139:AK144,AK144),"") -> 21 | AK144: 7700 | AL144: 2000-02-16
A145: 7 | C145: ذ | D145: بورعدة | E145: إلياس | F145: 2001-07-31 | L145: 9.366666667 | M145: إنذار | W145: 7 | Y145: =IF(ISNA(MATCH(W145,'2'!$AJ$139:$AJ$176,0)),"",INDEX('2'!$AG$139:$AG$176,MATCH(W145,'2'!$AJ$139:$AJ$176,0))) -> معمري عمر | Z145: =IF($Y145<>"",VLOOKUP($Y145,'2'!$AG$139:$AL$176,6,0),"") -> 2002-03-17 | AA145: =IF($Y145<>"",VLOOKUP($Y145,'2'!$AG$139:$AI$176,3,0),"") -> 11.76666667 | AB145: =IF($Y145<>"",VLOOKUP($Y145,'2'!$AG$77:$AH$114,2,0),"") -> إنذار | AF145: 7 | AG145: بورعدة إلياس | AH145: إنذار | AI145: 9.366666667 | AJ145: =IF(AG145<>"",COUNTIF($AK$139:$AK$176,">"&AK145)+COUNTIF($AK$139:AK145,AK145),"") -> 18 | AK145: 9366.666667 | AL145: 2001-07-31
A146: 8 | C146: ذ | D146: بوغرس | E146: أمحمد | F146: 1999-08-30 | L146: 13.35 | M146: لوحة شرف | W146: 8 | Y146: =IF(ISNA(MATCH(W146,'2'!$AJ$139:$AJ$176,0)),"",INDEX('2'!$AG$139:$AG$176,MATCH(W146,'2'!$AJ$139:$AJ$176,0))) -> فرحات عبد القادر | Z146: =IF($Y146<>"",VLOOKUP($Y146,'2'!$AG$139:$AL$176,6,0),"") -> 2002-02-22 | AA146: =IF($Y146<>"",VLOOKUP($Y146,'2'!$AG$139:$AI$176,3,0),"") -> 11.28333333 | AB146: =IF($Y146<>"",VLOOKUP($Y146,'2'!$AG$77:$AH$114,2,0),"") -> إنذار | AF146: 8 | AG146: بوغرس أمحمد | AH146: لوحة شرف | AI146: 13.35 | AJ146: =IF(AG146<>"",COUNTIF($AK$139:$AK$176,">"&AK146)+COUNTIF($AK$139:AK146,AK146),"") -> 5 | AK146: 13350 | AL146: 1999-08-30
A147: 9 | C147: أ | D147: بوكروش | E147: منال | F147: 2002-08-13 | L147: 10.18333333 | M147: لا شيء | W147: 9 | Y147: =IF(ISNA(MATCH(W147,'2'!$AJ$139:$AJ$176,0)),"",INDEX('2'!$AG$139:$AG$176,MATCH(W147,'2'!$AJ$139:$AJ$176,0))) -> فرحات محمد الأمين | Z147: =IF($Y147<>"",VLOOKUP($Y147,'2'!$AG$139:$AL$176,6,0),"") -> 1998-06-19 | AA147: =IF($Y147<>"",VLOOKUP($Y147,'2'!$AG$139:$AI$176,3,0),"") -> 11.06666667 | AB147: =IF($Y147<>"",VLOOKUP($Y147,'2'!$AG$77:$AH$114,2,0),"") -> إنذار | AF147: 9 | AG147: بوكروش منال | AH147: لا شيء | AI147: 10.18333333 | AJ147: =IF(AG147<>"",COUNTIF($AK$139:$AK$176,">"&AK147)+COUNTIF($AK$139:AK147,AK147),"") -> 12 | AK147: 10183.33333 | AL147: 2002-08-13
A148: 10 | C148: ذ | D148: بومهدي | E148: رفيق | F148: 2000-06-29 | L148: 4.933333333 | M148: توبيخ | W148: 10 | Y148: =IF(ISNA(MATCH(W148,'2'!$AJ$139:$AJ$176,0)),"",INDEX('2'!$AG$139:$AG$176,MATCH(W148,'2'!$AJ$139:$AJ$176,0))) -> مهدادي ميسم ريهام | Z148: =IF($Y148<>"",VLOOKUP($Y148,'2'!$AG$139:$AL$176,6,0),"") -> 2002-12-04 | AA148: =IF($Y148<>"",VLOOKUP($Y148,'2'!$AG$139:$AI$176,3,0),"") -> 10.88333333 | AB148: =IF($Y148<>"",VLOOKUP($Y148,'2'!$AG$77:$AH$114,2,0),"") -> إنذار | AF148: 10 | AG148: بومهدي رفيق | AH148: توبيخ | AI148: 4.933333333 | AJ148: =IF(AG148<>"",COUNTIF($AK$139:$AK$176,">"&AK148)+COUNTIF($AK$139:AK148,AK148),"") -> 35 | AK148: 4933.333333 | AL148: 2000-06-29
A149: 11 | C149: أ | D149: بومهدي | E149: فاطمة | F149: 2001-01-17 | L149: 5.083333333 | M149: توبيخ | W149: 11 | Y149: =IF(ISNA(MATCH(W149,'2'!$AJ$139:$AJ$176,0)),"",INDEX('2'!$AG$139:$AG$176,MATCH(W149,'2'!$AJ$139:$AJ$176,0))) -> عمارة ميلود | Z149: =IF($Y149<>"",VLOOKUP($Y149,'2'!$AG$139:$AL$176,6,0),"") -> 2000-07-15 | AA149: =IF($Y149<>"",VLOOKUP($Y149,'2'!$AG$139:$AI$176,3,0),"") -> 10.38333333 | AB149: =IF($Y149<>"",VLOOKUP($Y149,'2'!$AG$77:$AH$114,2,0),"") -> إنذار | AF149: 11 | AG149: بومهدي فاطمة | AH149: توبيخ | AI149: 5.083333333 | AJ149: =IF(AG149<>"",COUNTIF($AK$139:$AK$176,">"&AK149)+COUNTIF($AK$139:AK149,AK149),"") -> 34 | AK149: 5083.333333 | AL149: 2001-01-17
A150: 12 | C150: أ | D150: تومي | E150: كحلة | F150: 2002-01-29 | L150: 6.083333333 | M150: توبيخ | W150: 12 | Y150: =IF(ISNA(MATCH(W150,'2'!$AJ$139:$AJ$176,0)),"",INDEX('2'!$AG$139:$AG$176,MATCH(W150,'2'!$AJ$139:$AJ$176,0))) -> بوكروش منال | Z150: =IF($Y150<>"",VLOOKUP($Y150,'2'!$AG$139:$AL$176,6,0),"") -> 2002-08-13 | AA150: =IF($Y150<>"",VLOOKUP($Y150,'2'!$AG$139:$AI$176,3,0),"") -> 10.18333333 | AB150: =IF($Y150<>"",VLOOKUP($Y150,'2'!$AG$77:$AH$114,2,0),"") -> إنذار | AF150: 12 | AG150: تومي كحلة | AH150: توبيخ | AI150: 6.083333333 | AJ150: =IF(AG150<>"",COUNTIF($AK$139:$AK$176,">"&AK150)+COUNTIF($AK$139:AK150,AK150),"") -> 29 | AK150: 6083.333333 | AL150: 2002-01-29
A151: 13 | C151: ذ | D151: خديمي | E151: إسماعيل | F151: 2002-05-30 | L151: 13.66666667 | M151: لوحة شرف | W151: 13 | Y151: =IF(ISNA(MATCH(W151,'2'!$AJ$139:$AJ$176,0)),"",INDEX('2'!$AG$139:$AG$176,MATCH(W151,'2'!$AJ$139:$AJ$176,0))) -> بلعربي خديجة | Z151: =IF($Y151<>"",VLOOKUP($Y151,'2'!$AG$139:$AL$176,6,0),"") -> 1999-08-12 | AA151: =IF($Y151<>"",VLOOKUP($Y151,'2'!$AG$139:$AI$176,3,0),"") -> 10.1 | AB151: =IF($Y151<>"",VLOOKUP($Y151,'2'!$AG$77:$AH$114,2,0),"") -> توبيخ | AF151: 13 | AG151: خديمي إسماعيل | AH151: لوحة شرف | AI151: 13.66666667 | AJ151: =IF(AG151<>"",COUNTIF($AK$139:$AK$176,">"&AK151)+COUNTIF($AK$139:AK151,AK151),"") -> 3 | AK151: 13666.66667 | AL151: 2002-05-30
A152: 14 | C152: ذ | D152: درموز | E152: فوضيل | F152: 1999-05-23 | L152: 8.6 | M152: إنذار | W152: 14 | Y152: =IF(ISNA(MATCH(W152,'2'!$AJ$139:$AJ$176,0)),"",INDEX('2'!$AG$139:$AG$176,MATCH(W152,'2'!$AJ$139:$AJ$176,0))) -> دونان عبد الرحمان | Z152: =IF($Y152<>"",VLOOKUP($Y152,'2'!$AG$139:$AL$176,6,0),"") -> 2001-01-10 | AA152: =IF($Y152<>"",VLOOKUP($Y152,'2'!$AG$139:$AI$176,3,0),"") -> 9.866666667 | AB152: =IF($Y152<>"",VLOOKUP($Y152,'2'!$AG$77:$AH$114,2,0),"") -> توبيخ | AF152: 14 | AG152: درموز فوضيل | AH152: إنذار | AI152: 8.6 | AJ152: =IF(AG152<>"",COUNTIF($AK$139:$AK$176,">"&AK152)+COUNTIF($AK$139:AK152,AK152),"") -> 19 | AK152: 8600 | AL152: 1999-05-23
A153: 15 | C153: ذ | D153: دونان | E153: عبد الرحمان | F153: 2001-01-10 | L153: 9.866666667 | M153: إنذار | W153: 15 | Y153: =IF(ISNA(MATCH(W153,'2'!$AJ$139:$AJ$176,0)),"",INDEX('2'!$AG$139:$AG$176,MATCH(W153,'2'!$AJ$139:$AJ$176,0))) -> شاشو إكرام | Z153: =IF($Y153<>"",VLOOKUP($Y153,'2'!$AG$139:$AL$176,6,0),"") -> 2002-03-29 | AA153: =IF($Y153<>"",VLOOKUP($Y153,'2'!$AG$139:$AI$176,3,0),"") -> 9.866666667 | AB153: =IF($Y153<>"",VLOOKUP($Y153,'2'!$AG$77:$AH$114,2,0),"") -> توبيخ | AF153: 15 | AG153: دونان عبد الرحمان | AH153: إنذار | AI153: 9.866666667 | AJ153: =IF(AG153<>"",COUNTIF($AK$139:$AK$176,">"&AK153)+COUNTIF($AK$139:AK153,AK153),"") -> 14 | AK153: 9866.666667 | AL153: 2001-01-10
A154: 16 | C154: ذ | D154: سالم | E154: أبو بكر | F154: 2000-09-16 | L154: 6.9 | M154: توبيخ | W154: 16 | Y154: =IF(ISNA(MATCH(W154,'2'!$AJ$139:$AJ$176,0)),"",INDEX('2'!$AG$139:$AG$176,MATCH(W154,'2'!$AJ$139:$AJ$176,0))) -> هاشمي خضرة | Z154: =IF($Y154<>"",VLOOKUP($Y154,'2'!$AG$139:$AL$176,6,0),"") -> 2001-09-25 | AA154: =IF($Y154<>"",VLOOKUP($Y154,'2'!$AG$139:$AI$176,3,0),"") -> 9.683333333 | AB154: =IF($Y154<>"",VLOOKUP($Y154,'2'!$AG$77:$AH$114,2,0),"") -> لا شيء | AF154: 16 | AG154: سالم أبو بكر | AH154: توبيخ | AI154: 6.9 | AJ154: =IF(AG154<>"",COUNTIF($AK$139:$AK$176,">"&AK154)+COUNTIF($AK$139:AK154,AK154),"") -> 26 | AK154: 6900 | AL154: 2000-09-16
A155: 17 | C155: =C93 -> أ | D155: شاشو | E155: إكرام | F155: 2002-03-29 | L155: 9.866666667 | M155: إنذار | W155: 17 | Y155: =IF(ISNA(MATCH(W155,'2'!$AJ$139:$AJ$176,0)),"",INDEX('2'!$AG$139:$AG$176,MATCH(W155,'2'!$AJ$139:$AJ$176,0))) -> فرحات إكرام | Z155: =IF($Y155<>"",VLOOKUP($Y155,'2'!$AG$139:$AL$176,6,0),"") -> 2002-03-30 | AA155: =IF($Y155<>"",VLOOKUP($Y155,'2'!$AG$139:$AI$176,3,0),"") -> 9.433333333 | AB155: =IF($Y155<>"",VLOOKUP($Y155,'2'!$AG$77:$AH$114,2,0),"") -> توبيخ | AF155: 17 | AG155: شاشو إكرام | AH155: إنذار | AI155: 9.866666667 | AJ155: =IF(AG155<>"",COUNTIF($AK$139:$AK$176,">"&AK155)+COUNTIF($AK$139:AK155,AK155),"") -> 15 | AK155: 9866.666667 | AL155: 2002-03-29
A156: 18 | C156: ذ | D156: شاشو | E156: منصور | F156: 2002-12-08 | L156: 5.7 | M156: توبيخ | W156: 18 | Y156: =IF(ISNA(MATCH(W156,'2'!$AJ$139:$AJ$176,0)),"",INDEX('2'!$AG$139:$AG$176,MATCH(W156,'2'!$AJ$139:$AJ$176,0))) -> بورعدة إلياس | Z156: =IF($Y156<>"",VLOOKUP($Y156,'2'!$AG$139:$AL$176,6,0),"") -> 2001-07-31 | AA156: =IF($Y156<>"",VLOOKUP($Y156,'2'!$AG$139:$AI$176,3,0),"") -> 9.366666667 | AB156: =IF($Y156<>"",VLOOKUP($Y156,'2'!$AG$77:$AH$114,2,0),"") -> توبيخ | AF156: 18 | AG156: شاشو منصور | AH156: توبيخ | AI156: 5.7 | AJ156: =IF(AG156<>"",COUNTIF($AK$139:$AK$176,">"&AK156)+COUNTIF($AK$139:AK156,AK156),"") -> 31 | AK156: 5700 | AL156: 2002-12-08
A157: 19 | C157: أ | D157: شاشو | E157: ويزة | F157: 2002-03-17 | L157: 14.01666667 | M157: تشجيع | W157: 19 | Y157: =IF(ISNA(MATCH(W157,'2'!$AJ$139:$AJ$176,0)),"",INDEX('2'!$AG$139:$AG$176,MATCH(W157,'2'!$AJ$139:$AJ$176,0))) -> درموز فوضيل | Z157: =IF($Y157<>"",VLOOKUP($Y157,'2'!$AG$139:$AL$176,6,0),"") -> 1999-05-23 | AA157: =IF($Y157<>"",VLOOKUP($Y157,'2'!$AG$139:$AI$176,3,0),"") -> 8.6 | AB157: =IF($Y157<>"",VLOOKUP($Y157,'2'!$AG$77:$AH$114,2,0),"") -> توبيخ | AF157: 19 | AG157: شاشو ويزة | AH157: تشجيع | AI157: 14.01666667 | AJ157: =IF(AG157<>"",COUNTIF($AK$139:$AK$176,">"&AK157)+COUNTIF($AK$139:AK157,AK157),"") -> 2 | AK157: 14016.66667 | AL157: 2002-03-17
A158: 20 | C158: ذ | D158: طرمول | E158: محمد | F158: 1999-01-27 | L158: 6.266666667 | M158: توبيخ | W158: 20 | Y158: =IF(ISNA(MATCH(W158,'2'!$AJ$139:$AJ$176,0)),"",INDEX('2'!$AG$139:$AG$176,MATCH(W158,'2'!$AJ$139:$AJ$176,0))) -> بلعربي بوعبد الله | Z158: =IF($Y158<>"",VLOOKUP($Y158,'2'!$AG$139:$AL$176,6,0),"") -> 2000-10-16 | AA158: =IF($Y158<>"",VLOOKUP($Y158,'2'!$AG$139:$AI$176,3,0),"") -> 8.35 | AB158: =IF($Y158<>"",VLOOKUP($Y158,'2'!$AG$77:$AH$114,2,0),"") -> توبيخ | AF158: 20 | AG158: طرمول محمد | AH158: توبيخ | AI158: 6.266666667 | AJ158: =IF(AG158<>"",COUNTIF($AK$139:$AK$176,">"&AK158)+COUNTIF($AK$139:AK158,AK158),"") -> 28 | AK158: 6266.666667 | AL158: 1999-01-27
A159: 21 | C159: ذ | D159: عامر | E159: رضوان | F159: 2000-10-31 | L159: 5.916666667 | M159: توبيخ | W159: 21 | Y159: =IF(ISNA(MATCH(W159,'2'!$AJ$139:$AJ$176,0)),"",INDEX('2'!$AG$139:$AG$176,MATCH(W159,'2'!$AJ$139:$AJ$176,0))) -> بلعربي سمير | Z159: =IF($Y159<>"",VLOOKUP($Y159,'2'!$AG$139:$AL$176,6,0),"") -> 2000-02-16 | AA159: =IF($Y159<>"",VLOOKUP($Y159,'2'!$AG$139:$AI$176,3,0),"") -> 7.7 | AB159: =IF($Y159<>"",VLOOKUP($Y159,'2'!$AG$77:$AH$114,2,0),"") -> توبيخ | AF159: 21 | AG159: عامر رضوان | AH159: توبيخ | AI159: 5.916666667 | AJ159: =IF(AG159<>"",COUNTIF($AK$139:$AK$176,">"&AK159)+COUNTIF($AK$139:AK159,AK159),"") -> 30 | AK159: 5916.666667 | AL159: 2000-10-31
A160: 22 | C160: ذ | D160: عمارة | E160: ميلود | F160: 2000-07-15 | L160: 10.38333333 | M160: لا شيء | W160: 22 | Y160: =IF(ISNA(MATCH(W160,'2'!$AJ$139:$AJ$176,0)),"",INDEX('2'!$AG$139:$AG$176,MATCH(W160,'2'!$AJ$139:$AJ$176,0))) -> عيسات العالية | Z160: =IF($Y160<>"",VLOOKUP($Y160,'2'!$AG$139:$AL$176,6,0),"") -> 2001-12-29 | AA160: =IF($Y160<>"",VLOOKUP($Y160,'2'!$AG$139:$AI$176,3,0),"") -> 7.583333333 | AB160: =IF($Y160<>"",VLOOKUP($Y160,'2'!$AG$77:$AH$114,2,0),"") -> توبيخ | AF160: 22 | AG160: عمارة ميلود | AH160: لا شيء | AI160: 10.38333333 | AJ160: =IF(AG160<>"",COUNTIF($AK$139:$AK$176,">"&AK160)+COUNTIF($AK$139:AK160,AK160),"") -> 11 | AK160: 10383.33333 | AL160: 2000-07-15
A161: 23 | C161: أ | D161: عيسات | E161: العالية | F161: 2001-12-29 | L161: 7.583333333 | M161: توبيخ | W161: 23 | Y161: =IF(ISNA(MATCH(W161,'2'!$AJ$139:$AJ$176,0)),"",INDEX('2'!$AG$139:$AG$176,MATCH(W161,'2'!$AJ$139:$AJ$176,0))) -> باي شيماء | Z161: =IF($Y161<>"",VLOOKUP($Y161,'2'!$AG$139:$AL$176,6,0),"") -> 2001-12-21 | AA161: =IF($Y161<>"",VLOOKUP($Y161,'2'!$AG$139:$AI$176,3,0),"") -> 7.566666667 | AB161: =IF($Y161<>"",VLOOKUP($Y161,'2'!$AG$77:$AH$114,2,0),"") -> توبيخ | AF161: 23 | AG161: عيسات العالية | AH161: توبيخ | AI161: 7.583333333 | AJ161: =IF(AG161<>"",COUNTIF($AK$139:$AK$176,">"&AK161)+COUNTIF($AK$139:AK161,AK161),"") -> 22 | AK161: 7583.333333 | AL161: 2001-12-29
A162: 24 | C162: أ | D162: فرحات | E162: إكرام | F162: 2002-03-30 | L162: 9.433333333 | M162: إنذار | W162: 24 | Y162: =IF(ISNA(MATCH(W162,'2'!$AJ$139:$AJ$176,0)),"",INDEX('2'!$AG$139:$AG$176,MATCH(W162,'2'!$AJ$139:$AJ$176,0))) -> مرحول بوزيان | Z162: =IF($Y162<>"",VLOOKUP($Y162,'2'!$AG$139:$AL$176,6,0),"") -> 1999-08-09 | AA162: =IF($Y162<>"",VLOOKUP($Y162,'2'!$AG$139:$AI$176,3,0),"") -> 7.55 | AB162: =IF($Y162<>"",VLOOKUP($Y162,'2'!$AG$77:$AH$114,2,0),"") -> توبيخ | AF162: 24 | AG162: فرحات إكرام | AH162: إنذار | AI162: 9.433333333 | AJ162: =IF(AG162<>"",COUNTIF($AK$139:$AK$176,">"&AK162)+COUNTIF($AK$139:AK162,AK162),"") -> 17 | AK162: 9433.333333 | AL162: 2002-03-30
A163: 25 | C163: ذ | D163: فرحات | E163: عبد القادر | F163: 2002-02-22 | L163: 11.28333333 | M163: لا شيء | W163: 25 | Y163: =IF(ISNA(MATCH(W163,'2'!$AJ$139:$AJ$176,0)),"",INDEX('2'!$AG$139:$AG$176,MATCH(W163,'2'!$AJ$139:$AJ$176,0))) -> قوميش حنان | Z163: =IF($Y163<>"",VLOOKUP($Y163,'2'!$AG$139:$AL$176,6,0),"") -> 2002-09-29 | AA163: =IF($Y163<>"",VLOOKUP($Y163,'2'!$AG$139:$AI$176,3,0),"") -> 7.033333333 | AB163: =IF($Y163<>"",VLOOKUP($Y163,'2'!$AG$77:$AH$114,2,0),"") -> توبيخ | AF163: 25 | AG163: فرحات عبد القادر | AH163: لا شيء | AI163: 11.28333333 | AJ163: =IF(AG163<>"",COUNTIF($AK$139:$AK$176,">"&AK163)+COUNTIF($AK$139:AK163,AK163),"") -> 8 | AK163: 11283.33333 | AL163: 2002-02-22
A164: 26 | C164: ذ | D164: فرحات | E164: محمد الأمين | F164: 1998-06-19 | L164: 11.06666667 | M164: لا شيء | W164: 26 | Y164: =IF(ISNA(MATCH(W164,'2'!$AJ$139:$AJ$176,0)),"",INDEX('2'!$AG$139:$AG$176,MATCH(W164,'2'!$AJ$139:$AJ$176,0))) -> سالم أبو بكر | Z164: =IF($Y164<>"",VLOOKUP($Y164,'2'!$AG$139:$AL$176,6,0),"") -> 2000-09-16 | AA164: =IF($Y164<>"",VLOOKUP($Y164,'2'!$AG$139:$AI$176,3,0),"") -> 6.9 | AB164: =IF($Y164<>"",VLOOKUP($Y164,'2'!$AG$77:$AH$114,2,0),"") -> توبيخ | AF164: 26 | AG164: فرحات محمد الأمين | AH164: لا شيء | AI164: 11.06666667 | AJ164: =IF(AG164<>"",COUNTIF($AK$139:$AK$176,">"&AK164)+COUNTIF($AK$139:AK164,AK164),"") -> 9 | AK164: 11066.66667 | AL164: 1998-06-19
A165: 27 | C165: أ | D165: قاضي | E165: إكرام | F165: 2002-08-19 | L165: 5.666666667 | M165: توبيخ | W165: 27 | Y165: =IF(ISNA(MATCH(W165,'2'!$AJ$139:$AJ$176,0)),"",INDEX('2'!$AG$139:$AG$176,MATCH(W165,'2'!$AJ$139:$AJ$176,0))) -> بلعربي سارة | Z165: =IF($Y165<>"",VLOOKUP($Y165,'2'!$AG$139:$AL$176,6,0),"") -> 2002-01-16 | AA165: =IF($Y165<>"",VLOOKUP($Y165,'2'!$AG$139:$AI$176,3,0),"") -> 6.5 | AB165: =IF($Y165<>"",VLOOKUP($Y165,'2'!$AG$77:$AH$114,2,0),"") -> توبيخ | AF165: 27 | AG165: قاضي إكرام | AH165: توبيخ | AI165: 5.666666667 | AJ165: =IF(AG165<>"",COUNTIF($AK$139:$AK$176,">"&AK165)+COUNTIF($AK$139:AK165,AK165),"") -> 32 | AK165: 5666.666667 | AL165: 2002-08-19
A166: 28 | C166: أ | D166: قوميش | E166: حنان | F166: 2002-09-29 | L166: 7.033333333 | M166: توبيخ | W166: 28 | Y166: =IF(ISNA(MATCH(W166,'2'!$AJ$139:$AJ$176,0)),"",INDEX('2'!$AG$139:$AG$176,MATCH(W166,'2'!$AJ$139:$AJ$176,0))) -> طرمول محمد | Z166: =IF($Y166<>"",VLOOKUP($Y166,'2'!$AG$139:$AL$176,6,0),"") -> 1999-01-27 | AA166: =IF($Y166<>"",VLOOKUP($Y166,'2'!$AG$139:$AI$176,3,0),"") -> 6.266666667 | AB166: =IF($Y166<>"",VLOOKUP($Y166,'2'!$AG$77:$AH$114,2,0),"") -> توبيخ | AF166: 28 | AG166: قوميش حنان | AH166: توبيخ | AI166: 7.033333333 | AJ166: =IF(AG166<>"",COUNTIF($AK$139:$AK$176,">"&AK166)+COUNTIF($AK$139:AK166,AK166),"") -> 25 | AK166: 7033.333333 | AL166: 2002-09-29
A167: 29 | C167: ذ | D167: لعبادلي | E167: العجال | F167: 2000-07-16 | L167: 5.5 | M167: توبيخ | W167: 29 | Y167: =IF(ISNA(MATCH(W167,'2'!$AJ$139:$AJ$176,0)),"",INDEX('2'!$AG$139:$AG$176,MATCH(W167,'2'!$AJ$139:$AJ$176,0))) -> تومي كحلة | Z167: =IF($Y167<>"",VLOOKUP($Y167,'2'!$AG$139:$AL$176,6,0),"") -> 2002-01-29 | AA167: =IF($Y167<>"",VLOOKUP($Y167,'2'!$AG$139:$AI$176,3,0),"") -> 6.083333333 | AB167: =IF($Y167<>"",VLOOKUP($Y167,'2'!$AG$77:$AH$114,2,0),"") -> توبيخ | AF167: 29 | AG167: لعبادلي العجال | AH167: توبيخ | AI167: 5.5 | AJ167: =IF(AG167<>"",COUNTIF($AK$139:$AK$176,">"&AK167)+COUNTIF($AK$139:AK167,AK167),"") -> 33 | AK167: 5500 | AL167: 2000-07-16
A168: 30 | C168: ذ | D168: لعيدي | E168: أسامة | F168: 2001-01-11 | L168: 13.11666667 | M168: لوحة شرف | W168: 30 | Y168: =IF(ISNA(MATCH(W168,'2'!$AJ$139:$AJ$176,0)),"",INDEX('2'!$AG$139:$AG$176,MATCH(W168,'2'!$AJ$139:$AJ$176,0))) -> عامر رضوان | Z168: =IF($Y168<>"",VLOOKUP($Y168,'2'!$AG$139:$AL$176,6,0),"") -> 2000-10-31 | AA168: =IF($Y168<>"",VLOOKUP($Y168,'2'!$AG$139:$AI$176,3,0),"") -> 5.916666667 | AB168: =IF($Y168<>"",VLOOKUP($Y168,'2'!$AG$77:$AH$114,2,0),"") -> توبيخ | AF168: 30 | AG168: لعيدي أسامة | AH168: لوحة شرف | AI168: 13.11666667 | AJ168: =IF(AG168<>"",COUNTIF($AK$139:$AK$176,">"&AK168)+COUNTIF($AK$139:AK168,AK168),"") -> 6 | AK168: 13116.66667 | AL168: 2001-01-11
A169: 31 | C169: ذ | D169: مرحول | E169: بوزيان | F169: 1999-08-09 | L169: 7.55 | M169: توبيخ | W169: 31 | Y169: =IF(ISNA(MATCH(W169,'2'!$AJ$139:$AJ$176,0)),"",INDEX('2'!$AG$139:$AG$176,MATCH(W169,'2'!$AJ$139:$AJ$176,0))) -> شاشو منصور | Z169: =IF($Y169<>"",VLOOKUP($Y169,'2'!$AG$139:$AL$176,6,0),"") -> 2002-12-08 | AA169: =IF($Y169<>"",VLOOKUP($Y169,'2'!$AG$139:$AI$176,3,0),"") -> 5.7 | AB169: =IF($Y169<>"",VLOOKUP($Y169,'2'!$AG$77:$AH$114,2,0),"") -> توبيخ | AF169: 31 | AG169: مرحول بوزيان | AH169: توبيخ | AI169: 7.55 | AJ169: =IF(AG169<>"",COUNTIF($AK$139:$AK$176,">"&AK169)+COUNTIF($AK$139:AK169,AK169),"") -> 24 | AK169: 7550 | AL169: 1999-08-09
A170: 32 | C170: ذ | D170: معمري | E170: عمر | F170: 2002-03-17 | L170: 11.76666667 | M170: لا شيء | W170: 32 | Y170: =IF(ISNA(MATCH(W170,'2'!$AJ$139:$AJ$176,0)),"",INDEX('2'!$AG$139:$AG$176,MATCH(W170,'2'!$AJ$139:$AJ$176,0))) -> قاضي إكرام | Z170: =IF($Y170<>"",VLOOKUP($Y170,'2'!$AG$139:$AL$176,6,0),"") -> 2002-08-19 | AA170: =IF($Y170<>"",VLOOKUP($Y170,'2'!$AG$139:$AI$176,3,0),"") -> 5.666666667 | AB170: =IF($Y170<>"",VLOOKUP($Y170,'2'!$AG$77:$AH$114,2,0),"") -> توبيخ | AF170: 32 | AG170: معمري عمر | AH170: لا شيء | AI170: 11.76666667 | AJ170: =IF(AG170<>"",COUNTIF($AK$139:$AK$176,">"&AK170)+COUNTIF($AK$139:AK170,AK170),"") -> 7 | AK170: 11766.66667 | AL170: 2002-03-17
A171: 33 | C171: =C109 -> أ | D171: مكاوي | E171: خيرة | F171: 2002-09-11 | L171: 13.55 | M171: لوحة شرف | W171: 33 | Y171: =IF(ISNA(MATCH(W171,'2'!$AJ$139:$AJ$176,0)),"",INDEX('2'!$AG$139:$AG$176,MATCH(W171,'2'!$AJ$139:$AJ$176,0))) -> لعبادلي العجال | Z171: =IF($Y171<>"",VLOOKUP($Y171,'2'!$AG$139:$AL$176,6,0),"") -> 2000-07-16 | AA171: =IF($Y171<>"",VLOOKUP($Y171,'2'!$AG$139:$AI$176,3,0),"") -> 5.5 | AB171: =IF($Y171<>"",VLOOKUP($Y171,'2'!$AG$77:$AH$114,2,0),"") -> توبيخ | AF171: 33 | AG171: مكاوي خيرة | AH171: لوحة شرف | AI171: 13.55 | AJ171: =IF(AG171<>"",COUNTIF($AK$139:$AK$176,">"&AK171)+COUNTIF($AK$139:AK171,AK171),"") -> 4 | AK171: 13550 | AL171: 2002-09-11
A172: 34 | C172: أ | D172: مهدادي | E172: ميسم ريهام | F172: 2002-12-04 | L172: 10.88333333 | M172: لا شيء | W172: 34 | Y172: =IF(ISNA(MATCH(W172,'2'!$AJ$139:$AJ$176,0)),"",INDEX('2'!$AG$139:$AG$176,MATCH(W172,'2'!$AJ$139:$AJ$176,0))) -> بومهدي فاطمة | Z172: =IF($Y172<>"",VLOOKUP($Y172,'2'!$AG$139:$AL$176,6,0),"") -> 2001-01-17 | AA172: =IF($Y172<>"",VLOOKUP($Y172,'2'!$AG$139:$AI$176,3,0),"") -> 5.083333333 | AB172: =IF($Y172<>"",VLOOKUP($Y172,'2'!$AG$77:$AH$114,2,0),"") -> توبيخ | AF172: 34 | AG172: مهدادي ميسم ريهام | AH172: لا شيء | AI172: 10.88333333 | AJ172: =IF(AG172<>"",COUNTIF($AK$139:$AK$176,">"&AK172)+COUNTIF($AK$139:AK172,AK172),"") -> 10 | AK172: 10883.33333 | AL172: 2002-12-04
A173: 35 | C173: أ | D173: هاشمي | E173: خضرة | F173: 2001-09-25 | L173: 9.683333333 | M173: إنذار | W173: 35 | Y173: =IF(ISNA(MATCH(W173,'2'!$AJ$139:$AJ$176,0)),"",INDEX('2'!$AG$139:$AG$176,MATCH(W173,'2'!$AJ$139:$AJ$176,0))) -> بومهدي رفيق | Z173: =IF($Y173<>"",VLOOKUP($Y173,'2'!$AG$139:$AL$176,6,0),"") -> 2000-06-29 | AA173: =IF($Y173<>"",VLOOKUP($Y173,'2'!$AG$139:$AI$176,3,0),"") -> 4.933333333 | AB173: =IF($Y173<>"",VLOOKUP($Y173,'2'!$AG$77:$AH$114,2,0),"") -> توبيخ | AF173: 35 | AG173: هاشمي خضرة | AH173: إنذار | AI173: 9.683333333 | AJ173: =IF(AG173<>"",COUNTIF($AK$139:$AK$176,">"&AK173)+COUNTIF($AK$139:AK173,AK173),"") -> 16 | AK173: 9683.333333 | AL173: 2001-09-25
A174: 36 | C174: ذ | D174: هاشمي | E174: لخضر | F174: 2001-09-25 | L174: 14.13333333 | M174: تشجيع | W174: 36 | Y174: =IF(ISNA(MATCH(W174,'2'!$AJ$139:$AJ$176,0)),"",INDEX('2'!$AG$139:$AG$176,MATCH(W174,'2'!$AJ$139:$AJ$176,0))) -> بلعباس الحاج | Z174: =IF($Y174<>"",VLOOKUP($Y174,'2'!$AG$139:$AL$176,6,0),"") -> 2002-10-09 | AA174: =IF($Y174<>"",VLOOKUP($Y174,'2'!$AG$139:$AI$176,3,0),"") -> 4.8 | AB174: =IF($Y174<>"",VLOOKUP($Y174,'2'!$AG$77:$AH$114,2,0),"") -> توبيخ | AF174: 36 | AG174: هاشمي لخضر | AH174: تشجيع | AI174: 14.13333333 | AJ174: =IF(AG174<>"",COUNTIF($AK$139:$AK$176,">"&AK174)+COUNTIF($AK$139:AK174,AK174),"") -> 1 | AK174: 14133.33333 | AL174: 2001-09-25
A175: 37 | C175: 0 | D175: 0 | E175: 0 | W175: 37 | Y175: =IF(ISNA(MATCH(W175,'2'!$AJ$139:$AJ$176,0)),"",INDEX('2'!$AG$139:$AG$176,MATCH(W175,'2'!$AJ$139:$AJ$176,0))) -> 0 0 | Z175: =IF($Y175<>"",VLOOKUP($Y175,'2'!$AG$139:$AL$176,6,0),"") -> 00:00:00 | AA175: =IF($Y175<>"",VLOOKUP($Y175,'2'!$AG$139:$AI$176,3,0),"") -> 0 | AB175: =IF($Y175<>"",VLOOKUP($Y175,'2'!$AG$77:$AH$114,2,0),"") -> 0 | AF175: 37 | AG175: 0 0 | AH175: 0 | AI175: 0 | AJ175: =IF(AG175<>"",COUNTIF($AK$139:$AK$176,">"&AK175)+COUNTIF($AK$139:AK175,AK175),"") -> 37 | AK175: 0 | AL175: 00:00:00
A176: 38 | C176: 0 | D176: 0 | E176: 0 | W176: 38 | Y176: =IF(ISNA(MATCH(W176,'2'!$AJ$139:$AJ$176,0)),"",INDEX('2'!$AG$139:$AG$176,MATCH(W176,'2'!$AJ$139:$AJ$176,0))) -> 0 0 | Z176: =IF($Y176<>"",VLOOKUP($Y176,'2'!$AG$139:$AL$176,6,0),"") -> 00:00:00 | AA176: =IF($Y176<>"",VLOOKUP($Y176,'2'!$AG$139:$AI$176,3,0),"") -> 0 | AB176: =IF($Y176<>"",VLOOKUP($Y176,'2'!$AG$77:$AH$114,2,0),"") -> 0 | AF176: 38 | AG176: 0 0 | AH176: 0 | AI176: 0 | AJ176: =IF(AG176<>"",COUNTIF($AK$139:$AK$176,">"&AK176)+COUNTIF($AK$139:AK176,AK176),"") -> 38 | AK176: 0 | AL176: 00:00:00
L178: =COUNTIFS(L139:L176,">=10") -> 13
D179: ="المجموع : " &F179 -> المجموع : 36 | F179: =SUM(F181:F182) -> 36 | M179: ="التهنئة : "&G139 -> التهنئة : 0 | Q179: ="لا شيء : "&G142 -> لا شيء : 7 | Y179: ="المجموع : " &AA181 -> المجموع : 36 | AB179: =F179 -> 36
D181: ="البنات : "&F181 -> البنات : 15 | F181: =COUNTIFS(C139:C176,"أ") -> 15 | M181: ="التشجيع : "&G140 -> التشجيع : 2 | Q181: ="الإنذار : "&G143 -> الإنذار : 7 | Y181: =D181 -> البنات : 15 | AA181: =F179 -> 36 | AB181: =AB179 -> 36 | AD181: المعدل الفصلي أكبرمن أو يساوي 10 | AH181: =COUNTIFS(AA139:AA176,">=10") -> 13 | AI181: =AH181/AB179 -> 0.3611111111
D182: ="البنين : "&F182 -> البنين : 21 | F182: =COUNTIFS(C139:C176,"ذ") -> 21 | M182: ="لوحة شرف : "&G141 -> لوحة شرف : 4 | Q182: ="التوبيخ : "&G144 -> التوبيخ : 16 | Y182: =D182 -> البنين : 21 | AB182: =AB181 -> 36
D187: =D125 -> متوسطة مكاوي علي؛ اولاد البارودي - سيدي لخضر | R187: =IF(R125<>"",R125,"") -> 2015/2014 | Y187: =D187 -> متوسطة مكاوي علي؛ اولاد البارودي - سيدي لخضر | AI187: =IF(R187<>"",R187,"") -> 2015/2014 | AJ187: =IF(N187<>"",N187,"") -> 
AI188: =IF(M188<>"",M188,"") ->  | AJ188: =IF(N188<>"",N188,"") -> 
D189: القسم: | E189: =E127 -> س4م3 | K189: نتائج الفصول الثلاث | Y189: القسم: | Z189: =E189 -> س4م3 | AC189: ترتيب التلاميذ حسب معدلاتهم (الفصول الثلاث)
T191: =S5 -> 4
D194: Nom et Prenom | F194: Date de naiss | G194: Age | H194: moy1 | I194: moy2 | J194: moy3 | K194: Moy G | L194: Moy BEM | M194: La moyenne d’acceptation | O194: Age | Y194: اللقب و الإسم | Z194: تاريخ الميلاد | AA194: المعدل العام | AE194: معدل الشهادة | AF194: معدل القبـــول | AG194: السِّن حتى يوم
AR197: 1AM
AH198: 2014-09-30 | AR198: 3AM | AU198: 4AM | AV198: 2AM
A201: 1 | C201: =C139 -> أ | D201: =D15&" "&E15 -> باي شيماء | F201: =F139 -> 2001-12-21 | G201: =IF(S201="","",S201) -> 12 | H201: =IF(L15="","",L15) -> 8.166666667 | I201: =IF(L77="","",L77) -> 6.966666667 | J201: =IF(L139="","",L139) -> 7.566666667 | K201: =IF(SUM(H201:J201)=0,0,AVERAGE(H201:J201)) -> 7.566666667 | L201: 12 | M201: =IF(T201=0,"",T201) -> 10.52222222 | N201: =IF($T$191=1,AR201,IF($T$191=2,AV201,IF($T$191=3,AR201,IF($T$191=4,AU201)))) -> ينتقل | R201: =DATEDIF(F201,TODAY(),"y")&" ans "&DATEDIF(F201,TODAY(),"ym")&" mois "&DATEDIF(F201,TODAY(),"md")&" jours" -> 12 ans 7 mois 11 jours | S201: =DATEDIF(F201,$AH$198,"y") -> 12 | T201: =IF(L201="",K201,((L201*2)+K201)/3) -> 10.52222222 | V201: =C201 -> أ | W201: 1 | X201: =IF($Y201<>"",VLOOKUP($Y201,'2'!$D$201:$V$238,19,0),"") -> ذ | Y201: =IF(ISNA(MATCH(W201,'2'!$AC$201:$AC$238,0)),"",INDEX('2'!$D$201:$D$238,MATCH(W201,'2'!$AC$201:$AC$238,0))) -> هاشمي لخضر | Z201: =IF($Y201<>"",VLOOKUP($Y201,'2'!$D$201:$F$238,3,0),"") -> 2001-09-25 | AA201: =IF($Y201<>"",VLOOKUP($Y201,'2'!$D$201:$K$238,8,0),"") -> 14.13333333 | AC201: =IF(D201<>"",COUNTIF($AD$201:$AD$238,">"&AD201)+COUNTIF($AD$201:AD201,AD201),"") -> 14 | AD201: =IF(M201<>"",M201*10000,"") -> 105222.2222 | AE201: =IF($Y201<>"",VLOOKUP($Y201,'2'!$D$201:$L$238,9,0),"") -> 0 | AF201: =IF($Y201<>"",VLOOKUP($Y201,'2'!$D$201:$M$238,10,0),"") -> 14.13333333 | AI201: =IF($Y201<>"",VLOOKUP($Y201,'2'!$D$201:$R$238,15,0),"") -> 12 ans 10 mois 7 jours | AJ201: =IF($Y201<>"",VLOOKUP($Y201,'2'!$D$201:$N$238,11,0),"") -> ينتقل | AR201: =IF(AND(M201>=10,M201<20),"ينتقل","")&IF(AND(M201<9,S201<=16),"يعيد","")&IF(AND(M201<10,S201>16),"يفصل","")&IF(AND(M201>=9,M201<10,S201<16),"يستدرك","") -> ينتقل | AU201: =IF(AND(M201>=10,M201<20),"ينتقل","")&IF(AND(M201<10,S201<=16),"يعيد","")&IF(AND(M201<10,S201>16),"يفصل","") -> ينتقل | AV201: =IF(AND(M201>=10,M201<20),"ينتقل","")&IF(AND(M201<9,S201<=16),"يعيد","")&IF(AND(M201<10,S201>16),"يفصل","")&IF(AND(M201>=9,M201<10,S201<16),"قرار المجلس","") -> ينتقل
A202: 2 | C202: =C140 -> ذ | D202: =D16&" "&E16 -> بلعباس الحاج | F202: =F140 -> 2002-10-09 | G202: =IF(S202="","",S202) -> 11 | H202: 4 | I202: 5.6 | J202: =IF(L140="","",L140) -> 4.8 | K202: =IF(SUM(H202:J202)=0,0,AVERAGE(H202:J202)) -> 4.8 | L202: 11 | M202: =IF(T202=0,"",T202) -> 8.933333333 | N202: =IF($T$191=1,AR202,IF($T$191=2,AV202,IF($T$191=3,AR202,IF($T$191=4,AU202)))) -> يعيد | R202: =DATEDIF(F202,TODAY(),"y")&" ans "&DATEDIF(F202,TODAY(),"ym")&" mois "&DATEDIF(F202,TODAY(),"md")&" jours" -> 11 ans 9 mois 23 jours | S202: =DATEDIF(F202,$AH$198,"y") -> 11 | T202: =IF(L202="",K202,((L202*2)+K202)/3) -> 8.933333333 | V202: =C202 -> ذ | W202: 2 | X202: =IF($Y202<>"",VLOOKUP($Y202,'2'!$D$201:$V$238,19,0),"") -> أ | Y202: =IF(ISNA(MATCH(W202,'2'!$AC$201:$AC$238,0)),"",INDEX('2'!$D$201:$D$238,MATCH(W202,'2'!$AC$201:$AC$238,0))) -> شاشو ويزة | Z202: =IF($Y202<>"",VLOOKUP($Y202,'2'!$D$201:$F$238,3,0),"") -> 2002-03-17 | AA202: =IF($Y202<>"",VLOOKUP($Y202,'2'!$D$201:$K$238,8,0),"") -> 14.01666667 | AC202: =IF(D202<>"",COUNTIF($AD$201:$AD$238,">"&AD202)+COUNTIF($AD$201:AD202,AD202),"") -> 22 | AD202: =IF(M202<>"",M202*10000,"") -> 89333.33333 | AE202: =IF($Y202<>"",VLOOKUP($Y202,'2'!$D$201:$L$238,9,0),"") -> 0 | AF202: =IF($Y202<>"",VLOOKUP($Y202,'2'!$D$201:$M$238,10,0),"") -> 14.01666667 | AI202: =IF($Y202<>"",VLOOKUP($Y202,'2'!$D$201:$R$238,15,0),"") -> 12 ans 4 mois 15 jours | AJ202: =IF($Y202<>"",VLOOKUP($Y202,'2'!$D$201:$N$238,11,0),"") -> ينتقل | AR202: =IF(AND(M202>=10,M202<20),"ينتقل","")&IF(AND(M202<9,S202<=16),"يعيد","")&IF(AND(M202<10,S202>16),"يفصل","")&IF(AND(M202>=9,M202<10,S202<16),"يستدرك","") -> يعيد | AU202: =IF(AND(M202>=10,M202<20),"ينتقل","")&IF(AND(M202<10,S202<=16),"يعيد","")&IF(AND(M202<10,S202>16),"يفصل","") -> يعيد | AV202: =IF(AND(M202>=10,M202<20),"ينتقل","")&IF(AND(M202<9,S202<=16),"يعيد","")&IF(AND(M202<10,S202>16),"يفصل","")&IF(AND(M202>=9,M202<10,S202<16),"قرار المجلس","") -> يعيد
A203: 3 | C203: ذ | D203: بلعربي بوعبد الله | F203: 2000-10-16 | G203: 13 | H203: 8.8 | I203: 7.9 | J203: 8.35 | K203: 8.35 | L203: 14 | M203: 12.11666667 | N203: =IF($T$191=1,AR203,IF($T$191=2,AV203,IF($T$191=3,AR203,IF($T$191=4,AU203)))) -> ينتقل | R203: 13 ans 9 mois 16 jours | S203: 13 | T203: 12.11666667 | V203: ذ | W203: 3 | X203: =IF($Y203<>"",VLOOKUP($Y203,'2'!$D$201:$V$238,19,0),"") -> ذ | Y203: =IF(ISNA(MATCH(W203,'2'!$AC$201:$AC$238,0)),"",INDEX('2'!$D$201:$D$238,MATCH(W203,'2'!$AC$201:$AC$238,0))) -> خديمي إسماعيل | Z203: =IF($Y203<>"",VLOOKUP($Y203,'2'!$D$201:$F$238,3,0),"") -> 2002-05-30 | AA203: =IF($Y203<>"",VLOOKUP($Y203,'2'!$D$201:$K$238,8,0),"") -> 13.66666667 | AC203: =IF(D203<>"",COUNTIF($AD$201:$AD$238,">"&AD203)+COUNTIF($AD$201:AD203,AD203),"") -> 8 | AD203: 121166.6667 | AE203: =IF($Y203<>"",VLOOKUP($Y203,'2'!$D$201:$L$238,9,0),"") -> 0 | AF203: =IF($Y203<>"",VLOOKUP($Y203,'2'!$D$201:$M$238,10,0),"") -> 13.66666667 | AI203: =IF($Y203<>"",VLOOKUP($Y203,'2'!$D$201:$R$238,15,0),"") -> 12 ans 2 mois 2 jours | AJ203: =IF($Y203<>"",VLOOKUP($Y203,'2'!$D$201:$N$238,11,0),"") -> ينتقل | AR203: ينتقل | AU203: ينتقل | AV203: ينتقل
A204: 4 | C204: أ | D204: بلعربي خديجة | F204: 1999-08-12 | G204: 15 | H204: 12.5 | I204: 7.7 | J204: 10.1 | K204: 10.1 | L204: 13 | M204: 12.03333333 | N204: ينتقل | R204: 14 ans 11 mois 20 jours | S204: 15 | T204: 12.03333333 | V204: أ | W204: 4 | X204: =IF($Y204<>"",VLOOKUP($Y204,'2'!$D$201:$V$238,19,0),"") -> أ | Y204: =IF(ISNA(MATCH(W204,'2'!$AC$201:$AC$238,0)),"",INDEX('2'!$D$201:$D$238,MATCH(W204,'2'!$AC$201:$AC$238,0))) -> مكاوي خيرة | Z204: =IF($Y204<>"",VLOOKUP($Y204,'2'!$D$201:$F$238,3,0),"") -> 2002-09-11 | AA204: =IF($Y204<>"",VLOOKUP($Y204,'2'!$D$201:$K$238,8,0),"") -> 13.55 | AC204: =IF(D204<>"",COUNTIF($AD$201:$AD$238,">"&AD204)+COUNTIF($AD$201:AD204,AD204),"") -> 9 | AD204: 120333.3333 | AE204: =IF($Y204<>"",VLOOKUP($Y204,'2'!$D$201:$L$238,9,0),"") -> 0 | AF204: =IF($Y204<>"",VLOOKUP($Y204,'2'!$D$201:$M$238,10,0),"") -> 13.55 | AI204: =IF($Y204<>"",VLOOKUP($Y204,'2'!$D$201:$R$238,15,0),"") -> 11 ans 10 mois 21 jours | AJ204: =IF($Y204<>"",VLOOKUP($Y204,'2'!$D$201:$N$238,11,0),"") -> ينتقل | AR204: ينتقل | AU204: ينتقل | AV204: ينتقل
A205: 5 | C205: أ | D205: بلعربي سارة | F205: 2002-01-16 | G205: 12 | H205: 7.766666667 | I205: 5.233333333 | J205: 6.5 | K205: 6.5 | L205: 15 | M205: 12.16666667 | N205: ينتقل | R205: 12 ans 6 mois 16 jours | S205: 12 | T205: 12.16666667 | V205: أ | W205: 5 | X205: =IF($Y205<>"",VLOOKUP($Y205,'2'!$D$201:$V$238,19,0),"") -> ذ | Y205: =IF(ISNA(MATCH(W205,'2'!$AC$201:$AC$238,0)),"",INDEX('2'!$D$201:$D$238,MATCH(W205,'2'!$AC$201:$AC$238,0))) -> بوغرس أمحمد | Z205: =IF($Y205<>"",VLOOKUP($Y205,'2'!$D$201:$F$238,3,0),"") -> 1999-08-30 | AA205: =IF($Y205<>"",VLOOKUP($Y205,'2'!$D$201:$K$238,8,0),"") -> 13.35 | AC205: =IF(D205<>"",COUNTIF($AD$201:$AD$238,">"&AD205)+COUNTIF($AD$201:AD205,AD205),"") -> 7 | AD205: 121666.6667 | AE205: =IF($Y205<>"",VLOOKUP($Y205,'2'!$D$201:$L$238,9,0),"") -> 0 | AF205: =IF($Y205<>"",VLOOKUP($Y205,'2'!$D$201:$M$238,10,0),"") -> 13.35 | AI205: =IF($Y205<>"",VLOOKUP($Y205,'2'!$D$201:$R$238,15,0),"") -> 14 ans 11 mois 2 jours | AJ205: =IF($Y205<>"",VLOOKUP($Y205,'2'!$D$201:$N$238,11,0),"") -> ينتقل | AR205: ينتقل | AU205: ينتقل | AV205: ينتقل
A206: 6 | C206: ذ | D206: بلعربي سمير | F206: 2000-02-16 | G206: 14 | H206: 8.166666667 | I206: 7.233333333 | J206: 7.7 | K206: 7.7 | M206: 7.7 | N206: يعيد | R206: 14 ans 5 mois 16 jours | S206: 14 | T206: 7.7 | V206: ذ | W206: 6 | X206: =IF($Y206<>"",VLOOKUP($Y206,'2'!$D$201:$V$238,19,0),"") -> ذ | Y206: =IF(ISNA(MATCH(W206,'2'!$AC$201:$AC$238,0)),"",INDEX('2'!$D$201:$D$238,MATCH(W206,'2'!$AC$201:$AC$238,0))) -> لعيدي أسامة | Z206: =IF($Y206<>"",VLOOKUP($Y206,'2'!$D$201:$F$238,3,0),"") -> 2001-01-11 | AA206: =IF($Y206<>"",VLOOKUP($Y206,'2'!$D$201:$K$238,8,0),"") -> 13.11666667 | AC206: =IF(D206<>"",COUNTIF($AD$201:$AD$238,">"&AD206)+COUNTIF($AD$201:AD206,AD206),"") -> 24 | AD206: 77000 | AE206: =IF($Y206<>"",VLOOKUP($Y206,'2'!$D$201:$L$238,9,0),"") -> 0 | AF206: =IF($Y206<>"",VLOOKUP($Y206,'2'!$D$201:$M$238,10,0),"") -> 13.11666667 | AI206: =IF($Y206<>"",VLOOKUP($Y206,'2'!$D$201:$R$238,15,0),"") -> 13 ans 6 mois 21 jours | AJ206: =IF($Y206<>"",VLOOKUP($Y206,'2'!$D$201:$N$238,11,0),"") -> ينتقل | AR206: يعيد | AU206: يعيد | AV206: يعيد
A207: 7 | C207: ذ | D207: بورعدة إلياس | F207: 2001-07-31 | G207: 13 | H207: 11.86666667 | I207: 6.866666667 | J207: 9.366666667 | K207: 9.366666667 | M207: 9.366666667 | N207: يعيد | R207: 13 ans 0 mois 1 jours | S207: 13 | T207: 9.366666667 | V207: ذ | W207: 7 | X207: =IF($Y207<>"",VLOOKUP($Y207,'2'!$D$201:$V$238,19,0),"") -> أ | Y207: =IF(ISNA(MATCH(W207,'2'!$AC$201:$AC$238,0)),"",INDEX('2'!$D$201:$D$238,MATCH(W207,'2'!$AC$201:$AC$238,0))) -> بلعربي سارة | Z207: =IF($Y207<>"",VLOOKUP($Y207,'2'!$D$201:$F$238,3,0),"") -> 2002-01-16 | AA207: =IF($Y207<>"",VLOOKUP($Y207,'2'!$D$201:$K$238,8,0),"") -> 6.5 | AC207: =IF(D207<>"",COUNTIF($AD$201:$AD$238,">"&AD207)+COUNTIF($AD$201:AD207,AD207),"") -> 21 | AD207: 93666.66667 | AE207: =IF($Y207<>"",VLOOKUP($Y207,'2'!$D$201:$L$238,9,0),"") -> 15 | AF207: =IF($Y207<>"",VLOOKUP($Y207,'2'!$D$201:$M$238,10,0),"") -> 12.16666667 | AI207: =IF($Y207<>"",VLOOKUP($Y207,'2'!$D$201:$R$238,15,0),"") -> 12 ans 6 mois 16 jours | AJ207: =IF($Y207<>"",VLOOKUP($Y207,'2'!$D$201:$N$238,11,0),"") -> ينتقل | AR207: يستدرك | AU207: يعيد | AV207: قرار المجلس
A208: 8 | C208: ذ | D208: بوغرس أمحمد | F208: 1999-08-30 | G208: 15 | H208: 13.36666667 | I208: 13.33333333 | J208: 13.35 | K208: 13.35 | M208: 13.35 | N208: ينتقل | R208: 14 ans 11 mois 2 jours | S208: 15 | T208: 13.35 | V208: ذ | W208: 8 | X208: =IF($Y208<>"",VLOOKUP($Y208,'2'!$D$201:$V$238,19,0),"") -> ذ | Y208: =IF(ISNA(MATCH(W208,'2'!$AC$201:$AC$238,0)),"",INDEX('2'!$D$201:$D$238,MATCH(W208,'2'!$AC$201:$AC$238,0))) -> بلعربي بوعبد الله | Z208: =IF($Y208<>"",VLOOKUP($Y208,'2'!$D$201:$F$238,3,0),"") -> 2000-10-16 | AA208: =IF($Y208<>"",VLOOKUP($Y208,'2'!$D$201:$K$238,8,0),"") -> 8.35 | AC208: =IF(D208<>"",COUNTIF($AD$201:$AD$238,">"&AD208)+COUNTIF($AD$201:AD208,AD208),"") -> 5 | AD208: 133500 | AE208: =IF($Y208<>"",VLOOKUP($Y208,'2'!$D$201:$L$238,9,0),"") -> 14 | AF208: =IF($Y208<>"",VLOOKUP($Y208,'2'!$D$201:$M$238,10,0),"") -> 12.11666667 | AI208: =IF($Y208<>"",VLOOKUP($Y208,'2'!$D$201:$R$238,15,0),"") -> 13 ans 9 mois 16 jours | AJ208: =IF($Y208<>"",VLOOKUP($Y208,'2'!$D$201:$N$238,11,0),"") -> ينتقل | AR208: ينتقل | AU208: ينتقل | AV208: ينتقل
A209: 9 | C209: أ | D209: بوكروش منال | F209: 2002-08-13 | G209: 12 | H209: 11.36666667 | I209: 9 | J209: 10.18333333 | K209: 10.18333333 | M209: 10.18333333 | N209: ينتقل | R209: 11 ans 11 mois 19 jours | S209: 12 | T209: 10.18333333 | V209: أ | W209: 9 | X209: =IF($Y209<>"",VLOOKUP($Y209,'2'!$D$201:$V$238,19,0),"") -> أ | Y209: =IF(ISNA(MATCH(W209,'2'!$AC$201:$AC$238,0)),"",INDEX('2'!$D$201:$D$238,MATCH(W209,'2'!$AC$201:$AC$238,0))) -> بلعربي خديجة | Z209: =IF($Y209<>"",VLOOKUP($Y209,'2'!$D$201:$F$238,3,0),"") -> 1999-08-12 | AA209: =IF($Y209<>"",VLOOKUP($Y209,'2'!$D$201:$K$238,8,0),"") -> 10.1 | AC209: =IF(D209<>"",COUNTIF($AD$201:$AD$238,">"&AD209)+COUNTIF($AD$201:AD209,AD209),"") -> 16 | AD209: 101833.3333 | AE209: =IF($Y209<>"",VLOOKUP($Y209,'2'!$D$201:$L$238,9,0),"") -> 13 | AF209: =IF($Y209<>"",VLOOKUP($Y209,'2'!$D$201:$M$238,10,0),"") -> 12.03333333 | AI209: =IF($Y209<>"",VLOOKUP($Y209,'2'!$D$201:$R$238,15,0),"") -> 14 ans 11 mois 20 jours | AJ209: =IF($Y209<>"",VLOOKUP($Y209,'2'!$D$201:$N$238,11,0),"") -> ينتقل | AR209: ينتقل | AU209: ينتقل | AV209: ينتقل
A210: 10 | C210: ذ | D210: بومهدي رفيق | F210: 2000-06-29 | G210: 14 | H210: 3.1 | I210: 6.766666667 | J210: 4.933333333 | K210: 4.933333333 | M210: 4.933333333 | N210: يعيد | R210: 14 ans 1 mois 3 jours | S210: 14 | T210: 4.933333333 | V210: ذ | W210: 10 | X210: =IF($Y210<>"",VLOOKUP($Y210,'2'!$D$201:$V$238,19,0),"") -> ذ | Y210: =IF(ISNA(MATCH(W210,'2'!$AC$201:$AC$238,0)),"",INDEX('2'!$D$201:$D$238,MATCH(W210,'2'!$AC$201:$AC$238,0))) -> معمري عمر | Z210: =IF($Y210<>"",VLOOKUP($Y210,'2'!$D$201:$F$238,3,0),"") -> 2002-03-17 | AA210: =IF($Y210<>"",VLOOKUP($Y210,'2'!$D$201:$K$238,8,0),"") -> 11.76666667 | AC210: =IF(D210<>"",COUNTIF($AD$201:$AD$238,">"&AD210)+COUNTIF($AD$201:AD210,AD210),"") -> 36 | AD210: 49333.33333 | AE210: =IF($Y210<>"",VLOOKUP($Y210,'2'!$D$201:$L$238,9,0),"") -> 0 | AF210: =IF($Y210<>"",VLOOKUP($Y210,'2'!$D$201:$M$238,10,0),"") -> 11.76666667 | AI210: =IF($Y210<>"",VLOOKUP($Y210,'2'!$D$201:$R$238,15,0),"") -> 12 ans 4 mois 15 jours | AJ210: =IF($Y210<>"",VLOOKUP($Y210,'2'!$D$201:$N$238,11,0),"") -> ينتقل | AR210: يعيد | AU210: يعيد | AV210: يعيد
A211: 11 | C211: أ | D211: بومهدي فاطمة | F211: 2001-01-17 | G211: 13 | H211: 5.566666667 | I211: 4.6 | J211: 5.083333333 | K211: 5.083333333 | M211: 5.083333333 | N211: يعيد | R211: 13 ans 6 mois 15 jours | S211: 13 | T211: 5.083333333 | V211: أ | W211: 11 | X211: =IF($Y211<>"",VLOOKUP($Y211,'2'!$D$201:$V$238,19,0),"") -> ذ | Y211: =IF(ISNA(MATCH(W211,'2'!$AC$201:$AC$238,0)),"",INDEX('2'!$D$201:$D$238,MATCH(W211,'2'!$AC$201:$AC$238,0))) -> فرحات عبد القادر | Z211: =IF($Y211<>"",VLOOKUP($Y211,'2'!$D$201:$F$238,3,0),"") -> 2002-02-22 | AA211: =IF($Y211<>"",VLOOKUP($Y211,'2'!$D$201:$K$238,8,0),"") -> 11.28333333 | AC211: =IF(D211<>"",COUNTIF($AD$201:$AD$238,">"&AD211)+COUNTIF($AD$201:AD211,AD211),"") -> 35 | AD211: 50833.33333 | AE211: =IF($Y211<>"",VLOOKUP($Y211,'2'!$D$201:$L$238,9,0),"") -> 0 | AF211: =IF($Y211<>"",VLOOKUP($Y211,'2'!$D$201:$M$238,10,0),"") -> 11.28333333 | AI211: =IF($Y211<>"",VLOOKUP($Y211,'2'!$D$201:$R$238,15,0),"") -> 12 ans 5 mois 10 jours | AJ211: =IF($Y211<>"",VLOOKUP($Y211,'2'!$D$201:$N$238,11,0),"") -> ينتقل | AR211: يعيد | AU211: يعيد | AV211: يعيد
A212: 12 | C212: أ | D212: تومي كحلة | F212: 2002-01-29 | G212: 12 | H212: 5.833333333 | I212: 6.333333333 | J212: 6.083333333 | K212: 6.083333333 | M212: 6.083333333 | N212: يعيد | R212: 12 ans 6 mois 3 jours | S212: 12 | T212: 6.083333333 | V212: أ | W212: 12 | X212: =IF($Y212<>"",VLOOKUP($Y212,'2'!$D$201:$V$238,19,0),"") -> ذ | Y212: =IF(ISNA(MATCH(W212,'2'!$AC$201:$AC$238,0)),"",INDEX('2'!$D$201:$D$238,MATCH(W212,'2'!$AC$201:$AC$238,0))) -> فرحات محمد الأمين | Z212: =IF($Y212<>"",VLOOKUP($Y212,'2'!$D$201:$F$238,3,0),"") -> 1998-06-19 | AA212: =IF($Y212<>"",VLOOKUP($Y212,'2'!$D$201:$K$238,8,0),"") -> 11.06666667 | AC212: =IF(D212<>"",COUNTIF($AD$201:$AD$238,">"&AD212)+COUNTIF($AD$201:AD212,AD212),"") -> 31 | AD212: 60833.33333 | AE212: =IF($Y212<>"",VLOOKUP($Y212,'2'!$D$201:$L$238,9,0),"") -> 0 | AF212: =IF($Y212<>"",VLOOKUP($Y212,'2'!$D$201:$M$238,10,0),"") -> 11.06666667 | AI212: =IF($Y212<>"",VLOOKUP($Y212,'2'!$D$201:$R$238,15,0),"") -> 16 ans 1 mois 13 jours | AJ212: =IF($Y212<>"",VLOOKUP($Y212,'2'!$D$201:$N$238,11,0),"") -> ينتقل | AR212: يعيد | AU212: يعيد | AV212: يعيد
A213: 13 | C213: ذ | D213: خديمي إسماعيل | F213: 2002-05-30 | G213: 12 | H213: 14.73333333 | I213: 12.6 | J213: 13.66666667 | K213: 13.66666667 | M213: 13.66666667 | N213: ينتقل | R213: 12 ans 2 mois 2 jours | S213: 12 | T213: 13.66666667 | V213: ذ | W213: 13 | X213: =IF($Y213<>"",VLOOKUP($Y213,'2'!$D$201:$V$238,19,0),"") -> أ | Y213: =IF(ISNA(MATCH(W213,'2'!$AC$201:$AC$238,0)),"",INDEX('2'!$D$201:$D$238,MATCH(W213,'2'!$AC$201:$AC$238,0))) -> مهدادي ميسم ريهام | Z213: =IF($Y213<>"",VLOOKUP($Y213,'2'!$D$201:$F$238,3,0),"") -> 2002-12-04 | AA213: =IF($Y213<>"",VLOOKUP($Y213,'2'!$D$201:$K$238,8,0),"") -> 10.88333333 | AC213: =IF(D213<>"",COUNTIF($AD$201:$AD$238,">"&AD213)+COUNTIF($AD$201:AD213,AD213),"") -> 3 | AD213: 136666.6667 | AE213: =IF($Y213<>"",VLOOKUP($Y213,'2'!$D$201:$L$238,9,0),"") -> 0 | AF213: =IF($Y213<>"",VLOOKUP($Y213,'2'!$D$201:$M$238,10,0),"") -> 10.88333333 | AI213: =IF($Y213<>"",VLOOKUP($Y213,'2'!$D$201:$R$238,15,0),"") -> 11 ans 7 mois 28 jours | AJ213: =IF($Y213<>"",VLOOKUP($Y213,'2'!$D$201:$N$238,11,0),"") -> ينتقل | AR213: ينتقل | AU213: ينتقل | AV213: ينتقل
A214: 14 | C214: ذ | D214: درموز فوضيل | F214: 1999-05-23 | G214: 15 | H214: 9.333333333 | I214: 7.866666667 | J214: 8.6 | K214: 8.6 | M214: 8.6 | N214: يعيد | R214: 15 ans 2 mois 9 jours | S214: 15 | T214: 8.6 | V214: ذ | W214: 14 | X214: =IF($Y214<>"",VLOOKUP($Y214,'2'!$D$201:$V$238,19,0),"") -> أ | Y214: =IF(ISNA(MATCH(W214,'2'!$AC$201:$AC$238,0)),"",INDEX('2'!$D$201:$D$238,MATCH(W214,'2'!$AC$201:$AC$238,0))) -> باي شيماء | Z214: =IF($Y214<>"",VLOOKUP($Y214,'2'!$D$201:$F$238,3,0),"") -> 2001-12-21 | AA214: =IF($Y214<>"",VLOOKUP($Y214,'2'!$D$201:$K$238,8,0),"") -> 7.566666667 | AC214: =IF(D214<>"",COUNTIF($AD$201:$AD$238,">"&AD214)+COUNTIF($AD$201:AD214,AD214),"") -> 23 | AD214: 86000 | AE214: =IF($Y214<>"",VLOOKUP($Y214,'2'!$D$201:$L$238,9,0),"") -> 12 | AF214: =IF($Y214<>"",VLOOKUP($Y214,'2'!$D$201:$M$238,10,0),"") -> 10.52222222 | AI214: =IF($Y214<>"",VLOOKUP($Y214,'2'!$D$201:$R$238,15,0),"") -> 12 ans 7 mois 11 jours | AJ214: =IF($Y214<>"",VLOOKUP($Y214,'2'!$D$201:$N$238,11,0),"") -> ينتقل | AR214: يعيد | AU214: يعيد | AV214: يعيد
A215: 15 | C215: ذ | D215: دونان عبد الرحمان | F215: 2001-01-10 | G215: 13 | H215: 12.36666667 | I215: 7.366666667 | J215: 9.866666667 | K215: 9.866666667 | M215: 9.866666667 | N215: يعيد | R215: 13 ans 6 mois 22 jours | S215: 13 | T215: 9.866666667 | V215: ذ | W215: 15 | X215: =IF($Y215<>"",VLOOKUP($Y215,'2'!$D$201:$V$238,19,0),"") -> ذ | Y215: =IF(ISNA(MATCH(W215,'2'!$AC$201:$AC$238,0)),"",INDEX('2'!$D$201:$D$238,MATCH(W215,'2'!$AC$201:$AC$238,0))) -> عمارة ميلود | Z215: =IF($Y215<>"",VLOOKUP($Y215,'2'!$D$201:$F$238,3,0),"") -> 2000-07-15 | AA215: =IF($Y215<>"",VLOOKUP($Y215,'2'!$D$201:$K$238,8,0),"") -> 10.38333333 | AC215: =IF(D215<>"",COUNTIF($AD$201:$AD$238,">"&AD215)+COUNTIF($AD$201:AD215,AD215),"") -> 17 | AD215: 98666.66667 | AE215: =IF($Y215<>"",VLOOKUP($Y215,'2'!$D$201:$L$238,9,0),"") -> 0 | AF215: =IF($Y215<>"",VLOOKUP($Y215,'2'!$D$201:$M$238,10,0),"") -> 10.38333333 | AI215: =IF($Y215<>"",VLOOKUP($Y215,'2'!$D$201:$R$238,15,0),"") -> 14 ans 0 mois 17 jours | AJ215: =IF($Y215<>"",VLOOKUP($Y215,'2'!$D$201:$N$238,11,0),"") -> ينتقل | AR215: يستدرك | AU215: يعيد | AV215: قرار المجلس
A216: 16 | C216: ذ | D216: سالم أبو بكر | F216: 2000-09-16 | G216: 14 | H216: 7.6 | I216: 6.2 | J216: 6.9 | K216: 6.9 | M216: 6.9 | N216: يعيد | R216: 13 ans 10 mois 16 jours | S216: 14 | T216: 6.9 | V216: ذ | W216: 16 | X216: =IF($Y216<>"",VLOOKUP($Y216,'2'!$D$201:$V$238,19,0),"") -> أ | Y216: =IF(ISNA(MATCH(W216,'2'!$AC$201:$AC$238,0)),"",INDEX('2'!$D$201:$D$238,MATCH(W216,'2'!$AC$201:$AC$238,0))) -> بوكروش منال | Z216: =IF($Y216<>"",VLOOKUP($Y216,'2'!$D$201:$F$238,3,0),"") -> 2002-08-13 | AA216: =IF($Y216<>"",VLOOKUP($Y216,'2'!$D$201:$K$238,8,0),"") -> 10.18333333 | AC216: =IF(D216<>"",COUNTIF($AD$201:$AD$238,">"&AD216)+COUNTIF($AD$201:AD216,AD216),"") -> 28 | AD216: 69000 | AE216: =IF($Y216<>"",VLOOKUP($Y216,'2'!$D$201:$L$238,9,0),"") -> 0 | AF216: =IF($Y216<>"",VLOOKUP($Y216,'2'!$D$201:$M$238,10,0),"") -> 10.18333333 | AI216: =IF($Y216<>"",VLOOKUP($Y216,'2'!$D$201:$R$238,15,0),"") -> 11 ans 11 mois 19 jours | AJ216: =IF($Y216<>"",VLOOKUP($Y216,'2'!$D$201:$N$238,11,0),"") -> ينتقل | AR216: يعيد | AU216: يعيد | AV216: يعيد
A217: 17 | C217: أ | D217: شاشو إكرام | F217: 2002-03-29 | G217: 12 | H217: 12.93333333 | I217: 6.8 | J217: 9.866666667 | K217: 9.866666667 | M217: 9.866666667 | N217: يعيد | R217: 12 ans 4 mois 3 jours | S217: 12 | T217: 9.866666667 | V217: أ | W217: 17 | X217: =IF($Y217<>"",VLOOKUP($Y217,'2'!$D$201:$V$238,19,0),"") -> ذ | Y217: =IF(ISNA(MATCH(W217,'2'!$AC$201:$AC$238,0)),"",INDEX('2'!$D$201:$D$238,MATCH(W217,'2'!$AC$201:$AC$238,0))) -> دونان عبد الرحمان | Z217: =IF($Y217<>"",VLOOKUP($Y217,'2'!$D$201:$F$238,3,0),"") -> 2001-01-10 | AA217: =IF($Y217<>"",VLOOKUP($Y217,'2'!$D$201:$K$238,8,0),"") -> 9.866666667 | AC217: =IF(D217<>"",COUNTIF($AD$201:$AD$238,">"&AD217)+COUNTIF($AD$201:AD217,AD217),"") -> 18 | AD217: 98666.66667 | AE217: =IF($Y217<>"",VLOOKUP($Y217,'2'!$D$201:$L$238,9,0),"") -> 0 | AF217: =IF($Y217<>"",VLOOKUP($Y217,'2'!$D$201:$M$238,10,0),"") -> 9.866666667 | AI217: =IF($Y217<>"",VLOOKUP($Y217,'2'!$D$201:$R$238,15,0),"") -> 13 ans 6 mois 22 jours | AJ217: =IF($Y217<>"",VLOOKUP($Y217,'2'!$D$201:$N$238,11,0),"") -> يعيد | AR217: يستدرك | AU217: يعيد | AV217: قرار المجلس
A218: 18 | C218: ذ | D218: شاشو منصور | F218: 2002-12-08 | G218: 11 | H218: 6.533333333 | I218: 4.866666667 | J218: 5.7 | K218: 5.7 | M218: 5.7 | N218: يعيد | R218: 11 ans 7 mois 24 jours | S218: 11 | T218: 5.7 | V218: ذ | W218: 18 | X218: =IF($Y218<>"",VLOOKUP($Y218,'2'!$D$201:$V$238,19,0),"") -> أ | Y218: =IF(ISNA(MATCH(W218,'2'!$AC$201:$AC$238,0)),"",INDEX('2'!$D$201:$D$238,MATCH(W218,'2'!$AC$201:$AC$238,0))) -> شاشو إكرام | Z218: =IF($Y218<>"",VLOOKUP($Y218,'2'!$D$201:$F$238,3,0),"") -> 2002-03-29 | AA218: =IF($Y218<>"",VLOOKUP($Y218,'2'!$D$201:$K$238,8,0),"") -> 9.866666667 | AC218: =IF(D218<>"",COUNTIF($AD$201:$AD$238,">"&AD218)+COUNTIF($AD$201:AD218,AD218),"") -> 33 | AD218: 57000 | AE218: =IF($Y218<>"",VLOOKUP($Y218,'2'!$D$201:$L$238,9,0),"") -> 0 | AF218: =IF($Y218<>"",VLOOKUP($Y218,'2'!$D$201:$M$238,10,0),"") -> 9.866666667 | AI218: =IF($Y218<>"",VLOOKUP($Y218,'2'!$D$201:$R$238,15,0),"") -> 12 ans 4 mois 3 jours | AJ218: =IF($Y218<>"",VLOOKUP($Y218,'2'!$D$201:$N$238,11,0),"") -> يعيد | AR218: يعيد | AU218: يعيد | AV218: يعيد
A219: 19 | C219: أ | D219: شاشو ويزة | F219: 2002-03-17 | G219: 12 | H219: 13.5 | I219: 14.53333333 | J219: 14.01666667 | K219: 14.01666667 | M219: 14.01666667 | N219: ينتقل | R219: 12 ans 4 mois 15 jours | S219: 12 | T219: 14.01666667 | V219: أ | W219: 19 | X219: =IF($Y219<>"",VLOOKUP($Y219,'2'!$D$201:$V$238,19,0),"") -> أ | Y219: =IF(ISNA(MATCH(W219,'2'!$AC$201:$AC$238,0)),"",INDEX('2'!$D$201:$D$238,MATCH(W219,'2'!$AC$201:$AC$238,0))) -> هاشمي خضرة | Z219: =IF($Y219<>"",VLOOKUP($Y219,'2'!$D$201:$F$238,3,0),"") -> 2001-09-25 | AA219: =IF($Y219<>"",VLOOKUP($Y219,'2'!$D$201:$K$238,8,0),"") -> 9.683333333 | AC219: =IF(D219<>"",COUNTIF($AD$201:$AD$238,">"&AD219)+COUNTIF($AD$201:AD219,AD219),"") -> 2 | AD219: 140166.6667 | AE219: =IF($Y219<>"",VLOOKUP($Y219,'2'!$D$201:$L$238,9,0),"") -> 0 | AF219: =IF($Y219<>"",VLOOKUP($Y219,'2'!$D$201:$M$238,10,0),"") -> 9.683333333 | AI219: =IF($Y219<>"",VLOOKUP($Y219,'2'!$D$201:$R$238,15,0),"") -> 12 ans 10 mois 7 jours | AJ219: =IF($Y219<>"",VLOOKUP($Y219,'2'!$D$201:$N$238,11,0),"") -> يعيد | AR219: ينتقل | AU219: ينتقل | AV219: ينتقل
A220: 20 | C220: ذ | D220: طرمول محمد | F220: 1999-01-27 | G220: 15 | H220: 6.266666667 | I220: 6.266666667 | J220: 6.266666667 | K220: 6.266666667 | M220: 6.266666667 | N220: يعيد | R220: 15 ans 6 mois 5 jours | S220: 15 | T220: 6.266666667 | V220: ذ | W220: 20 | X220: =IF($Y220<>"",VLOOKUP($Y220,'2'!$D$201:$V$238,19,0),"") -> أ | Y220: =IF(ISNA(MATCH(W220,'2'!$AC$201:$AC$238,0)),"",INDEX('2'!$D$201:$D$238,MATCH(W220,'2'!$AC$201:$AC$238,0))) -> فرحات إكرام | Z220: =IF($Y220<>"",VLOOKUP($Y220,'2'!$D$201:$F$238,3,0),"") -> 2002-03-30 | AA220: =IF($Y220<>"",VLOOKUP($Y220,'2'!$D$201:$K$238,8,0),"") -> 9.433333333 | AC220: =IF(D220<>"",COUNTIF($AD$201:$AD$238,">"&AD220)+COUNTIF($AD$201:AD220,AD220),"") -> 30 | AD220: 62666.66667 | AE220: =IF($Y220<>"",VLOOKUP($Y220,'2'!$D$201:$L$238,9,0),"") -> 0 | AF220: =IF($Y220<>"",VLOOKUP($Y220,'2'!$D$201:$M$238,10,0),"") -> 9.433333333 | AI220: =IF($Y220<>"",VLOOKUP($Y220,'2'!$D$201:$R$238,15,0),"") -> 12 ans 4 mois 2 jours | AJ220: =IF($Y220<>"",VLOOKUP($Y220,'2'!$D$201:$N$238,11,0),"") -> يعيد | AR220: يعيد | AU220: يعيد | AV220: يعيد
A221: 21 | C221: ذ | D221: عامر رضوان | F221: 2000-10-31 | G221: 13 | H221: 6.766666667 | I221: 5.066666667 | J221: 5.916666667 | K221: 5.916666667 | M221: 5.916666667 | N221: يعيد | R221: 13 ans 9 mois 1 jours | S221: 13 | T221: 5.916666667 | V221: ذ | W221: 21 | X221: =IF($Y221<>"",VLOOKUP($Y221,'2'!$D$201:$V$238,19,0),"") -> ذ | Y221: =IF(ISNA(MATCH(W221,'2'!$AC$201:$AC$238,0)),"",INDEX('2'!$D$201:$D$238,MATCH(W221,'2'!$AC$201:$AC$238,0))) -> بورعدة إلياس | Z221: =IF($Y221<>"",VLOOKUP($Y221,'2'!$D$201:$F$238,3,0),"") -> 2001-07-31 | AA221: =IF($Y221<>"",VLOOKUP($Y221,'2'!$D$201:$K$238,8,0),"") -> 9.366666667 | AC221: =IF(D221<>"",COUNTIF($AD$201:$AD$238,">"&AD221)+COUNTIF($AD$201:AD221,AD221),"") -> 32 | AD221: 59166.66667 | AE221: =IF($Y221<>"",VLOOKUP($Y221,'2'!$D$201:$L$238,9,0),"") -> 0 | AF221: =IF($Y221<>"",VLOOKUP($Y221,'2'!$D$201:$M$238,10,0),"") -> 9.366666667 | AI221: =IF($Y221<>"",VLOOKUP($Y221,'2'!$D$201:$R$238,15,0),"") -> 13 ans 0 mois 1 jours | AJ221: =IF($Y221<>"",VLOOKUP($Y221,'2'!$D$201:$N$238,11,0),"") -> يعيد | AR221: يعيد | AU221: يعيد | AV221: يعيد
A222: 22 | C222: ذ | D222: عمارة ميلود | F222: 2000-07-15 | G222: 14 | H222: 11.66666667 | I222: 9.1 | J222: 10.38333333 | K222: 10.38333333 | M222: 10.38333333 | N222: ينتقل | R222: 14 ans 0 mois 17 jours | S222: 14 | T222: 10.38333333 | V222: ذ | W222: 22 | X222: =IF($Y222<>"",VLOOKUP($Y222,'2'!$D$201:$V$238,19,0),"") -> ذ | Y222: =IF(ISNA(MATCH(W222,'2'!$AC$201:$AC$238,0)),"",INDEX('2'!$D$201:$D$238,MATCH(W222,'2'!$AC$201:$AC$238,0))) -> بلعباس الحاج | Z222: =IF($Y222<>"",VLOOKUP($Y222,'2'!$D$201:$F$238,3,0),"") -> 2002-10-09 | AA222: =IF($Y222<>"",VLOOKUP($Y222,'2'!$D$201:$K$238,8,0),"") -> 4.8 | AC222: =IF(D222<>"",COUNTIF($AD$201:$AD$238,">"&AD222)+COUNTIF($AD$201:AD222,AD222),"") -> 15 | AD222: 103833.3333 | AE222: =IF($Y222<>"",VLOOKUP($Y222,'2'!$D$201:$L$238,9,0),"") -> 11 | AF222: =IF($Y222<>"",VLOOKUP($Y222,'2'!$D$201:$M$238,10,0),"") -> 8.933333333 | AI222: =IF($Y222<>"",VLOOKUP($Y222,'2'!$D$201:$R$238,15,0),"") -> 11 ans 9 mois 23 jours | AJ222: =IF($Y222<>"",VLOOKUP($Y222,'2'!$D$201:$N$238,11,0),"") -> يعيد | AR222: ينتقل | AU222: ينتقل | AV222: ينتقل
A223: 23 | C223: أ | D223: عيسات العالية | F223: 2001-12-29 | G223: 12 | H223: 9.933333333 | I223: 5.233333333 | J223: 7.583333333 | K223: 7.583333333 | M223: 7.583333333 | N223: يعيد | R223: 12 ans 7 mois 3 jours | S223: 12 | T223: 7.583333333 | V223: أ | W223: 23 | X223: =IF($Y223<>"",VLOOKUP($Y223,'2'!$D$201:$V$238,19,0),"") -> ذ | Y223: =IF(ISNA(MATCH(W223,'2'!$AC$201:$AC$238,0)),"",INDEX('2'!$D$201:$D$238,MATCH(W223,'2'!$AC$201:$AC$238,0))) -> درموز فوضيل | Z223: =IF($Y223<>"",VLOOKUP($Y223,'2'!$D$201:$F$238,3,0),"") -> 1999-05-23 | AA223: =IF($Y223<>"",VLOOKUP($Y223,'2'!$D$201:$K$238,8,0),"") -> 8.6 | AC223: =IF(D223<>"",COUNTIF($AD$201:$AD$238,">"&AD223)+COUNTIF($AD$201:AD223,AD223),"") -> 25 | AD223: 75833.33333 | AE223: =IF($Y223<>"",VLOOKUP($Y223,'2'!$D$201:$L$238,9,0),"") -> 0 | AF223: =IF($Y223<>"",VLOOKUP($Y223,'2'!$D$201:$M$238,10,0),"") -> 8.6 | AI223: =IF($Y223<>"",VLOOKUP($Y223,'2'!$D$201:$R$238,15,0),"") -> 15 ans 2 mois 9 jours | AJ223: =IF($Y223<>"",VLOOKUP($Y223,'2'!$D$201:$N$238,11,0),"") -> يعيد | AR223: يعيد | AU223: يعيد | AV223: يعيد
A224: 24 | C224: أ | D224: فرحات إكرام | F224: 2002-03-30 | G224: 12 | H224: 11.2 | I224: 7.666666667 | J224: 9.433333333 | K224: 9.433333333 | M224: 9.433333333 | N224: يعيد | R224: 12 ans 4 mois 2 jours | S224: 12 | T224: 9.433333333 | V224: أ | W224: 24 | X224: =IF($Y224<>"",VLOOKUP($Y224,'2'!$D$201:$V$238,19,0),"") -> ذ | Y224: =IF(ISNA(MATCH(W224,'2'!$AC$201:$AC$238,0)),"",INDEX('2'!$D$201:$D$238,MATCH(W224,'2'!$AC$201:$AC$238,0))) -> بلعربي سمير | Z224: =IF($Y224<>"",VLOOKUP($Y224,'2'!$D$201:$F$238,3,0),"") -> 2000-02-16 | AA224: =IF($Y224<>"",VLOOKUP($Y224,'2'!$D$201:$K$238,8,0),"") -> 7.7 | AC224: =IF(D224<>"",COUNTIF($AD$201:$AD$238,">"&AD224)+COUNTIF($AD$201:AD224,AD224),"") -> 20 | AD224: 94333.33333 | AE224: =IF($Y224<>"",VLOOKUP($Y224,'2'!$D$201:$L$238,9,0),"") -> 0 | AF224: =IF($Y224<>"",VLOOKUP($Y224,'2'!$D$201:$M$238,10,0),"") -> 7.7 | AI224: =IF($Y224<>"",VLOOKUP($Y224,'2'!$D$201:$R$238,15,0),"") -> 14 ans 5 mois 16 jours | AJ224: =IF($Y224<>"",VLOOKUP($Y224,'2'!$D$201:$N$238,11,0),"") -> يعيد | AR224: يستدرك | AU224: يعيد | AV224: قرار المجلس
A225: 25 | C225: ذ | D225: فرحات عبد القادر | F225: 2002-02-22 | G225: 12 | H225: 13.16666667 | I225: 9.4 | J225: 11.28333333 | K225: 11.28333333 | M225: 11.28333333 | N225: ينتقل | R225: 12 ans 5 mois 10 jours | S225: 12 | T225: 11.28333333 | V225: ذ | W225: 25 | X225: =IF($Y225<>"",VLOOKUP($Y225,'2'!$D$201:$V$238,19,0),"") -> أ | Y225: =IF(ISNA(MATCH(W225,'2'!$AC$201:$AC$238,0)),"",INDEX('2'!$D$201:$D$238,MATCH(W225,'2'!$AC$201:$AC$238,0))) -> عيسات العالية | Z225: =IF($Y225<>"",VLOOKUP($Y225,'2'!$D$201:$F$238,3,0),"") -> 2001-12-29 | AA225: =IF($Y225<>"",VLOOKUP($Y225,'2'!$D$201:$K$238,8,0),"") -> 7.583333333 | AC225: =IF(D225<>"",COUNTIF($AD$201:$AD$238,">"&AD225)+COUNTIF($AD$201:AD225,AD225),"") -> 11 | AD225: 112833.3333 | AE225: =IF($Y225<>"",VLOOKUP($Y225,'2'!$D$201:$L$238,9,0),"") -> 0 | AF225: =IF($Y225<>"",VLOOKUP($Y225,'2'!$D$201:$M$238,10,0),"") -> 7.583333333 | AI225: =IF($Y225<>"",VLOOKUP($Y225,'2'!$D$201:$R$238,15,0),"") -> 12 ans 7 mois 3 jours | AJ225: =IF($Y225<>"",VLOOKUP($Y225,'2'!$D$201:$N$238,11,0),"") -> يعيد | AR225: ينتقل | AU225: ينتقل | AV225: ينتقل
A226: 26 | C226: ذ | D226: فرحات محمد الأمين | F226: 1998-06-19 | G226: 16 | H226: 13.3 | I226: 8.833333333 | J226: 11.06666667 | K226: 11.06666667 | M226: 11.06666667 | N226: ينتقل | R226: 16 ans 1 mois 13 jours | S226: 16 | T226: 11.06666667 | V226: ذ | W226: 26 | X226: =IF($Y226<>"",VLOOKUP($Y226,'2'!$D$201:$V$238,19,0),"") -> ذ | Y226: =IF(ISNA(MATCH(W226,'2'!$AC$201:$AC$238,0)),"",INDEX('2'!$D$201:$D$238,MATCH(W226,'2'!$AC$201:$AC$238,0))) -> مرحول بوزيان | Z226: =IF($Y226<>"",VLOOKUP($Y226,'2'!$D$201:$F$238,3,0),"") -> 1999-08-09 | AA226: =IF($Y226<>"",VLOOKUP($Y226,'2'!$D$201:$K$238,8,0),"") -> 7.55 | AC226: =IF(D226<>"",COUNTIF($AD$201:$AD$238,">"&AD226)+COUNTIF($AD$201:AD226,AD226),"") -> 12 | AD226: 110666.6667 | AE226: =IF($Y226<>"",VLOOKUP($Y226,'2'!$D$201:$L$238,9,0),"") -> 0 | AF226: =IF($Y226<>"",VLOOKUP($Y226,'2'!$D$201:$M$238,10,0),"") -> 7.55 | AI226: =IF($Y226<>"",VLOOKUP($Y226,'2'!$D$201:$R$238,15,0),"") -> 14 ans 11 mois 23 jours | AJ226: =IF($Y226<>"",VLOOKUP($Y226,'2'!$D$201:$N$238,11,0),"") -> يعيد | AR226: ينتقل | AU226: ينتقل | AV226: ينتقل
A227: 27 | C227: أ | D227: قاضي إكرام | F227: 2002-08-19 | G227: 12 | H227: 4.366666667 | I227: 6.966666667 | J227: 5.666666667 | K227: 5.666666667 | M227: 5.666666667 | N227: يعيد | R227: 11 ans 11 mois 13 jours | S227: 12 | T227: 5.666666667 | V227: أ | W227: 27 | X227: =IF($Y227<>"",VLOOKUP($Y227,'2'!$D$201:$V$238,19,0),"") -> أ | Y227: =IF(ISNA(MATCH(W227,'2'!$AC$201:$AC$238,0)),"",INDEX('2'!$D$201:$D$238,MATCH(W227,'2'!$AC$201:$AC$238,0))) -> قوميش حنان | Z227: =IF($Y227<>"",VLOOKUP($Y227,'2'!$D$201:$F$238,3,0),"") -> 2002-09-29 | AA227: =IF($Y227<>"",VLOOKUP($Y227,'2'!$D$201:$K$238,8,0),"") -> 7.033333333 | AC227: =IF(D227<>"",COUNTIF($AD$201:$AD$238,">"&AD227)+COUNTIF($AD$201:AD227,AD227),"") -> 34 | AD227: 56666.66667 | AE227: =IF($Y227<>"",VLOOKUP($Y227,'2'!$D$201:$L$238,9,0),"") -> 0 | AF227: =IF($Y227<>"",VLOOKUP($Y227,'2'!$D$201:$M$238,10,0),"") -> 7.033333333 | AI227: =IF($Y227<>"",VLOOKUP($Y227,'2'!$D$201:$R$238,15,0),"") -> 11 ans 10 mois 3 jours | AJ227: =IF($Y227<>"",VLOOKUP($Y227,'2'!$D$201:$N$238,11,0),"") -> يعيد | AR227: يعيد | AU227: يعيد | AV227: يعيد
A228: 28 | C228: أ | D228: قوميش حنان | F228: 2002-09-29 | G228: 12 | H228: 7.4 | I228: 6.666666667 | J228: 7.033333333 | K228: 7.033333333 | M228: 7.033333333 | N228: يعيد | R228: 11 ans 10 mois 3 jours | S228: 12 | T228: 7.033333333 | V228: أ | W228: 28 | X228: =IF($Y228<>"",VLOOKUP($Y228,'2'!$D$201:$V$238,19,0),"") -> ذ | Y228: =IF(ISNA(MATCH(W228,'2'!$AC$201:$AC$238,0)),"",INDEX('2'!$D$201:$D$238,MATCH(W228,'2'!$AC$201:$AC$238,0))) -> سالم أبو بكر | Z228: =IF($Y228<>"",VLOOKUP($Y228,'2'!$D$201:$F$238,3,0),"") -> 2000-09-16 | AA228: =IF($Y228<>"",VLOOKUP($Y228,'2'!$D$201:$K$238,8,0),"") -> 6.9 | AC228: =IF(D228<>"",COUNTIF($AD$201:$AD$238,">"&AD228)+COUNTIF($AD$201:AD228,AD228),"") -> 27 | AD228: 70333.33333 | AE228: =IF($Y228<>"",VLOOKUP($Y228,'2'!$D$201:$L$238,9,0),"") -> 0 | AF228: =IF($Y228<>"",VLOOKUP($Y228,'2'!$D$201:$M$238,10,0),"") -> 6.9 | AI228: =IF($Y228<>"",VLOOKUP($Y228,'2'!$D$201:$R$238,15,0),"") -> 13 ans 10 mois 16 jours | AJ228: =IF($Y228<>"",VLOOKUP($Y228,'2'!$D$201:$N$238,11,0),"") -> يعيد | AR228: يعيد | AU228: يعيد | AV228: يعيد
A229: 29 | C229: ذ | D229: لعبادلي العجال | F229: 2000-07-16 | G229: 14 | H229: 8.93 | I229: 5.16 | J229: 5.5 | K229: 6.53 | M229: 6.53 | N229: يعيد | R229: 14 ans 0 mois 16 jours | S229: 14 | T229: 6.53 | V229: ذ | W229: 29 | X229: =IF($Y229<>"",VLOOKUP($Y229,'2'!$D$201:$V$238,19,0),"") -> ذ | Y229: =IF(ISNA(MATCH(W229,'2'!$AC$201:$AC$238,0)),"",INDEX('2'!$D$201:$D$238,MATCH(W229,'2'!$AC$201:$AC$238,0))) -> لعبادلي العجال | Z229: =IF($Y229<>"",VLOOKUP($Y229,'2'!$D$201:$F$238,3,0),"") -> 2000-07-16 | AA229: =IF($Y229<>"",VLOOKUP($Y229,'2'!$D$201:$K$238,8,0),"") -> 6.53 | AC229: =IF(D229<>"",COUNTIF($AD$201:$AD$238,">"&AD229)+COUNTIF($AD$201:AD229,AD229),"") -> 29 | AD229: 65300 | AE229: =IF($Y229<>"",VLOOKUP($Y229,'2'!$D$201:$L$238,9,0),"") -> 0 | AF229: =IF($Y229<>"",VLOOKUP($Y229,'2'!$D$201:$M$238,10,0),"") -> 6.53 | AI229: =IF($Y229<>"",VLOOKUP($Y229,'2'!$D$201:$R$238,15,0),"") -> 14 ans 0 mois 16 jours | AJ229: =IF($Y229<>"",VLOOKUP($Y229,'2'!$D$201:$N$238,11,0),"") -> يعيد | AR229: يعيد | AU229: يعيد | AV229: يعيد
A230: 30 | C230: ذ | D230: لعيدي أسامة | F230: 2001-01-11 | G230: 13 | H230: 13.6 | I230: 12.63333333 | J230: 13.11666667 | K230: 13.11666667 | M230: 13.11666667 | N230: ينتقل | R230: 13 ans 6 mois 21 jours | S230: 13 | T230: 13.11666667 | V230: ذ | W230: 30 | X230: =IF($Y230<>"",VLOOKUP($Y230,'2'!$D$201:$V$238,19,0),"") -> ذ | Y230: =IF(ISNA(MATCH(W230,'2'!$AC$201:$AC$238,0)),"",INDEX('2'!$D$201:$D$238,MATCH(W230,'2'!$AC$201:$AC$238,0))) -> طرمول محمد | Z230: =IF($Y230<>"",VLOOKUP($Y230,'2'!$D$201:$F$238,3,0),"") -> 1999-01-27 | AA230: =IF($Y230<>"",VLOOKUP($Y230,'2'!$D$201:$K$238,8,0),"") -> 6.266666667 | AC230: =IF(D230<>"",COUNTIF($AD$201:$AD$238,">"&AD230)+COUNTIF($AD$201:AD230,AD230),"") -> 6 | AD230: 131166.6667 | AE230: =IF($Y230<>"",VLOOKUP($Y230,'2'!$D$201:$L$238,9,0),"") -> 0 | AF230: =IF($Y230<>"",VLOOKUP($Y230,'2'!$D$201:$M$238,10,0),"") -> 6.266666667 | AI230: =IF($Y230<>"",VLOOKUP($Y230,'2'!$D$201:$R$238,15,0),"") -> 15 ans 6 mois 5 jours | AJ230: =IF($Y230<>"",VLOOKUP($Y230,'2'!$D$201:$N$238,11,0),"") -> يعيد | AR230: ينتقل | AU230: ينتقل | AV230: ينتقل
A231: 31 | C231: ذ | D231: مرحول بوزيان | F231: 1999-08-09 | G231: 15 | H231: 10.03333333 | I231: 5.066666667 | J231: 7.55 | K231: 7.55 | M231: 7.55 | N231: يعيد | R231: 14 ans 11 mois 23 jours | S231: 15 | T231: 7.55 | V231: ذ | W231: 31 | X231: =IF($Y231<>"",VLOOKUP($Y231,'2'!$D$201:$V$238,19,0),"") -> أ | Y231: =IF(ISNA(MATCH(W231,'2'!$AC$201:$AC$238,0)),"",INDEX('2'!$D$201:$D$238,MATCH(W231,'2'!$AC$201:$AC$238,0))) -> تومي كحلة | Z231: =IF($Y231<>"",VLOOKUP($Y231,'2'!$D$201:$F$238,3,0),"") -> 2002-01-29 | AA231: =IF($Y231<>"",VLOOKUP($Y231,'2'!$D$201:$K$238,8,0),"") -> 6.083333333 | AC231: =IF(D231<>"",COUNTIF($AD$201:$AD$238,">"&AD231)+COUNTIF($AD$201:AD231,AD231),"") -> 26 | AD231: 75500 | AE231: =IF($Y231<>"",VLOOKUP($Y231,'2'!$D$201:$L$238,9,0),"") -> 0 | AF231: =IF($Y231<>"",VLOOKUP($Y231,'2'!$D$201:$M$238,10,0),"") -> 6.083333333 | AI231: =IF($Y231<>"",VLOOKUP($Y231,'2'!$D$201:$R$238,15,0),"") -> 12 ans 6 mois 3 jours | AJ231: =IF($Y231<>"",VLOOKUP($Y231,'2'!$D$201:$N$238,11,0),"") -> يعيد | AR231: يعيد | AU231: يعيد | AV231: يعيد
A232: 32 | C232: ذ | D232: معمري عمر | F232: 2002-03-17 | G232: 12 | H232: 14.13333333 | I232: 9.4 | J232: 11.76666667 | K232: 11.76666667 | M232: 11.76666667 | N232: ينتقل | R232: 12 ans 4 mois 15 jours | S232: 12 | T232: 11.76666667 | V232: ذ | W232: 32 | X232: =IF($Y232<>"",VLOOKUP($Y232,'2'!$D$201:$V$238,19,0),"") -> ذ | Y232: =IF(ISNA(MATCH(W232,'2'!$AC$201:$AC$238,0)),"",INDEX('2'!$D$201:$D$238,MATCH(W232,'2'!$AC$201:$AC$238,0))) -> عامر رضوان | Z232: =IF($Y232<>"",VLOOKUP($Y232,'2'!$D$201:$F$238,3,0),"") -> 2000-10-31 | AA232: =IF($Y232<>"",VLOOKUP($Y232,'2'!$D$201:$K$238,8,0),"") -> 5.916666667 | AC232: =IF(D232<>"",COUNTIF($AD$201:$AD$238,">"&AD232)+COUNTIF($AD$201:AD232,AD232),"") -> 10 | AD232: 117666.6667 | AE232: =IF($Y232<>"",VLOOKUP($Y232,'2'!$D$201:$L$238,9,0),"") -> 0 | AF232: =IF($Y232<>"",VLOOKUP($Y232,'2'!$D$201:$M$238,10,0),"") -> 5.916666667 | AI232: =IF($Y232<>"",VLOOKUP($Y232,'2'!$D$201:$R$238,15,0),"") -> 13 ans 9 mois 1 jours | AJ232: =IF($Y232<>"",VLOOKUP($Y232,'2'!$D$201:$N$238,11,0),"") -> يعيد | AR232: ينتقل | AU232: ينتقل | AV232: ينتقل
A233: 33 | C233: أ | D233: مكاوي خيرة | F233: 2002-09-11 | G233: 12 | H233: 13.7 | I233: 13.4 | J233: 13.55 | K233: 13.55 | M233: 13.55 | N233: ينتقل | R233: 11 ans 10 mois 21 jours | S233: 12 | T233: 13.55 | V233: أ | W233: 33 | X233: =IF($Y233<>"",VLOOKUP($Y233,'2'!$D$201:$V$238,19,0),"") -> ذ | Y233: =IF(ISNA(MATCH(W233,'2'!$AC$201:$AC$238,0)),"",INDEX('2'!$D$201:$D$238,MATCH(W233,'2'!$AC$201:$AC$238,0))) -> شاشو منصور | Z233: =IF($Y233<>"",VLOOKUP($Y233,'2'!$D$201:$F$238,3,0),"") -> 2002-12-08 | AA233: =IF($Y233<>"",VLOOKUP($Y233,'2'!$D$201:$K$238,8,0),"") -> 5.7 | AC233: =IF(D233<>"",COUNTIF($AD$201:$AD$238,">"&AD233)+COUNTIF($AD$201:AD233,AD233),"") -> 4 | AD233: 135500 | AE233: =IF($Y233<>"",VLOOKUP($Y233,'2'!$D$201:$L$238,9,0),"") -> 0 | AF233: =IF($Y233<>"",VLOOKUP($Y233,'2'!$D$201:$M$238,10,0),"") -> 5.7 | AI233: =IF($Y233<>"",VLOOKUP($Y233,'2'!$D$201:$R$238,15,0),"") -> 11 ans 7 mois 24 jours | AJ233: =IF($Y233<>"",VLOOKUP($Y233,'2'!$D$201:$N$238,11,0),"") -> يعيد | AR233: ينتقل | AU233: ينتقل | AV233: ينتقل
A234: 34 | C234: أ | D234: مهدادي ميسم ريهام | F234: 2002-12-04 | G234: 11 | H234: 11.96666667 | I234: 9.8 | J234: 10.88333333 | K234: 10.88333333 | M234: 10.88333333 | N234: ينتقل | R234: 11 ans 7 mois 28 jours | S234: 11 | T234: 10.88333333 | V234: أ | W234: 34 | X234: =IF($Y234<>"",VLOOKUP($Y234,'2'!$D$201:$V$238,19,0),"") -> أ | Y234: =IF(ISNA(MATCH(W234,'2'!$AC$201:$AC$238,0)),"",INDEX('2'!$D$201:$D$238,MATCH(W234,'2'!$AC$201:$AC$238,0))) -> قاضي إكرام | Z234: =IF($Y234<>"",VLOOKUP($Y234,'2'!$D$201:$F$238,3,0),"") -> 2002-08-19 | AA234: =IF($Y234<>"",VLOOKUP($Y234,'2'!$D$201:$K$238,8,0),"") -> 5.666666667 | AC234: =IF(D234<>"",COUNTIF($AD$201:$AD$238,">"&AD234)+COUNTIF($AD$201:AD234,AD234),"") -> 13 | AD234: 108833.3333 | AE234: =IF($Y234<>"",VLOOKUP($Y234,'2'!$D$201:$L$238,9,0),"") -> 0 | AF234: =IF($Y234<>"",VLOOKUP($Y234,'2'!$D$201:$M$238,10,0),"") -> 5.666666667 | AI234: =IF($Y234<>"",VLOOKUP($Y234,'2'!$D$201:$R$238,15,0),"") -> 11 ans 11 mois 13 jours | AJ234: =IF($Y234<>"",VLOOKUP($Y234,'2'!$D$201:$N$238,11,0),"") -> يعيد | AR234: ينتقل | AU234: ينتقل | AV234: ينتقل
A235: 35 | C235: أ | D235: هاشمي خضرة | F235: 2001-09-25 | G235: 13 | H235: 8.9 | I235: 10.46666667 | J235: 9.683333333 | K235: 9.683333333 | M235: 9.683333333 | N235: يعيد | R235: 12 ans 10 mois 7 jours | S235: 13 | T235: 9.683333333 | V235: أ | W235: 35 | X235: =IF($Y235<>"",VLOOKUP($Y235,'2'!$D$201:$V$238,19,0),"") -> أ | Y235: =IF(ISNA(MATCH(W235,'2'!$AC$201:$AC$238,0)),"",INDEX('2'!$D$201:$D$238,MATCH(W235,'2'!$AC$201:$AC$238,0))) -> بومهدي فاطمة | Z235: =IF($Y235<>"",VLOOKUP($Y235,'2'!$D$201:$F$238,3,0),"") -> 2001-01-17 | AA235: =IF($Y235<>"",VLOOKUP($Y235,'2'!$D$201:$K$238,8,0),"") -> 5.083333333 | AC235: =IF(D235<>"",COUNTIF($AD$201:$AD$238,">"&AD235)+COUNTIF($AD$201:AD235,AD235),"") -> 19 | AD235: 96833.33333 | AE235: =IF($Y235<>"",VLOOKUP($Y235,'2'!$D$201:$L$238,9,0),"") -> 0 | AF235: =IF($Y235<>"",VLOOKUP($Y235,'2'!$D$201:$M$238,10,0),"") -> 5.083333333 | AI235: =IF($Y235<>"",VLOOKUP($Y235,'2'!$D$201:$R$238,15,0),"") -> 13 ans 6 mois 15 jours | AJ235: =IF($Y235<>"",VLOOKUP($Y235,'2'!$D$201:$N$238,11,0),"") -> يعيد | AR235: يستدرك | AU235: يعيد | AV235: قرار المجلس
A236: 36 | C236: ذ | D236: هاشمي لخضر | F236: 2001-09-25 | G236: 13 | H236: 16.8 | I236: 11.46666667 | J236: 14.13333333 | K236: 14.13333333 | M236: 14.13333333 | N236: ينتقل | R236: 12 ans 10 mois 7 jours | S236: 13 | T236: 14.13333333 | V236: ذ | W236: 36 | X236: =IF($Y236<>"",VLOOKUP($Y236,'2'!$D$201:$V$238,19,0),"") -> ذ | Y236: =IF(ISNA(MATCH(W236,'2'!$AC$201:$AC$238,0)),"",INDEX('2'!$D$201:$D$238,MATCH(W236,'2'!$AC$201:$AC$238,0))) -> بومهدي رفيق | Z236: =IF($Y236<>"",VLOOKUP($Y236,'2'!$D$201:$F$238,3,0),"") -> 2000-06-29 | AA236: =IF($Y236<>"",VLOOKUP($Y236,'2'!$D$201:$K$238,8,0),"") -> 4.933333333 | AC236: =IF(D236<>"",COUNTIF($AD$201:$AD$238,">"&AD236)+COUNTIF($AD$201:AD236,AD236),"") -> 1 | AD236: 141333.3333 | AE236: =IF($Y236<>"",VLOOKUP($Y236,'2'!$D$201:$L$238,9,0),"") -> 0 | AF236: =IF($Y236<>"",VLOOKUP($Y236,'2'!$D$201:$M$238,10,0),"") -> 4.933333333 | AI236: =IF($Y236<>"",VLOOKUP($Y236,'2'!$D$201:$R$238,15,0),"") -> 14 ans 1 mois 3 jours | AJ236: =IF($Y236<>"",VLOOKUP($Y236,'2'!$D$201:$N$238,11,0),"") -> يعيد | AR236: ينتقل | AU236: ينتقل | AV236: ينتقل
A237: 37 | C237: 0 | K237: 0 | T237: 0 | V237: 0 | W237: 37 | X237: =IF($Y237<>"",VLOOKUP($Y237,'2'!$D$201:$V$238,19,0),"") ->  | Y237: =IF(ISNA(MATCH(W237,'2'!$AC$201:$AC$238,0)),"",INDEX('2'!$D$201:$D$238,MATCH(W237,'2'!$AC$201:$AC$238,0))) ->  | Z237: =IF($Y237<>"",VLOOKUP($Y237,'2'!$D$201:$F$238,3,0),"") ->  | AA237: =IF($Y237<>"",VLOOKUP($Y237,'2'!$D$201:$K$238,8,0),"") ->  | AC237: =IF(D237<>"",COUNTIF($AD$201:$AD$238,">"&AD237)+COUNTIF($AD$201:AD237,AD237),"") -> 1 | AE237: =IF($Y237<>"",VLOOKUP($Y237,'2'!$D$201:$L$238,9,0),"") ->  | AF237: =IF($Y237<>"",VLOOKUP($Y237,'2'!$D$201:$M$238,10,0),"") ->  | AI237: =IF($Y237<>"",VLOOKUP($Y237,'2'!$D$201:$R$238,15,0),"") ->  | AJ237: =IF($Y237<>"",VLOOKUP($Y237,'2'!$D$201:$N$238,11,0),"") ->  | AV237: =IF(AND(M237>=10,M237<20),"ينتقل","")&IF(AND(M237<9,S237<=16),"يعيد","")&IF(AND(M237<10,S237>16),"يفصل","")&IF(AND(M237>=9,M237<10,S237<16),"قرار المجلس","") -> 
A238: 38 | C238: 0 | K238: 0 | M238: =IF(T238=0,"",T238) ->  | T238: 0 | V238: 0 | W238: 38 | X238: =IF($Y238<>"",VLOOKUP($Y238,'2'!$D$201:$V$238,19,0),"") ->  | Y238: =IF(ISNA(MATCH(W238,'2'!$AC$201:$AC$238,0)),"",INDEX('2'!$D$201:$D$238,MATCH(W238,'2'!$AC$201:$AC$238,0))) ->  | Z238: =IF($Y238<>"",VLOOKUP($Y238,'2'!$D$201:$F$238,3,0),"") ->  | AA238: =IF($Y238<>"",VLOOKUP($Y238,'2'!$D$201:$K$238,8,0),"") ->  | AC238: =IF(D238<>"",COUNTIF($AD$201:$AD$238,">"&AD238)+COUNTIF($AD$201:AD238,AD238),"") -> 2 | AE238: =IF($Y238<>"",VLOOKUP($Y238,'2'!$D$201:$L$238,9,0),"") ->  | AF238: =IF($Y238<>"",VLOOKUP($Y238,'2'!$D$201:$M$238,10,0),"") ->  | AI238: =IF($Y238<>"",VLOOKUP($Y238,'2'!$D$201:$R$238,15,0),"") ->  | AJ238: =IF($Y238<>"",VLOOKUP($Y238,'2'!$D$201:$N$238,11,0),"") -> 
D241: ="المجموع : " &F241 -> المجموع : 36 | F241: =SUM(F243:F244) -> 36 | Y241: ="المجموع : " &AA243 -> المجموع : 36 | AB241: =F241 -> 36 | AE241: ="عدد الناجحين : "&L243 -> عدد الناجحين : 16
D243: ="البنات : "&F243 -> البنات : 15 | F243: =COUNTIFS(C201:C238,"أ") -> 15 | G243: المعدل العـام أكبرمن أو يساوي 10 | L243: =COUNTIFS(M201:M238,">=10") -> 16 | M243: =L243/F241 -> 0.4444444444 | Y243: =D243 -> البنات : 15 | AA243: =F241 -> 36 | AB243: =AB241 -> 36 | AE243: ="عدد المعيدين : "&AI244 -> عدد المعيدين : 20 | AH243: ="عدد المستدركين : "&AA244 -> عدد المستدركين : 0
D244: ="البنين : "&F244 -> البنين : 21 | F244: =COUNTIFS(C201:C238,"ذ") -> 21 | Y244: =D244 -> البنين : 21 | Z244: =COUNTIFS(AF201:AF238,">=9",AF201:AF238,"<10") -> 5 | AA244: =COUNTIFS(AJ201:AJ238,"يستدرك") -> 0 | AB244: =AB243 -> 36 | AE244: ="عدد المفصولين : "&AJ244 -> عدد المفصولين : 0 | AI244: =COUNTIFS(AJ201:AJ238,"يعيد") -> 20 | AJ244: =COUNTIFS(AJ201:AJ238,"يفصل") -> 0

Sheet 3
D1: =IF(Renseignements!B145<>"",Renseignements!B145,"") -> متوسطة مكاوي علي؛ اولاد البارودي - سيدي لخضر | E1: =IF(Accueil!F5<>"",Accueil!F5,"") ->  | F1: =IF(Accueil!G5<>"",Accueil!G5,"") ->  | G1: =IF(Accueil!#REF!<>"",Accueil!#REF!,"") ->  | H1: =IF(Accueil!J5<>"",Accueil!J5,"") ->  | I1: =IF(Accueil!K5<>"",Accueil!K5,"") ->  | J1: =IF(Accueil!#REF!<>"",Accueil!#REF!,"") ->  | R1: =IF(Accueil!F2<>"",Accueil!F2,"") -> 2015/2014 | Y1: =IF(D1<>"",D1,"") -> متوسطة مكاوي علي؛ اولاد البارودي - سيدي لخضر | AA1: =IF(#REF!<>"",#REF!,"") ->  | AB1: =IF(#REF!<>"",#REF!,"") ->  | AC1: =IF(#REF!<>"",#REF!,"") ->  | AD1: =IF(#REF!<>"",#REF!,"") ->  | AI1: =IF(R1<>"",R1,"") -> 2015/2014 | AJ1: =IF(N1<>"",N1,"") -> 
D2: =IF(Accueil!E6<>"",Accueil!E6,"") ->  | E2: =IF(Accueil!F6<>"",Accueil!F6,"") ->  | F2: =IF(Accueil!G6<>"",Accueil!G6,"") ->  | G2: =IF(Accueil!I5<>"",Accueil!I5,"") ->  | H2: =IF(Accueil!J6<>"",Accueil!J6,"") ->  | I2: =IF(Accueil!K6<>"",Accueil!K6,"") ->  | J2: =IF(Accueil!#REF!<>"",Accueil!#REF!,"") ->  | Y2: =IF(#REF!<>"",#REF!,"") ->  | AA2: =IF(#REF!<>"",#REF!,"") ->  | AB2: =IF(#REF!<>"",#REF!,"") ->  | AC2: =IF(#REF!<>"",#REF!,"") ->  | AD2: =IF(#REF!<>"",#REF!,"") ->  | AI2: =IF(M2<>"",M2,"") ->  | AJ2: =IF(N2<>"",N2,"") -> 
D3: القسم: | E3: =IF(Base_D!D4<>"",Base_D!C4,"") -> س1م2 | K3: نتائج الفصل الأول | Y3: القسم: | Z3: =E3 -> س1م2
AB4: ترتيب التلاميذ حسب معدلاتهم (الفصـــــــــــــل الأول)
D5: الأستاذ (ة): | E5: =Base_D!A4&" "&Base_D!B4 -> khjk khkhjk | Q5: المستوى | S5: =IF(Base_D!D4<>"",Base_D!D4,"") -> 1 | Y5: الأستاذ (ة): | Z5: =IF(D7<>"",D7,"") ->  | AI5: =IF(S5<>"",S5,"") -> 1
D8: اللقب | E8: الإسم | F8: تاريخ الميلاد | L8: المعدل الفصلي على 20 | M8: الإجازات و العقوبات | Y8: اللقب و الإسم | Z8: تاريخ الميلاد | AA8: المعدل الفصلي على 20 | AB8: الإجازات و العقوبات
A15: 1 | G15: =COUNTIFS(M15:M52,"تهنئة") -> 0 | M15: =IF(AND(L15>=15,L15<20),"تهنئة","")&IF(AND(L15>=14,L15<15),"تشجيع","")&IF(AND(L15>=12,L15<14),"لوحة شرف","")&IF(AND(L15>=10,L15<12),"لا شيء","")&IF(AND(L15>=8,L15<10),"إنذار","")&IF(AND(L15>0,L15<8),"توبيخ","")&IF(AND(L15<>"",L15=0),"","") ->  | P15: =D15&" "&E15 ->  | S15: =C15 -> 0 | W15: 1 | X15: =IF($Y15<>"",VLOOKUP($Y15,'3'!$P$15:$S$52,4,0),"") -> 0 | Y15: =IF(ISNA(MATCH(W15,'3'!$AJ$15:$AJ$52,0)),"",INDEX('3'!$AG$15:$AG$52,MATCH(W15,'3'!$AJ$15:$AJ$52,0))) ->  | Z15: =IF($Y15<>"",VLOOKUP($Y15,'3'!$AG$15:$AL$52,6,0),"") -> 00:00:00 | AA15: =IF($Y15<>"",VLOOKUP($Y15,'3'!$AG$15:$AI$52,3,0),"") -> 0 | AB15: =IF($Y15<>"",VLOOKUP($Y15,'3'!$AG$15:$AH$52,2,0),"") -> 0 | AF15: 1 | AG15: =D15&" "&E15 ->  | AH15: =IF(M15="",0,M15) -> 0 | AI15: =IF(L15="",0,L15) -> 0 | AJ15: =IF(AG15<>"",COUNTIF($AK$15:$AK$52,">"&AK15)+COUNTIF($AK$15:AK15,AK15),"") -> 1 | AK15: =IF(AI15<>"",AI15*1000,"") -> 0 | AL15: =IF(F15="",0,F15) -> 00:00:00
A16: 2 | G16: =COUNTIFS(M15:M52,"تشجيع") -> 0 | M16: =IF(AND(L16>=15,L16<20),"تهنئة","")&IF(AND(L16>=14,L16<15),"تشجيع","")&IF(AND(L16>=12,L16<14),"لوحة شرف","")&IF(AND(L16>=10,L16<12),"لا شيء","")&IF(AND(L16>=8,L16<10),"إنذار","")&IF(AND(L16>0,L16<8),"توبيخ","")&IF(AND(L16<>"",L16=0),"","") ->  | P16: =D16&" "&E16 ->  | S16: =C16 -> 0 | W16: 2 | X16: =IF($Y16<>"",VLOOKUP($Y16,'3'!$P$15:$S$52,4,0),"") -> 0 | Y16: =IF(ISNA(MATCH(W16,'3'!$AJ$15:$AJ$52,0)),"",INDEX('3'!$AG$15:$AG$52,MATCH(W16,'3'!$AJ$15:$AJ$52,0))) ->  | Z16: =IF($Y16<>"",VLOOKUP($Y16,'3'!$AG$15:$AL$52,6,0),"") -> 00:00:00 | AA16: =IF($Y16<>"",VLOOKUP($Y16,'3'!$AG$15:$AI$52,3,0),"") -> 0 | AB16: =IF($Y16<>"",VLOOKUP($Y16,'3'!$AG$15:$AH$52,2,0),"") -> 0 | AF16: 2 | AH16: =IF(M16="",0,M16) -> 0 | AI16: 0 | AJ16: =IF(AG16<>"",COUNTIF($AK$15:$AK$52,">"&AK16)+COUNTIF($AK$15:AK16,AK16),"") -> 2 | AK16: =IF(AI16<>"",AI16*1000,"") -> 0 | AL16: 00:00:00
A17: 3 | G17: =COUNTIFS(M15:M52,"لوحة شرف") -> 0 | S17: 0 | W17: 3 | X17: =IF($Y17<>"",VLOOKUP($Y17,'3'!$P$15:$S$52,4,0),"") -> 0 | Y17: =IF(ISNA(MATCH(W17,'3'!$AJ$15:$AJ$52,0)),"",INDEX('3'!$AG$15:$AG$52,MATCH(W17,'3'!$AJ$15:$AJ$52,0))) ->  | Z17: =IF($Y17<>"",VLOOKUP($Y17,'3'!$AG$15:$AL$52,6,0),"") -> 00:00:00 | AA17: =IF($Y17<>"",VLOOKUP($Y17,'3'!$AG$15:$AI$52,3,0),"") -> 0 | AB17: =IF($Y17<>"",VLOOKUP($Y17,'3'!$AG$15:$AH$52,2,0),"") -> 0 | AF17: 3 | AH17: 0 | AI17: 0 | AJ17: =IF(AG17<>"",COUNTIF($AK$15:$AK$52,">"&AK17)+COUNTIF($AK$15:AK17,AK17),"") -> 3 | AK17: 0 | AL17: 00:00:00
A18: 4 | G18: =COUNTIFS(M15:M52,"لا شيء") -> 0 | S18: 0 | W18: 4 | X18: =IF($Y18<>"",VLOOKUP($Y18,'3'!$P$15:$S$52,4,0),"") -> 0 | Y18: =IF(ISNA(MATCH(W18,'3'!$AJ$15:$AJ$52,0)),"",INDEX('3'!$AG$15:$AG$52,MATCH(W18,'3'!$AJ$15:$AJ$52,0))) ->  | Z18: =IF($Y18<>"",VLOOKUP($Y18,'3'!$AG$15:$AL$52,6,0),"") -> 00:00:00 | AA18: =IF($Y18<>"",VLOOKUP($Y18,'3'!$AG$15:$AI$52,3,0),"") -> 0 | AB18: =IF($Y18<>"",VLOOKUP($Y18,'3'!$AG$15:$AH$52,2,0),"") -> 0 | AF18: 4 | AH18: 0 | AI18: 0 | AJ18: =IF(AG18<>"",COUNTIF($AK$15:$AK$52,">"&AK18)+COUNTIF($AK$15:AK18,AK18),"") -> 4 | AK18: 0 | AL18: 00:00:00
A19: 5 | G19: =COUNTIFS(M15:M52,"إنذار") -> 0 | S19: 0 | W19: 5 | X19: =IF($Y19<>"",VLOOKUP($Y19,'3'!$P$15:$S$52,4,0),"") -> 0 | Y19: =IF(ISNA(MATCH(W19,'3'!$AJ$15:$AJ$52,0)),"",INDEX('3'!$AG$15:$AG$52,MATCH(W19,'3'!$AJ$15:$AJ$52,0))) ->  | Z19: =IF($Y19<>"",VLOOKUP($Y19,'3'!$AG$15:$AL$52,6,0),"") -> 00:00:00 | AA19: =IF($Y19<>"",VLOOKUP($Y19,'3'!$AG$15:$AI$52,3,0),"") -> 0 | AB19: =IF($Y19<>"",VLOOKUP($Y19,'3'!$AG$15:$AH$52,2,0),"") -> 0 | AF19: 5 | AH19: 0 | AI19: 0 | AJ19: =IF(AG19<>"",COUNTIF($AK$15:$AK$52,">"&AK19)+COUNTIF($AK$15:AK19,AK19),"") -> 5 | AK19: 0 | AL19: 00:00:00
A20: 6 | G20: =COUNTIFS(M15:M52,"توبيخ") -> 0 | S20: 0 | W20: 6 | X20: =IF($Y20<>"",VLOOKUP($Y20,'3'!$P$15:$S$52,4,0),"") -> 0 | Y20: =IF(ISNA(MATCH(W20,'3'!$AJ$15:$AJ$52,0)),"",INDEX('3'!$AG$15:$AG$52,MATCH(W20,'3'!$AJ$15:$AJ$52,0))) ->  | Z20: =IF($Y20<>"",VLOOKUP($Y20,'3'!$AG$15:$AL$52,6,0),"") -> 00:00:00 | AA20: =IF($Y20<>"",VLOOKUP($Y20,'3'!$AG$15:$AI$52,3,0),"") -> 0 | AB20: =IF($Y20<>"",VLOOKUP($Y20,'3'!$AG$15:$AH$52,2,0),"") -> 0 | AF20: 6 | AH20: 0 | AI20: 0 | AJ20: =IF(AG20<>"",COUNTIF($AK$15:$AK$52,">"&AK20)+COUNTIF($AK$15:AK20,AK20),"") -> 6 | AK20: 0 | AL20: 00:00:00
A21: 7 | S21: 0 | W21: 7 | X21: =IF($Y21<>"",VLOOKUP($Y21,'3'!$P$15:$S$52,4,0),"") -> 0 | Y21: =IF(ISNA(MATCH(W21,'3'!$AJ$15:$AJ$52,0)),"",INDEX('3'!$AG$15:$AG$52,MATCH(W21,'3'!$AJ$15:$AJ$52,0))) ->  | Z21: =IF($Y21<>"",VLOOKUP($Y21,'3'!$AG$15:$AL$52,6,0),"") -> 00:00:00 | AA21: =IF($Y21<>"",VLOOKUP($Y21,'3'!$AG$15:$AI$52,3,0),"") -> 0 | AB21: =IF($Y21<>"",VLOOKUP($Y21,'3'!$AG$15:$AH$52,2,0),"") -> 0 | AF21: 7 | AH21: 0 | AI21: 0 | AJ21: =IF(AG21<>"",COUNTIF($AK$15:$AK$52,">"&AK21)+COUNTIF($AK$15:AK21,AK21),"") -> 7 | AK21: 0 | AL21: 00:00:00
A22: 8 | S22: 0 | W22: 8 | X22: =IF($Y22<>"",VLOOKUP($Y22,'3'!$P$15:$S$52,4,0),"") -> 0 | Y22: =IF(ISNA(MATCH(W22,'3'!$AJ$15:$AJ$52,0)),"",INDEX('3'!$AG$15:$AG$52,MATCH(W22,'3'!$AJ$15:$AJ$52,0))) ->  | Z22: =IF($Y22<>"",VLOOKUP($Y22,'3'!$AG$15:$AL$52,6,0),"") -> 00:00:00 | AA22: =IF($Y22<>"",VLOOKUP($Y22,'3'!$AG$15:$AI$52,3,0),"") -> 0 | AB22: =IF($Y22<>"",VLOOKUP($Y22,'3'!$AG$15:$AH$52,2,0),"") -> 0 | AF22: 8 | AH22: 0 | AI22: 0 | AJ22: =IF(AG22<>"",COUNTIF($AK$15:$AK$52,">"&AK22)+COUNTIF($AK$15:AK22,AK22),"") -> 8 | AK22: 0 | AL22: 00:00:00
A23: 9 | S23: 0 | W23: 9 | X23: =IF($Y23<>"",VLOOKUP($Y23,'3'!$P$15:$S$52,4,0),"") -> 0 | Y23: =IF(ISNA(MATCH(W23,'3'!$AJ$15:$AJ$52,0)),"",INDEX('3'!$AG$15:$AG$52,MATCH(W23,'3'!$AJ$15:$AJ$52,0))) ->  | Z23: =IF($Y23<>"",VLOOKUP($Y23,'3'!$AG$15:$AL$52,6,0),"") -> 00:00:00 | AA23: =IF($Y23<>"",VLOOKUP($Y23,'3'!$AG$15:$AI$52,3,0),"") -> 0 | AB23: =IF($Y23<>"",VLOOKUP($Y23,'3'!$AG$15:$AH$52,2,0),"") -> 0 | AF23: 9 | AH23: 0 | AI23: 0 | AJ23: =IF(AG23<>"",COUNTIF($AK$15:$AK$52,">"&AK23)+COUNTIF($AK$15:AK23,AK23),"") -> 9 | AK23: 0 | AL23: 00:00:00
A24: 10 | S24: 0 | W24: 10 | X24: =IF($Y24<>"",VLOOKUP($Y24,'3'!$P$15:$S$52,4,0),"") -> 0 | Y24: =IF(ISNA(MATCH(W24,'3'!$AJ$15:$AJ$52,0)),"",INDEX('3'!$AG$15:$AG$52,MATCH(W24,'3'!$AJ$15:$AJ$52,0))) ->  | Z24: =IF($Y24<>"",VLOOKUP($Y24,'3'!$AG$15:$AL$52,6,0),"") -> 00:00:00 | AA24: =IF($Y24<>"",VLOOKUP($Y24,'3'!$AG$15:$AI$52,3,0),"") -> 0 | AB24: =IF($Y24<>"",VLOOKUP($Y24,'3'!$AG$15:$AH$52,2,0),"") -> 0 | AF24: 10 | AH24: 0 | AI24: 0 | AJ24: =IF(AG24<>"",COUNTIF($AK$15:$AK$52,">"&AK24)+COUNTIF($AK$15:AK24,AK24),"") -> 10 | AK24: 0 | AL24: 00:00:00
A25: 11 | S25: 0 | W25: 11 | X25: =IF($Y25<>"",VLOOKUP($Y25,'3'!$P$15:$S$52,4,0),"") -> 0 | Y25: =IF(ISNA(MATCH(W25,'3'!$AJ$15:$AJ$52,0)),"",INDEX('3'!$AG$15:$AG$52,MATCH(W25,'3'!$AJ$15:$AJ$52,0))) ->  | Z25: =IF($Y25<>"",VLOOKUP($Y25,'3'!$AG$15:$AL$52,6,0),"") -> 00:00:00 | AA25: =IF($Y25<>"",VLOOKUP($Y25,'3'!$AG$15:$AI$52,3,0),"") -> 0 | AB25: =IF($Y25<>"",VLOOKUP($Y25,'3'!$AG$15:$AH$52,2,0),"") -> 0 | AF25: 11 | AH25: 0 | AI25: 0 | AJ25: =IF(AG25<>"",COUNTIF($AK$15:$AK$52,">"&AK25)+COUNTIF($AK$15:AK25,AK25),"") -> 11 | AK25: 0 | AL25: 00:00:00
A26: 12 | S26: 0 | W26: 12 | X26: =IF($Y26<>"",VLOOKUP($Y26,'3'!$P$15:$S$52,4,0),"") -> 0 | Y26: =IF(ISNA(MATCH(W26,'3'!$AJ$15:$AJ$52,0)),"",INDEX('3'!$AG$15:$AG$52,MATCH(W26,'3'!$AJ$15:$AJ$52,0))) ->  | Z26: =IF($Y26<>"",VLOOKUP($Y26,'3'!$AG$15:$AL$52,6,0),"") -> 00:00:00 | AA26: =IF($Y26<>"",VLOOKUP($Y26,'3'!$AG$15:$AI$52,3,0),"") -> 0 | AB26: =IF($Y26<>"",VLOOKUP($Y26,'3'!$AG$15:$AH$52,2,0),"") -> 0 | AF26: 12 | AH26: 0 | AI26: 0 | AJ26: =IF(AG26<>"",COUNTIF($AK$15:$AK$52,">"&AK26)+COUNTIF($AK$15:AK26,AK26),"") -> 12 | AK26: 0 | AL26: 00:00:00
A27: 13 | S27: 0 | W27: 13 | X27: =IF($Y27<>"",VLOOKUP($Y27,'3'!$P$15:$S$52,4,0),"") -> 0 | Y27: =IF(ISNA(MATCH(W27,'3'!$AJ$15:$AJ$52,0)),"",INDEX('3'!$AG$15:$AG$52,MATCH(W27,'3'!$AJ$15:$AJ$52,0))) ->  | Z27: =IF($Y27<>"",VLOOKUP($Y27,'3'!$AG$15:$AL$52,6,0),"") -> 00:00:00 | AA27: =IF($Y27<>"",VLOOKUP($Y27,'3'!$AG$15:$AI$52,3,0),"") -> 0 | AB27: =IF($Y27<>"",VLOOKUP($Y27,'3'!$AG$15:$AH$52,2,0),"") -> 0 | AF27: 13 | AH27: 0 | AI27: 0 | AJ27: =IF(AG27<>"",COUNTIF($AK$15:$AK$52,">"&AK27)+COUNTIF($AK$15:AK27,AK27),"") -> 13 | AK27: 0 | AL27: 00:00:00
A28: 14 | S28: 0 | W28: 14 | X28: =IF($Y28<>"",VLOOKUP($Y28,'3'!$P$15:$S$52,4,0),"") -> 0 | Y28: =IF(ISNA(MATCH(W28,'3'!$AJ$15:$AJ$52,0)),"",INDEX('3'!$AG$15:$AG$52,MATCH(W28,'3'!$AJ$15:$AJ$52,0))) ->  | Z28: =IF($Y28<>"",VLOOKUP($Y28,'3'!$AG$15:$AL$52,6,0),"") -> 00:00:00 | AA28: =IF($Y28<>"",VLOOKUP($Y28,'3'!$AG$15:$AI$52,3,0),"") -> 0 | AB28: =IF($Y28<>"",VLOOKUP($Y28,'3'!$AG$15:$AH$52,2,0),"") -> 0 | AF28: 14 | AH28: 0 | AI28: 0 | AJ28: =IF(AG28<>"",COUNTIF($AK$15:$AK$52,">"&AK28)+COUNTIF($AK$15:AK28,AK28),"") -> 14 | AK28: 0 | AL28: 00:00:00
A29: 15 | S29: 0 | W29: 15 | X29: =IF($Y29<>"",VLOOKUP($Y29,'3'!$P$15:$S$52,4,0),"") -> 0 | Y29: =IF(ISNA(MATCH(W29,'3'!$AJ$15:$AJ$52,0)),"",INDEX('3'!$AG$15:$AG$52,MATCH(W29,'3'!$AJ$15:$AJ$52,0))) ->  | Z29: =IF($Y29<>"",VLOOKUP($Y29,'3'!$AG$15:$AL$52,6,0),"") -> 00:00:00 | AA29: =IF($Y29<>"",VLOOKUP($Y29,'3'!$AG$15:$AI$52,3,0),"") -> 0 | AB29: =IF($Y29<>"",VLOOKUP($Y29,'3'!$AG$15:$AH$52,2,0),"") -> 0 | AF29: 15 | AH29: 0 | AI29: 0 | AJ29: =IF(AG29<>"",COUNTIF($AK$15:$AK$52,">"&AK29)+COUNTIF($AK$15:AK29,AK29),"") -> 15 | AK29: 0 | AL29: 00:00:00
A30: 16 | S30: 0 | W30: 16 | X30: =IF($Y30<>"",VLOOKUP($Y30,'3'!$P$15:$S$52,4,0),"") -> 0 | Y30: =IF(ISNA(MATCH(W30,'3'!$AJ$15:$AJ$52,0)),"",INDEX('3'!$AG$15:$AG$52,MATCH(W30,'3'!$AJ$15:$AJ$52,0))) ->  | Z30: =IF($Y30<>"",VLOOKUP($Y30,'3'!$AG$15:$AL$52,6,0),"") -> 00:00:00 | AA30: =IF($Y30<>"",VLOOKUP($Y30,'3'!$AG$15:$AI$52,3,0),"") -> 0 | AB30: =IF($Y30<>"",VLOOKUP($Y30,'3'!$AG$15:$AH$52,2,0),"") -> 0 | AF30: 16 | AH30: 0 | AI30: 0 | AJ30: =IF(AG30<>"",COUNTIF($AK$15:$AK$52,">"&AK30)+COUNTIF($AK$15:AK30,AK30),"") -> 16 | AK30: 0 | AL30: 00:00:00
A31: 17 | S31: 0 | W31: 17 | X31: =IF($Y31<>"",VLOOKUP($Y31,'3'!$P$15:$S$52,4,0),"") -> 0 | Y31: =IF(ISNA(MATCH(W31,'3'!$AJ$15:$AJ$52,0)),"",INDEX('3'!$AG$15:$AG$52,MATCH(W31,'3'!$AJ$15:$AJ$52,0))) ->  | Z31: =IF($Y31<>"",VLOOKUP($Y31,'3'!$AG$15:$AL$52,6,0),"") -> 00:00:00 | AA31: =IF($Y31<>"",VLOOKUP($Y31,'3'!$AG$15:$AI$52,3,0),"") -> 0 | AB31: =IF($Y31<>"",VLOOKUP($Y31,'3'!$AG$15:$AH$52,2,0),"") -> 0 | AF31: 17 | AH31: 0 | AI31: 0 | AJ31: =IF(AG31<>"",COUNTIF($AK$15:$AK$52,">"&AK31)+COUNTIF($AK$15:AK31,AK31),"") -> 17 | AK31: 0 | AL31: 00:00:00
A32: 18 | S32: 0 | W32: 18 | X32: =IF($Y32<>"",VLOOKUP($Y32,'3'!$P$15:$S$52,4,0),"") -> 0 | Y32: =IF(ISNA(MATCH(W32,'3'!$AJ$15:$AJ$52,0)),"",INDEX('3'!$AG$15:$AG$52,MATCH(W32,'3'!$AJ$15:$AJ$52,0))) ->  | Z32: =IF($Y32<>"",VLOOKUP($Y32,'3'!$AG$15:$AL$52,6,0),"") -> 00:00:00 | AA32: =IF($Y32<>"",VLOOKUP($Y32,'3'!$AG$15:$AI$52,3,0),"") -> 0 | AB32: =IF($Y32<>"",VLOOKUP($Y32,'3'!$AG$15:$AH$52,2,0),"") -> 0 | AF32: 18 | AH32: 0 | AI32: 0 | AJ32: =IF(AG32<>"",COUNTIF($AK$15:$AK$52,">"&AK32)+COUNTIF($AK$15:AK32,AK32),"") -> 18 | AK32: 0 | AL32: 00:00:00
A33: 19 | S33: 0 | W33: 19 | X33: =IF($Y33<>"",VLOOKUP($Y33,'3'!$P$15:$S$52,4,0),"") -> 0 | Y33: =IF(ISNA(MATCH(W33,'3'!$AJ$15:$AJ$52,0)),"",INDEX('3'!$AG$15:$AG$52,MATCH(W33,'3'!$AJ$15:$AJ$52,0))) ->  | Z33: =IF($Y33<>"",VLOOKUP($Y33,'3'!$AG$15:$AL$52,6,0),"") -> 00:00:00 | AA33: =IF($Y33<>"",VLOOKUP($Y33,'3'!$AG$15:$AI$52,3,0),"") -> 0 | AB33: =IF($Y33<>"",VLOOKUP($Y33,'3'!$AG$15:$AH$52,2,0),"") -> 0 | AF33: 19 | AH33: 0 | AI33: 0 | AJ33: =IF(AG33<>"",COUNTIF($AK$15:$AK$52,">"&AK33)+COUNTIF($AK$15:AK33,AK33),"") -> 19 | AK33: 0 | AL33: 00:00:00
A34: 20 | S34: 0 | W34: 20 | X34: =IF($Y34<>"",VLOOKUP($Y34,'3'!$P$15:$S$52,4,0),"") -> 0 | Y34: =IF(ISNA(MATCH(W34,'3'!$AJ$15:$AJ$52,0)),"",INDEX('3'!$AG$15:$AG$52,MATCH(W34,'3'!$AJ$15:$AJ$52,0))) ->  | Z34: =IF($Y34<>"",VLOOKUP($Y34,'3'!$AG$15:$AL$52,6,0),"") -> 00:00:00 | AA34: =IF($Y34<>"",VLOOKUP($Y34,'3'!$AG$15:$AI$52,3,0),"") -> 0 | AB34: =IF($Y34<>"",VLOOKUP($Y34,'3'!$AG$15:$AH$52,2,0),"") -> 0 | AF34: 20 | AH34: 0 | AI34: 0 | AJ34: =IF(AG34<>"",COUNTIF($AK$15:$AK$52,">"&AK34)+COUNTIF($AK$15:AK34,AK34),"") -> 20 | AK34: 0 | AL34: 00:00:00
A35: 21 | S35: 0 | W35: 21 | X35: =IF($Y35<>"",VLOOKUP($Y35,'3'!$P$15:$S$52,4,0),"") -> 0 | Y35: =IF(ISNA(MATCH(W35,'3'!$AJ$15:$AJ$52,0)),"",INDEX('3'!$AG$15:$AG$52,MATCH(W35,'3'!$AJ$15:$AJ$52,0))) ->  | Z35: =IF($Y35<>"",VLOOKUP($Y35,'3'!$AG$15:$AL$52,6,0),"") -> 00:00:00 | AA35: =IF($Y35<>"",VLOOKUP($Y35,'3'!$AG$15:$AI$52,3,0),"") -> 0 | AB35: =IF($Y35<>"",VLOOKUP($Y35,'3'!$AG$15:$AH$52,2,0),"") -> 0 | AF35: 21 | AH35: 0 | AI35: 0 | AJ35: =IF(AG35<>"",COUNTIF($AK$15:$AK$52,">"&AK35)+COUNTIF($AK$15:AK35,AK35),"") -> 21 | AK35: 0 | AL35: 00:00:00
A36: 22 | S36: 0 | W36: 22 | X36: =IF($Y36<>"",VLOOKUP($Y36,'3'!$P$15:$S$52,4,0),"") -> 0 | Y36: =IF(ISNA(MATCH(W36,'3'!$AJ$15:$AJ$52,0)),"",INDEX('3'!$AG$15:$AG$52,MATCH(W36,'3'!$AJ$15:$AJ$52,0))) ->  | Z36: =IF($Y36<>"",VLOOKUP($Y36,'3'!$AG$15:$AL$52,6,0),"") -> 00:00:00 | AA36: =IF($Y36<>"",VLOOKUP($Y36,'3'!$AG$15:$AI$52,3,0),"") -> 0 | AB36: =IF($Y36<>"",VLOOKUP($Y36,'3'!$AG$15:$AH$52,2,0),"") -> 0 | AF36: 22 | AH36: 0 | AI36: 0 | AJ36: =IF(AG36<>"",COUNTIF($AK$15:$AK$52,">"&AK36)+COUNTIF($AK$15:AK36,AK36),"") -> 22 | AK36: 0 | AL36: 00:00:00
A37: 23 | S37: 0 | W37: 23 | X37: =IF($Y37<>"",VLOOKUP($Y37,'3'!$P$15:$S$52,4,0),"") -> 0 | Y37: =IF(ISNA(MATCH(W37,'3'!$AJ$15:$AJ$52,0)),"",INDEX('3'!$AG$15:$AG$52,MATCH(W37,'3'!$AJ$15:$AJ$52,0))) ->  | Z37: =IF($Y37<>"",VLOOKUP($Y37,'3'!$AG$15:$AL$52,6,0),"") -> 00:00:00 | AA37: =IF($Y37<>"",VLOOKUP($Y37,'3'!$AG$15:$AI$52,3,0),"") -> 0 | AB37: =IF($Y37<>"",VLOOKUP($Y37,'3'!$AG$15:$AH$52,2,0),"") -> 0 | AF37: 23 | AH37: 0 | AI37: 0 | AJ37: =IF(AG37<>"",COUNTIF($AK$15:$AK$52,">"&AK37)+COUNTIF($AK$15:AK37,AK37),"") -> 23 | AK37: 0 | AL37: 00:00:00
A38: 24 | S38: 0 | W38: 24 | X38: =IF($Y38<>"",VLOOKUP($Y38,'3'!$P$15:$S$52,4,0),"") -> 0 | Y38: =IF(ISNA(MATCH(W38,'3'!$AJ$15:$AJ$52,0)),"",INDEX('3'!$AG$15:$AG$52,MATCH(W38,'3'!$AJ$15:$AJ$52,0))) ->  | Z38: =IF($Y38<>"",VLOOKUP($Y38,'3'!$AG$15:$AL$52,6,0),"") -> 00:00:00 | AA38: =IF($Y38<>"",VLOOKUP($Y38,'3'!$AG$15:$AI$52,3,0),"") -> 0 | AB38: =IF($Y38<>"",VLOOKUP($Y38,'3'!$AG$15:$AH$52,2,0),"") -> 0 | AF38: 24 | AH38: 0 | AI38: 0 | AJ38: =IF(AG38<>"",COUNTIF($AK$15:$AK$52,">"&AK38)+COUNTIF($AK$15:AK38,AK38),"") -> 24 | AK38: 0 | AL38: 00:00:00
A39: 25 | S39: 0 | W39: 25 | X39: =IF($Y39<>"",VLOOKUP($Y39,'3'!$P$15:$S$52,4,0),"") -> 0 | Y39: =IF(ISNA(MATCH(W39,'3'!$AJ$15:$AJ$52,0)),"",INDEX('3'!$AG$15:$AG$52,MATCH(W39,'3'!$AJ$15:$AJ$52,0))) ->  | Z39: =IF($Y39<>"",VLOOKUP($Y39,'3'!$AG$15:$AL$52,6,0),"") -> 00:00:00 | AA39: =IF($Y39<>"",VLOOKUP($Y39,'3'!$AG$15:$AI$52,3,0),"") -> 0 | AB39: =IF($Y39<>"",VLOOKUP($Y39,'3'!$AG$15:$AH$52,2,0),"") -> 0 | AF39: 25 | AH39: 0 | AI39: 0 | AJ39: =IF(AG39<>"",COUNTIF($AK$15:$AK$52,">"&AK39)+COUNTIF($AK$15:AK39,AK39),"") -> 25 | AK39: 0 | AL39: 00:00:00
A40: 26 | S40: 0 | W40: 26 | X40: =IF($Y40<>"",VLOOKUP($Y40,'3'!$P$15:$S$52,4,0),"") -> 0 | Y40: =IF(ISNA(MATCH(W40,'3'!$AJ$15:$AJ$52,0)),"",INDEX('3'!$AG$15:$AG$52,MATCH(W40,'3'!$AJ$15:$AJ$52,0))) ->  | Z40: =IF($Y40<>"",VLOOKUP($Y40,'3'!$AG$15:$AL$52,6,0),"") -> 00:00:00 | AA40: =IF($Y40<>"",VLOOKUP($Y40,'3'!$AG$15:$AI$52,3,0),"") -> 0 | AB40: =IF($Y40<>"",VLOOKUP($Y40,'3'!$AG$15:$AH$52,2,0),"") -> 0 | AF40: 26 | AH40: 0 | AI40: 0 | AJ40: =IF(AG40<>"",COUNTIF($AK$15:$AK$52,">"&AK40)+COUNTIF($AK$15:AK40,AK40),"") -> 26 | AK40: 0 | AL40: 00:00:00
A41: 27 | S41: 0 | W41: 27 | X41: =IF($Y41<>"",VLOOKUP($Y41,'3'!$P$15:$S$52,4,0),"") -> 0 | Y41: =IF(ISNA(MATCH(W41,'3'!$AJ$15:$AJ$52,0)),"",INDEX('3'!$AG$15:$AG$52,MATCH(W41,'3'!$AJ$15:$AJ$52,0))) ->  | Z41: =IF($Y41<>"",VLOOKUP($Y41,'3'!$AG$15:$AL$52,6,0),"") -> 00:00:00 | AA41: =IF($Y41<>"",VLOOKUP($Y41,'3'!$AG$15:$AI$52,3,0),"") -> 0 | AB41: =IF($Y41<>"",VLOOKUP($Y41,'3'!$AG$15:$AH$52,2,0),"") -> 0 | AF41: 27 | AH41: 0 | AI41: 0 | AJ41: =IF(AG41<>"",COUNTIF($AK$15:$AK$52,">"&AK41)+COUNTIF($AK$15:AK41,AK41),"") -> 27 | AK41: 0 | AL41: 00:00:00
A42: 28 | S42: 0 | W42: 28 | X42: =IF($Y42<>"",VLOOKUP($Y42,'3'!$P$15:$S$52,4,0),"") -> 0 | Y42: =IF(ISNA(MATCH(W42,'3'!$AJ$15:$AJ$52,0)),"",INDEX('3'!$AG$15:$AG$52,MATCH(W42,'3'!$AJ$15:$AJ$52,0))) ->  | Z42: =IF($Y42<>"",VLOOKUP($Y42,'3'!$AG$15:$AL$52,6,0),"") -> 00:00:00 | AA42: =IF($Y42<>"",VLOOKUP($Y42,'3'!$AG$15:$AI$52,3,0),"") -> 0 | AB42: =IF($Y42<>"",VLOOKUP($Y42,'3'!$AG$15:$AH$52,2,0),"") -> 0 | AF42: 28 | AH42: 0 | AI42: 0 | AJ42: =IF(AG42<>"",COUNTIF($AK$15:$AK$52,">"&AK42)+COUNTIF($AK$15:AK42,AK42),"") -> 28 | AK42: 0 | AL42: 00:00:00
A43: 29 | S43: 0 | W43: 29 | X43: =IF($Y43<>"",VLOOKUP($Y43,'3'!$P$15:$S$52,4,0),"") -> 0 | Y43: =IF(ISNA(MATCH(W43,'3'!$AJ$15:$AJ$52,0)),"",INDEX('3'!$AG$15:$AG$52,MATCH(W43,'3'!$AJ$15:$AJ$52,0))) ->  | Z43: =IF($Y43<>"",VLOOKUP($Y43,'3'!$AG$15:$AL$52,6,0),"") -> 00:00:00 | AA43: =IF($Y43<>"",VLOOKUP($Y43,'3'!$AG$15:$AI$52,3,0),"") -> 0 | AB43: =IF($Y43<>"",VLOOKUP($Y43,'3'!$AG$15:$AH$52,2,0),"") -> 0 | AF43: 29 | AH43: 0 | AI43: 0 | AJ43: =IF(AG43<>"",COUNTIF($AK$15:$AK$52,">"&AK43)+COUNTIF($AK$15:AK43,AK43),"") -> 29 | AK43: 0 | AL43: 00:00:00
A44: 30 | S44: 0 | W44: 30 | X44: =IF($Y44<>"",VLOOKUP($Y44,'3'!$P$15:$S$52,4,0),"") -> 0 | Y44: =IF(ISNA(MATCH(W44,'3'!$AJ$15:$AJ$52,0)),"",INDEX('3'!$AG$15:$AG$52,MATCH(W44,'3'!$AJ$15:$AJ$52,0))) ->  | Z44: =IF($Y44<>"",VLOOKUP($Y44,'3'!$AG$15:$AL$52,6,0),"") -> 00:00:00 | AA44: =IF($Y44<>"",VLOOKUP($Y44,'3'!$AG$15:$AI$52,3,0),"") -> 0 | AB44: =IF($Y44<>"",VLOOKUP($Y44,'3'!$AG$15:$AH$52,2,0),"") -> 0 | AF44: 30 | AH44: 0 | AI44: 0 | AJ44: =IF(AG44<>"",COUNTIF($AK$15:$AK$52,">"&AK44)+COUNTIF($AK$15:AK44,AK44),"") -> 30 | AK44: 0 | AL44: 00:00:00
A45: 31 | S45: 0 | W45: 31 | X45: =IF($Y45<>"",VLOOKUP($Y45,'3'!$P$15:$S$52,4,0),"") -> 0 | Y45: =IF(ISNA(MATCH(W45,'3'!$AJ$15:$AJ$52,0)),"",INDEX('3'!$AG$15:$AG$52,MATCH(W45,'3'!$AJ$15:$AJ$52,0))) ->  | Z45: =IF($Y45<>"",VLOOKUP($Y45,'3'!$AG$15:$AL$52,6,0),"") -> 00:00:00 | AA45: =IF($Y45<>"",VLOOKUP($Y45,'3'!$AG$15:$AI$52,3,0),"") -> 0 | AB45: =IF($Y45<>"",VLOOKUP($Y45,'3'!$AG$15:$AH$52,2,0),"") -> 0 | AF45: 31 | AH45: 0 | AI45: 0 | AJ45: =IF(AG45<>"",COUNTIF($AK$15:$AK$52,">"&AK45)+COUNTIF($AK$15:AK45,AK45),"") -> 31 | AK45: 0 | AL45: 00:00:00
A46: 32 | S46: 0 | W46: 32 | X46: =IF($Y46<>"",VLOOKUP($Y46,'3'!$P$15:$S$52,4,0),"") -> 0 | Y46: =IF(ISNA(MATCH(W46,'3'!$AJ$15:$AJ$52,0)),"",INDEX('3'!$AG$15:$AG$52,MATCH(W46,'3'!$AJ$15:$AJ$52,0))) ->  | Z46: =IF($Y46<>"",VLOOKUP($Y46,'3'!$AG$15:$AL$52,6,0),"") -> 00:00:00 | AA46: =IF($Y46<>"",VLOOKUP($Y46,'3'!$AG$15:$AI$52,3,0),"") -> 0 | AB46: =IF($Y46<>"",VLOOKUP($Y46,'3'!$AG$15:$AH$52,2,0),"") -> 0 | AF46: 32 | AH46: 0 | AI46: 0 | AJ46: =IF(AG46<>"",COUNTIF($AK$15:$AK$52,">"&AK46)+COUNTIF($AK$15:AK46,AK46),"") -> 32 | AK46: 0 | AL46: 00:00:00
A47: 33 | S47: 0 | W47: 33 | X47: =IF($Y47<>"",VLOOKUP($Y47,'3'!$P$15:$S$52,4,0),"") -> 0 | Y47: =IF(ISNA(MATCH(W47,'3'!$AJ$15:$AJ$52,0)),"",INDEX('3'!$AG$15:$AG$52,MATCH(W47,'3'!$AJ$15:$AJ$52,0))) ->  | Z47: =IF($Y47<>"",VLOOKUP($Y47,'3'!$AG$15:$AL$52,6,0),"") -> 00:00:00 | AA47: =IF($Y47<>"",VLOOKUP($Y47,'3'!$AG$15:$AI$52,3,0),"") -> 0 | AB47: =IF($Y47<>"",VLOOKUP($Y47,'3'!$AG$15:$AH$52,2,0),"") -> 0 | AF47: 33 | AH47: 0 | AI47: 0 | AJ47: =IF(AG47<>"",COUNTIF($AK$15:$AK$52,">"&AK47)+COUNTIF($AK$15:AK47,AK47),"") -> 33 | AK47: 0 | AL47: 00:00:00
A48: 34 | S48: 0 | W48: 34 | X48: =IF($Y48<>"",VLOOKUP($Y48,'3'!$P$15:$S$52,4,0),"") -> 0 | Y48: =IF(ISNA(MATCH(W48,'3'!$AJ$15:$AJ$52,0)),"",INDEX('3'!$AG$15:$AG$52,MATCH(W48,'3'!$AJ$15:$AJ$52,0))) ->  | Z48: =IF($Y48<>"",VLOOKUP($Y48,'3'!$AG$15:$AL$52,6,0),"") -> 00:00:00 | AA48: =IF($Y48<>"",VLOOKUP($Y48,'3'!$AG$15:$AI$52,3,0),"") -> 0 | AB48: =IF($Y48<>"",VLOOKUP($Y48,'3'!$AG$15:$AH$52,2,0),"") -> 0 | AF48: 34 | AH48: 0 | AI48: 0 | AJ48: =IF(AG48<>"",COUNTIF($AK$15:$AK$52,">"&AK48)+COUNTIF($AK$15:AK48,AK48),"") -> 34 | AK48: 0 | AL48: 00:00:00
A49: 35 | S49: 0 | W49: 35 | X49: =IF($Y49<>"",VLOOKUP($Y49,'3'!$P$15:$S$52,4,0),"") -> 0 | Y49: =IF(ISNA(MATCH(W49,'3'!$AJ$15:$AJ$52,0)),"",INDEX('3'!$AG$15:$AG$52,MATCH(W49,'3'!$AJ$15:$AJ$52,0))) ->  | Z49: =IF($Y49<>"",VLOOKUP($Y49,'3'!$AG$15:$AL$52,6,0),"") -> 00:00:00 | AA49: =IF($Y49<>"",VLOOKUP($Y49,'3'!$AG$15:$AI$52,3,0),"") -> 0 | AB49: =IF($Y49<>"",VLOOKUP($Y49,'3'!$AG$15:$AH$52,2,0),"") -> 0 | AF49: 35 | AH49: 0 | AI49: 0 | AJ49: =IF(AG49<>"",COUNTIF($AK$15:$AK$52,">"&AK49)+COUNTIF($AK$15:AK49,AK49),"") -> 35 | AK49: 0 | AL49: 00:00:00
A50: 36 | S50: 0 | W50: 36 | X50: =IF($Y50<>"",VLOOKUP($Y50,'3'!$P$15:$S$52,4,0),"") -> 0 | Y50: =IF(ISNA(MATCH(W50,'3'!$AJ$15:$AJ$52,0)),"",INDEX('3'!$AG$15:$AG$52,MATCH(W50,'3'!$AJ$15:$AJ$52,0))) ->  | Z50: =IF($Y50<>"",VLOOKUP($Y50,'3'!$AG$15:$AL$52,6,0),"") -> 00:00:00 | AA50: =IF($Y50<>"",VLOOKUP($Y50,'3'!$AG$15:$AI$52,3,0),"") -> 0 | AB50: =IF($Y50<>"",VLOOKUP($Y50,'3'!$AG$15:$AH$52,2,0),"") -> 0 | AF50: 36 | AH50: 0 | AI50: 0 | AJ50: =IF(AG50<>"",COUNTIF($AK$15:$AK$52,">"&AK50)+COUNTIF($AK$15:AK50,AK50),"") -> 36 | AK50: 0 | AL50: 00:00:00
A51: 37 | S51: 0 | W51: 37 | X51: =IF($Y51<>"",VLOOKUP($Y51,'3'!$P$15:$S$52,4,0),"") -> 0 | Y51: =IF(ISNA(MATCH(W51,'3'!$AJ$15:$AJ$52,0)),"",INDEX('3'!$AG$15:$AG$52,MATCH(W51,'3'!$AJ$15:$AJ$52,0))) ->  | Z51: =IF($Y51<>"",VLOOKUP($Y51,'3'!$AG$15:$AL$52,6,0),"") -> 00:00:00 | AA51: =IF($Y51<>"",VLOOKUP($Y51,'3'!$AG$15:$AI$52,3,0),"") -> 0 | AB51: =IF($Y51<>"",VLOOKUP($Y51,'3'!$AG$15:$AH$52,2,0),"") -> 0 | AF51: 37 | AH51: 0 | AI51: 0 | AJ51: =IF(AG51<>"",COUNTIF($AK$15:$AK$52,">"&AK51)+COUNTIF($AK$15:AK51,AK51),"") -> 37 | AK51: 0 | AL51: 00:00:00
A52: 38 | S52: 0 | W52: 38 | X52: =IF($Y52<>"",VLOOKUP($Y52,'3'!$P$15:$S$52,4,0),"") -> 0 | Y52: =IF(ISNA(MATCH(W52,'3'!$AJ$15:$AJ$52,0)),"",INDEX('3'!$AG$15:$AG$52,MATCH(W52,'3'!$AJ$15:$AJ$52,0))) ->  | Z52: =IF($Y52<>"",VLOOKUP($Y52,'3'!$AG$15:$AL$52,6,0),"") -> 00:00:00 | AA52: =IF($Y52<>"",VLOOKUP($Y52,'3'!$AG$15:$AI$52,3,0),"") -> 0 | AB52: =IF($Y52<>"",VLOOKUP($Y52,'3'!$AG$15:$AH$52,2,0),"") -> 0 | AF52: 38 | AH52: 0 | AI52: 0 | AJ52: =IF(AG52<>"",COUNTIF($AK$15:$AK$52,">"&AK52)+COUNTIF($AK$15:AK52,AK52),"") -> 38 | AK52: 0 | AL52: 00:00:00
L54: =COUNTIFS(L15:L52,">=10") -> 0
D55: ="المجموع : " &F55 -> المجموع : 0 | F55: =SUM(F57:F58) -> 0 | M55: ="التهنئة : "&G15 -> التهنئة : 0 | Q55: ="لا شيء : "&G18 -> لا شيء : 0 | Y55: ="المجموع : " &AA57 -> المجموع : 0 | AB55: =F55 -> 0
D57: ="البنات : "&F57 -> البنات : 0 | F57: =COUNTIFS(C15:C52,"أ") -> 0 | M57: ="التشجيع : "&G16 -> التشجيع : 0 | Q57: ="الإنذار : "&G19 -> الإنذار : 0 | Y57: =D57 -> البنات : 0 | AA57: =F55 -> 0 | AB57: =AB55 -> 0 | AD57: المعدل الفصلي أكبرمن أو يساوي 10 | AH57: =COUNTIFS(AA15:AA45,">=10") -> 0 | AI57: =AH57/AB55 -> 
D58: ="البنين : "&F58 -> البنين : 0 | F58: =COUNTIFS(C15:C52,"ذ") -> 0 | M58: ="لوحة شرف : "&G17 -> لوحة شرف : 0 | Q58: ="التوبيخ : "&G20 -> التوبيخ : 0 | Y58: =D58 -> البنين : 0 | AB58: =AB57 -> 0
D63: =IF(D1<>"",D1,"") -> متوسطة مكاوي علي؛ اولاد البارودي - سيدي لخضر | R63: =IF(R1<>"",R1,"") -> 2015/2014 | Y63: =D63 -> متوسطة مكاوي علي؛ اولاد البارودي - سيدي لخضر | AI63: =IF(R63<>"",R63,"") -> 2015/2014 | AJ63: =IF(N63<>"",N63,"") -> 
AI64: =IF(M64<>"",M64,"") ->  | AJ64: =IF(N64<>"",N64,"") -> 
D65: القسم: | E65: =E3 -> س1م2 | K65: نتائج الفصل الثاني | Y65: القسم: | Z65: =E65 -> س1م2
AB66: ترتيب التلاميذ حسب معدلاتهم (الفصـــــــــــــل الثاني)
AI67: =AI5 -> 1
D70: اللقب | E70: الإسم | F70: تاريخ الميلاد | L70: المعدل الفصلي على 20 | M70: الإجازات و العقوبات | Y70: اللقب و الإسم | Z70: تاريخ الميلاد | AA70: المعدل الفصلي على 20 | AB70: الإجازات و العقوبات
A77: 1 | C77: =C15 -> 0 | D77: =D15 -> 0 | E77: =E15 -> 0 | F77: =IF(F15<>"",F15,"") ->  | G77: =COUNTIFS(M77:M114,"تهنئة") -> 0 | M77: =IF(AND(L77>=15,L77<20),"تهنئة","")&IF(AND(L77>=14,L77<15),"تشجيع","")&IF(AND(L77>=12,L77<14),"لوحة شرف","")&IF(AND(L77>=10,L77<12),"لا شيء","")&IF(AND(L77>=8,L77<10),"إنذار","")&IF(AND(L77>0,L77<8),"توبيخ","")&IF(AND(L77<>"",L77=0),"","") ->  | W77: 1 | Y77: =IF(ISNA(MATCH(W77,'3'!$AJ$77:$AJ$114,0)),"",INDEX('3'!$AG$77:$AG$114,MATCH(W77,'3'!$AJ$77:$AJ$114,0))) -> 0 0 | Z77: =IF($Y77<>"",VLOOKUP($Y77,'3'!$AG$77:$AL$114,6,0),"") -> 00:00:00 | AA77: =IF($Y77<>"",VLOOKUP($Y77,'3'!$AG$77:$AI$114,3,0),"") -> 0 | AB77: =IF($Y77<>"",VLOOKUP($Y77,'3'!$AG$77:$AH$114,2,0),"") -> 0 | AF77: 1 | AG77: =D77&" "&E77 -> 0 0 | AH77: =IF(M77="",0,M77) -> 0 | AI77: =IF(L77="",0,L77) -> 0 | AJ77: =IF(AG77<>"",COUNTIF($AK$77:$AK$114,">"&AK77)+COUNTIF($AK$77:AK77,AK77),"") -> 1 | AK77: =IF(AI77<>"",AI77*1000,"") -> 0 | AL77: =IF(F77="",0,F77) -> 00:00:00
A78: 2 | C78: =C16 -> 0 | D78: 0 | E78: 0 | F78: =IF(F16<>"",F16,"") ->  | G78: =COUNTIFS(M77:M114,"تشجيع") -> 0 | W78: 2 | Y78: =IF(ISNA(MATCH(W78,'3'!$AJ$77:$AJ$114,0)),"",INDEX('3'!$AG$77:$AG$114,MATCH(W78,'3'!$AJ$77:$AJ$114,0))) -> 0 0 | Z78: =IF($Y78<>"",VLOOKUP($Y78,'3'!$AG$77:$AL$114,6,0),"") -> 00:00:00 | AA78: =IF($Y78<>"",VLOOKUP($Y78,'3'!$AG$77:$AI$114,3,0),"") -> 0 | AB78: =IF($Y78<>"",VLOOKUP($Y78,'3'!$AG$77:$AH$114,2,0),"") -> 0 | AF78: 2 | AG78: 0 0 | AH78: =IF(M78="",0,M78) -> 0 | AI78: 0 | AJ78: =IF(AG78<>"",COUNTIF($AK$77:$AK$114,">"&AK78)+COUNTIF($AK$77:AK78,AK78),"") -> 2 | AK78: 0 | AL78: 00:00:00
A79: 3 | C79: 0 | D79: 0 | E79: 0 | G79: =COUNTIFS(M77:M114,"لوحة شرف") -> 0 | W79: 3 | Y79: =IF(ISNA(MATCH(W79,'3'!$AJ$77:$AJ$114,0)),"",INDEX('3'!$AG$77:$AG$114,MATCH(W79,'3'!$AJ$77:$AJ$114,0))) -> 0 0 | Z79: =IF($Y79<>"",VLOOKUP($Y79,'3'!$AG$77:$AL$114,6,0),"") -> 00:00:00 | AA79: =IF($Y79<>"",VLOOKUP($Y79,'3'!$AG$77:$AI$114,3,0),"") -> 0 | AB79: =IF($Y79<>"",VLOOKUP($Y79,'3'!$AG$77:$AH$114,2,0),"") -> 0 | AF79: 3 | AG79: 0 0 | AH79: 0 | AI79: 0 | AJ79: =IF(AG79<>"",COUNTIF($AK$77:$AK$114,">"&AK79)+COUNTIF($AK$77:AK79,AK79),"") -> 3 | AK79: 0 | AL79: 00:00:00
A80: 4 | C80: 0 | D80: 0 | E80: 0 | G80: =COUNTIFS(M77:M114,"لا شيء") -> 0 | W80: 4 | Y80: =IF(ISNA(MATCH(W80,'3'!$AJ$77:$AJ$114,0)),"",INDEX('3'!$AG$77:$AG$114,MATCH(W80,'3'!$AJ$77:$AJ$114,0))) -> 0 0 | Z80: =IF($Y80<>"",VLOOKUP($Y80,'3'!$AG$77:$AL$114,6,0),"") -> 00:00:00 | AA80: =IF($Y80<>"",VLOOKUP($Y80,'3'!$AG$77:$AI$114,3,0),"") -> 0 | AB80: =IF($Y80<>"",VLOOKUP($Y80,'3'!$AG$77:$AH$114,2,0),"") -> 0 | AF80: 4 | AG80: 0 0 | AH80: 0 | AI80: 0 | AJ80: =IF(AG80<>"",COUNTIF($AK$77:$AK$114,">"&AK80)+COUNTIF($AK$77:AK80,AK80),"") -> 4 | AK80: 0 | AL80: 00:00:00
A81: 5 | C81: 0 | D81: 0 | E81: 0 | G81: =COUNTIFS(M77:M114,"إنذار") -> 0 | W81: 5 | Y81: =IF(ISNA(MATCH(W81,'3'!$AJ$77:$AJ$114,0)),"",INDEX('3'!$AG$77:$AG$114,MATCH(W81,'3'!$AJ$77:$AJ$114,0))) -> 0 0 | Z81: =IF($Y81<>"",VLOOKUP($Y81,'3'!$AG$77:$AL$114,6,0),"") -> 00:00:00 | AA81: =IF($Y81<>"",VLOOKUP($Y81,'3'!$AG$77:$AI$114,3,0),"") -> 0 | AB81: =IF($Y81<>"",VLOOKUP($Y81,'3'!$AG$77:$AH$114,2,0),"") -> 0 | AF81: 5 | AG81: 0 0 | AH81: 0 | AI81: 0 | AJ81: =IF(AG81<>"",COUNTIF($AK$77:$AK$114,">"&AK81)+COUNTIF($AK$77:AK81,AK81),"") -> 5 | AK81: 0 | AL81: 00:00:00
A82: 6 | C82: 0 | D82: 0 | E82: 0 | G82: =COUNTIFS(M77:M114,"توبيخ") -> 0 | W82: 6 | Y82: =IF(ISNA(MATCH(W82,'3'!$AJ$77:$AJ$114,0)),"",INDEX('3'!$AG$77:$AG$114,MATCH(W82,'3'!$AJ$77:$AJ$114,0))) -> 0 0 | Z82: =IF($Y82<>"",VLOOKUP($Y82,'3'!$AG$77:$AL$114,6,0),"") -> 00:00:00 | AA82: =IF($Y82<>"",VLOOKUP($Y82,'3'!$AG$77:$AI$114,3,0),"") -> 0 | AB82: =IF($Y82<>"",VLOOKUP($Y82,'3'!$AG$77:$AH$114,2,0),"") -> 0 | AF82: 6 | AG82: 0 0 | AH82: 0 | AI82: 0 | AJ82: =IF(AG82<>"",COUNTIF($AK$77:$AK$114,">"&AK82)+COUNTIF($AK$77:AK82,AK82),"") -> 6 | AK82: 0 | AL82: 00:00:00
A83: 7 | C83: 0 | D83: 0 | E83: 0 | W83: 7 | Y83: =IF(ISNA(MATCH(W83,'3'!$AJ$77:$AJ$114,0)),"",INDEX('3'!$AG$77:$AG$114,MATCH(W83,'3'!$AJ$77:$AJ$114,0))) -> 0 0 | Z83: =IF($Y83<>"",VLOOKUP($Y83,'3'!$AG$77:$AL$114,6,0),"") -> 00:00:00 | AA83: =IF($Y83<>"",VLOOKUP($Y83,'3'!$AG$77:$AI$114,3,0),"") -> 0 | AB83: =IF($Y83<>"",VLOOKUP($Y83,'3'!$AG$77:$AH$114,2,0),"") -> 0 | AF83: 7 | AG83: 0 0 | AH83: 0 | AI83: 0 | AJ83: =IF(AG83<>"",COUNTIF($AK$77:$AK$114,">"&AK83)+COUNTIF($AK$77:AK83,AK83),"") -> 7 | AK83: 0 | AL83: 00:00:00
A84: 8 | C84: 0 | D84: 0 | E84: 0 | W84: 8 | Y84: =IF(ISNA(MATCH(W84,'3'!$AJ$77:$AJ$114,0)),"",INDEX('3'!$AG$77:$AG$114,MATCH(W84,'3'!$AJ$77:$AJ$114,0))) -> 0 0 | Z84: =IF($Y84<>"",VLOOKUP($Y84,'3'!$AG$77:$AL$114,6,0),"") -> 00:00:00 | AA84: =IF($Y84<>"",VLOOKUP($Y84,'3'!$AG$77:$AI$114,3,0),"") -> 0 | AB84: =IF($Y84<>"",VLOOKUP($Y84,'3'!$AG$77:$AH$114,2,0),"") -> 0 | AF84: 8 | AG84: 0 0 | AH84: 0 | AI84: 0 | AJ84: =IF(AG84<>"",COUNTIF($AK$77:$AK$114,">"&AK84)+COUNTIF($AK$77:AK84,AK84),"") -> 8 | AK84: 0 | AL84: 00:00:00
A85: 9 | C85: 0 | D85: 0 | E85: 0 | W85: 9 | Y85: =IF(ISNA(MATCH(W85,'3'!$AJ$77:$AJ$114,0)),"",INDEX('3'!$AG$77:$AG$114,MATCH(W85,'3'!$AJ$77:$AJ$114,0))) -> 0 0 | Z85: =IF($Y85<>"",VLOOKUP($Y85,'3'!$AG$77:$AL$114,6,0),"") -> 00:00:00 | AA85: =IF($Y85<>"",VLOOKUP($Y85,'3'!$AG$77:$AI$114,3,0),"") -> 0 | AB85: =IF($Y85<>"",VLOOKUP($Y85,'3'!$AG$77:$AH$114,2,0),"") -> 0 | AF85: 9 | AG85: 0 0 | AH85: 0 | AI85: 0 | AJ85: =IF(AG85<>"",COUNTIF($AK$77:$AK$114,">"&AK85)+COUNTIF($AK$77:AK85,AK85),"") -> 9 | AK85: 0 | AL85: 00:00:00
A86: 10 | C86: 0 | D86: 0 | E86: 0 | W86: 10 | Y86: =IF(ISNA(MATCH(W86,'3'!$AJ$77:$AJ$114,0)),"",INDEX('3'!$AG$77:$AG$114,MATCH(W86,'3'!$AJ$77:$AJ$114,0))) -> 0 0 | Z86: =IF($Y86<>"",VLOOKUP($Y86,'3'!$AG$77:$AL$114,6,0),"") -> 00:00:00 | AA86: =IF($Y86<>"",VLOOKUP($Y86,'3'!$AG$77:$AI$114,3,0),"") -> 0 | AB86: =IF($Y86<>"",VLOOKUP($Y86,'3'!$AG$77:$AH$114,2,0),"") -> 0 | AF86: 10 | AG86: 0 0 | AH86: 0 | AI86: 0 | AJ86: =IF(AG86<>"",COUNTIF($AK$77:$AK$114,">"&AK86)+COUNTIF($AK$77:AK86,AK86),"") -> 10 | AK86: 0 | AL86: 00:00:00
A87: 11 | C87: 0 | D87: 0 | E87: 0 | W87: 11 | Y87: =IF(ISNA(MATCH(W87,'3'!$AJ$77:$AJ$114,0)),"",INDEX('3'!$AG$77:$AG$114,MATCH(W87,'3'!$AJ$77:$AJ$114,0))) -> 0 0 | Z87: =IF($Y87<>"",VLOOKUP($Y87,'3'!$AG$77:$AL$114,6,0),"") -> 00:00:00 | AA87: =IF($Y87<>"",VLOOKUP($Y87,'3'!$AG$77:$AI$114,3,0),"") -> 0 | AB87: =IF($Y87<>"",VLOOKUP($Y87,'3'!$AG$77:$AH$114,2,0),"") -> 0 | AF87: 11 | AG87: 0 0 | AH87: 0 | AI87: 0 | AJ87: =IF(AG87<>"",COUNTIF($AK$77:$AK$114,">"&AK87)+COUNTIF($AK$77:AK87,AK87),"") -> 11 | AK87: 0 | AL87: 00:00:00
A88: 12 | C88: 0 | D88: 0 | E88: 0 | W88: 12 | Y88: =IF(ISNA(MATCH(W88,'3'!$AJ$77:$AJ$114,0)),"",INDEX('3'!$AG$77:$AG$114,MATCH(W88,'3'!$AJ$77:$AJ$114,0))) -> 0 0 | Z88: =IF($Y88<>"",VLOOKUP($Y88,'3'!$AG$77:$AL$114,6,0),"") -> 00:00:00 | AA88: =IF($Y88<>"",VLOOKUP($Y88,'3'!$AG$77:$AI$114,3,0),"") -> 0 | AB88: =IF($Y88<>"",VLOOKUP($Y88,'3'!$AG$77:$AH$114,2,0),"") -> 0 | AF88: 12 | AG88: 0 0 | AH88: 0 | AI88: 0 | AJ88: =IF(AG88<>"",COUNTIF($AK$77:$AK$114,">"&AK88)+COUNTIF($AK$77:AK88,AK88),"") -> 12 | AK88: 0 | AL88: 00:00:00
A89: 13 | C89: 0 | D89: 0 | E89: 0 | W89: 13 | Y89: =IF(ISNA(MATCH(W89,'3'!$AJ$77:$AJ$114,0)),"",INDEX('3'!$AG$77:$AG$114,MATCH(W89,'3'!$AJ$77:$AJ$114,0))) -> 0 0 | Z89: =IF($Y89<>"",VLOOKUP($Y89,'3'!$AG$77:$AL$114,6,0),"") -> 00:00:00 | AA89: =IF($Y89<>"",VLOOKUP($Y89,'3'!$AG$77:$AI$114,3,0),"") -> 0 | AB89: =IF($Y89<>"",VLOOKUP($Y89,'3'!$AG$77:$AH$114,2,0),"") -> 0 | AF89: 13 | AG89: 0 0 | AH89: 0 | AI89: 0 | AJ89: =IF(AG89<>"",COUNTIF($AK$77:$AK$114,">"&AK89)+COUNTIF($AK$77:AK89,AK89),"") -> 13 | AK89: 0 | AL89: 00:00:00
A90: 14 | C90: 0 | D90: 0 | E90: 0 | W90: 14 | Y90: =IF(ISNA(MATCH(W90,'3'!$AJ$77:$AJ$114,0)),"",INDEX('3'!$AG$77:$AG$114,MATCH(W90,'3'!$AJ$77:$AJ$114,0))) -> 0 0 | Z90: =IF($Y90<>"",VLOOKUP($Y90,'3'!$AG$77:$AL$114,6,0),"") -> 00:00:00 | AA90: =IF($Y90<>"",VLOOKUP($Y90,'3'!$AG$77:$AI$114,3,0),"") -> 0 | AB90: =IF($Y90<>"",VLOOKUP($Y90,'3'!$AG$77:$AH$114,2,0),"") -> 0 | AF90: 14 | AG90: 0 0 | AH90: 0 | AI90: 0 | AJ90: =IF(AG90<>"",COUNTIF($AK$77:$AK$114,">"&AK90)+COUNTIF($AK$77:AK90,AK90),"") -> 14 | AK90: 0 | AL90: 00:00:00
A91: 15 | C91: 0 | D91: 0 | E91: 0 | W91: 15 | Y91: =IF(ISNA(MATCH(W91,'3'!$AJ$77:$AJ$114,0)),"",INDEX('3'!$AG$77:$AG$114,MATCH(W91,'3'!$AJ$77:$AJ$114,0))) -> 0 0 | Z91: =IF($Y91<>"",VLOOKUP($Y91,'3'!$AG$77:$AL$114,6,0),"") -> 00:00:00 | AA91: =IF($Y91<>"",VLOOKUP($Y91,'3'!$AG$77:$AI$114,3,0),"") -> 0 | AB91: =IF($Y91<>"",VLOOKUP($Y91,'3'!$AG$77:$AH$114,2,0),"") -> 0 | AF91: 15 | AG91: 0 0 | AH91: 0 | AI91: 0 | AJ91: =IF(AG91<>"",COUNTIF($AK$77:$AK$114,">"&AK91)+COUNTIF($AK$77:AK91,AK91),"") -> 15 | AK91: 0 | AL91: 00:00:00
A92: 16 | C92: 0 | D92: 0 | E92: 0 | W92: 16 | Y92: =IF(ISNA(MATCH(W92,'3'!$AJ$77:$AJ$114,0)),"",INDEX('3'!$AG$77:$AG$114,MATCH(W92,'3'!$AJ$77:$AJ$114,0))) -> 0 0 | Z92: =IF($Y92<>"",VLOOKUP($Y92,'3'!$AG$77:$AL$114,6,0),"") -> 00:00:00 | AA92: =IF($Y92<>"",VLOOKUP($Y92,'3'!$AG$77:$AI$114,3,0),"") -> 0 | AB92: =IF($Y92<>"",VLOOKUP($Y92,'3'!$AG$77:$AH$114,2,0),"") -> 0 | AF92: 16 | AG92: 0 0 | AH92: 0 | AI92: 0 | AJ92: =IF(AG92<>"",COUNTIF($AK$77:$AK$114,">"&AK92)+COUNTIF($AK$77:AK92,AK92),"") -> 16 | AK92: 0 | AL92: 00:00:00
A93: 17 | C93: 0 | D93: 0 | E93: 0 | W93: 17 | Y93: =IF(ISNA(MATCH(W93,'3'!$AJ$77:$AJ$114,0)),"",INDEX('3'!$AG$77:$AG$114,MATCH(W93,'3'!$AJ$77:$AJ$114,0))) -> 0 0 | Z93: =IF($Y93<>"",VLOOKUP($Y93,'3'!$AG$77:$AL$114,6,0),"") -> 00:00:00 | AA93: =IF($Y93<>"",VLOOKUP($Y93,'3'!$AG$77:$AI$114,3,0),"") -> 0 | AB93: =IF($Y93<>"",VLOOKUP($Y93,'3'!$AG$77:$AH$114,2,0),"") -> 0 | AF93: 17 | AG93: 0 0 | AH93: 0 | AI93: 0 | AJ93: =IF(AG93<>"",COUNTIF($AK$77:$AK$114,">"&AK93)+COUNTIF($AK$77:AK93,AK93),"") -> 17 | AK93: 0 | AL93: 00:00:00
A94: 18 | C94: =C32 -> 0 | D94: 0 | E94: 0 | W94: 18 | Y94: =IF(ISNA(MATCH(W94,'3'!$AJ$77:$AJ$114,0)),"",INDEX('3'!$AG$77:$AG$114,MATCH(W94,'3'!$AJ$77:$AJ$114,0))) -> 0 0 | Z94: =IF($Y94<>"",VLOOKUP($Y94,'3'!$AG$77:$AL$114,6,0),"") -> 00:00:00 | AA94: =IF($Y94<>"",VLOOKUP($Y94,'3'!$AG$77:$AI$114,3,0),"") -> 0 | AB94: =IF($Y94<>"",VLOOKUP($Y94,'3'!$AG$77:$AH$114,2,0),"") -> 0 | AF94: 18 | AG94: 0 0 | AH94: 0 | AI94: 0 | AJ94: =IF(AG94<>"",COUNTIF($AK$77:$AK$114,">"&AK94)+COUNTIF($AK$77:AK94,AK94),"") -> 18 | AK94: 0 | AL94: 00:00:00
A95: 19 | C95: 0 | D95: 0 | E95: 0 | W95: 19 | Y95: =IF(ISNA(MATCH(W95,'3'!$AJ$77:$AJ$114,0)),"",INDEX('3'!$AG$77:$AG$114,MATCH(W95,'3'!$AJ$77:$AJ$114,0))) -> 0 0 | Z95: =IF($Y95<>"",VLOOKUP($Y95,'3'!$AG$77:$AL$114,6,0),"") -> 00:00:00 | AA95: =IF($Y95<>"",VLOOKUP($Y95,'3'!$AG$77:$AI$114,3,0),"") -> 0 | AB95: =IF($Y95<>"",VLOOKUP($Y95,'3'!$AG$77:$AH$114,2,0),"") -> 0 | AF95: 19 | AG95: 0 0 | AH95: 0 | AI95: 0 | AJ95: =IF(AG95<>"",COUNTIF($AK$77:$AK$114,">"&AK95)+COUNTIF($AK$77:AK95,AK95),"") -> 19 | AK95: 0 | AL95: 00:00:00
A96: 20 | C96: 0 | D96: 0 | E96: 0 | W96: 20 | Y96: =IF(ISNA(MATCH(W96,'3'!$AJ$77:$AJ$114,0)),"",INDEX('3'!$AG$77:$AG$114,MATCH(W96,'3'!$AJ$77:$AJ$114,0))) -> 0 0 | Z96: =IF($Y96<>"",VLOOKUP($Y96,'3'!$AG$77:$AL$114,6,0),"") -> 00:00:00 | AA96: =IF($Y96<>"",VLOOKUP($Y96,'3'!$AG$77:$AI$114,3,0),"") -> 0 | AB96: =IF($Y96<>"",VLOOKUP($Y96,'3'!$AG$77:$AH$114,2,0),"") -> 0 | AF96: 20 | AG96: 0 0 | AH96: 0 | AI96: 0 | AJ96: =IF(AG96<>"",COUNTIF($AK$77:$AK$114,">"&AK96)+COUNTIF($AK$77:AK96,AK96),"") -> 20 | AK96: 0 | AL96: 00:00:00
A97: 21 | C97: 0 | D97: 0 | E97: 0 | W97: 21 | Y97: =IF(ISNA(MATCH(W97,'3'!$AJ$77:$AJ$114,0)),"",INDEX('3'!$AG$77:$AG$114,MATCH(W97,'3'!$AJ$77:$AJ$114,0))) -> 0 0 | Z97: =IF($Y97<>"",VLOOKUP($Y97,'3'!$AG$77:$AL$114,6,0),"") -> 00:00:00 | AA97: =IF($Y97<>"",VLOOKUP($Y97,'3'!$AG$77:$AI$114,3,0),"") -> 0 | AB97: =IF($Y97<>"",VLOOKUP($Y97,'3'!$AG$77:$AH$114,2,0),"") -> 0 | AF97: 21 | AG97: 0 0 | AH97: 0 | AI97: 0 | AJ97: =IF(AG97<>"",COUNTIF($AK$77:$AK$114,">"&AK97)+COUNTIF($AK$77:AK97,AK97),"") -> 21 | AK97: 0 | AL97: 00:00:00
A98: 22 | C98: 0 | D98: 0 | E98: 0 | W98: 22 | Y98: =IF(ISNA(MATCH(W98,'3'!$AJ$77:$AJ$114,0)),"",INDEX('3'!$AG$77:$AG$114,MATCH(W98,'3'!$AJ$77:$AJ$114,0))) -> 0 0 | Z98: =IF($Y98<>"",VLOOKUP($Y98,'3'!$AG$77:$AL$114,6,0),"") -> 00:00:00 | AA98: =IF($Y98<>"",VLOOKUP($Y98,'3'!$AG$77:$AI$114,3,0),"") -> 0 | AB98: =IF($Y98<>"",VLOOKUP($Y98,'3'!$AG$77:$AH$114,2,0),"") -> 0 | AF98: 22 | AG98: 0 0 | AH98: 0 | AI98: 0 | AJ98: =IF(AG98<>"",COUNTIF($AK$77:$AK$114,">"&AK98)+COUNTIF($AK$77:AK98,AK98),"") -> 22 | AK98: 0 | AL98: 00:00:00
A99: 23 | C99: 0 | D99: 0 | E99: 0 | W99: 23 | Y99: =IF(ISNA(MATCH(W99,'3'!$AJ$77:$AJ$114,0)),"",INDEX('3'!$AG$77:$AG$114,MATCH(W99,'3'!$AJ$77:$AJ$114,0))) -> 0 0 | Z99: =IF($Y99<>"",VLOOKUP($Y99,'3'!$AG$77:$AL$114,6,0),"") -> 00:00:00 | AA99: =IF($Y99<>"",VLOOKUP($Y99,'3'!$AG$77:$AI$114,3,0),"") -> 0 | AB99: =IF($Y99<>"",VLOOKUP($Y99,'3'!$AG$77:$AH$114,2,0),"") -> 0 | AF99: 23 | AG99: 0 0 | AH99: 0 | AI99: 0 | AJ99: =IF(AG99<>"",COUNTIF($AK$77:$AK$114,">"&AK99)+COUNTIF($AK$77:AK99,AK99),"") -> 23 | AK99: 0 | AL99: 00:00:00
A100: 24 | C100: 0 | D100: 0 | E100: 0 | W100: 24 | Y100: =IF(ISNA(MATCH(W100,'3'!$AJ$77:$AJ$114,0)),"",INDEX('3'!$AG$77:$AG$114,MATCH(W100,'3'!$AJ$77:$AJ$114,0))) -> 0 0 | Z100: =IF($Y100<>"",VLOOKUP($Y100,'3'!$AG$77:$AL$114,6,0),"") -> 00:00:00 | AA100: =IF($Y100<>"",VLOOKUP($Y100,'3'!$AG$77:$AI$114,3,0),"") -> 0 | AB100: =IF($Y100<>"",VLOOKUP($Y100,'3'!$AG$77:$AH$114,2,0),"") -> 0 | AF100: 24 | AG100: 0 0 | AH100: 0 | AI100: 0 | AJ100: =IF(AG100<>"",COUNTIF($AK$77:$AK$114,">"&AK100)+COUNTIF($AK$77:AK100,AK100),"") -> 24 | AK100: 0 | AL100: 00:00:00
A101: 25 | C101: 0 | D101: 0 | E101: 0 | W101: 25 | Y101: =IF(ISNA(MATCH(W101,'3'!$AJ$77:$AJ$114,0)),"",INDEX('3'!$AG$77:$AG$114,MATCH(W101,'3'!$AJ$77:$AJ$114,0))) -> 0 0 | Z101: =IF($Y101<>"",VLOOKUP($Y101,'3'!$AG$77:$AL$114,6,0),"") -> 00:00:00 | AA101: =IF($Y101<>"",VLOOKUP($Y101,'3'!$AG$77:$AI$114,3,0),"") -> 0 | AB101: =IF($Y101<>"",VLOOKUP($Y101,'3'!$AG$77:$AH$114,2,0),"") -> 0 | AF101: 25 | AG101: 0 0 | AH101: 0 | AI101: 0 | AJ101: =IF(AG101<>"",COUNTIF($AK$77:$AK$114,">"&AK101)+COUNTIF($AK$77:AK101,AK101),"") -> 25 | AK101: 0 | AL101: 00:00:00
